Workbook

Sheet Overview
A1: test set 2; n=46 | B1: 1 tool, no filter (20, 50, 0.01)
B2: Mutations (TP) | C2: Polymorphisms (TP) | D2: Mutations (FN) | E2: Polymorphisms (FN) | F2: No Mutations (FP_M) | G2: No Mutations (FP_P) | H2: No Mutations (TN2) | I2: No Mutations (TN1) | J2: Variants | K2: Artifacts | L2: sens | M2: PPV
A3: GATK | B3: 64 | C3: 159 | D3: 0 | E3: 0 | F3: 1 | G3: 0 | H3: 1 | I3: 81 | J3: =SUM(B3:E3) -> 223 | K3: =SUM(F3:I3) -> 83 | L3: =J3/248 -> 0.8991935484 | M3: =J3/(J3+K3) -> 0.7287581699
A4: Platypus | B4: 72 | C4: 159 | D4: 0 | E4: 0 | F4: 0 | G4: 0 | H4: 49 | I4: 0 | J4: =SUM(B4:E4) -> 231 | K4: =SUM(F4:I4) -> 49 | L4: =J4/248 -> 0.9314516129 | M4: =J4/(J4+K4) -> 0.825
A5: VarScan | B5: 52 | C5: 151 | D5: 0 | E5: 0 | F5: 0 | G5: 0 | H5: 44 | I5: 31 | J5: =SUM(B5:E5) -> 203 | K5: =SUM(F5:I5) -> 75 | L5: =J5/248 -> 0.8185483871 | M5: =J5/(J5+K5) -> 0.7302158273
A6: LoFreq | B6: 87 | C6: 157 | D6: 0 | E6: 0 | F6: 3 | G6: 0 | H6: 53 | I6: 45 | J6: =SUM(B6:E6) -> 244 | K6: =SUM(F6:I6) -> 101 | L6: =J6/248 -> 0.9838709677 | M6: =J6/(J6+K6) -> 0.7072463768
A7: FreeBayes | B7: 88 | C7: 159 | D7: 0 | E7: 0 | F7: 3 | G7: 0 | H7: 1893 | I7: 20448 | J7: =SUM(B7:E7) -> 247 | K7: =SUM(F7:I7) -> 22344 | L7: =J7/248 -> 0.9959677419 | M7: =J7/(J7+K7) -> 0.01093355761
A8: SNVer | B8: 74 | C8: 159 | D8: 0 | E8: 0 | F8: 1 | G8: 0 | H8: 20 | I8: 33 | J8: =SUM(B8:E8) -> 233 | K8: =SUM(F8:I8) -> 54 | L8: =J8/248 -> 0.939516129 | M8: =J8/(J8+K8) -> 0.8118466899
A9: SAMtools | B9: 44 | C9: 157 | D9: 0 | E9: 0 | F9: 1 | G9: 0 | H9: 44 | I9: 21 | J9: =SUM(B9:E9) -> 201 | K9: =SUM(F9:I9) -> 66 | L9: =J9/248 -> 0.810483871 | M9: =J9/(J9+K9) -> 0.7528089888
A10: VarDict | B10: 86 | C10: 159 | D10: 0 | E10: 0 | F10: 3 | G10: 0 | H10: 350 | I10: 220 | J10: =SUM(B10:E10) -> 245 | K10: =SUM(F10:I10) -> 573 | L10: =J10/248 -> 0.9879032258 | M10: =J10/(J10+K10) -> 0.2995110024
B11: 89 | C11: 159 | D11: 0 | E11: 0 | F11: 3 | G11: 0 | H11: 1905 | I11: 20449 | J11: =SUM(B11:E11) -> 248 | K11: =SUM(F11:I11) -> 22357
B14: 8 tools, no filter (20, 50, 0.01)
B15: Variants | C15: Artifacts | D15: sens | E15: PPV
B16: =B11+C11 -> 248 | C16: =K11 -> 22357 | D16: =B16/B17 -> 1 | E16: =B16/(B16+C16) -> 0.01097102411
B17: =J11 -> 248
B19: 8 tools, our filter; single sample info
B20: Mutations | C20: Artifacts | D20: sens | E20: PPV
B21: 248 | C21: 80 | D21: =B21/B22 -> 1 | E21: =B21/(B21+C21) -> 0.756097561
B22: 248
B24: 8 tools our filter
B25: Variants | C25: Artifacts | D25: sens | E25: PPV
B26: =B11+C11 -> 248 | C26: =F11 -> 3 | D26: =B26/B27 -> 1 | E26: =B26/(B26+C26) -> 0.9880478088
B27: =J11 -> 248
A36: Mutations only | B36: 1 tool, no filter (20, 50, 0.01)
B37: Mutations (TP) | C37: Mutations (FN) | D37: No Mutations (FP_M) | E37: No Mutations (TN2) | F37: No Mutations (TN1) | G37: Variants | H37: Artifacts | I37: sens | J37: PPV
A38: GATK | B38: 62 | C38: 0 | D38: 3 | E38: 1 | F38: 81 | G38: =B38+C38 -> 62 | H38: =SUM(D38+E38+F38) -> 85 | I38: =G38/87 -> 0.7126436782 | J38: =G38/(G38+H38) -> 0.4217687075
A39: Platypus | B39: 70 | C39: 0 | D39: 2 | E39: 49 | F39: 0 | G39: =B39+C39 -> 70 | H39: =SUM(D39+E39+F39) -> 51 | I39: =G39/87 -> 0.8045977011 | J39: =G39/(G39+H39) -> 0.5785123967
A40: VarScan | B40: 50 | C40: 0 | D40: 2 | E40: 44 | F40: 31 | G40: =B40+C40 -> 50 | H40: =SUM(D40+E40+F40) -> 77 | I40: =G40/87 -> 0.5747126437 | J40: =G40/(G40+H40) -> 0.3937007874
A41: LoFreq | B41: 85 | C41: 0 | D41: 5 | E41: 53 | F41: 45 | G41: =B41+C41 -> 85 | H41: =SUM(D41+E41+F41) -> 103 | I41: =G41/87 -> 0.9770114943 | J41: =G41/(G41+H41) -> 0.4521276596
A42: FreeBayes | B42: 86 | C42: 0 | D42: 5 | E42: 1893 | F42: 20448 | G42: =B42+C42 -> 86 | H42: =SUM(D42+E42+F42) -> 22346 | I42: =G42/87 -> 0.9885057471 | J42: =G42/(G42+H42) -> 0.003833808845
A43: SNVer | B43: 73 | C43: 0 | D43: 2 | E43: 20 | F43: 33 | G43: =B43+C43 -> 73 | H43: =SUM(D43+E43+F43) -> 55 | I43: =G43/87 -> 0.8390804598 | J43: =G43/(G43+H43) -> 0.5703125
A44: SAMtools | B44: 42 | C44: 0 | D44: 3 | E44: 44 | F44: 21 | G44: =B44+C44 -> 42 | H44: =SUM(D44+E44+F44) -> 68 | I44: =G44/87 -> 0.4827586207 | J44: =G44/(G44+H44) -> 0.3818181818
A45: VarDict | B45: 84 | C45: 0 | D45: 5 | E45: 350 | F45: 220 | G45: =B45+C45 -> 84 | H45: =SUM(D45+E45+F45) -> 575 | I45: =G45/87 -> 0.9655172414 | J45: =G45/(G45+H45) -> 0.1274658574
B46: 87 | C46: 0 | D46: 5 | E46: 1905 | F46: 20449 | G46: =B46+C46 -> 87 | H46: =SUM(D46+E46+F46) -> 22359
B49: 8 tools, no filter (20, 50, 0.01)
B50: Variants | C50: Artifacts | D50: sens | E50: PPV
B51: =B46 -> 87 | C51: =H46 -> 22359 | D51: =B51/B52 -> 1 | E51: =B51/(B51+C51) -> 0.003875968992
B52: =G46 -> 87
B54: 8 tools, our filter; single sample info
B55: Mutations | C55: Artifacts | D55: sens | E55: PPV
B56: 87 | C56: 82 | D56: =B56/B57 -> 1 | E56: =B56/(B56+C56) -> 0.5147928994
B57: 87
B59: 8 tools our filter
B60: Variants | C60: Artifacts | D60: sens | E60: PPV
B61: =B46 -> 87 | C61: =D46 -> 5 | D61: =B61/B62 -> 1 | E61: =B61/(B61+C61) -> 0.9456521739
B62: =G46 -> 87

Sheet TP Mutations
A1: True because... | B1: Sample | C1: Chr | D1: Pos | E1: Ref | F1: Alt | G1: Gene | H1: ENST | I1: Type | J1: Mutation | K1: Nr_Ref | L1: Nr_Alt | M1: DP | N1: VAF | O1: GATK | P1: Platypus | Q1: VarScan | R1: LoFreq | S1: FreeBayes | T1: SNVer | U1: SAMtools | V1: VarDict | W1: Called | X1: ESP6500 | Y1: G1000 | Z1: Cosmic | AA1: Cosmic_location | AB1: Cosmic_occurence | AC1: dbSNP_SNPs | AD1: dbSNP_SNVs | AE1: PM_flag | AF1: ExAC | AG1: ClinVar_clinical | AH1: ClinVar_noimpact | AI1: provean_score | AJ1: prediction | AK1: BQ_Ref | AL1: BQ_Alt | AM1: Nr_Ref_fwd | AN1: Nr_Alt_fwd | AO1: DP_fwd | AP1: VAF_fwd | AQ1: Nr_Ref_rev | AR1: Nr_Alt_rev | AS1: DP_rev | AT1: VAF_rev | AU1: strandbias | AV1: nr_samples | AW1: nr_samples_similar | AX1: Category
A2: Expert, prediction, bq | B2: UPN_Te2_024 | C2: 2 | D2: 25457176 | E2: G | F2: A | G2: DNMT3A | H2: ENST00000264709 | I2: missense_variant | J2: cCg/cTg|p.Pro904Leu/c.2711C>T | K2: 3144 | L2: 226 | M2: 3384 | N2: 0.06678487 | O2: 0 | P2: 0 | Q2: 0 | R2: 1 | S2: 1 | T2: 1 | U2: 0 | V2: 1 | W2: 4 | X2: 0.0349 | Y2: NO | Z2: COSM87007 | AA2: haematopoietic_and_lymphoid_tissue | AB2: 9 | AC2: NO | AD2: rs149095705 | AE2: NO | AF2: NA | AG2: NO | AH2: NO | AI2: -9.014 | AJ2: Deleterious | AK2: 34.67 | AL2: 34.3 | AM2: 1581 | AN2: 115 | AO2: 1696 | AP2: 0.0678066038 | AQ2: 1563 | AR2: 111 | AS2: 1688 | AT2: 0.0657582938 | AU2: 0.8905403177 | AV2: 1 | AW2: 1 | AX2: Probably True (-5)
A3: Expert, prediction, | B3: UPN_Te2_005 | C3: 2 | D3: 25457197 | E3: A | F3: T | G3: DNMT3A | H3: ENST00000264709 | I3: missense_variant | J3: gTc/gAc|p.Val897Asp/c.2690T>A | K3: 2711 | L3: 143 | M3: 2881 | N3: 0.0496355432 | O3: 0 | P3: 0 | Q3: 0 | R3: 1 | S3: 1 | T3: 1 | U3: 0 | V3: 1 | W3: 4 | X3: NO | Y3: NO | Z3: COSM87000 | AA3: haematopoietic_and_lymphoid_tissue | AB3: 1 | AC3: NO | AD3: NO | AE3: NO | AF3: NO | AG3: NO | AH3: NO | AI3: -6.427 | AJ3: Deleterious | AK3: 34.02 | AL3: 32.65 | AM3: 1525 | AN3: 88 | AO3: 1613 | AP3: 0.0545567266 | AQ3: 1186 | AR3: 55 | AS3: 1268 | AT3: 0.0433753943 | AU3: 0.2264004091 | AV3: 1 | AW3: 1 | AX3: Probably True (-5)
A4: Hotspot, Expert, prediction, bq | B4: UPN_Te2_035 | C4: 2 | D4: 25457242 | E4: C | F4: G | G4: DNMT3A | H4: ENST00000264709 | I4: missense_variant | J4: cGc/cCc|p.Arg882Pro/c.2645G>C | K4: 1804 | L4: 944 | M4: 2749 | N4: 0.3433975991 | O4: 1 | P4: 1 | Q4: 1 | R4: 1 | S4: 1 | T4: 1 | U4: 1 | V4: 1 | W4: 8 | X4: NO | Y4: NO | Z4: COSM99740 | AA4: haematopoietic_and_lymphoid_tissue | AB4: 14 | AC4: NO | AD4: NO | AE4: NO | AF4: NA | AG4: NO | AH4: NO | AI4: -5.635 | AJ4: Deleterious | AK4: 33.13 | AL4: 34.8 | AM4: 907 | AN4: 473 | AO4: 1380 | AP4: 0.3427536232 | AQ4: 897 | AR4: 471 | AS4: 1369 | AT4: 0.3440467495 | AU4: 0.9360082385 | AV4: 1 | AW4: 4 | AX4: Hotspot (-10)
A5: Hotspot, Expert, Cosmic, prediction, | B5: UPN_Te2_023 | C5: 2 | D5: 25457242 | E5: C | F5: T | G5: DNMT3A | H5: ENST00000264709 | I5: missense_variant | J5: cGc/cAc|p.Arg882His/c.2645G>A | K5: 1071 | L5: 786 | M5: 1857 | N5: 0.4232633279 | O5: 1 | P5: 1 | Q5: 1 | R5: 1 | S5: 1 | T5: 1 | U5: 1 | V5: 1 | W5: 8 | X5: 0.0581 | Y5: NO | Z5: COSM52944 | AA5: breast, haematopoietic_and_lymphoid_tissue | AB5: 1, 452 | AC5: NO | AD5: rs147001633 | AE5: NO | AF5: NA | AG5: NO | AH5: NO | AI5: -4.025 | AJ5: Deleterious | AK5: 32.96 | AL5: 32.65 | AM5: 535 | AN5: 395 | AO5: 930 | AP5: 0.4247311828 | AQ5: 536 | AR5: 391 | AS5: 927 | AT5: 0.4217907228 | AU5: 0.9251699168 | AV5: 3 | AW5: 4 | AX5: Hotspot (-10)
A6: Hotspot, Expert, Cosmic, prediction, bq | B6: UPN_Te2_032 | C6: 2 | D6: 25457242 | E6: C | F6: T | G6: DNMT3A | H6: ENST00000264709 | I6: missense_variant | J6: cGc/cAc|p.Arg882His/c.2645G>A | K6: 1316 | L6: 42 | M6: 1360 | N6: 0.0308823529 | O6: 0 | P6: 0 | Q6: 0 | R6: 0 | S6: 1 | T6: 1 | U6: 0 | V6: 1 | W6: 3 | X6: 0.0581 | Y6: NO | Z6: COSM52944 | AA6: breast, haematopoietic_and_lymphoid_tissue | AB6: 1, 452 | AC6: NO | AD6: rs147001633 | AE6: NO | AF6: NA | AG6: NO | AH6: NO | AI6: -4.025 | AJ6: Deleterious | AK6: 33.42 | AL6: 34.48 | AM6: 658 | AN6: 22 | AO6: 681 | AP6: 0.0323054332 | AQ6: 658 | AR6: 20 | AS6: 679 | AT6: 0.029455081 | AU6: 0.8756832693 | AV6: 3 | AW6: 4 | AX6: Hotspot (-4)
A7: Hotspot, Expert, Cosmic, prediction, | B7: UPN_Te2_041 | C7: 2 | D7: 25457242 | E7: C | F7: T | G7: DNMT3A | H7: ENST00000264709 | I7: missense_variant | J7: cGc/cAc|p.Arg882His/c.2645G>A | K7: 3484 | L7: 2474 | M7: 5961 | N7: 0.4150310351 | O7: 1 | P7: 1 | Q7: 1 | R7: 1 | S7: 1 | T7: 1 | U7: 1 | V7: 1 | W7: 8 | X7: 0.0581 | Y7: NO | Z7: COSM52944 | AA7: breast, haematopoietic_and_lymphoid_tissue | AB7: 1, 452 | AC7: NO | AD7: rs147001633 | AE7: NO | AF7: NA | AG7: NO | AH7: NO | AI7: -4.025 | AJ7: Deleterious | AK7: 33.04 | AL7: 32.46 | AM7: 1751 | AN7: 1243 | AO7: 2995 | AP7: 0.4150250417 | AQ7: 1733 | AR7: 1231 | AS7: 2966 | AT7: 0.415037087 | AU7: 1 | AV7: 3 | AW7: 4 | AX7: Hotspot (-10)
A8: Expert, prediction, bq | B8: UPN_Te2_001 | C8: 2 | D8: 25462000 | E8: T | F8: C | G8: DNMT3A | H8: ENST00000264709 | I8: missense_variant | J8: Agg/Ggg|p.Arg803Gly/c.2407A>G | K8: 2095 | L8: 1534 | M8: 3641 | N8: 0.4213128261 | O8: 1 | P8: 1 | Q8: 1 | R8: 1 | S8: 1 | T8: 0 | U8: 0 | V8: 1 | W8: 6 | X8: NO | Y8: NO | Z8: NO | AA8: NO | AB8: O | AC8: NO | AD8: NO | AE8: NO | AF8: NO | AG8: NO | AH8: NO | AI8: -5.084 | AJ8: Deleterious | AK8: 34.18 | AL8: 34.69 | AM8: 1488 | AN8: 1105 | AO8: 2595 | AP8: 0.4258188825 | AQ8: 607 | AR8: 429 | AS8: 1046 | AT8: 0.4101338432 | AU8: 0.5271281321 | AV8: 1 | AW8: 1 | AX8: Probably True (-7)
A9: Expert, prediction, | B9: UPN_Te2_008 | C9: 2 | D9: 25463310 | E9: C | F9: T | G9: DNMT3A | H9: ENST00000264709 | I9: missense_variant | J9: gGc/gAc|p.Gly728Asp/c.2183G>A | K9: 468 | L9: 231 | M9: 703 | N9: 0.3285917496 | O9: 1 | P9: 1 | Q9: 1 | R9: 1 | S9: 1 | T9: 1 | U9: 1 | V9: 0 | W9: 7 | X9: NO | Y9: NO | Z9: COSM4169940 | AA9: haematopoietic_and_lymphoid_tissue | AB9: 1 | AC9: NO | AD9: NO | AE9: NO | AF9: NO | AG9: NO | AH9: NO | AI9: -6.928 | AJ9: Deleterious | AK9: 31.23 | AL9: 26.6 | AM9: 272 | AN9: 110 | AO9: 385 | AP9: 0.2857142857 | AQ9: 196 | AR9: 121 | AS9: 318 | AT9: 0.3805031447 | AU9: 0.0097541816 | AV9: 1 | AW9: 1 | AX9: Probably True (-4)
A10: Expert, bq | B10: UPN_Te2_011 | C10: 2 | D10: 25469613 | E10: CG | F10: C | G10: DNMT3A | H10: ENST00000264709 | I10: frameshift_variant | J10: ccg/|p.Pro385fs/c.1154delC | K10: 2138 | L10: 557 | M10: 2721 | N10: 0.2047041529 | O10: 1 | P10: 1 | Q10: 1 | R10: 1 | S10: 1 | T10: 1 | U10: 0 | V10: 1 | W10: 7 | X10: NO | Y10: NO | Z10: NO | AA10: NA | AB10: NA | AC10: NO | AD10: NO | AE10: NO | AF10: NA | AG10: NO | AH10: NO | AI10: NA | AJ10: NA | AK10: 35.11 | AL10: NA | AM10: 1066 | AN10: 388 | AO10: 1461 | AP10: 0.2655715264 | AQ10: 1072 | AR10: 169 | AS10: 1260 | AT10: 0.1341269841 | AU10: 2.937205802e-17 | AV10: 1 | AW10: 1 | AX10: Probably True (-6)
A11: Hotspot, Expert, Cosmic, prediction, bq | B11: UPN_Te2_001 | C11: 2 | D11: 198266834 | E11: T | F11: C | G11: SF3B1 | H11: ENST00000335508 | I11: missense_variant | J11: Aaa/Gaa|p.Lys700Glu/c.2098A>G | K11: 2930 | L11: 2366 | M11: 5298 | N11: 0.4465836165 | O11: 1 | P11: 1 | Q11: 1 | R11: 1 | S11: 1 | T11: 1 | U11: 1 | V11: 1 | W11: 8 | X11: NO | Y11: 0 | Z11: COSM84677 | AA11: breast, central_nervous_system, eye, haematopoietic_and_lymphoid_tissue, kidney, NS, oesophagus, pancreas, prostate | AB11: 14, 2, 1, 395, 1, 515, 1, 13, 4 | AC11: NO | AD11: NO | AE11: NO | AF11: 0.0002306 | AG11: NO | AH11: NO | AI11: -3.819 | AJ11: Deleterious | AK11: 37.26 | AL11: 37.37 | AM11: 1843 | AN11: 1485 | AO11: 3328 | AP11: 0.4462139423 | AQ11: 1087 | AR11: 881 | AS11: 1970 | AT11: 0.4472081218 | AU11: 0.9316340977 | AV11: 22 | AW11: 22 | AX11: Hotspot (-8)
A12: Hotspot, Expert, Cosmic, prediction, bq | B12: UPN_Te2_002 | C12: 2 | D12: 198266834 | E12: T | F12: C | G12: SF3B1 | H12: ENST00000335508 | I12: missense_variant | J12: Aaa/Gaa|p.Lys700Glu/c.2098A>G | K12: 4364 | L12: 1695 | M12: 6061 | N12: 0.2796568223 | O12: 1 | P12: 1 | Q12: 1 | R12: 1 | S12: 1 | T12: 1 | U12: 1 | V12: 1 | W12: 8 | X12: NO | Y12: 0 | Z12: COSM84677 | AA12: breast, central_nervous_system, eye, haematopoietic_and_lymphoid_tissue, kidney, NS, oesophagus, pancreas, prostate | AB12: 14, 2, 1, 395, 1, 515, 1, 13, 4 | AC12: NO | AD12: NO | AE12: NO | AF12: 0.0002306 | AG12: NO | AH12: NO | AI12: -3.819 | AJ12: Deleterious | AK12: 37.04 | AL12: 37.14 | AM12: 2537 | AN12: 1006 | AO12: 3543 | AP12: 0.2839401637 | AQ12: 1827 | AR12: 689 | AS12: 2518 | AT12: 0.273629865 | AU12: 0.3997199085 | AV12: 22 | AW12: 22 | AX12: Hotspot (-8)
A13: Hotspot, Expert, Cosmic, prediction, bq | B13: UPN_Te2_006 | C13: 2 | D13: 198266834 | E13: T | F13: C | G13: SF3B1 | H13: ENST00000335508 | I13: missense_variant | J13: Aaa/Gaa|p.Lys700Glu/c.2098A>G | K13: 3352 | L13: 485 | M13: 3838 | N13: 0.1263678999 | O13: 1 | P13: 1 | Q13: 0 | R13: 1 | S13: 1 | T13: 1 | U13: 0 | V13: 1 | W13: 6 | X13: NO | Y13: 0 | Z13: COSM84677 | AA13: breast, central_nervous_system, eye, haematopoietic_and_lymphoid_tissue, kidney, NS, oesophagus, pancreas, prostate | AB13: 14, 2, 1, 395, 1, 515, 1, 13, 4 | AC13: NO | AD13: NO | AE13: NO | AF13: 0.0002306 | AG13: NO | AH13: NO | AI13: -3.819 | AJ13: Deleterious | AK13: 37.17 | AL13: 37.41 | AM13: 2082 | AN13: 294 | AO13: 2376 | AP13: 0.1237373737 | AQ13: 1270 | AR13: 191 | AS13: 1462 | AT13: 0.1306429549 | AU13: 0.548348194 | AV13: 22 | AW13: 22 | AX13: Hotspot (-8)
A14: Hotspot, Expert, Cosmic, prediction, bq | B14: UPN_Te2_008 | C14: 2 | D14: 198266834 | E14: T | F14: C | G14: SF3B1 | H14: ENST00000335508 | I14: missense_variant | J14: Aaa/Gaa|p.Lys700Glu/c.2098A>G | K14: 805 | L14: 433 | M14: 1242 | N14: 0.3486312399 | O14: 1 | P14: 1 | Q14: 1 | R14: 1 | S14: 1 | T14: 1 | U14: 1 | V14: 1 | W14: 8 | X14: NO | Y14: 0 | Z14: COSM84677 | AA14: breast, central_nervous_system, eye, haematopoietic_and_lymphoid_tissue, kidney, NS, oesophagus, pancreas, prostate | AB14: 14, 2, 1, 395, 1, 515, 1, 13, 4 | AC14: NO | AD14: NO | AE14: NO | AF14: 0.0002306 | AG14: NO | AH14: NO | AI14: -3.819 | AJ14: Deleterious | AK14: 37.3 | AL14: 37.55 | AM14: 502 | AN14: 256 | AO14: 758 | AP14: 0.3377308707 | AQ14: 303 | AR14: 177 | AS14: 484 | AT14: 0.3657024793 | AU14: 0.2714234989 | AV14: 22 | AW14: 22 | AX14: Hotspot (-8)
A15: Hotspot, Expert, Cosmic, prediction, bq | B15: UPN_Te2_011 | C15: 2 | D15: 198266834 | E15: T | F15: C | G15: SF3B1 | H15: ENST00000335508 | I15: missense_variant | J15: Aaa/Gaa|p.Lys700Glu/c.2098A>G | K15: 6978 | L15: 1328 | M15: 8308 | N15: 0.1598459316 | O15: 1 | P15: 1 | Q15: 0 | R15: 1 | S15: 1 | T15: 1 | U15: 0 | V15: 1 | W15: 6 | X15: NO | Y15: 0 | Z15: COSM84677 | AA15: breast, central_nervous_system, eye, haematopoietic_and_lymphoid_tissue, kidney, NS, oesophagus, pancreas, prostate | AB15: 14, 2, 1, 395, 1, 515, 1, 13, 4 | AC15: NO | AD15: NO | AE15: NO | AF15: 0.0002306 | AG15: NO | AH15: NO | AI15: -3.819 | AJ15: Deleterious | AK15: 37.09 | AL15: 36.86 | AM15: 4164 | AN15: 806 | AO15: 4971 | AP15: 0.1621404144 | AQ15: 2814 | AR15: 522 | AS15: 3337 | AT15: 0.1564279293 | AU15: 0.5017608177 | AV15: 22 | AW15: 22 | AX15: Hotspot (-8)
A16: Hotspot, Expert, Cosmic, prediction, bq | B16: UPN_Te2_013 | C16: 2 | D16: 198266834 | E16: T | F16: C | G16: SF3B1 | H16: ENST00000335508 | I16: missense_variant | J16: Aaa/Gaa|p.Lys700Glu/c.2098A>G | K16: 2818 | L16: 1978 | M16: 4800 | N16: 0.4120833333 | O16: 1 | P16: 1 | Q16: 1 | R16: 1 | S16: 1 | T16: 1 | U16: 1 | V16: 1 | W16: 8 | X16: NO | Y16: 0 | Z16: COSM84677 | AA16: breast, central_nervous_system, eye, haematopoietic_and_lymphoid_tissue, kidney, NS, oesophagus, pancreas, prostate | AB16: 14, 2, 1, 395, 1, 515, 1, 13, 4 | AC16: NO | AD16: NO | AE16: NO | AF16: 0.0002306 | AG16: NO | AH16: NO | AI16: -3.819 | AJ16: Deleterious | AK16: 37.01 | AL16: 37.25 | AM16: 1726 | AN16: 1235 | AO16: 2961 | AP16: 0.4170888213 | AQ16: 1092 | AR16: 743 | AS16: 1839 | AT16: 0.404023926 | AU16: 0.4152493913 | AV16: 22 | AW16: 22 | AX16: Hotspot (-8)
A17: Hotspot, Expert, Cosmic, prediction, bq | B17: UPN_Te2_022 | C17: 2 | D17: 198266834 | E17: T | F17: C | G17: SF3B1 | H17: ENST00000335508 | I17: missense_variant | J17: Aaa/Gaa|p.Lys700Glu/c.2098A>G | K17: 4732 | L17: 150 | M17: 4883 | N17: 0.0307188204 | O17: 0 | P17: 0 | Q17: 0 | R17: 1 | S17: 1 | T17: 1 | U17: 0 | V17: 1 | W17: 4 | X17: NO | Y17: 0 | Z17: COSM84677 | AA17: breast, central_nervous_system, eye, haematopoietic_and_lymphoid_tissue, kidney, NS, oesophagus, pancreas, prostate | AB17: 14, 2, 1, 395, 1, 515, 1, 13, 4 | AC17: NO | AD17: NO | AE17: NO | AF17: 0.0002306 | AG17: NO | AH17: NO | AI17: -3.819 | AJ17: Deleterious | AK17: 37.14 | AL17: 35.01 | AM17: 2821 | AN17: 73 | AO17: 2894 | AP17: 0.0252246026 | AQ17: 1911 | AR17: 77 | AS17: 1989 | AT17: 0.0387129211 | AU17: 0.0087027221 | AV17: 22 | AW17: 22 | AX17: Hotspot (-6)
A18: Hotspot, Expert, Cosmic, prediction, bq | B18: UPN_Te2_023 | C18: 2 | D18: 198266834 | E18: T | F18: C | G18: SF3B1 | H18: ENST00000335508 | I18: missense_variant | J18: Aaa/Gaa|p.Lys700Glu/c.2098A>G | K18: 2679 | L18: 995 | M18: 3682 | N18: 0.2702335687 | O18: 1 | P18: 1 | Q18: 1 | R18: 1 | S18: 1 | T18: 1 | U18: 1 | V18: 1 | W18: 8 | X18: NO | Y18: 0 | Z18: COSM84677 | AA18: breast, central_nervous_system, eye, haematopoietic_and_lymphoid_tissue, kidney, NS, oesophagus, pancreas, prostate | AB18: 14, 2, 1, 395, 1, 515, 1, 13, 4 | AC18: NO | AD18: NO | AE18: NO | AF18: 0.0002306 | AG18: NO | AH18: NO | AI18: -3.819 | AJ18: Deleterious | AK18: 37.15 | AL18: 37.4 | AM18: 1631 | AN18: 597 | AO18: 2228 | AP18: 0.2679533214 | AQ18: 1048 | AR18: 398 | AS18: 1454 | AT18: 0.2737276479 | AU18: 0.6484391183 | AV18: 22 | AW18: 22 | AX18: Hotspot (-8)
A19: Hotspot, Expert, Cosmic, prediction, bq | B19: UPN_Te2_024 | C19: 2 | D19: 198266834 | E19: T | F19: C | G19: SF3B1 | H19: ENST00000335508 | I19: missense_variant | J19: Aaa/Gaa|p.Lys700Glu/c.2098A>G | K19: 7517 | L19: 668 | M19: 8192 | N19: 0.0815429688 | O19: 0 | P19: 0 | Q19: 0 | R19: 1 | S19: 1 | T19: 1 | U19: 0 | V19: 1 | W19: 4 | X19: NO | Y19: 0 | Z19: COSM84677 | AA19: breast, central_nervous_system, eye, haematopoietic_and_lymphoid_tissue, kidney, NS, oesophagus, pancreas, prostate | AB19: 14, 2, 1, 395, 1, 515, 1, 13, 4 | AC19: NO | AD19: NO | AE19: NO | AF19: 0.0002306 | AG19: NO | AH19: NO | AI19: -3.819 | AJ19: Deleterious | AK19: 37.05 | AL19: 36.24 | AM19: 4075 | AN19: 357 | AO19: 4433 | AP19: 0.0805323709 | AQ19: 3442 | AR19: 311 | AS19: 3759 | AT19: 0.0827347699 | AU19: 0.715479117 | AV19: 22 | AW19: 22 | AX19: Hotspot (-6)
A20: Hotspot, Expert, Cosmic, prediction, bq | B20: UPN_Te2_031 | C20: 2 | D20: 198266834 | E20: T | F20: C | G20: SF3B1 | H20: ENST00000335508 | I20: missense_variant | J20: Aaa/Gaa|p.Lys700Glu/c.2098A>G | K20: 2019 | L20: 53 | M20: 2072 | N20: 0.0255791506 | O20: 0 | P20: 0 | Q20: 0 | R20: 1 | S20: 1 | T20: 1 | U20: 0 | V20: 1 | W20: 4 | X20: NO | Y20: 0 | Z20: COSM84677 | AA20: breast, central_nervous_system, eye, haematopoietic_and_lymphoid_tissue, kidney, NS, oesophagus, pancreas, prostate | AB20: 14, 2, 1, 395, 1, 515, 1, 13, 4 | AC20: NO | AD20: NO | AE20: NO | AF20: 0.0002306 | AG20: NO | AH20: NO | AI20: -3.819 | AJ20: Deleterious | AK20: 37.26 | AL20: 34.21 | AM20: 1265 | AN20: 31 | AO20: 1296 | AP20: 0.0239197531 | AQ20: 754 | AR20: 22 | AS20: 776 | AT20: 0.0283505155 | AU20: 0.5664665592 | AV20: 22 | AW20: 22 | AX20: Hotspot (-6)
A21: Hotspot, Expert, Cosmic, prediction, bq | B21: UPN_Te2_032 | C21: 2 | D21: 198266834 | E21: T | F21: C | G21: SF3B1 | H21: ENST00000335508 | I21: missense_variant | J21: Aaa/Gaa|p.Lys700Glu/c.2098A>G | K21: 2258 | L21: 227 | M21: 2487 | N21: 0.0912746281 | O21: 1 | P21: 1 | Q21: 0 | R21: 1 | S21: 1 | T21: 1 | U21: 0 | V21: 1 | W21: 6 | X21: NO | Y21: 0 | Z21: COSM84677 | AA21: breast, central_nervous_system, eye, haematopoietic_and_lymphoid_tissue, kidney, NS, oesophagus, pancreas, prostate | AB21: 14, 2, 1, 395, 1, 515, 1, 13, 4 | AC21: NO | AD21: NO | AE21: NO | AF21: 0.0002306 | AG21: NO | AH21: NO | AI21: -3.819 | AJ21: Deleterious | AK21: 37.22 | AL21: 36.43 | AM21: 1374 | AN21: 136 | AO21: 1510 | AP21: 0.0900662252 | AQ21: 884 | AR21: 91 | AS21: 977 | AT21: 0.0931422723 | AU21: 0.7760470591 | AV21: 22 | AW21: 22 | AX21: Hotspot (-8)
A22: Hotspot, Expert, Cosmic, prediction, bq | B22: UPN_Te2_035 | C22: 2 | D22: 198266834 | E22: T | F22: C | G22: SF3B1 | H22: ENST00000335508 | I22: missense_variant | J22: Aaa/Gaa|p.Lys700Glu/c.2098A>G | K22: 2067 | L22: 2411 | M22: 4481 | N22: 0.5380495425 | O22: 1 | P22: 1 | Q22: 1 | R22: 1 | S22: 1 | T22: 1 | U22: 1 | V22: 1 | W22: 8 | X22: NO | Y22: 0 | Z22: COSM84677 | AA22: breast, central_nervous_system, eye, haematopoietic_and_lymphoid_tissue, kidney, NS, oesophagus, pancreas, prostate | AB22: 14, 2, 1, 395, 1, 515, 1, 13, 4 | AC22: NO | AD22: NO | AE22: NO | AF22: 0.0002306 | AG22: NO | AH22: NO | AI22: -3.819 | AJ22: Deleterious | AK22: 37.14 | AL22: 37.3 | AM22: 1253 | AN22: 1519 | AO22: 2772 | AP22: 0.547979798 | AQ22: 814 | AR22: 892 | AS22: 1709 | AT22: 0.5219426565 | AU22: 0.1020233791 | AV22: 22 | AW22: 22 | AX22: Hotspot (-8)
A23: Hotspot, Expert, Cosmic, prediction, bq | B23: UPN_Te2_037 | C23: 2 | D23: 198266834 | E23: T | F23: C | G23: SF3B1 | H23: ENST00000335508 | I23: missense_variant | J23: Aaa/Gaa|p.Lys700Glu/c.2098A>G | K23: 3840 | L23: 2784 | M23: 6634 | N23: 0.4196563159 | O23: 1 | P23: 1 | Q23: 1 | R23: 1 | S23: 1 | T23: 1 | U23: 1 | V23: 1 | W23: 8 | X23: NO | Y23: 0 | Z23: COSM84677 | AA23: breast, central_nervous_system, eye, haematopoietic_and_lymphoid_tissue, kidney, NS, oesophagus, pancreas, prostate | AB23: 14, 2, 1, 395, 1, 515, 1, 13, 4 | AC23: NO | AD23: NO | AE23: NO | AF23: 0.0002306 | AG23: NO | AH23: NO | AI23: -3.819 | AJ23: Deleterious | AK23: 36.7 | AL23: 36.74 | AM23: 1981 | AN23: 1420 | AO23: 3402 | AP23: 0.4174015285 | AQ23: 1859 | AR23: 1364 | AS23: 3232 | AT23: 0.422029703 | AU23: 0.6540028832 | AV23: 22 | AW23: 22 | AX23: Hotspot (-8)
A24: Hotspot, Expert, Cosmic, prediction, bq | B24: UPN_Te2_038 | C24: 2 | D24: 198266834 | E24: T | F24: C | G24: SF3B1 | H24: ENST00000335508 | I24: missense_variant | J24: Aaa/Gaa|p.Lys700Glu/c.2098A>G | K24: 265 | L24: 228 | M24: 495 | N24: 0.4606060606 | O24: 1 | P24: 1 | Q24: 1 | R24: 1 | S24: 1 | T24: 1 | U24: 1 | V24: 1 | W24: 8 | X24: NO | Y24: 0 | Z24: COSM84677 | AA24: breast, central_nervous_system, eye, haematopoietic_and_lymphoid_tissue, kidney, NS, oesophagus, pancreas, prostate | AB24: 14, 2, 1, 395, 1, 515, 1, 13, 4 | AC24: NO | AD24: NO | AE24: NO | AF24: 0.0002306 | AG24: NO | AH24: NO | AI24: -3.819 | AJ24: Deleterious | AK24: 37.62 | AL24: 37.31 | AM24: 145 | AN24: 122 | AO24: 267 | AP24: 0.456928839 | AQ24: 120 | AR24: 106 | AS24: 228 | AT24: 0.4649122807 | AU24: 0.8561665742 | AV24: 22 | AW24: 22 | AX24: Hotspot (-8)
A25: Hotspot, Expert, Cosmic, prediction, bq | B25: UPN_Te2_039 | C25: 2 | D25: 198266834 | E25: T | F25: C | G25: SF3B1 | H25: ENST00000335508 | I25: missense_variant | J25: Aaa/Gaa|p.Lys700Glu/c.2098A>G | K25: 1858 | L25: 166 | M25: 2025 | N25: 0.0819753086 | O25: 0 | P25: 1 | Q25: 0 | R25: 1 | S25: 1 | T25: 1 | U25: 0 | V25: 1 | W25: 5 | X25: NO | Y25: 0 | Z25: COSM84677 | AA25: breast, central_nervous_system, eye, haematopoietic_and_lymphoid_tissue, kidney, NS, oesophagus, pancreas, prostate | AB25: 14, 2, 1, 395, 1, 515, 1, 13, 4 | AC25: NO | AD25: NO | AE25: NO | AF25: 0.0002306 | AG25: NO | AH25: NO | AI25: -3.819 | AJ25: Deleterious | AK25: 37.29 | AL25: 37.06 | AM25: 1148 | AN25: 103 | AO25: 1251 | AP25: 0.0823341327 | AQ25: 710 | AR25: 63 | AS25: 774 | AT25: 0.0813953488 | AU25: 1 | AV25: 22 | AW25: 22 | AX25: Hotspot (-7)
A26: Hotspot, Expert, Cosmic, prediction, bq | B26: UPN_Te2_040 | C26: 2 | D26: 198266834 | E26: T | F26: C | G26: SF3B1 | H26: ENST00000335508 | I26: missense_variant | J26: Aaa/Gaa|p.Lys700Glu/c.2098A>G | K26: 3186 | L26: 2470 | M26: 5663 | N26: 0.4361645771 | O26: 1 | P26: 1 | Q26: 1 | R26: 1 | S26: 1 | T26: 1 | U26: 1 | V26: 1 | W26: 8 | X26: NO | Y26: 0 | Z26: COSM84677 | AA26: breast, central_nervous_system, eye, haematopoietic_and_lymphoid_tissue, kidney, NS, oesophagus, pancreas, prostate | AB26: 14, 2, 1, 395, 1, 515, 1, 13, 4 | AC26: NO | AD26: NO | AE26: NO | AF26: 0.0002306 | AG26: NO | AH26: NO | AI26: -3.819 | AJ26: Deleterious | AK26: 37.19 | AL26: 37.35 | AM26: 1909 | AN26: 1496 | AO26: 3405 | AP26: 0.4393538913 | AQ26: 1277 | AR26: 974 | AS26: 2258 | AT26: 0.4313551816 | AU26: 0.6221894 | AV26: 22 | AW26: 22 | AX26: Hotspot (-8)
A27: Hotspot, Expert, Cosmic, prediction, bq | B27: UPN_Te2_041 | C27: 2 | D27: 198266834 | E27: T | F27: C | G27: SF3B1 | H27: ENST00000335508 | I27: missense_variant | J27: Aaa/Gaa|p.Lys700Glu/c.2098A>G | K27: 5903 | L27: 6174 | M27: 12095 | N27: 0.5104588673 | O27: 1 | P27: 1 | Q27: 1 | R27: 1 | S27: 1 | T27: 1 | U27: 1 | V27: 1 | W27: 8 | X27: NO | Y27: 0 | Z27: COSM84677 | AA27: breast, central_nervous_system, eye, haematopoietic_and_lymphoid_tissue, kidney, NS, oesophagus, pancreas, prostate | AB27: 14, 2, 1, 395, 1, 515, 1, 13, 4 | AC27: NO | AD27: NO | AE27: NO | AF27: 0.0002306 | AG27: NO | AH27: NO | AI27: -3.819 | AJ27: Deleterious | AK27: 37.1 | AL27: 37.11 | AM27: 3690 | AN27: 3854 | AO27: 7545 | AP27: 0.5108018555 | AQ27: 2213 | AR27: 2320 | AS27: 4550 | AT27: 0.5098901099 | AU27: 0.9251274714 | AV27: 22 | AW27: 22 | AX27: Hotspot (-8)
A28: Hotspot, Expert, Cosmic, prediction, bq | B28: UPN_Te2_042 | C28: 2 | D28: 198266834 | E28: T | F28: C | G28: SF3B1 | H28: ENST00000335508 | I28: missense_variant | J28: Aaa/Gaa|p.Lys700Glu/c.2098A>G | K28: 2413 | L28: 1136 | M28: 3552 | N28: 0.3198198198 | O28: 1 | P28: 1 | Q28: 1 | R28: 1 | S28: 1 | T28: 1 | U28: 1 | V28: 1 | W28: 8 | X28: NO | Y28: 0 | Z28: COSM84677 | AA28: breast, central_nervous_system, eye, haematopoietic_and_lymphoid_tissue, kidney, NS, oesophagus, pancreas, prostate | AB28: 14, 2, 1, 395, 1, 515, 1, 13, 4 | AC28: NO | AD28: NO | AE28: NO | AF28: 0.0002306 | AG28: NO | AH28: NO | AI28: -3.819 | AJ28: Deleterious | AK28: 36.91 | AL28: 37.3 | AM28: 1474 | AN28: 707 | AO28: 2181 | AP28: 0.3241632279 | AQ28: 939 | AR28: 429 | AS28: 1371 | AT28: 0.3129102845 | AU28: 0.5297744974 | AV28: 22 | AW28: 22 | AX28: Hotspot (-8)
A29: Hotspot, Expert, Cosmic, prediction, bq | B29: UPN_Te2_043 | C29: 2 | D29: 198266834 | E29: T | F29: C | G29: SF3B1 | H29: ENST00000335508 | I29: missense_variant | J29: Aaa/Gaa|p.Lys700Glu/c.2098A>G | K29: 8543 | L29: 3328 | M29: 11879 | N29: 0.2801582625 | O29: 1 | P29: 1 | Q29: 1 | R29: 1 | S29: 1 | T29: 1 | U29: 1 | V29: 1 | W29: 8 | X29: NO | Y29: 0 | Z29: COSM84677 | AA29: breast, central_nervous_system, eye, haematopoietic_and_lymphoid_tissue, kidney, NS, oesophagus, pancreas, prostate | AB29: 14, 2, 1, 395, 1, 515, 1, 13, 4 | AC29: NO | AD29: NO | AE29: NO | AF29: 0.0002306 | AG29: NO | AH29: NO | AI29: -3.819 | AJ29: Deleterious | AK29: 37.17 | AL29: 36.94 | AM29: 5305 | AN29: 2057 | AO29: 7362 | AP29: 0.2794077696 | AQ29: 3238 | AR29: 1271 | AS29: 4517 | AT29: 0.2813814479 | AU29: 0.7843497051 | AV29: 22 | AW29: 22 | AX29: Hotspot (-8)
A30: Hotspot, Expert, Cosmic, prediction, bq | B30: UPN_Te2_045 | C30: 2 | D30: 198266834 | E30: T | F30: C | G30: SF3B1 | H30: ENST00000335508 | I30: missense_variant | J30: Aaa/Gaa|p.Lys700Glu/c.2098A>G | K30: 3168 | L30: 1520 | M30: 4693 | N30: 0.3238866397 | O30: 1 | P30: 1 | Q30: 1 | R30: 1 | S30: 1 | T30: 1 | U30: 1 | V30: 1 | W30: 8 | X30: NO | Y30: 0 | Z30: COSM84677 | AA30: breast, central_nervous_system, eye, haematopoietic_and_lymphoid_tissue, kidney, NS, oesophagus, pancreas, prostate | AB30: 14, 2, 1, 395, 1, 515, 1, 13, 4 | AC30: NO | AD30: NO | AE30: NO | AF30: 0.0002306 | AG30: NO | AH30: NO | AI30: -3.819 | AJ30: Deleterious | AK30: 37.21 | AL30: 37.56 | AM30: 1931 | AN30: 915 | AO30: 2846 | AP30: 0.3215038651 | AQ30: 1237 | AR30: 605 | AS30: 1847 | AT30: 0.3275582025 | AU30: 0.6318717626 | AV30: 22 | AW30: 22 | AX30: Hotspot (-8)
A31: Hotspot, Expert, Cosmic, prediction, | B31: UPN_Te2_036 | C31: 2 | D31: 198267359 | E31: C | F31: G | G31: SF3B1 | H31: ENST00000335508 | I31: missense_variant | J31: aaG/aaC|p.Lys666Asn/c.1998G>C | K31: 118 | L31: 22 | M31: 141 | N31: 0.1560283688 | O31: 1 | P31: 1 | Q31: 0 | R31: 1 | S31: 1 | T31: 0 | U31: 0 | V31: 1 | W31: 5 | X31: 0.0116 | Y31: NO | Z31: COSM132937 | AA31: haematopoietic_and_lymphoid_tissue, liver | AB31: 20, 1 | AC31: NO | AD31: rs377023736 | AE31: NO | AF31: NA | AG31: NO | AH31: NO | AI31: -4.774 | AJ31: Deleterious | AK31: 30.99 | AL31: 30.68 | AM31: 0 | AN31: 0 | AO31: 0 | AP31: NA | AQ31: 118 | AR31: 22 | AS31: 141 | AT31: 0.1560283688 | AU31: 1 | AV31: 1 | AW31: 1 | AX31: Hotspot (-9)
A32: Hotspot, Expert, Cosmic, prediction, bq | B32: UPN_Te2_003 | C32: 2 | D32: 198267371 | E32: G | F32: C | G32: SF3B1 | H32: ENST00000335508 | I32: missense_variant | J32: caC/caG|p.His662Gln/c.1986C>G | K32: 86 | L32: 77 | M32: 163 | N32: 0.472392638 | O32: 1 | P32: 1 | Q32: 1 | R32: 1 | S32: 1 | T32: 0 | U32: 1 | V32: 1 | W32: 7 | X32: NO | Y32: NO | Z32: COSM110692 | AA32: haematopoietic_and_lymphoid_tissue, NS, prostate | AB32: 30, 35, 1 | AC32: NO | AD32: NO | AE32: NO | AF32: NA | AG32: NO | AH32: NO | AI32: -7.601 | AJ32: Deleterious | AK32: 33.23 | AL32: 34.01 | AM32: 0 | AN32: 0 | AO32: 0 | AP32: NA | AQ32: 86 | AR32: 77 | AS32: 163 | AT32: 0.472392638 | AU32: 1 | AV32: 1 | AW32: 3 | AX32: Hotspot (-10)
A33: Hotspot, Expert, Cosmic, prediction, bq | B33: UPN_Te2_021 | C33: 2 | D33: 198267371 | E33: G | F33: T | G33: SF3B1 | H33: ENST00000335508 | I33: missense_variant | J33: caC/caA|p.His662Gln/c.1986C>A | K33: 170 | L33: 23 | M33: 193 | N33: 0.1191709845 | O33: 0 | P33: 1 | Q33: 0 | R33: 1 | S33: 1 | T33: 0 | U33: 0 | V33: 1 | W33: 4 | X33: NO | Y33: NO | Z33: COSM130416 | AA33: haematopoietic_and_lymphoid_tissue | AB33: 17 | AC33: NO | AD33: NO | AE33: NO | AF33: NA | AG33: NO | AH33: NO | AI33: -7.601 | AJ33: Deleterious | AK33: 33.96 | AL33: 36.3 | AM33: 0 | AN33: 0 | AO33: 0 | AP33: NA | AQ33: 170 | AR33: 23 | AS33: 193 | AT33: 0.1191709845 | AU33: 1 | AV33: 2 | AW33: 3 | AX33: Hotspot (-8)
A34: Hotspot, Expert, Cosmic, prediction, | B34: UPN_Te2_027 | C34: 2 | D34: 198267371 | E34: G | F34: T | G34: SF3B1 | H34: ENST00000335508 | I34: missense_variant | J34: caC/caA|p.His662Gln/c.1986C>A | K34: 68 | L34: 23 | M34: 91 | N34: 0.2527472527 | O34: 1 | P34: 1 | Q34: 1 | R34: 1 | S34: 1 | T34: 0 | U34: 1 | V34: 1 | W34: 7 | X34: NO | Y34: NO | Z34: COSM130416 | AA34: haematopoietic_and_lymphoid_tissue | AB34: 17 | AC34: NO | AD34: NO | AE34: NO | AF34: NA | AG34: NO | AH34: NO | AI34: -7.601 | AJ34: Deleterious | AK34: 32.85 | AL34: 30.7 | AM34: 0 | AN34: 0 | AO34: 0 | AP34: NA | AQ34: 68 | AR34: 23 | AS34: 91 | AT34: 0.2527472527 | AU34: 1 | AV34: 2 | AW34: 3 | AX34: Hotspot (-10)
A35: Hotspot, Expert, prediction, bq | B35: UPN_Te2_007 | C35: 2 | D35: 198267481 | E35: T | F35: C | G35: SF3B1 | H35: ENST00000335508 | I35: missense_variant | J35: Aac/Gac|p.Asn626Asp/c.1876A>G | K35: 205 | L35: 169 | M35: 374 | N35: 0.4518716578 | O35: 1 | P35: 1 | Q35: 1 | R35: 1 | S35: 1 | T35: 0 | U35: 1 | V35: 1 | W35: 7 | X35: NO | Y35: NO | Z35: COSM131555 | AA35: breast, haematopoietic_and_lymphoid_tissue, prostate | AB35: 1, 2, 1 | AC35: NO | AD35: NO | AE35: NO | AF35: 8.236e-06 | AG35: NO | AH35: NO | AI35: -4.744 | AJ35: Deleterious | AK35: 35.66 | AL35: 36.18 | AM35: 205 | AN35: 169 | AO35: 374 | AP35: 0.4518716578 | AQ35: 0 | AR35: 0 | AS35: 0 | AT35: NA | AU35: 1 | AV35: 2 | AW35: 2 | AX35: Hotspot (-10)
A36: Hotspot, Expert, prediction, bq | B36: UPN_Te2_033 | C36: 2 | D36: 198267481 | E36: T | F36: C | G36: SF3B1 | H36: ENST00000335508 | I36: missense_variant | J36: Aac/Gac|p.Asn626Asp/c.1876A>G | K36: 41 | L36: 24 | M36: 65 | N36: 0.3692307692 | O36: 1 | P36: 1 | Q36: 1 | R36: 1 | S36: 1 | T36: 0 | U36: 1 | V36: 1 | W36: 7 | X36: NO | Y36: NO | Z36: COSM131555 | AA36: breast, haematopoietic_and_lymphoid_tissue, prostate | AB36: 1, 2, 1 | AC36: NO | AD36: NO | AE36: NO | AF36: 8.236e-06 | AG36: NO | AH36: NO | AI36: -4.744 | AJ36: Deleterious | AK36: 36.34 | AL36: 37.17 | AM36: 41 | AN36: 24 | AO36: 65 | AP36: 0.3692307692 | AQ36: 0 | AR36: 0 | AS36: 0 | AT36: NA | AU36: 1 | AV36: 2 | AW36: 2 | AX36: Hotspot (-10)
A37: Hotspot, Expert, Cosmic, prediction, bq | B37: UPN_Te2_015 | C37: 2 | D37: 198267484 | E37: G | F37: A | G37: SF3B1 | H37: ENST00000335508 | I37: missense_variant | J37: Cgt/Tgt|p.Arg625Cys/c.1873C>T | K37: 298 | L37: 179 | M37: 477 | N37: 0.3752620545 | O37: 1 | P37: 1 | Q37: 1 | R37: 1 | S37: 1 | T37: 0 | U37: 1 | V37: 1 | W37: 7 | X37: NO | Y37: NO | Z37: COSM110696 | AA37: eye, haematopoietic_and_lymphoid_tissue, pancreas, salivary_gland, skin, urinary_tract | AB37: 12, 11, 2, 1, 3, 1 | AC37: NO | AD37: NO | AE37: NO | AF37: 1.647e-05 | AG37: NO | AH37: NO | AI37: -7.491 | AJ37: Deleterious | AK37: 36.28 | AL37: 36.09 | AM37: 298 | AN37: 179 | AO37: 477 | AP37: 0.3752620545 | AQ37: 0 | AR37: 0 | AS37: 0 | AT37: NA | AU37: 1 | AV37: 3 | AW37: 3 | AX37: Hotspot (-10)
A38: Hotspot, Expert, Cosmic, prediction, bq | B38: UPN_Te2_018 | C38: 2 | D38: 198267484 | E38: G | F38: A | G38: SF3B1 | H38: ENST00000335508 | I38: missense_variant | J38: Cgt/Tgt|p.Arg625Cys/c.1873C>T | K38: 293 | L38: 228 | M38: 522 | N38: 0.4367816092 | O38: 1 | P38: 1 | Q38: 1 | R38: 1 | S38: 1 | T38: 0 | U38: 1 | V38: 1 | W38: 7 | X38: NO | Y38: NO | Z38: COSM110696 | AA38: eye, haematopoietic_and_lymphoid_tissue, pancreas, salivary_gland, skin, urinary_tract | AB38: 12, 11, 2, 1, 3, 1 | AC38: NO | AD38: NO | AE38: NO | AF38: 1.647e-05 | AG38: NO | AH38: NO | AI38: -7.491 | AJ38: Deleterious | AK38: 36.25 | AL38: 36.45 | AM38: 293 | AN38: 228 | AO38: 522 | AP38: 0.4367816092 | AQ38: 0 | AR38: 0 | AS38: 0 | AT38: NA | AU38: 1 | AV38: 3 | AW38: 3 | AX38: Hotspot (-10)
A39: Hotspot, Expert, Cosmic, prediction, bq | B39: UPN_Te2_026 | C39: 2 | D39: 198267484 | E39: G | F39: A | G39: SF3B1 | H39: ENST00000335508 | I39: missense_variant | J39: Cgt/Tgt|p.Arg625Cys/c.1873C>T | K39: 423 | L39: 107 | M39: 530 | N39: 0.2018867925 | O39: 1 | P39: 1 | Q39: 1 | R39: 1 | S39: 1 | T39: 0 | U39: 0 | V39: 1 | W39: 6 | X39: NO | Y39: NO | Z39: COSM110696 | AA39: eye, haematopoietic_and_lymphoid_tissue, pancreas, salivary_gland, skin, urinary_tract | AB39: 12, 11, 2, 1, 3, 1 | AC39: NO | AD39: NO | AE39: NO | AF39: 1.647e-05 | AG39: NO | AH39: NO | AI39: -7.491 | AJ39: Deleterious | AK39: 35.77 | AL39: 36.33 | AM39: 423 | AN39: 107 | AO39: 530 | AP39: 0.2018867925 | AQ39: 0 | AR39: 0 | AS39: 0 | AT39: NA | AU39: 1 | AV39: 3 | AW39: 3 | AX39: Hotspot (-10)
A40: Hotspot, Expert, Cosmic, bq | B40: UPN_Te2_010 | C40: 2 | D40: 198267491 | E40: C | F40: G | G40: SF3B1 | H40: ENST00000335508 | I40: missense_variant | J40: gaG/gaC|p.Glu622Asp/c.1866G>C | K40: 514 | L40: 128 | M40: 642 | N40: 0.199376947 | O40: 1 | P40: 1 | Q40: 0 | R40: 1 | S40: 1 | T40: 0 | U40: 0 | V40: 1 | W40: 5 | X40: NO | Y40: NO | Z40: COSM132938 | AA40: eye, haematopoietic_and_lymphoid_tissue, NS | AB40: 1, 16, 33 | AC40: NO | AD40: NO | AE40: NO | AF40: 8.236e-06 | AG40: NO | AH40: NO | AI40: -2.737 | AJ40: Deleterious | AK40: 36.14 | AL40: 35.84 | AM40: 514 | AN40: 128 | AO40: 642 | AP40: 0.199376947 | AQ40: 0 | AR40: 0 | AS40: 0 | AT40: NA | AU40: 1 | AV40: 1 | AW40: 1 | AX40: Hotspot (-8)
A41: Hotspot, Expert, Cosmic, dbSNP, prediction, bq | B41: UPN_Te2_003 | C41: 2 | D41: 209113112 | E41: C | F41: T | G41: IDH1 | H41: ENST00000345146 | I41: missense_variant | J41: cGt/cAt|p.Arg132His/c.395G>A | K41: 1939 | L41: 1292 | M41: 3243 | N41: 0.3983965464 | O41: 1 | P41: 1 | Q41: 1 | R41: 1 | S41: 1 | T41: 1 | U41: 1 | V41: 1 | W41: 8 | X41: NO | Y41: NO | Z41: COSM28746 | AA41: bone, central_nervous_system, haematopoietic_and_lymphoid_tissue, lung, prostate, salivary_gland, skin, urinary_tract | AB41: 39, 3886, 236, 1, 5, 1, 1, 1 | AC41: NO | AD41: rs121913500 | AE41: YES | AF41: NO | AG41: NO | AH41: NO | AI41: -4.69 | AJ41: Deleterious | AK41: 34.5 | AL41: 35.24 | AM41: 1143 | AN41: 753 | AO41: 1898 | AP41: 0.3967334036 | AQ41: 796 | AR41: 539 | AS41: 1345 | AT41: 0.4007434944 | AU41: 0.7154415886 | AV41: 1 | AW41: 1 | AX41: Hotspot (-10)
A42: Hotspot, Expert, Cosmic, dbSNP, prediction, bq | B42: UPN_Te2_026 | C42: 2 | D42: 209113113 | E42: G | F42: A | G42: IDH1 | H42: ENST00000345146 | I42: missense_variant | J42: Cgt/Tgt|p.Arg132Cys/c.394C>T | K42: 2562 | L42: 490 | M42: 3056 | N42: 0.1603403141 | O42: 1 | P42: 1 | Q42: 0 | R42: 1 | S42: 1 | T42: 1 | U42: 0 | V42: 1 | W42: 6 | X42: NO | Y42: NO | Z42: COSM28747 | AA42: autonomic_ganglia, biliary_tract, bone, breast, central_nervous_system, haematopoietic_and_lymphoid_tissue, large_intestine, liver, lung, prostate, skin, small_intestine, soft_tissue | AB42: 1, 33, 192, 1, 121, 235, 9, 6, 1, 6, 19, 3, 11 | AC42: NO | AD42: rs121913499 | AE42: YES | AF42: NO | AG42: NO | AH42: NO | AI42: -7.522 | AJ42: Deleterious | AK42: 35.02 | AL42: 34.33 | AM42: 1438 | AN42: 264 | AO42: 1704 | AP42: 0.1549295775 | AQ42: 1124 | AR42: 226 | AS42: 1352 | AT42: 0.1671597633 | AU42: 0.3717174547 | AV42: 1 | AW42: 1 | AX42: Hotspot (-10)
A43: Expert, bq | B43: UPN_Te2_016 | C43: 4 | D43: 106155429 | E43: GA | F43: G | G43: TET2 | H43: ENST00000380013 | I43: frameshift_variant | J43: aaa/|p.Lys111fs/c.333delA | K43: 268 | L43: 1008 | M43: 1280 | N43: 0.7875 | O43: 1 | P43: 1 | Q43: 1 | R43: 1 | S43: 1 | T43: 1 | U43: 0 | V43: 1 | W43: 7 | X43: NO | Y43: NO | Z43: NO | AA43: NA | AB43: NA | AC43: NO | AD43: NO | AE43: NO | AF43: NO | AG43: NO | AH43: NO | AI43: NA | AJ43: NA | AK43: 34.92 | AL43: NA | AM43: 268 | AN43: 1008 | AO43: 1280 | AP43: 0.7875 | AQ43: 0 | AR43: 0 | AS43: 0 | AT43: NA | AU43: 1 | AV43: 1 | AW43: 1 | AX43: Probably True (-6)
A44: Expert, bq | B44: UPN_Te2_024 | C44: 4 | D44: 106156069 | E44: C | F44: T | G44: TET2 | H44: ENST00000380013 | I44: stop_gained | J44: Caa/Taa|p.Gln324*/c.970C>T | K44: 3364 | L44: 204 | M44: 3577 | N44: 0.0570310316 | O44: 0 | P44: 0 | Q44: 0 | R44: 1 | S44: 1 | T44: 1 | U44: 0 | V44: 1 | W44: 4 | X44: NO | Y44: NO | Z44: COSM211710 | AA44: haematopoietic_and_lymphoid_tissue | AB44: 1 | AC44: NO | AD44: NO | AE44: NO | AF44: NO | AG44: NO | AH44: NO | AI44: NA | AJ44: NA | AK44: 34.61 | AL44: 33.24 | AM44: 1728 | AN44: 111 | AO44: 1848 | AP44: 0.0600649351 | AQ44: 1636 | AR44: 93 | AS44: 1729 | AT44: 0.0537883169 | AU44: 0.4276424246 | AV44: 1 | AW44: 1 | AX44: Probably True (-4)
A45: Expert, bq | B45: UPN_Te2_046 | C45: 4 | D45: 106157069 | E45: C | F45: T | G45: TET2 | H45: ENST00000380013 | I45: missense_variant | J45: tCa/tTa|p.Ser657Leu/c.1970C>T | K45: 1030 | L45: 565 | M45: 1597 | N45: 0.3537883532 | O45: 1 | P45: 1 | Q45: 1 | R45: 1 | S45: 1 | T45: 1 | U45: 1 | V45: 1 | W45: 8 | X45: NO | Y45: NO | Z45: NO | AA45: NA | AB45: NA | AC45: NO | AD45: NO | AE45: NO | AF45: NO | AG45: NO | AH45: NO | AI45: -1.983 | AJ45: Tolerated | AK45: 34.55 | AL45: 34.53 | AM45: 369 | AN45: 282 | AO45: 653 | AP45: 0.4318529862 | AQ45: 661 | AR45: 283 | AS45: 944 | AT45: 0.2997881356 | AU45: 5.29347771e-08 | AV45: 1 | AW45: 1 | AX45: Probably True (-6)
A46: Expert, bq | B46: UPN_Te2_035 | C46: 4 | D46: 106157210 | E46: A | F46: AT | G46: TET2 | H46: ENST00000380013 | I46: frameshift_variant | J46: caa/Tcaa|p.Gln705fs/c.2112dupT | K46: 2836 | L46: 1330 | M46: 2836 | N46: 0.4689703808 | O46: 1 | P46: 1 | Q46: 1 | R46: 1 | S46: 1 | T46: 1 | U46: 0 | V46: 1 | W46: 7 | X46: NO | Y46: NO | Z46: NO | AA46: NO | AB46: O | AC46: NO | AD46: NO | AE46: NO | AF46: NO | AG46: NO | AH46: NO | AI46: NA | AJ46: NA | AK46: 36.35 | AL46: NA | AM46: 1103 | AN46: 509 | AO46: 1103 | AP46: 0.4614687217 | AQ46: 1733 | AR46: 821 | AS46: 1733 | AT46: 0.473744951 | AU46: 0.7075582202 | AV46: 1 | AW46: 1 | AX46: Probably True (-6)
A47: Expert, bq | B47: UPN_Te2_013 | C47: 4 | D47: 106157768 | E47: C | F47: CA | G47: TET2 | H47: ENST00000380013 | I47: frameshift_variant | J47: caa/Acaa|p.Gln891fs/c.2670dupA | K47: 645 | L47: 261 | M47: 646 | N47: 0.4040247678 | O47: 0 | P47: 1 | Q47: 1 | R47: 1 | S47: 1 | T47: 1 | U47: 0 | V47: 1 | W47: 6 | X47: NO | Y47: NO | Z47: NO | AA47: NO | AB47: O | AC47: NO | AD47: NO | AE47: NO | AF47: NO | AG47: NO | AH47: NO | AI47: NA | AJ47: NA | AK47: 36.11 | AL47: NA | AM47: 645 | AN47: 261 | AO47: 646 | AP47: 0.4040247678 | AQ47: 0 | AR47: 0 | AS47: 0 | AT47: NA | AU47: 1 | AV47: 1 | AW47: 1 | AX47: Probably True (-6)
A48: Expert, bq | B48: UPN_Te2_030 | C48: 4 | D48: 106162516 | E48: G | F48: C | G48: TET2 | H48: ENST00000380013 | I48: missense_variant | J48: Gaa/Caa|p.Glu1144Gln/c.3430G>C | K48: 201 | L48: 126 | M48: 327 | N48: 0.3853211009 | O48: 1 | P48: 1 | Q48: 1 | R48: 1 | S48: 1 | T48: 1 | U48: 1 | V48: 1 | W48: 8 | X48: NO | Y48: NO | Z48: NO | AA48: NA | AB48: NA | AC48: NO | AD48: NO | AE48: NO | AF48: NO | AG48: NO | AH48: NO | AI48: -1.927 | AJ48: Tolerated | AK48: 35.4 | AL48: 36.48 | AM48: 99 | AN48: 63 | AO48: 162 | AP48: 0.3888888889 | AQ48: 102 | AR48: 63 | AS48: 165 | AT48: 0.3818181818 | AU48: 0.9099663658 | AV48: 1 | AW48: 1 | AX48: Probably True (-6)
A49: Expert, prediction, bq | B49: UPN_Te2_042 | C49: 4 | D49: 106180784 | E49: G | F49: A | G49: TET2 | H49: ENST00000380013 | I49: missense_variant | J49: tGc/tAc|p.Cys1271Tyr/c.3812G>A | K49: 626 | L49: 467 | M49: 1100 | N49: 0.4245454545 | O49: 1 | P49: 1 | Q49: 1 | R49: 1 | S49: 1 | T49: 1 | U49: 1 | V49: 1 | W49: 8 | X49: NO | Y49: NO | Z49: COSM211720 | AA49: haematopoietic_and_lymphoid_tissue | AB49: 3 | AC49: NO | AD49: NO | AE49: NO | AF49: NO | AG49: NO | AH49: NO | AI49: -10.075 | AJ49: Deleterious | AK49: 35.95 | AL49: 36.35 | AM49: 626 | AN49: 466 | AO49: 1099 | AP49: 0.424021838 | AQ49: 0 | AR49: 1 | AS49: 1 | AT49: 1 | AU49: 0.4272644099 | AV49: 1 | AW49: 1 | AX49: Probably True (-7)
A50: Expert, bq | B50: UPN_Te2_041 | C50: 4 | D50: 106182979 | E50: CTT | F50: C | G50: TET2 | H50: ENST00000380013 | I50: frameshift_variant | J50: ctt/|p.Leu1340fs/c.4019_4020delTT | K50: 877 | L50: 828 | M50: 1705 | N50: 0.4856304985 | O50: 1 | P50: 1 | Q50: 1 | R50: 1 | S50: 1 | T50: 1 | U50: 0 | V50: 1 | W50: 7 | X50: NO | Y50: NO | Z50: NO | AA50: NA | AB50: NA | AC50: NO | AD50: NO | AE50: NO | AF50: NO | AG50: NO | AH50: NO | AI50: NA | AJ50: NA | AK50: 36.36 | AL50: NA | AM50: 518 | AN50: 473 | AO50: 991 | AP50: 0.4772956609 | AQ50: 359 | AR50: 355 | AS50: 714 | AT50: 0.4971988796 | AU50: 0.432158974 | AV50: 1 | AW50: 1 | AX50: Probably True (-6)
A51: Expert, prediction, bq | B51: UPN_Te2_029 | C51: 4 | D51: 106193774 | E51: T | F51: G | G51: TET2 | H51: ENST00000380013 | I51: missense_variant | J51: gaT/gaG|p.Asp1412Glu/c.4236T>G | K51: 98 | L51: 112 | M51: 211 | N51: 0.5308056872 | O51: 1 | P51: 1 | Q51: 1 | R51: 1 | S51: 1 | T51: 1 | U51: 1 | V51: 1 | W51: 8 | X51: NO | Y51: NO | Z51: NO | AA51: NO | AB51: O | AC51: NO | AD51: NO | AE51: NO | AF51: NO | AG51: NO | AH51: NO | AI51: -3.655 | AJ51: Deleterious | AK51: 35.16 | AL51: 36.08 | AM51: 71 | AN51: 88 | AO51: 160 | AP51: 0.55 | AQ51: 27 | AR51: 24 | AS51: 51 | AT51: 0.4705882353 | AU51: 0.3353120202 | AV51: 1 | AW51: 1 | AX51: Probably True (-7)
A52: Expert, bq | B52: UPN_Te2_022 | C52: 4 | D52: 106196886 | E52: T | F52: A | G52: TET2 | H52: ENST00000380013 | I52: stop_gained | J52: tTa/tAa|p.Leu1740*/c.5219T>A | K52: 2524 | L52: 218 | M52: 2742 | N52: 0.0795040117 | O52: 0 | P52: 0 | Q52: 0 | R52: 1 | S52: 1 | T52: 1 | U52: 0 | V52: 1 | W52: 4 | X52: NO | Y52: NO | Z52: COSM211629 | AA52: haematopoietic_and_lymphoid_tissue | AB52: 1 | AC52: NO | AD52: NO | AE52: NO | AF52: NO | AG52: NO | AH52: NO | AI52: NA | AJ52: NA | AK52: 34.32 | AL52: 34.85 | AM52: 315 | AN52: 31 | AO52: 346 | AP52: 0.0895953757 | AQ52: 2209 | AR52: 187 | AS52: 2396 | AT52: 0.0780467446 | AU52: 0.4568362209 | AV52: 1 | AW52: 1 | AX52: Probably True (-4)
A53: Expert, bq | B53: UPN_Te2_005 | C53: 4 | D53: 106197020 | E53: A | F53: T | G53: TET2 | H53: ENST00000380013 | I53: stop_gained | J53: Aag/Tag|p.Lys1785*/c.5353A>T | K53: 1811 | L53: 232 | M53: 2043 | N53: 0.1135584924 | O53: 1 | P53: 0 | Q53: 0 | R53: 1 | S53: 1 | T53: 1 | U53: 0 | V53: 1 | W53: 5 | X53: NO | Y53: NO | Z53: NO | AA53: NO | AB53: O | AC53: NO | AD53: NO | AE53: NO | AF53: NO | AG53: NO | AH53: NO | AI53: NA | AJ53: NA | AK53: 35.77 | AL53: 34.56 | AM53: 629 | AN53: 92 | AO53: 721 | AP53: 0.1276005548 | AQ53: 1182 | AR53: 140 | AS53: 1322 | AT53: 0.1059001513 | AU53: 0.1448256891 | AV53: 1 | AW53: 1 | AX53: Probably True (-5)
A54: Expert, bq | B54: UPN_Te2_037 | C54: 4 | D54: 106197248 | E54: G | F54: T | G54: TET2 | H54: ENST00000380013 | I54: stop_gained | J54: Gga/Tga|p.Gly1861*/c.5581G>T | K54: 4536 | L54: 154 | M54: 4693 | N54: 0.0328148306 | O54: 0 | P54: 0 | Q54: 0 | R54: 1 | S54: 1 | T54: 1 | U54: 0 | V54: 1 | W54: 4 | X54: NO | Y54: NO | Z54: NO | AA54: NA | AB54: NA | AC54: NO | AD54: NO | AE54: NO | AF54: NO | AG54: NO | AH54: NO | AI54: NA | AJ54: NA | AK54: 35.29 | AL54: 34.16 | AM54: 1403 | AN54: 46 | AO54: 1450 | AP54: 0.0317241379 | AQ54: 3133 | AR54: 108 | AS54: 3243 | AT54: 0.0333024977 | AU54: 0.8592923587 | AV54: 1 | AW54: 1 | AX54: Probably True (-3)
A55: Expert, prediction, bq | B55: UPN_Te2_007 | C55: 4 | D55: 106197360 | E55: C | F55: T | G55: TET2 | H55: ENST00000380013 | I55: missense_variant | J55: tCc/tTc|p.Ser1898Phe/c.5693C>T | K55: 877 | L55: 2101 | M55: 2981 | N55: 0.704797048 | O55: 1 | P55: 1 | Q55: 1 | R55: 1 | S55: 1 | T55: 0 | U55: 1 | V55: 1 | W55: 7 | X55: NO | Y55: NO | Z55: COSM43499 | AA55: haematopoietic_and_lymphoid_tissue | AB55: 7 | AC55: NO | AD55: NO | AE55: NO | AF55: 3.974e-05 | AG55: NO | AH55: NO | AI55: -5.494 | AJ55: Deleterious | AK55: 32.84 | AL55: 33.35 | AM55: 877 | AN55: 2101 | AO55: 2981 | AP55: 0.704797048 | AQ55: 0 | AR55: 0 | AS55: 0 | AT55: NA | AU55: 1 | AV55: 1 | AW55: 1 | AX55: Probably True (-7)
A56: Expert, prediction, bq | B56: UPN_Te2_029 | C56: 4 | D56: 106197387 | E56: T | F56: C | G56: TET2 | H56: ENST00000380013 | I56: missense_variant | J56: aTg/aCg|p.Met1907Thr/c.5720T>C | K56: 591 | L56: 123 | M56: 714 | N56: 0.1722689076 | O56: 1 | P56: 1 | Q56: 0 | R56: 1 | S56: 1 | T56: 1 | U56: 0 | V56: 1 | W56: 6 | X56: NO | Y56: NO | Z56: NO | AA56: NA | AB56: NA | AC56: NO | AD56: NO | AE56: NO | AF56: NO | AG56: NO | AH56: NO | AI56: -3.668 | AJ56: Deleterious | AK56: 34.06 | AL56: 33.3 | AM56: 453 | AN56: 88 | AO56: 541 | AP56: 0.1626617375 | AQ56: 138 | AR56: 35 | AS56: 173 | AT56: 0.2023121387 | AU56: 0.2476267758 | AV56: 1 | AW56: 1 | AX56: Probably True (-7)
A57: Expert, bq | B57: UPN_Te2_029 | C57: 7 | D57: 148508788 | E57: C | F57: T | G57: EZH2 | H57: ENST00000320356 | I57: missense_variant | J57: Gtg/Atg|p.Val626Met/c.1876G>A | K57: 989 | L57: 34 | M57: 1026 | N57: 0.0331384016 | O57: 0 | P57: 0 | Q57: 0 | R57: 1 | S57: 1 | T57: 1 | U57: 0 | V57: 1 | W57: 4 | X57: NO | Y57: NO | Z57: COSM1000723 | AA57: haematopoietic_and_lymphoid_tissue, oesophagus | AB57: 4, 1 | AC57: NO | AD57: NO | AE57: NO | AF57: NO | AG57: NO | AH57: NO | AI57: -2.218 | AJ57: Tolerated | AK57: 36.27 | AL57: 37.09 | AM57: 591 | AN57: 22 | AO57: 614 | AP57: 0.0358306189 | AQ57: 398 | AR57: 12 | AS57: 412 | AT57: 0.0291262136 | AU57: 0.5987463467 | AV57: 1 | AW57: 1 | AX57: Probably True (-4)
A58: Expert, prediction, | B58: UPN_Te2_004 | C58: 7 | D58: 148512063 | E58: A | F58: G | G58: EZH2 | H58: ENST00000320356 | I58: missense_variant | J58: Tgc/Cgc|p.Cys539Arg/c.1615T>C | K58: 1084 | L58: 110 | M58: 1198 | N58: 0.0918196995 | O58: 0 | P58: 1 | Q58: 0 | R58: 1 | S58: 1 | T58: 1 | U58: 0 | V58: 1 | W58: 5 | X58: NO | Y58: NO | Z58: NO | AA58: NO | AB58: O | AC58: NO | AD58: NO | AE58: NO | AF58: NO | AG58: NO | AH58: NO | AI58: -10.002 | AJ58: Deleterious | AK58: 33.14 | AL58: 32.17 | AM58: 196 | AN58: 10 | AO58: 206 | AP58: 0.0485436893 | AQ58: 888 | AR58: 100 | AS58: 992 | AT58: 0.1008064516 | AU58: 0.016630712 | AV58: 1 | AW58: 1 | AX58: Probably True (-5)
A59: Expert, prediction, bq | B59: UPN_Te2_012 | C59: 7 | D59: 148516713 | E59: C | F59: T | G59: EZH2 | H59: ENST00000320356 | I59: missense_variant | J59: tGt/tAt|p.Cys325Tyr/c.974G>A | K59: 4236 | L59: 160 | M59: 4404 | N59: 0.0363306085 | O59: 0 | P59: 0 | Q59: 0 | R59: 1 | S59: 1 | T59: 1 | U59: 0 | V59: 1 | W59: 4 | X59: NO | Y59: NO | Z59: NO | AA59: NO | AB59: O | AC59: NO | AD59: NO | AE59: NO | AF59: NO | AG59: NO | AH59: NO | AI59: -10.045 | AJ59: Deleterious | AK59: 36.54 | AL59: 34.84 | AM59: 2460 | AN59: 82 | AO59: 2543 | AP59: 0.0322453795 | AQ59: 1776 | AR59: 78 | AS59: 1861 | AT59: 0.04191295 | AU59: 0.0874715014 | AV59: 1 | AW59: 1 | AX59: Probably True (-4)
A60: Expert, bq | B60: UPN_Te2_029 | C60: 7 | D60: 148523591 | E60: G | F60: A | G60: EZH2 | H60: ENST00000320356 | I60: stop_gained | J60: Cga/Tga|p.Arg288*/c.862C>T | K60: 647 | L60: 32 | M60: 684 | N60: 0.0467836257 | O60: 0 | P60: 0 | Q60: 0 | R60: 1 | S60: 1 | T60: 1 | U60: 0 | V60: 1 | W60: 4 | X60: NO | Y60: NO | Z60: COSM1000721 | AA60: haematopoietic_and_lymphoid_tissue | AB60: 2 | AC60: NO | AD60: NO | AE60: NO | AF60: NO | AG60: NO | AH60: NO | AI60: NA | AJ60: NA | AK60: 35.87 | AL60: 36.03 | AM60: 476 | AN60: 26 | AO60: 502 | AP60: 0.0517928287 | AQ60: 171 | AR60: 6 | AS60: 182 | AT60: 0.032967033 | AU60: 0.4127358402 | AV60: 1 | AW60: 1 | AX60: Probably True (-4)
A61: Hotspot, Expert, Cosmic, dbSNP, prediction, bq | B61: UPN_Te2_001 | C61: 9 | D61: 5073770 | E61: G | F61: T | G61: JAK2 | H61: ENST00000381652 | I61: missense_variant | J61: Gtc/Ttc|p.Val617Phe/c.1849G>T | K61: 3261 | L61: 237 | M61: 3500 | N61: 0.0677142857 | O61: 0 | P61: 0 | Q61: 0 | R61: 1 | S61: 1 | T61: 1 | U61: 0 | V61: 1 | W61: 4 | X61: 0.0233 | Y61: NO | Z61: COSM12600 | AA61: central_nervous_system, haematopoietic_and_lymphoid_tissue, lung | AB61: 1, 37620, 3 | AC61: NO | AD61: rs77375493 | AE61: YES | AF61: 0.0006919 | AG61: NO | AH61: NO | AI61: -3.94 | AJ61: Deleterious | AK61: 36.8 | AL61: 36.47 | AM61: 1573 | AN61: 128 | AO61: 1703 | AP61: 0.0751614797 | AQ61: 1688 | AR61: 109 | AS61: 1797 | AT61: 0.06065665 | AU61: 0.092463009 | AV61: 9 | AW61: 9 | AX61: Hotspot (-6)
A62: Hotspot, Expert, Cosmic, dbSNP, prediction, bq | B62: UPN_Te2_015 | C62: 9 | D62: 5073770 | E62: G | F62: T | G62: JAK2 | H62: ENST00000381652 | I62: missense_variant | J62: Gtc/Ttc|p.Val617Phe/c.1849G>T | K62: 1778 | L62: 1066 | M62: 2845 | N62: 0.3746924429 | O62: 1 | P62: 1 | Q62: 1 | R62: 1 | S62: 1 | T62: 1 | U62: 1 | V62: 1 | W62: 8 | X62: 0.0233 | Y62: NO | Z62: COSM12600 | AA62: central_nervous_system, haematopoietic_and_lymphoid_tissue, lung | AB62: 1, 37620, 3 | AC62: NO | AD62: rs77375493 | AE62: YES | AF62: 0.0006919 | AG62: NO | AH62: NO | AI62: -3.94 | AJ62: Deleterious | AK62: 37.11 | AL62: 37.38 | AM62: 910 | AN62: 538 | AO62: 1449 | AP62: 0.3712905452 | AQ62: 868 | AR62: 528 | AS62: 1396 | AT62: 0.3782234957 | AU62: 0.7273831132 | AV62: 9 | AW62: 9 | AX62: Hotspot (-8)
A63: Hotspot, Expert, Cosmic, dbSNP, prediction, bq | B63: UPN_Te2_024 | C63: 9 | D63: 5073770 | E63: G | F63: T | G63: JAK2 | H63: ENST00000381652 | I63: missense_variant | J63: Gtc/Ttc|p.Val617Phe/c.1849G>T | K63: 1335 | L63: 135 | M63: 1471 | N63: 0.0917743032 | O63: 1 | P63: 1 | Q63: 0 | R63: 1 | S63: 1 | T63: 1 | U63: 0 | V63: 1 | W63: 6 | X63: 0.0233 | Y63: NO | Z63: COSM12600 | AA63: central_nervous_system, haematopoietic_and_lymphoid_tissue, lung | AB63: 1, 37620, 3 | AC63: NO | AD63: rs77375493 | AE63: YES | AF63: 0.0006919 | AG63: NO | AH63: NO | AI63: -3.94 | AJ63: Deleterious | AK63: 36.75 | AL63: 36.16 | AM63: 669 | AN63: 70 | AO63: 739 | AP63: 0.0947225981 | AQ63: 666 | AR63: 65 | AS63: 732 | AT63: 0.0887978142 | AU63: 0.718626139 | AV63: 9 | AW63: 9 | AX63: Hotspot (-8)
A64: Hotspot, Expert, Cosmic, dbSNP, prediction, bq | B64: UPN_Te2_025 | C64: 9 | D64: 5073770 | E64: G | F64: T | G64: JAK2 | H64: ENST00000381652 | I64: missense_variant | J64: Gtc/Ttc|p.Val617Phe/c.1849G>T | K64: 1753 | L64: 322 | M64: 2075 | N64: 0.1551807229 | O64: 1 | P64: 1 | Q64: 0 | R64: 1 | S64: 1 | T64: 1 | U64: 0 | V64: 1 | W64: 6 | X64: 0.0233 | Y64: NO | Z64: COSM12600 | AA64: central_nervous_system, haematopoietic_and_lymphoid_tissue, lung | AB64: 1, 37620, 3 | AC64: NO | AD64: rs77375493 | AE64: YES | AF64: 0.0006919 | AG64: NO | AH64: NO | AI64: -3.94 | AJ64: Deleterious | AK64: 37.04 | AL64: 37.01 | AM64: 894 | AN64: 161 | AO64: 1055 | AP64: 0.1526066351 | AQ64: 859 | AR64: 161 | AS64: 1020 | AT64: 0.1578431373 | AU64: 0.7619122454 | AV64: 9 | AW64: 9 | AX64: Hotspot (-8)
A65: Hotspot, Expert, Cosmic, dbSNP, prediction, bq | B65: UPN_Te2_029 | C65: 9 | D65: 5073770 | E65: G | F65: T | G65: JAK2 | H65: ENST00000381652 | I65: missense_variant | J65: Gtc/Ttc|p.Val617Phe/c.1849G>T | K65: 523 | L65: 297 | M65: 821 | N65: 0.3617539586 | O65: 1 | P65: 1 | Q65: 1 | R65: 1 | S65: 1 | T65: 1 | U65: 1 | V65: 1 | W65: 8 | X65: 0.0233 | Y65: NO | Z65: COSM12600 | AA65: central_nervous_system, haematopoietic_and_lymphoid_tissue, lung | AB65: 1, 37620, 3 | AC65: NO | AD65: rs77375493 | AE65: YES | AF65: 0.0006919 | AG65: NO | AH65: NO | AI65: -3.94 | AJ65: Deleterious | AK65: 37.02 | AL65: 36.83 | AM65: 253 | AN65: 139 | AO65: 393 | AP65: 0.3536895674 | AQ65: 270 | AR65: 158 | AS65: 428 | AT65: 0.3691588785 | AU65: 0.7161640053 | AV65: 9 | AW65: 9 | AX65: Hotspot (-8)
A66: Hotspot, Expert, Cosmic, dbSNP, prediction, bq | B66: UPN_Te2_036 | C66: 9 | D66: 5073770 | E66: G | F66: T | G66: JAK2 | H66: ENST00000381652 | I66: missense_variant | J66: Gtc/Ttc|p.Val617Phe/c.1849G>T | K66: 1088 | L66: 170 | M66: 1258 | N66: 0.1351351351 | O66: 1 | P66: 1 | Q66: 0 | R66: 1 | S66: 1 | T66: 1 | U66: 0 | V66: 1 | W66: 6 | X66: 0.0233 | Y66: NO | Z66: COSM12600 | AA66: central_nervous_system, haematopoietic_and_lymphoid_tissue, lung | AB66: 1, 37620, 3 | AC66: NO | AD66: rs77375493 | AE66: YES | AF66: 0.0006919 | AG66: NO | AH66: NO | AI66: -3.94 | AJ66: Deleterious | AK66: 37.13 | AL66: 36.36 | AM66: 538 | AN66: 88 | AO66: 626 | AP66: 0.1405750799 | AQ66: 550 | AR66: 82 | AS66: 632 | AT66: 0.1297468354 | AU66: 0.6208582677 | AV66: 9 | AW66: 9 | AX66: Hotspot (-8)
A67: Hotspot, Expert, Cosmic, dbSNP, prediction, bq | B67: UPN_Te2_037 | C67: 9 | D67: 5073770 | E67: G | F67: T | G67: JAK2 | H67: ENST00000381652 | I67: missense_variant | J67: Gtc/Ttc|p.Val617Phe/c.1849G>T | K67: 744 | L67: 49 | M67: 793 | N67: 0.0617906683 | O67: 0 | P67: 0 | Q67: 0 | R67: 1 | S67: 1 | T67: 1 | U67: 0 | V67: 1 | W67: 4 | X67: 0.0233 | Y67: NO | Z67: COSM12600 | AA67: central_nervous_system, haematopoietic_and_lymphoid_tissue, lung | AB67: 1, 37620, 3 | AC67: NO | AD67: rs77375493 | AE67: YES | AF67: 0.0006919 | AG67: NO | AH67: NO | AI67: -3.94 | AJ67: Deleterious | AK67: 37.26 | AL67: 36.27 | AM67: 369 | AN67: 24 | AO67: 393 | AP67: 0.0610687023 | AQ67: 375 | AR67: 25 | AS67: 400 | AT67: 0.0625 | AU67: 1 | AV67: 9 | AW67: 9 | AX67: Hotspot (-6)
A68: Hotspot, Expert, Cosmic, dbSNP, prediction, bq | B68: UPN_Te2_042 | C68: 9 | D68: 5073770 | E68: G | F68: T | G68: JAK2 | H68: ENST00000381652 | I68: missense_variant | J68: Gtc/Ttc|p.Val617Phe/c.1849G>T | K68: 2638 | L68: 262 | M68: 2902 | N68: 0.0902825637 | O68: 0 | P68: 1 | Q68: 0 | R68: 1 | S68: 1 | T68: 1 | U68: 0 | V68: 1 | W68: 5 | X68: 0.0233 | Y68: NO | Z68: COSM12600 | AA68: central_nervous_system, haematopoietic_and_lymphoid_tissue, lung | AB68: 1, 37620, 3 | AC68: NO | AD68: rs77375493 | AE68: YES | AF68: 0.0006919 | AG68: NO | AH68: NO | AI68: -3.94 | AJ68: Deleterious | AK68: 36.92 | AL68: 36.96 | AM68: 1210 | AN68: 118 | AO68: 1328 | AP68: 0.0888554217 | AQ68: 1428 | AR68: 144 | AS68: 1574 | AT68: 0.0914866582 | AU68: 0.8454208843 | AV68: 9 | AW68: 9 | AX68: Hotspot (-7)
A69: Expert, prediction, bq | B69: UPN_Te2_012 | C69: 11 | D69: 119149229 | E69: G | F69: T | G69: CBL | H69: ENST00000264033 | I69: missense_variant | J69: Ggt/Tgt|p.Gly413Cys/c.1237G>T | K69: 1018 | L69: 203 | M69: 1222 | N69: 0.1661211129 | O69: 0 | P69: 1 | Q69: 0 | R69: 1 | S69: 1 | T69: 1 | U69: 1 | V69: 1 | W69: 6 | X69: 0.0116 | Y69: NO | Z69: NO | AA69: NA | AB69: NA | AC69: NO | AD69: rs371679886 | AE69: NO | AF69: NO | AG69: NO | AH69: NO | AI69: -7.338 | AJ69: Deleterious | AK69: 35.33 | AL69: 34.44 | AM69: 238 | AN69: 51 | AO69: 289 | AP69: 0.1764705882 | AQ69: 780 | AR69: 152 | AS69: 933 | AT69: 0.1629153269 | AU69: 0.5883571586 | AV69: 1 | AW69: 1 | AX69: Probably True (-7)
A70: Expert, bq | B70: UPN_Te2_029 | C70: 12 | D70: 11992213 | E70: C | F70: CT | G70: ETV6 | H70: ENST00000396373 | I70: frameshift_variant | J70: cgc/Tcgc|p.Arg103fs/c.306dupT | K70: 734 | L70: 129 | M70: 734 | N70: 0.1757493188 | O70: 1 | P70: 1 | Q70: 0 | R70: 1 | S70: 1 | T70: 1 | U70: 0 | V70: 1 | W70: 6 | X70: NO | Y70: NO | Z70: NO | AA70: NA | AB70: NA | AC70: NO | AD70: NO | AE70: NO | AF70: NO | AG70: NO | AH70: NO | AI70: NA | AJ70: NA | AK70: 35.01 | AL70: NA | AM70: 424 | AN70: 75 | AO70: 424 | AP70: 0.1768867925 | AQ70: 310 | AR70: 54 | AS70: 310 | AT70: 0.1741935484 | AU70: 1 | AV70: 1 | AW70: 1 | AX70: Probably True (-6)
A71: Expert, prediction, bq | B71: UPN_Te2_016 | C71: 12 | D71: 25380183 | E71: T | F71: A | G71: KRAS | H71: ENST00000256078 | I71: missense_variant | J71: gAt/gTt|p.Asp92Val/c.275A>T | K71: 624 | L71: 89 | M71: 713 | N71: 0.1248246844 | O71: 0 | P71: 1 | Q71: 0 | R71: 1 | S71: 1 | T71: 1 | U71: 0 | V71: 1 | W71: 5 | X71: NO | Y71: NO | Z71: NO | AA71: NO | AB71: O | AC71: NO | AD71: NO | AE71: NO | AF71: NO | AG71: NO | AH71: NO | AI71: -4.928 | AJ71: Deleterious | AK71: 37.14 | AL71: 36.15 | AM71: 543 | AN71: 75 | AO71: 618 | AP71: 0.1213592233 | AQ71: 81 | AR71: 14 | AS71: 95 | AT71: 0.1473684211 | AU71: 0.5042514658 | AV71: 1 | AW71: 1 | AX71: Probably True (-6)
A72: Expert, bq; but rather SNP due to VAF and prediction | B72: UPN_Te2_018 | C72: 15 | D72: 90631914 | E72: C | F72: T | G72: IDH2 | H72: ENST00000330062 | I72: missense_variant | J72: Gtc/Atc|p.Val147Ile/c.439G>A | K72: 3237 | L72: 2952 | M72: 6220 | N72: 0.4745980707 | O72: 1 | P72: 1 | Q72: 1 | R72: 1 | S72: 1 | T72: 1 | U72: 1 | V72: 1 | W72: 8 | X72: NO | Y72: NO | Z72: NO | AA72: NO | AB72: O | AC72: NO | AD72: NO | AE72: NO | AF72: NO | AG72: NO | AH72: NO | AI72: -0.762 | AJ72: Tolerated | AK72: 33.38 | AL72: 33.58 | AM72: 1399 | AN72: 1524 | AO72: 2943 | AP72: 0.5178389399 | AQ72: 1838 | AR72: 1428 | AS72: 3277 | AT72: 0.4357644187 | AU72: 3.973537706e-11 | AV72: 1 | AW72: 1 | AX72: Probably True (-6)
A73: Expert, Cosmic, prediction, | B73: UPN_Te2_009 | C73: 17 | D73: 7578442 | E73: T | F73: C | G73: TP53 | H73: ENST00000269305 | I73: missense_variant | J73: tAc/tGc|p.Tyr163Cys/c.488A>G | K73: 2595 | L73: 1422 | M73: 4064 | N73: 0.3499015748 | O73: 1 | P73: 1 | Q73: 1 | R73: 1 | S73: 1 | T73: 1 | U73: 1 | V73: 1 | W73: 8 | X73: NO | Y73: NO | Z73: COSM10808, COSM129853, COSM3388214, COSM129852, COSM1649381 | AA73: biliary_tract, breast, central_nervous_system, endometrium, haematopoietic_and_lymphoid_tissue, large_intestine, liver, lung, oesophagus, ovary, pancreas, prostate, salivary_gland, soft_tissue, stomach, upper_aerodigestive_tract, urinary_tract | AB73: 1, 42, 19, 2, 13, 14, 36, 48, 34, 19, 22, 1, 1, 2, 4, 13, 16 | AC73: NO | AD73: rs148924904 | AE73: NO | AF73: NO | AG73: NO | AH73: NO | AI73: -8.244 | AJ73: Deleterious | AK73: 32.27 | AL73: 32.94 | AM73: 900 | AN73: 535 | AO73: 1436 | AP73: 0.3725626741 | AQ73: 1695 | AR73: 887 | AS73: 2628 | AT73: 0.3375190259 | AU73: 0.0631438889 | AV73: 2 | AW73: 11 | AX73: Probably True (-7)
A74: Expert, Cosmic, dbSNP, | B74: UPN_Te2_028 | C74: 17 | D74: 7578461 | E74: C | F74: A | G74: TP53 | H74: ENST00000269305 | I74: missense_variant | J74: Gtc/Ttc|p.Val157Phe/c.469G>T | K74: 335 | L74: 2898 | M74: 3238 | N74: 0.8949969117 | O74: 1 | P74: 1 | Q74: 1 | R74: 1 | S74: 1 | T74: 1 | U74: 1 | V74: 1 | W74: 8 | X74: NO | Y74: NO | Z74: COSM10670, COSM131481, COSM3388217, COSM131480, COSM1679513 | AA74: adrenal_gland, biliary_tract, bone, breast, central_nervous_system, endometrium, haematopoietic_and_lymphoid_tissue, kidney, large_intestine, liver, lung, NS, oesophagus, ovary, pancreas, prostate, skin, soft_tissue, stomach, thymus, upper_aerodigestive_tract, urinary_tract, vulva | AB74: 1, 2, 1, 20, 18, 2, 11, 2, 16, 66, 85, 545, 35, 11, 16, 5, 7, 2, 3, 1, 30, 3, 2 | AC74: NO | AD74: rs121912654 | AE74: YES | AF74: NO | AG74: NO | AH74: NO | AI74: -2.605 | AJ74: Deleterious | AK74: 32.5 | AL74: 32.56 | AM74: 180 | AN74: 1620 | AO74: 1800 | AP74: 0.9 | AQ74: 155 | AR74: 1278 | AS74: 1438 | AT74: 0.8887343533 | AU74: 0.4508547351 | AV74: 1 | AW74: 1 | AX74: Probably True (-7)
A75: Expert, Cosmic, bq | B75: UPN_Te2_009 | C75: 17 | D75: 7578503 | E75: C | F75: T | G75: TP53 | H75: ENST00000269305 | I75: missense_variant | J75: Gtg/Atg|p.Val143Met/c.427G>A | K75: 1977 | L75: 1102 | M75: 3083 | N75: 0.357444048 | O75: 1 | P75: 1 | Q75: 1 | R75: 1 | S75: 1 | T75: 1 | U75: 1 | V75: 1 | W75: 8 | X75: NO | Y75: NO | Z75: COSM3691868, COSM220754, COSM1664639, COSM220753, COSM43878 | AA75: haematopoietic_and_lymphoid_tissue, large_intestine, liver, stomach, kidney, central_nervous_system, cervix, lung, oesophagus, ovary, prostate, salivary_gland, upper_aerodigestive_tract, urinary_tract | AB75: 11, 6, 15, 5, 4, 2, 1, 2, 1, 1, 1, 2, 2, 2 | AC75: NO | AD75: NO | AE75: NO | AF75: NO | AG75: NO | AH75: NO | AI75: -2.257 | AJ75: Tolerated | AK75: 33.84 | AL75: 33.94 | AM75: 1607 | AN75: 847 | AO75: 2456 | AP75: 0.3448697068 | AQ75: 370 | AR75: 255 | AS75: 627 | AT75: 0.4066985646 | AU75: 0.0037547109 | AV75: 1 | AW75: 1 | AX75: Probably True (-6)
A76: Hotspot, Expert, Cosmic, prediction, | B76: UPN_Te2_001 | C76: 17 | D76: 74732959 | E76: G | F76: A | G76: SRSF2 | H76: ENST00000392485 | I76: missense_variant | J76: cCc/cTc|p.Pro95Leu/c.284C>T | K76: 1880 | L76: 57 | M76: 1952 | N76: 0.0292008197 | O76: 0 | P76: 0 | Q76: 0 | R76: 0 | S76: 1 | T76: 1 | U76: 0 | V76: 0 | W76: 2 | X76: NO | Y76: NO | Z76: COSM146288 | AA76: haematopoietic_and_lymphoid_tissue | AB76: 93 | AC76: NO | AD76: NO | AE76: NO | AF76: NO | AG76: NO | AH76: NO | AI76: -5.208 | AJ76: Deleterious | AK76: 27.51 | AL76: 24.74 | AM76: 927 | AN76: 29 | AO76: 956 | AP76: 0.030334728 | AQ76: 953 | AR76: 28 | AS76: 996 | AT76: 0.0281124498 | AU76: 0.8932487181 | AV76: 2 | AW76: 4 | AX76: Hotspot (-4)
A77: Hotspot, Expert, Cosmic, prediction, | B77: UPN_Te2_005 | C77: 17 | D77: 74732959 | E77: G | F77: A | G77: SRSF2 | H77: ENST00000392485 | I77: missense_variant | J77: cCc/cTc|p.Pro95Leu/c.284C>T | K77: 1658 | L77: 200 | M77: 1872 | N77: 0.1068376068 | O77: 0 | P77: 1 | Q77: 0 | R77: 1 | S77: 1 | T77: 1 | U77: 0 | V77: 1 | W77: 5 | X77: NO | Y77: NO | Z77: COSM146288 | AA77: haematopoietic_and_lymphoid_tissue | AB77: 93 | AC77: NO | AD77: NO | AE77: NO | AF77: NO | AG77: NO | AH77: NO | AI77: -5.208 | AJ77: Deleterious | AK77: 28.93 | AL77: 26.55 | AM77: 696 | AN77: 81 | AO77: 778 | AP77: 0.1041131105 | AQ77: 962 | AR77: 119 | AS77: 1094 | AT77: 0.1087751371 | AU77: 0.7050544955 | AV77: 2 | AW77: 4 | AX77: Hotspot (-9)
A78: Hotspot, Expert, Cosmic, prediction, | B78: UPN_Te2_044 | C78: 17 | D78: 74732959 | E78: G | F78: C | G78: SRSF2 | H78: ENST00000392485 | I78: missense_variant | J78: cCc/cGc|p.Pro95Arg/c.284C>G | K78: 1005 | L78: 853 | M78: 1878 | N78: 0.4542066028 | O78: 1 | P78: 1 | Q78: 1 | R78: 1 | S78: 1 | T78: 1 | U78: 1 | V78: 1 | W78: 8 | X78: NO | Y78: NO | Z78: COSM211661 | AA78: haematopoietic_and_lymphoid_tissue | AB78: 55 | AC78: NO | AD78: NO | AE78: NO | AF78: NO | AG78: NO | AH78: NO | AI78: -4.575 | AJ78: Deleterious | AK78: 28.94 | AL78: 25.09 | AM78: 449 | AN78: 385 | AO78: 839 | AP78: 0.4588796186 | AQ78: 556 | AR78: 468 | AS78: 1039 | AT78: 0.4504331088 | AU78: 0.8516035403 | AV78: 1 | AW78: 4 | AX78: Hotspot (-10)
A79: Hotspot, Expert, Cosmic, prediction, | B79: UPN_Te2_046 | C79: 17 | D79: 74732959 | E79: G | F79: T | G79: SRSF2 | H79: ENST00000392485 | I79: missense_variant | J79: cCc/cAc|p.Pro95His/c.284C>A | K79: 583 | L79: 488 | M79: 1074 | N79: 0.4543761639 | O79: 1 | P79: 1 | Q79: 1 | R79: 1 | S79: 1 | T79: 1 | U79: 1 | V79: 0 | W79: 7 | X79: NO | Y79: NO | Z79: COSM211504 | AA79: haematopoietic_and_lymphoid_tissue | AB79: 147 | AC79: NO | AD79: NO | AE79: NO | AF79: NO | AG79: NO | AH79: NO | AI79: -4.999 | AJ79: Deleterious | AK79: 28.23 | AL79: 22.34 | AM79: 267 | AN79: 205 | AO79: 474 | AP79: 0.4324894515 | AQ79: 316 | AR79: 283 | AS79: 600 | AT79: 0.4716666667 | AU79: 0.2171724144 | AV79: 1 | AW79: 4 | AX79: Hotspot (-7)
A80: Expert, prediction, bq | B80: UPN_Te2_036 | C80: 17 | D80: 74733097 | E80: C | F80: A | G80: SRSF2 | H80: ENST00000392485 | I80: missense_variant | J80: cGc/cTc|p.Arg49Leu/c.146G>T | K80: 126 | L80: 47 | M80: 173 | N80: 0.2716763006 | O80: 1 | P80: 1 | Q80: 1 | R80: 1 | S80: 0 | T80: 0 | U80: 1 | V80: 1 | W80: 6 | X80: NO | Y80: NO | Z80: NO | AA80: NO | AB80: O | AC80: NO | AD80: NO | AE80: NO | AF80: NO | AG80: NO | AH80: NO | AI80: -5.36 | AJ80: Deleterious | AK80: 29.79 | AL80: 33.21 | AM80: 126 | AN80: 47 | AO80: 173 | AP80: 0.2716763006 | AQ80: 0 | AR80: 0 | AS80: 0 | AT80: NA | AU80: 1 | AV80: 1 | AW80: 1 | AX80: Probably True (-4)
A81: Hotspot, Expert, | B81: UPN_Te2_010 | C81: 20 | D81: 31022288 | E81: C | F81: G | G81: ASXL1 | H81: ENST00000375687 | I81: stop_gained | J81: taC/taG|p.Tyr591*/c.1773C>G | K81: 1671 | L81: 513 | M81: 2187 | N81: 0.2345679012 | O81: 1 | P81: 1 | Q81: 1 | R81: 1 | S81: 1 | T81: 1 | U81: 1 | V81: 1 | W81: 8 | X81: 0.0116 | Y81: NO | Z81: COSM53200 | AA81: haematopoietic_and_lymphoid_tissue | AB81: 4 | AC81: NO | AD81: rs371369583 | AE81: NO | AF81: NA | AG81: NO | AH81: NO | AI81: NA | AJ81: NA | AK81: 32.04 | AL81: 32.03 | AM81: 644 | AN81: 197 | AO81: 843 | AP81: 0.2336892052 | AQ81: 1027 | AR81: 316 | AS81: 1344 | AT81: 0.2351190476 | AU81: 1 | AV81: 1 | AW81: 1 | AX81: Hotspot (-9)
A82: Expert, bq | B82: UPN_Te2_030 | C82: 20 | D82: 31022572 | E82: AGT | F82: A | G82: ASXL1 | H82: ENST00000375687 | I82: frameshift_variant | J82: tgt/|p.Cys687fs/c.2060_2061delGT | K82: 98 | L82: 43 | M82: 142 | N82: 0.3028169014 | O82: 1 | P82: 1 | Q82: 1 | R82: 1 | S82: 1 | T82: 1 | U82: 1 | V82: 1 | W82: 8 | X82: NO | Y82: NO | Z82: NO | AA82: NA | AB82: NA | AC82: NO | AD82: NO | AE82: NO | AF82: 8.236e-06 | AG82: NO | AH82: NO | AI82: NA | AJ82: NA | AK82: 35.79 | AL82: NA | AM82: 24 | AN82: 19 | AO82: 43 | AP82: 0.4418604651 | AQ82: 74 | AR82: 24 | AS82: 99 | AT82: 0.2424242424 | AU82: 0.0282203506 | AV82: 1 | AW82: 1 | AX82: Probably True (-6)
A83: Expert, prediction, bq | B83: UPN_Te2_035 | C83: 20 | D83: 31023874 | E83: A | F83: T | G83: ASXL1 | H83: ENST00000375687 | I83: missense_variant | J83: aAg/aTg|p.Lys1120Met/c.3359A>T | K83: 2503 | L83: 2678 | M83: 5183 | N83: 0.5166891762 | O83: 1 | P83: 1 | Q83: 1 | R83: 1 | S83: 1 | T83: 1 | U83: 1 | V83: 1 | W83: 8 | X83: NO | Y83: NO | Z83: NO | AA83: NO | AB83: O | AC83: NO | AD83: NO | AE83: NO | AF83: 8.236e-06 | AG83: NO | AH83: NO | AI83: -3.196 | AJ83: Deleterious | AK83: 36.93 | AL83: 36.02 | AM83: 1910 | AN83: 2012 | AO83: 3924 | AP83: 0.5127420999 | AQ83: 593 | AR83: 666 | AS83: 1259 | AT83: 0.5289912629 | AU83: 0.3309656804 | AV83: 1 | AW83: 1 | AX83: Probably True (-7)
A84: Expert, bq; but rather SNP due to VAF, ESP6500, dbSNP, ExAC and prediction | B84: UPN_Te2_039 | C84: 20 | D84: 31024797 | E84: T | F84: C | G84: ASXL1 | H84: ENST00000375687 | I84: missense_variant | J84: Tct/Cct|p.Ser1428Pro/c.4282T>C | K84: 101 | L84: 96 | M84: 201 | N84: 0.4776119403 | O84: 1 | P84: 1 | Q84: 1 | R84: 1 | S84: 1 | T84: 0 | U84: 1 | V84: 1 | W84: 7 | X84: 0.0233 | Y84: NO | Z84: NO | AA84: NO | AB84: O | AC84: NO | AD84: rs150925693 | AE84: NO | AF84: 5.765e-05 | AG84: NO | AH84: NO | AI84: -0.246 | AJ84: Tolerated | AK84: 33.13 | AL84: 34.1 | AM84: 0 | AN84: 0 | AO84: 0 | AP84: NA | AQ84: 101 | AR84: 96 | AS84: 201 | AT84: 0.4776119403 | AU84: 1 | AV84: 1 | AW84: 1 | AX84: Probably True (-6)
A85: Expert, bq | B85: UPN_Te2_037 | C85: 21 | D85: 36171685 | E85: GA | F85: G | G85: RUNX1 | H85: ENST00000437180 | I85: frameshift_variant | J85: tct/|p.Pro294fs/c.879delT | K85: 4274 | L85: 1090 | M85: 5380 | N85: 0.2026022305 | O85: 1 | P85: 1 | Q85: 1 | R85: 1 | S85: 1 | T85: 1 | U85: 0 | V85: 1 | W85: 7 | X85: NO | Y85: NO | Z85: NO | AA85: NA | AB85: NA | AC85: NO | AD85: NO | AE85: NO | AF85: NO | AG85: NO | AH85: NO | AI85: NA | AJ85: NA | AK85: 35.02 | AL85: NA | AM85: 2152 | AN85: 537 | AO85: 2704 | AP85: 0.1985946746 | AQ85: 2122 | AR85: 553 | AS85: 2676 | AT85: 0.206651719 | AU85: 0.5413604414 | AV85: 1 | AW85: 1 | AX85: Probably True (-6)
A86: Expert, bq | B86: UPN_Te2_012 | C86: 21 | D86: 36206805 | E86: ATGGC | F86: A | G86: RUNX1 | H86: ENST00000437180 | I86: frameshift_variant | J86: gccatg/|p.Ala235fs/c.703_706delGCCA | K86: 1647 | L86: 1438 | M86: 3088 | N86: 0.4656735751 | O86: 1 | P86: 1 | Q86: 1 | R86: 1 | S86: 1 | T86: 1 | U86: 0 | V86: 1 | W86: 7 | X86: NO | Y86: NO | Z86: NO | AA86: NO | AB86: O | AC86: NO | AD86: NO | AE86: NO | AF86: NO | AG86: NO | AH86: NO | AI86: NA | AJ86: NA | AK86: 33.37 | AL86: NA | AM86: 845 | AN86: 756 | AO86: 1604 | AP86: 0.4713216958 | AQ86: 802 | AR86: 682 | AS86: 1484 | AT86: 0.4595687332 | AU86: 0.4926585886 | AV86: 1 | AW86: 1 | AX86: Probably True (-6)
A87: Hotspot, Expert, bq | B87: UPN_Te2_024 | C87: 21 | D87: 36252866 | E87: G | F87: A | G87: RUNX1 | H87: ENST00000437180 | I87: stop_gained | J87: Cga/Tga|p.Arg166*/c.496C>T | K87: 544 | L87: 37 | M87: 581 | N87: 0.0636833046 | O87: 1 | P87: 0 | Q87: 0 | R87: 1 | S87: 1 | T87: 1 | U87: 0 | V87: 1 | W87: 5 | X87: NO | Y87: NO | Z87: COSM24769 | AA87: haematopoietic_and_lymphoid_tissue | AB87: 10 | AC87: NO | AD87: NO | AE87: NO | AF87: NO | AG87: NO | AH87: NO | AI87: NA | AJ87: NA | AK87: 35.76 | AL87: 34.68 | AM87: 108 | AN87: 7 | AO87: 115 | AP87: 0.0608695652 | AQ87: 436 | AR87: 30 | AS87: 466 | AT87: 0.0643776824 | AU87: 1 | AV87: 1 | AW87: 1 | AX87: Hotspot (-8)
A88: Expert, bq | B88: UPN_Te2_046 | C88: 21 | D88: 36259363 | E88: GGCGGCGTGAA | F88: G | G88: RUNX1 | H88: ENST00000437180 | I88: frameshift_variant | J88: ttcacgccgcct/|p.Phe40fs/c.118_127delTTCACGCCGC | K88: 792 | L88: 48 | M88: 843 | N88: 0.0569395018 | O88: 0 | P88: 1 | Q88: 0 | R88: 1 | S88: 1 | T88: 0 | U88: 0 | V88: 1 | W88: 4 | X88: NO | Y88: NO | Z88: NO | AA88: NA | AB88: NA | AC88: NO | AD88: NO | AE88: NO | AF88: NO | AG88: NO | AH88: NO | AI88: NA | AJ88: NA | AK88: 30.48 | AL88: NA | AM88: 535 | AN88: 31 | AO88: 568 | AP88: 0.0545774648 | AQ88: 257 | AR88: 17 | AS88: 275 | AT88: 0.0618181818 | AU88: 0.7513604739 | AV88: 1 | AW88: 1 | AX88: Probably True (-3)
A89: Hotspot, Expert, Cosmic, prediction, | B89: UPN_Te2_036 | C89: 21 | D89: 44514777 | E89: T | F89: C | G89: U2AF1 | H89: ENST00000291552 | I89: missense_variant | J89: cAg/cGg|p.Gln157Arg/c.470A>G | K89: 1083 | L89: 120 | M89: 1207 | N89: 0.0994200497 | O89: 0 | P89: 1 | Q89: 0 | R89: 1 | S89: 1 | T89: 1 | U89: 0 | V89: 1 | W89: 5 | X89: 0.0116 | Y89: NO | Z89: COSM1724986, COSM211532 | AA89: haematopoietic_and_lymphoid_tissue | AB89: 26 | AC89: NO | AD89: rs371246226 | AE89: NO | AF89: NA | AG89: NO | AH89: NO | AI89: -3.835 | AJ89: Deleterious | AK89: 33.37 | AL89: 32 | AM89: 524 | AN89: 57 | AO89: 585 | AP89: 0.0974358974 | AQ89: 559 | AR89: 63 | AS89: 622 | AT89: 0.1012861736 | AU89: 0.9233559729 | AV89: 1 | AW89: 2 | AX89: Hotspot (-9)
A90: Hotspot, Expert, Cosmic, prediction, bq | B90: UPN_Te2_012 | C90: 21 | D90: 44514777 | E90: T | F90: G | G90: U2AF1 | H90: ENST00000291552 | I90: missense_variant | J90: cAg/cCg|p.Gln157Pro/c.470A>C | K90: 3652 | L90: 3031 | M90: 6690 | N90: 0.453064275 | O90: 1 | P90: 1 | Q90: 1 | R90: 1 | S90: 1 | T90: 1 | U90: 1 | V90: 1 | W90: 8 | X90: NO | Y90: NO | Z90: COSM211534, COSM1318797 | AA90: haematopoietic_and_lymphoid_tissue | AB90: 62 | AC90: NO | AD90: NO | AE90: NO | AF90: NA | AG90: NO | AH90: NO | AI90: -5.687 | AJ90: Deleterious | AK90: 33.43 | AL90: 33.99 | AM90: 1849 | AN90: 1463 | AO90: 3318 | AP90: 0.44092827 | AQ90: 1803 | AR90: 1568 | AS90: 3372 | AT90: 0.4650059312 | AU90: 0.0553185354 | AV90: 1 | AW90: 2 | AX90: Hotspot (-10)
O91: =SUM(O2:O90) -> 64 | P91: =SUM(P2:P90) -> 72 | Q91: =SUM(Q2:Q90) -> 52 | R91: =SUM(R2:R90) -> 87 | S91: =SUM(S2:S90) -> 88 | T91: =SUM(T2:T90) -> 74 | U91: =SUM(U2:U90) -> 44 | V91: =SUM(V2:V90) -> 86

Sheet TP Polymorphisms
A1: Polymorphism because... | B1: Sample | C1: Chr | D1: Pos | E1: Ref | F1: Alt | G1: Gene | H1: ENST | I1: Type | J1: Mutation | K1: Nr_Ref | L1: Nr_Alt | M1: DP | N1: VAF | O1: GATK | P1: Platypus | Q1: VarScan | R1: LoFreq | S1: FreeBayes | T1: SNVer | U1: SAMtools | V1: VarDict | W1: Called | X1: ESP6500 | Y1: G1000 | Z1: Cosmic | AA1: Cosmic_location | AB1: Cosmic_occurence | AC1: dbSNP_SNPs | AD1: dbSNP_SNVs | AE1: PM_flag | AF1: ExAC | AG1: ClinVar_clinical | AH1: ClinVar_noimpact | AI1: provean_score | AJ1: prediction | AK1: BQ_Ref | AL1: BQ_Alt | AM1: Nr_Ref_fwd | AN1: Nr_Alt_fwd | AO1: DP_fwd | AP1: VAF_fwd | AQ1: Nr_Ref_rev | AR1: Nr_Alt_rev | AS1: DP_rev | AT1: VAF_rev | AU1: strandbias | AV1: nr_samples | AW1: nr_samples_similar | AX1: Category
A2: ESP6500, 1000 Genomes, ExAC, ClinVar, prediction, VAF | B2: UPN_Te2_025 | C2: 2 | D2: 25523096 | E2: T | F2: G | G2: DNMT3A | H2: ENST00000264709 | I2: missense_variant | J2: gAg/gCg|p.Glu30Ala/c.89A>C | K2: 2023 | L2: 2134 | M2: 4176 | N2: 0.5110153257 | O2: 1 | P2: 1 | Q2: 1 | R2: 1 | S2: 1 | T2: 1 | U2: 1 | V2: 1 | W2: 8 | X2: 0.2093 | Y2: 0.007 | Z2: COSM307361 | AA2: haematopoietic_and_lymphoid_tissue | AB2: 1 | AC2: NO | AD2: rs143730975 | AE2: NO | AF2: 0.002916 | AG2: NO | AH2: YES | AI2: -0.129 | AJ2: Tolerated | AK2: 32.92 | AL2: 32.61 | AM2: 705 | AN2: 835 | AO2: 1544 | AP2: 0.5408031088 | AQ2: 1318 | AR2: 1299 | AS2: 2632 | AT2: 0.4935410334 | AU2: 0.0046876111 | AV2: 1 | AW2: 1 | AX2: Polymorphism
A3: ESP6500, 1000 Genomes, dbSNP, ExAC, ClinVar, prediction, VAF | B3: UPN_Te2_009 | C3: 4 | D3: 106155185 | E3: C | F3: G | G3: TET2 | H3: ENST00000380013 | I3: missense_variant | J3: cCt/cGt|p.Pro29Arg/c.86C>G | K3: 727 | L3: 703 | M3: 1440 | N3: 0.4881944444 | O3: 1 | P3: 1 | Q3: 1 | R3: 1 | S3: 1 | T3: 1 | U3: 1 | V3: 1 | W3: 8 | X3: 1.5465 | Y3: NO | Z3: COSM5020248, COSM5020249 | AA3: soft_tissue | AB3: 4 | AC3: rs12498609 | AD3: rs12498609 | AE3: NO | AF3: 0.06 | AG3: NO | AH3: YES | AI3: -1.923 | AJ3: Tolerated | AK3: 36.91 | AL3: 37.06 | AM3: 241 | AN3: 225 | AO3: 475 | AP3: 0.4736842105 | AQ3: 486 | AR3: 478 | AS3: 965 | AT3: 0.4953367876 | AU3: 0.6520585873 | AV3: 4 | AW3: 4 | AX3: Polymorphism
A4: ESP6500, 1000 Genomes, dbSNP, ExAC, ClinVar, prediction, VAF | B4: UPN_Te2_021 | C4: 4 | D4: 106155185 | E4: C | F4: G | G4: TET2 | H4: ENST00000380013 | I4: missense_variant | J4: cCt/cGt|p.Pro29Arg/c.86C>G | K4: 562 | L4: 556 | M4: 1118 | N4: 0.4973166369 | O4: 1 | P4: 1 | Q4: 1 | R4: 1 | S4: 1 | T4: 1 | U4: 1 | V4: 1 | W4: 8 | X4: 1.5465 | Y4: NO | Z4: COSM5020248, COSM5020249 | AA4: soft_tissue | AB4: 4 | AC4: rs12498609 | AD4: rs12498609 | AE4: NO | AF4: 0.06 | AG4: NO | AH4: YES | AI4: -1.923 | AJ4: Tolerated | AK4: 37.43 | AL4: 37.64 | AM4: 40 | AN4: 31 | AO4: 71 | AP4: 0.4366197183 | AQ4: 522 | AR4: 525 | AS4: 1047 | AT4: 0.5014326648 | AU4: 0.327106567 | AV4: 4 | AW4: 4 | AX4: Polymorphism
A5: ESP6500, 1000 Genomes, dbSNP, ExAC, ClinVar, prediction, VAF | B5: UPN_Te2_027 | C5: 4 | D5: 106155185 | E5: C | F5: G | G5: TET2 | H5: ENST00000380013 | I5: missense_variant | J5: cCt/cGt|p.Pro29Arg/c.86C>G | K5: 189 | L5: 199 | M5: 388 | N5: 0.5128865979 | O5: 1 | P5: 1 | Q5: 1 | R5: 1 | S5: 1 | T5: 1 | U5: 1 | V5: 1 | W5: 8 | X5: 1.5465 | Y5: NO | Z5: COSM5020248, COSM5020249 | AA5: soft_tissue | AB5: 4 | AC5: rs12498609 | AD5: rs12498609 | AE5: NO | AF5: 0.06 | AG5: NO | AH5: YES | AI5: -1.923 | AJ5: Tolerated | AK5: 37.35 | AL5: 37.29 | AM5: 14 | AN5: 4 | AO5: 18 | AP5: 0.2222222222 | AQ5: 175 | AR5: 195 | AS5: 370 | AT5: 0.527027027 | AU5: 0.0145105372 | AV5: 4 | AW5: 4 | AX5: Polymorphism
A6: ESP6500, 1000 Genomes, dbSNP, ExAC, ClinVar, prediction, VAF | B6: UPN_Te2_032 | C6: 4 | D6: 106155185 | E6: C | F6: G | G6: TET2 | H6: ENST00000380013 | I6: missense_variant | J6: cCt/cGt|p.Pro29Arg/c.86C>G | K6: 169 | L6: 189 | M6: 358 | N6: 0.5279329609 | O6: 1 | P6: 1 | Q6: 1 | R6: 1 | S6: 1 | T6: 1 | U6: 1 | V6: 1 | W6: 8 | X6: 1.5465 | Y6: NO | Z6: COSM5020248, COSM5020249 | AA6: soft_tissue | AB6: 4 | AC6: rs12498609 | AD6: rs12498609 | AE6: NO | AF6: 0.06 | AG6: NO | AH6: YES | AI6: -1.923 | AJ6: Tolerated | AK6: 37.79 | AL6: 36.89 | AM6: 33 | AN6: 41 | AO6: 74 | AP6: 0.5540540541 | AQ6: 136 | AR6: 148 | AS6: 284 | AT6: 0.5211267606 | AU6: 0.6951866049 | AV6: 4 | AW6: 4 | AX6: Polymorphism
A7: ESP6500, 1000 Genomes, ExAC, ClinVar, prediction, VAF | B7: UPN_Te2_002 | C7: 4 | D7: 106155199 | E7: C | F7: T | G7: TET2 | H7: ENST00000380013 | I7: missense_variant | J7: Ctc/Ttc|p.Leu34Phe/c.100C>T | K7: 349 | L7: 393 | M7: 744 | N7: 0.5282258065 | O7: 1 | P7: 1 | Q7: 1 | R7: 1 | S7: 1 | T7: 1 | U7: 1 | V7: 1 | W7: 8 | X7: 1.8953 | Y7: NO | Z7: NO | AA7: NO | AB7: O | AC7: NO | AD7: rs111948941 | AE7: NO | AF7: 0.015 | AG7: NO | AH7: YES | AI7: -1.31 | AJ7: Tolerated | AK7: 37.23 | AL7: 37.89 | AM7: 45 | AN7: 39 | AO7: 86 | AP7: 0.4534883721 | AQ7: 304 | AR7: 354 | AS7: 658 | AT7: 0.537993921 | AU7: 0.2044876134 | AV7: 3 | AW7: 3 | AX7: Polymorphism
A8: ESP6500, 1000 Genomes, ExAC, ClinVar, prediction, VAF | B8: UPN_Te2_039 | C8: 4 | D8: 106155199 | E8: C | F8: T | G8: TET2 | H8: ENST00000380013 | I8: missense_variant | J8: Ctc/Ttc|p.Leu34Phe/c.100C>T | K8: 168 | L8: 146 | M8: 314 | N8: 0.4649681529 | O8: 1 | P8: 1 | Q8: 1 | R8: 1 | S8: 1 | T8: 1 | U8: 1 | V8: 1 | W8: 8 | X8: 1.8953 | Y8: NO | Z8: NO | AA8: NO | AB8: O | AC8: NO | AD8: rs111948941 | AE8: NO | AF8: 0.015 | AG8: NO | AH8: YES | AI8: -1.31 | AJ8: Tolerated | AK8: 37.1 | AL8: 37.93 | AM8: 25 | AN8: 33 | AO8: 58 | AP8: 0.5689655172 | AQ8: 143 | AR8: 113 | AS8: 256 | AT8: 0.44140625 | AU8: 0.0824517324 | AV8: 3 | AW8: 3 | AX8: Polymorphism
A9: ESP6500, 1000 Genomes, ExAC, ClinVar, prediction, VAF | B9: UPN_Te2_044 | C9: 4 | D9: 106155199 | E9: C | F9: T | G9: TET2 | H9: ENST00000380013 | I9: missense_variant | J9: Ctc/Ttc|p.Leu34Phe/c.100C>T | K9: 421 | L9: 404 | M9: 827 | N9: 0.4885126965 | O9: 1 | P9: 1 | Q9: 1 | R9: 1 | S9: 1 | T9: 1 | U9: 1 | V9: 1 | W9: 8 | X9: 1.8953 | Y9: NO | Z9: NO | AA9: NO | AB9: O | AC9: NO | AD9: rs111948941 | AE9: NO | AF9: 0.015 | AG9: NO | AH9: YES | AI9: -1.31 | AJ9: Tolerated | AK9: 36.46 | AL9: 37.45 | AM9: 75 | AN9: 88 | AO9: 165 | AP9: 0.5333333333 | AQ9: 346 | AR9: 316 | AS9: 662 | AT9: 0.4773413897 | AU9: 0.1622352388 | AV9: 3 | AW9: 3 | AX9: Polymorphism
A10: ESP6500, 1000 Genomes, dbSNP, ExAC, ClinVar, prediction, VAF | B10: UPN_Te2_002 | C10: 4 | D10: 106155751 | E10: G | F10: A | G10: TET2 | H10: ENST00000380013 | I10: missense_variant | J10: Gtg/Atg|p.Val218Met/c.652G>A | K10: 1996 | L10: 1940 | M10: 3951 | N10: 0.4910149329 | O10: 1 | P10: 1 | Q10: 1 | R10: 1 | S10: 1 | T10: 1 | U10: 1 | V10: 1 | W10: 8 | X10: 2.093 | Y10: NO | Z10: COSM4416139, COSM4416140 | AA10: haematopoietic_and_lymphoid_tissue | AB10: 2 | AC10: rs6843141 | AD10: rs6843141 | AE10: NO | AF10: NA | AG10: NO | AH10: YES | AI10: 0.498 | AJ10: Tolerated | AK10: 32.77 | AL10: 32.81 | AM10: 375 | AN10: 375 | AO10: 756 | AP10: 0.496031746 | AQ10: 1621 | AR10: 1565 | AS10: 3195 | AT10: 0.489827856 | AU10: 0.6848605206 | AV10: 3 | AW10: 3 | AX10: Polymorphism
A11: ESP6500, 1000 Genomes, dbSNP, ExAC, ClinVar, prediction, VAF | B11: UPN_Te2_039 | C11: 4 | D11: 106155751 | E11: G | F11: A | G11: TET2 | H11: ENST00000380013 | I11: missense_variant | J11: Gtg/Atg|p.Val218Met/c.652G>A | K11: 554 | L11: 523 | M11: 1081 | N11: 0.4838112858 | O11: 1 | P11: 1 | Q11: 1 | R11: 1 | S11: 1 | T11: 1 | U11: 1 | V11: 1 | W11: 8 | X11: 2.093 | Y11: NO | Z11: COSM4416139, COSM4416140 | AA11: haematopoietic_and_lymphoid_tissue | AB11: 2 | AC11: rs6843141 | AD11: rs6843141 | AE11: NO | AF11: NA | AG11: NO | AH11: YES | AI11: 0.498 | AJ11: Tolerated | AK11: 32.83 | AL11: 33.39 | AM11: 186 | AN11: 162 | AO11: 348 | AP11: 0.4655172414 | AQ11: 368 | AR11: 361 | AS11: 733 | AT11: 0.4924965894 | AU11: 0.3968009649 | AV11: 3 | AW11: 3 | AX11: Polymorphism
A12: ESP6500, 1000 Genomes, dbSNP, ExAC, ClinVar, prediction, VAF | B12: UPN_Te2_044 | C12: 4 | D12: 106155751 | E12: G | F12: A | G12: TET2 | H12: ENST00000380013 | I12: missense_variant | J12: Gtg/Atg|p.Val218Met/c.652G>A | K12: 1470 | L12: 1394 | M12: 2879 | N12: 0.4841959014 | O12: 1 | P12: 1 | Q12: 1 | R12: 1 | S12: 1 | T12: 1 | U12: 1 | V12: 1 | W12: 8 | X12: 2.093 | Y12: NO | Z12: COSM4416139, COSM4416140 | AA12: haematopoietic_and_lymphoid_tissue | AB12: 2 | AC12: rs6843141 | AD12: rs6843141 | AE12: NO | AF12: NA | AG12: NO | AH12: YES | AI12: 0.498 | AJ12: Tolerated | AK12: 33.16 | AL12: 33.11 | AM12: 454 | AN12: 424 | AO12: 883 | AP12: 0.4801812005 | AQ12: 1016 | AR12: 970 | AS12: 1996 | AT12: 0.4859719439 | AU12: 0.8078348985 | AV12: 3 | AW12: 3 | AX12: Polymorphism
A13: ESP6500, 1000 Genomes, dbSNP, ExAC, ClinVar, prediction, VAF, many samples | B13: UPN_Te2_007 | C13: 4 | D13: 106156163 | E13: G | F13: A | G13: TET2 | H13: ENST00000380013 | I13: missense_variant | J13: gGt/gAt|p.Gly355Asp/c.1064G>A | K13: 341 | L13: 826 | M13: 1176 | N13: 0.7023809524 | O13: 1 | P13: 1 | Q13: 1 | R13: 1 | S13: 1 | T13: 1 | U13: 1 | V13: 1 | W13: 8 | X13: 4.3721 | Y13: NO | Z13: NO | AA13: NO | AB13: O | AC13: rs61744960 | AD13: rs61744960 | AE13: NO | AF13: 0.027 | AG13: NO | AH13: YES | AI13: -1.044 | AJ13: Tolerated | AK13: 36.81 | AL13: 36.87 | AM13: 92 | AN13: 198 | AO13: 298 | AP13: 0.6644295302 | AQ13: 249 | AR13: 628 | AS13: 878 | AT13: 0.715261959 | AU13: 0.2972138579 | AV13: 7 | AW13: 7 | AX13: Polymorphism
A14: ESP6500, 1000 Genomes, dbSNP, ExAC, ClinVar, prediction, VAF, many samples | B14: UPN_Te2_010 | C14: 4 | D14: 106156163 | E14: G | F14: A | G14: TET2 | H14: ENST00000380013 | I14: missense_variant | J14: gGt/gAt|p.Gly355Asp/c.1064G>A | K14: 779 | L14: 668 | M14: 1447 | N14: 0.4616447823 | O14: 1 | P14: 1 | Q14: 1 | R14: 0 | S14: 1 | T14: 1 | U14: 1 | V14: 1 | W14: 7 | X14: 4.3721 | Y14: NO | Z14: NO | AA14: NO | AB14: O | AC14: rs61744960 | AD14: rs61744960 | AE14: NO | AF14: 0.027 | AG14: NO | AH14: YES | AI14: -1.044 | AJ14: Tolerated | AK14: 38.02 | AL14: 37.91 | AM14: 70 | AN14: 27 | AO14: 97 | AP14: 0.2783505155 | AQ14: 709 | AR14: 641 | AS14: 1350 | AT14: 0.4748148148 | AU14: 0.0001944763 | AV14: 7 | AW14: 7 | AX14: Polymorphism
A15: ESP6500, 1000 Genomes, dbSNP, ExAC, ClinVar, prediction, VAF, many samples | B15: UPN_Te2_013 | C15: 4 | D15: 106156163 | E15: G | F15: A | G15: TET2 | H15: ENST00000380013 | I15: missense_variant | J15: gGt/gAt|p.Gly355Asp/c.1064G>A | K15: 37 | L15: 1604 | M15: 1642 | N15: 0.9768574909 | O15: 1 | P15: 1 | Q15: 1 | R15: 1 | S15: 1 | T15: 1 | U15: 1 | V15: 1 | W15: 8 | X15: 4.3721 | Y15: NO | Z15: NO | AA15: NO | AB15: O | AC15: rs61744960 | AD15: rs61744960 | AE15: NO | AF15: 0.027 | AG15: NO | AH15: YES | AI15: -1.044 | AJ15: Tolerated | AK15: 37.05 | AL15: 37.65 | AM15: 2 | AN15: 75 | AO15: 78 | AP15: 0.9615384615 | AQ15: 35 | AR15: 1529 | AS15: 1564 | AT15: 0.9776214834 | AU15: 0.6913264093 | AV15: 7 | AW15: 7 | AX15: Polymorphism
A16: ESP6500, 1000 Genomes, dbSNP, ExAC, ClinVar, prediction, VAF, many samples | B16: UPN_Te2_018 | C16: 4 | D16: 106156163 | E16: G | F16: A | G16: TET2 | H16: ENST00000380013 | I16: missense_variant | J16: gGt/gAt|p.Gly355Asp/c.1064G>A | K16: 686 | L16: 675 | M16: 1362 | N16: 0.4955947137 | O16: 1 | P16: 1 | Q16: 1 | R16: 1 | S16: 1 | T16: 1 | U16: 1 | V16: 1 | W16: 8 | X16: 4.3721 | Y16: NO | Z16: NO | AA16: NO | AB16: O | AC16: rs61744960 | AD16: rs61744960 | AE16: NO | AF16: 0.027 | AG16: NO | AH16: YES | AI16: -1.044 | AJ16: Tolerated | AK16: 38.01 | AL16: 37 | AM16: 52 | AN16: 43 | AO16: 96 | AP16: 0.4479166667 | AQ16: 634 | AR16: 632 | AS16: 1266 | AT16: 0.4992101106 | AU16: 0.3964392023 | AV16: 7 | AW16: 7 | AX16: Polymorphism
A17: ESP6500, 1000 Genomes, dbSNP, ExAC, ClinVar, prediction, VAF, many samples | B17: UPN_Te2_019 | C17: 4 | D17: 106156163 | E17: G | F17: A | G17: TET2 | H17: ENST00000380013 | I17: missense_variant | J17: gGt/gAt|p.Gly355Asp/c.1064G>A | K17: 832 | L17: 707 | M17: 1540 | N17: 0.4590909091 | O17: 1 | P17: 1 | Q17: 1 | R17: 1 | S17: 1 | T17: 1 | U17: 1 | V17: 1 | W17: 8 | X17: 4.3721 | Y17: NO | Z17: NO | AA17: NO | AB17: O | AC17: rs61744960 | AD17: rs61744960 | AE17: NO | AF17: 0.027 | AG17: NO | AH17: YES | AI17: -1.044 | AJ17: Tolerated | AK17: 37.61 | AL17: 37.55 | AM17: 41 | AN17: 28 | AO17: 70 | AP17: 0.4 | AQ17: 791 | AR17: 679 | AS17: 1470 | AT17: 0.4619047619 | AU17: 0.388679973 | AV17: 7 | AW17: 7 | AX17: Polymorphism
A18: ESP6500, 1000 Genomes, dbSNP, ExAC, ClinVar, prediction, VAF, many samples | B18: UPN_Te2_022 | C18: 4 | D18: 106156163 | E18: G | F18: A | G18: TET2 | H18: ENST00000380013 | I18: missense_variant | J18: gGt/gAt|p.Gly355Asp/c.1064G>A | K18: 726 | L18: 717 | M18: 1445 | N18: 0.4961937716 | O18: 1 | P18: 1 | Q18: 1 | R18: 1 | S18: 1 | T18: 1 | U18: 1 | V18: 1 | W18: 8 | X18: 4.3721 | Y18: NO | Z18: NO | AA18: NO | AB18: O | AC18: rs61744960 | AD18: rs61744960 | AE18: NO | AF18: 0.027 | AG18: NO | AH18: YES | AI18: -1.044 | AJ18: Tolerated | AK18: 38.24 | AL18: 37.51 | AM18: 25 | AN18: 34 | AO18: 61 | AP18: 0.5573770492 | AQ18: 701 | AR18: 683 | AS18: 1384 | AT18: 0.4934971098 | AU18: 0.232906392 | AV18: 7 | AW18: 7 | AX18: Polymorphism
A19: ESP6500, 1000 Genomes, dbSNP, ExAC, ClinVar, prediction, VAF, many samples | B19: UPN_Te2_031 | C19: 4 | D19: 106156163 | E19: G | F19: A | G19: TET2 | H19: ENST00000380013 | I19: missense_variant | J19: gGt/gAt|p.Gly355Asp/c.1064G>A | K19: 336 | L19: 308 | M19: 645 | N19: 0.4775193798 | O19: 1 | P19: 1 | Q19: 1 | R19: 1 | S19: 1 | T19: 1 | U19: 1 | V19: 1 | W19: 8 | X19: 4.3721 | Y19: NO | Z19: NO | AA19: NO | AB19: O | AC19: rs61744960 | AD19: rs61744960 | AE19: NO | AF19: 0.027 | AG19: NO | AH19: YES | AI19: -1.044 | AJ19: Tolerated | AK19: 37.92 | AL19: 37.57 | AM19: 8 | AN19: 7 | AO19: 16 | AP19: 0.4375 | AQ19: 328 | AR19: 301 | AS19: 629 | AT19: 0.4785373609 | AU19: 1 | AV19: 7 | AW19: 7 | AX19: Polymorphism
A20: ESP6500, 1000 Genomes, dbSNP, ExAC, ClinVar, prediction, VAF | B20: UPN_Te2_031 | C20: 4 | D20: 106156187 | E20: C | F20: T | G20: TET2 | H20: ENST00000380013 | I20: missense_variant | J20: cCt/cTt|p.Pro363Leu/c.1088C>T | K20: 656 | L20: 705 | M20: 1362 | N20: 0.5176211454 | O20: 1 | P20: 1 | Q20: 1 | R20: 1 | S20: 1 | T20: 1 | U20: 1 | V20: 1 | W20: 8 | X20: 5.8953 | Y20: NO | Z20: COSM5020142, COSM5020141 | AA20: soft_tissue | AB20: 4 | AC20: rs17253672 | AD20: rs17253672 | AE20: NO | AF20: 0.048 | AG20: NO | AH20: YES | AI20: -1.15 | AJ20: Tolerated | AK20: 36.58 | AL20: 36.74 | AM20: 348 | AN20: 385 | AO20: 734 | AP20: 0.5245231608 | AQ20: 308 | AR20: 320 | AS20: 628 | AT20: 0.5095541401 | AU20: 0.5864724768 | AV20: 1 | AW20: 1 | AX20: Polymorphism
A21: ESP6500, 1000 Genomes, ClinVar, prediction, VAF | B21: UPN_Te2_041 | C21: 4 | D21: 106158350 | E21: A | F21: C | G21: TET2 | H21: ENST00000380013 | I21: missense_variant | J21: cAa/cCa|p.Gln1084Pro/c.3251A>C | K21: 774 | L21: 723 | M21: 1500 | N21: 0.482 | O21: 1 | P21: 1 | Q21: 1 | R21: 1 | S21: 1 | T21: 1 | U21: 1 | V21: 1 | W21: 8 | X21: 0.3953 | Y21: NO | Z21: NO | AA21: NA | AB21: NA | AC21: NO | AD21: rs75056899 | AE21: NO | AF21: NO | AG21: NO | AH21: YES | AI21: -1.959 | AJ21: Tolerated | AK21: 36.95 | AL21: 36.77 | AM21: 689 | AN21: 609 | AO21: 1301 | AP21: 0.4681014604 | AQ21: 85 | AR21: 114 | AS21: 199 | AT21: 0.5728643216 | AU21: 0.0075683182 | AV21: 1 | AW21: 1 | AX21: Polymorphism
A22: ESP6500, 1000 Genomes, dbSNP, ExAC, ClinVar, prediction, VAF, many samples | B22: UPN_Te2_012 | C22: 4 | D22: 106196829 | E22: T | F22: G | G22: TET2 | H22: ENST00000380013 | I22: missense_variant | J22: tTg/tGg|p.Leu1721Trp/c.5162T>G | K22: 2473 | L22: 2266 | M22: 4748 | N22: 0.4772535805 | O22: 1 | P22: 1 | Q22: 1 | R22: 1 | S22: 1 | T22: 1 | U22: 1 | V22: 1 | W22: 8 | X22: 13.4821 | Y22: NO | Z22: COSM5020013 | AA22: soft_tissue | AB22: 4 | AC22: rs34402524 | AD22: rs34402524 | AE22: NO | AF22: 0.118 | AG22: NO | AH22: YES | AI22: -0.294 | AJ22: Tolerated | AK22: 35.65 | AL22: 35.33 | AM22: 1121 | AN22: 1057 | AO22: 2186 | AP22: 0.4835315645 | AQ22: 1352 | AR22: 1209 | AS22: 2562 | AT22: 0.4718969555 | AU22: 0.3659084647 | AV22: 10 | AW22: 10 | AX22: Polymorphism
A23: ESP6500, 1000 Genomes, dbSNP, ExAC, ClinVar, prediction, VAF, many samples | B23: UPN_Te2_017 | C23: 4 | D23: 106196829 | E23: T | F23: G | G23: TET2 | H23: ENST00000380013 | I23: missense_variant | J23: tTg/tGg|p.Leu1721Trp/c.5162T>G | K23: 3239 | L23: 3142 | M23: 6391 | N23: 0.4916288531 | O23: 1 | P23: 1 | Q23: 1 | R23: 1 | S23: 1 | T23: 1 | U23: 1 | V23: 1 | W23: 8 | X23: 13.4821 | Y23: NO | Z23: COSM5020013 | AA23: soft_tissue | AB23: 4 | AC23: rs34402524 | AD23: rs34402524 | AE23: NO | AF23: 0.118 | AG23: NO | AH23: YES | AI23: -0.294 | AJ23: Tolerated | AK23: 35.86 | AL23: 35.26 | AM23: 1462 | AN23: 1397 | AO23: 2868 | AP23: 0.4870990237 | AQ23: 1777 | AR23: 1745 | AS23: 3523 | AT23: 0.4953164916 | AU23: 0.5970396631 | AV23: 10 | AW23: 10 | AX23: Polymorphism
A24: ESP6500, 1000 Genomes, dbSNP, ExAC, ClinVar, prediction, VAF, many samples | B24: UPN_Te2_023 | C24: 4 | D24: 106196829 | E24: T | F24: G | G24: TET2 | H24: ENST00000380013 | I24: missense_variant | J24: tTg/tGg|p.Leu1721Trp/c.5162T>G | K24: 13 | L24: 3820 | M24: 3842 | N24: 0.9942738157 | O24: 1 | P24: 1 | Q24: 1 | R24: 1 | S24: 1 | T24: 1 | U24: 1 | V24: 1 | W24: 8 | X24: 13.4821 | Y24: NO | Z24: COSM5020013 | AA24: soft_tissue | AB24: 4 | AC24: rs34402524 | AD24: rs34402524 | AE24: NO | AF24: 0.118 | AG24: NO | AH24: YES | AI24: -0.294 | AJ24: Tolerated | AK24: 27.69 | AL24: 35.09 | AM24: 6 | AN24: 1844 | AO24: 1859 | AP24: 0.9919311458 | AQ24: 7 | AR24: 1976 | AS24: 1983 | AT24: 0.996469995 | AU24: 1 | AV24: 10 | AW24: 10 | AX24: Polymorphism
A25: ESP6500, 1000 Genomes, dbSNP, ExAC, ClinVar, prediction, VAF, many samples | B25: UPN_Te2_024 | C25: 4 | D25: 106196829 | E25: T | F25: G | G25: TET2 | H25: ENST00000380013 | I25: missense_variant | J25: tTg/tGg|p.Leu1721Trp/c.5162T>G | K25: 1320 | L25: 1267 | M25: 2589 | N25: 0.4893781383 | O25: 1 | P25: 1 | Q25: 1 | R25: 1 | S25: 1 | T25: 1 | U25: 1 | V25: 1 | W25: 8 | X25: 13.4821 | Y25: NO | Z25: COSM5020013 | AA25: soft_tissue | AB25: 4 | AC25: rs34402524 | AD25: rs34402524 | AE25: NO | AF25: 0.118 | AG25: NO | AH25: YES | AI25: -0.294 | AJ25: Tolerated | AK25: 35.48 | AL25: 35.1 | AM25: 649 | AN25: 578 | AO25: 1228 | AP25: 0.4706840391 | AQ25: 671 | AR25: 689 | AS25: 1361 | AT25: 0.5062454078 | AU25: 0.0763469182 | AV25: 10 | AW25: 10 | AX25: Polymorphism
A26: ESP6500, 1000 Genomes, dbSNP, ExAC, ClinVar, prediction, VAF, many samples | B26: UPN_Te2_025 | C26: 4 | D26: 106196829 | E26: T | F26: G | G26: TET2 | H26: ENST00000380013 | I26: missense_variant | J26: tTg/tGg|p.Leu1721Trp/c.5162T>G | K26: 1265 | L26: 1398 | M26: 2671 | N26: 0.5233994759 | O26: 1 | P26: 1 | Q26: 1 | R26: 1 | S26: 1 | T26: 1 | U26: 1 | V26: 1 | W26: 8 | X26: 13.4821 | Y26: NO | Z26: COSM5020013 | AA26: soft_tissue | AB26: 4 | AC26: rs34402524 | AD26: rs34402524 | AE26: NO | AF26: 0.118 | AG26: NO | AH26: YES | AI26: -0.294 | AJ26: Tolerated | AK26: 35.4 | AL26: 35.38 | AM26: 672 | AN26: 679 | AO26: 1358 | AP26: 0.5 | AQ26: 593 | AR26: 719 | AS26: 1313 | AT26: 0.5476009139 | AU26: 0.0198916201 | AV26: 10 | AW26: 10 | AX26: Polymorphism
A27: ESP6500, 1000 Genomes, dbSNP, ExAC, ClinVar, prediction, VAF, many samples | B27: UPN_Te2_029 | C27: 4 | D27: 106196829 | E27: T | F27: G | G27: TET2 | H27: ENST00000380013 | I27: missense_variant | J27: tTg/tGg|p.Leu1721Trp/c.5162T>G | K27: 640 | L27: 475 | M27: 1116 | N27: 0.4256272401 | O27: 1 | P27: 1 | Q27: 1 | R27: 1 | S27: 1 | T27: 1 | U27: 1 | V27: 1 | W27: 8 | X27: 13.4821 | Y27: NO | Z27: COSM5020013 | AA27: soft_tissue | AB27: 4 | AC27: rs34402524 | AD27: rs34402524 | AE27: NO | AF27: 0.118 | AG27: NO | AH27: YES | AI27: -0.294 | AJ27: Tolerated | AK27: 35.82 | AL27: 35.12 | AM27: 295 | AN27: 229 | AO27: 525 | AP27: 0.4361904762 | AQ27: 345 | AR27: 246 | AS27: 591 | AT27: 0.4162436548 | AU27: 0.5047022273 | AV27: 10 | AW27: 10 | AX27: Polymorphism
A28: ESP6500, 1000 Genomes, dbSNP, ExAC, ClinVar, prediction, VAF, many samples | B28: UPN_Te2_030 | C28: 4 | D28: 106196829 | E28: T | F28: G | G28: TET2 | H28: ENST00000380013 | I28: missense_variant | J28: tTg/tGg|p.Leu1721Trp/c.5162T>G | K28: 768 | L28: 734 | M28: 1503 | N28: 0.4883566201 | O28: 1 | P28: 1 | Q28: 1 | R28: 1 | S28: 1 | T28: 1 | U28: 1 | V28: 1 | W28: 8 | X28: 13.4821 | Y28: NO | Z28: COSM5020013 | AA28: soft_tissue | AB28: 4 | AC28: rs34402524 | AD28: rs34402524 | AE28: NO | AF28: 0.118 | AG28: NO | AH28: YES | AI28: -0.294 | AJ28: Tolerated | AK28: 35.77 | AL28: 35.33 | AM28: 369 | AN28: 362 | AO28: 732 | AP28: 0.4945355191 | AQ28: 399 | AR28: 372 | AS28: 771 | AT28: 0.4824902724 | AU28: 0.6422284662 | AV28: 10 | AW28: 10 | AX28: Polymorphism
A29: ESP6500, 1000 Genomes, dbSNP, ExAC, ClinVar, prediction, VAF, many samples | B29: UPN_Te2_031 | C29: 4 | D29: 106196829 | E29: T | F29: G | G29: TET2 | H29: ENST00000380013 | I29: missense_variant | J29: tTg/tGg|p.Leu1721Trp/c.5162T>G | K29: 1030 | L29: 989 | M29: 2022 | N29: 0.4891196835 | O29: 1 | P29: 1 | Q29: 1 | R29: 1 | S29: 1 | T29: 1 | U29: 1 | V29: 1 | W29: 8 | X29: 13.4821 | Y29: NO | Z29: COSM5020013 | AA29: soft_tissue | AB29: 4 | AC29: rs34402524 | AD29: rs34402524 | AE29: NO | AF29: 0.118 | AG29: NO | AH29: YES | AI29: -0.294 | AJ29: Tolerated | AK29: 35.9 | AL29: 35.32 | AM29: 503 | AN29: 451 | AO29: 957 | AP29: 0.4712643678 | AQ29: 527 | AR29: 538 | AS29: 1065 | AT29: 0.5051643192 | AU29: 0.1536809302 | AV29: 10 | AW29: 10 | AX29: Polymorphism
A30: ESP6500, 1000 Genomes, dbSNP, ExAC, ClinVar, prediction, VAF, many samples | B30: UPN_Te2_042 | C30: 4 | D30: 106196829 | E30: T | F30: G | G30: TET2 | H30: ENST00000380013 | I30: missense_variant | J30: tTg/tGg|p.Leu1721Trp/c.5162T>G | K30: 2159 | L30: 2110 | M30: 4271 | N30: 0.4940295013 | O30: 1 | P30: 1 | Q30: 1 | R30: 1 | S30: 1 | T30: 1 | U30: 1 | V30: 1 | W30: 8 | X30: 13.4821 | Y30: NO | Z30: COSM5020013 | AA30: soft_tissue | AB30: 4 | AC30: rs34402524 | AD30: rs34402524 | AE30: NO | AF30: 0.118 | AG30: NO | AH30: YES | AI30: -0.294 | AJ30: Tolerated | AK30: 35.73 | AL30: 35.31 | AM30: 890 | AN30: 912 | AO30: 1803 | AP30: 0.5058236273 | AQ30: 1269 | AR30: 1198 | AS30: 2468 | AT30: 0.4854132901 | AU30: 0.1930663372 | AV30: 10 | AW30: 10 | AX30: Polymorphism
A31: ESP6500, 1000 Genomes, dbSNP, ExAC, ClinVar, prediction, VAF, many samples | B31: UPN_Te2_046 | C31: 4 | D31: 106196829 | E31: T | F31: G | G31: TET2 | H31: ENST00000380013 | I31: missense_variant | J31: tTg/tGg|p.Leu1721Trp/c.5162T>G | K31: 1056 | L31: 968 | M31: 2024 | N31: 0.4782608696 | O31: 1 | P31: 1 | Q31: 1 | R31: 1 | S31: 1 | T31: 1 | U31: 1 | V31: 1 | W31: 8 | X31: 13.4821 | Y31: NO | Z31: COSM5020013 | AA31: soft_tissue | AB31: 4 | AC31: rs34402524 | AD31: rs34402524 | AE31: NO | AF31: 0.118 | AG31: NO | AH31: YES | AI31: -0.294 | AJ31: Tolerated | AK31: 35.57 | AL31: 35.33 | AM31: 483 | AN31: 466 | AO31: 949 | AP31: 0.4910432034 | AQ31: 573 | AR31: 502 | AS31: 1075 | AT31: 0.4669767442 | AU31: 0.2848697667 | AV31: 10 | AW31: 10 | AX31: Polymorphism
A32: ESP6500, 1000 Genomes, dbSNP, ExAC, ClinVar, prediction, VAF, many samples | B32: UPN_Te2_001 | C32: 4 | D32: 106196951 | E32: A | F32: G | G32: TET2 | H32: ENST00000380013 | I32: missense_variant | J32: Ata/Gta|p.Ile1762Val/c.5284A>G | K32: 25 | L32: 3468 | M32: 3497 | N32: 0.9917071776 | O32: 1 | P32: 1 | Q32: 1 | R32: 1 | S32: 1 | T32: 1 | U32: 1 | V32: 1 | W32: 8 | X32: 37.335 | Y32: NO | Z32: COSM3760322 | AA32: haematopoietic_and_lymphoid_tissue, prostate, thyroid | AB32: 2, 5, 1 | AC32: rs2454206 | AD32: rs2454206 | AE32: NO | AF32: 0.272 | AG32: NO | AH32: YES | AI32: 0.041 | AJ32: Tolerated | AK32: 33.44 | AL32: 36.08 | AM32: 9 | AN32: 1540 | AO32: 1553 | AP32: 0.991629105 | AQ32: 16 | AR32: 1928 | AS32: 1944 | AT32: 0.9917695473 | AU32: 0.4273997793 | AV32: 31 | AW32: 31 | AX32: Polymorphism
A33: ESP6500, 1000 Genomes, dbSNP, ExAC, ClinVar, prediction, VAF, many samples | B33: UPN_Te2_002 | C33: 4 | D33: 106196951 | E33: A | F33: G | G33: TET2 | H33: ENST00000380013 | I33: missense_variant | J33: Ata/Gta|p.Ile1762Val/c.5284A>G | K33: 1262 | L33: 1233 | M33: 2497 | N33: 0.4937925511 | O33: 1 | P33: 1 | Q33: 1 | R33: 1 | S33: 1 | T33: 1 | U33: 1 | V33: 1 | W33: 8 | X33: 37.335 | Y33: NO | Z33: COSM3760322 | AA33: haematopoietic_and_lymphoid_tissue, prostate, thyroid | AB33: 2, 5, 1 | AC33: rs2454206 | AD33: rs2454206 | AE33: NO | AF33: 0.272 | AG33: NO | AH33: YES | AI33: 0.041 | AJ33: Tolerated | AK33: 36.89 | AL33: 37.05 | AM33: 503 | AN33: 481 | AO33: 986 | AP33: 0.4878296146 | AQ33: 759 | AR33: 752 | AS33: 1511 | AT33: 0.4976836532 | AU33: 0.6821062498 | AV33: 31 | AW33: 31 | AX33: Polymorphism
A34: ESP6500, 1000 Genomes, dbSNP, ExAC, ClinVar, prediction, VAF, many samples | B34: UPN_Te2_004 | C34: 4 | D34: 106196951 | E34: A | F34: G | G34: TET2 | H34: ENST00000380013 | I34: missense_variant | J34: Ata/Gta|p.Ile1762Val/c.5284A>G | K34: 885 | L34: 929 | M34: 1815 | N34: 0.51184573 | O34: 1 | P34: 1 | Q34: 1 | R34: 1 | S34: 1 | T34: 1 | U34: 1 | V34: 1 | W34: 8 | X34: 37.335 | Y34: NO | Z34: COSM3760322 | AA34: haematopoietic_and_lymphoid_tissue, prostate, thyroid | AB34: 2, 5, 1 | AC34: rs2454206 | AD34: rs2454206 | AE34: NO | AF34: 0.272 | AG34: NO | AH34: YES | AI34: 0.041 | AJ34: Tolerated | AK34: 36.58 | AL34: 36.3 | AM34: 425 | AN34: 469 | AO34: 895 | AP34: 0.5240223464 | AQ34: 460 | AR34: 460 | AS34: 920 | AT34: 0.5 | AU34: 0.3016231842 | AV34: 31 | AW34: 31 | AX34: Polymorphism
A35: ESP6500, 1000 Genomes, dbSNP, ExAC, ClinVar, prediction, VAF, many samples | B35: UPN_Te2_005 | C35: 4 | D35: 106196951 | E35: A | F35: G | G35: TET2 | H35: ENST00000380013 | I35: missense_variant | J35: Ata/Gta|p.Ile1762Val/c.5284A>G | K35: 29 | L35: 2547 | M35: 2578 | N35: 0.9879751746 | O35: 1 | P35: 1 | Q35: 1 | R35: 1 | S35: 1 | T35: 1 | U35: 1 | V35: 1 | W35: 8 | X35: 37.335 | Y35: NO | Z35: COSM3760322 | AA35: haematopoietic_and_lymphoid_tissue, prostate, thyroid | AB35: 2, 5, 1 | AC35: rs2454206 | AD35: rs2454206 | AE35: NO | AF35: 0.272 | AG35: NO | AH35: YES | AI35: 0.041 | AJ35: Tolerated | AK35: 32.34 | AL35: 36.87 | AM35: 22 | AN35: 737 | AO35: 760 | AP35: 0.9697368421 | AQ35: 7 | AR35: 1810 | AS35: 1818 | AT35: 0.99559956 | AU35: 2.772737776e-07 | AV35: 31 | AW35: 31 | AX35: Polymorphism
A36: ESP6500, 1000 Genomes, dbSNP, ExAC, ClinVar, prediction, VAF, many samples | B36: UPN_Te2_006 | C36: 4 | D36: 106196951 | E36: A | F36: G | G36: TET2 | H36: ENST00000380013 | I36: missense_variant | J36: Ata/Gta|p.Ile1762Val/c.5284A>G | K36: 1565 | L36: 1514 | M36: 3081 | N36: 0.4913988965 | O36: 1 | P36: 1 | Q36: 1 | R36: 1 | S36: 1 | T36: 1 | U36: 1 | V36: 1 | W36: 8 | X36: 37.335 | Y36: NO | Z36: COSM3760322 | AA36: haematopoietic_and_lymphoid_tissue, prostate, thyroid | AB36: 2, 5, 1 | AC36: rs2454206 | AD36: rs2454206 | AE36: NO | AF36: 0.272 | AG36: NO | AH36: YES | AI36: 0.041 | AJ36: Tolerated | AK36: 36.07 | AL36: 36.12 | AM36: 874 | AN36: 719 | AO36: 1595 | AP36: 0.4507836991 | AQ36: 691 | AR36: 795 | AS36: 1486 | AT36: 0.5349932705 | AU36: 3.854581129e-06 | AV36: 31 | AW36: 31 | AX36: Polymorphism
A37: ESP6500, 1000 Genomes, dbSNP, ExAC, ClinVar, prediction, VAF, many samples | B37: UPN_Te2_007 | C37: 4 | D37: 106196951 | E37: A | F37: G | G37: TET2 | H37: ENST00000380013 | I37: missense_variant | J37: Ata/Gta|p.Ile1762Val/c.5284A>G | K37: 945 | L37: 2283 | M37: 3230 | N37: 0.7068111455 | O37: 1 | P37: 1 | Q37: 1 | R37: 1 | S37: 1 | T37: 1 | U37: 1 | V37: 1 | W37: 8 | X37: 37.335 | Y37: NO | Z37: COSM3760322 | AA37: haematopoietic_and_lymphoid_tissue, prostate, thyroid | AB37: 2, 5, 1 | AC37: rs2454206 | AD37: rs2454206 | AE37: NO | AF37: 0.272 | AG37: NO | AH37: YES | AI37: 0.041 | AJ37: Tolerated | AK37: 37.23 | AL37: 37.37 | AM37: 243 | AN37: 532 | AO37: 777 | AP37: 0.6846846847 | AQ37: 702 | AR37: 1751 | AS37: 2453 | AT37: 0.7138198125 | AU37: 0.147500507 | AV37: 31 | AW37: 31 | AX37: Polymorphism
A38: ESP6500, 1000 Genomes, dbSNP, ExAC, ClinVar, prediction, VAF, many samples | B38: UPN_Te2_010 | C38: 4 | D38: 106196951 | E38: A | F38: G | G38: TET2 | H38: ENST00000380013 | I38: missense_variant | J38: Ata/Gta|p.Ile1762Val/c.5284A>G | K38: 1331 | L38: 1212 | M38: 2544 | N38: 0.4764150943 | O38: 1 | P38: 1 | Q38: 1 | R38: 1 | S38: 1 | T38: 1 | U38: 1 | V38: 1 | W38: 8 | X38: 37.335 | Y38: NO | Z38: COSM3760322 | AA38: haematopoietic_and_lymphoid_tissue, prostate, thyroid | AB38: 2, 5, 1 | AC38: rs2454206 | AD38: rs2454206 | AE38: NO | AF38: 0.272 | AG38: NO | AH38: YES | AI38: 0.041 | AJ38: Tolerated | AK38: 36.59 | AL38: 36.44 | AM38: 631 | AN38: 571 | AO38: 1203 | AP38: 0.4746467165 | AQ38: 700 | AR38: 641 | AS38: 1341 | AT38: 0.4780014914 | AU38: 0.905053453 | AV38: 31 | AW38: 31 | AX38: Polymorphism
A39: ESP6500, 1000 Genomes, dbSNP, ExAC, ClinVar, prediction, VAF, many samples | B39: UPN_Te2_011 | C39: 4 | D39: 106196951 | E39: A | F39: G | G39: TET2 | H39: ENST00000380013 | I39: missense_variant | J39: Ata/Gta|p.Ile1762Val/c.5284A>G | K39: 2620 | L39: 2510 | M39: 5135 | N39: 0.4888023369 | O39: 1 | P39: 1 | Q39: 1 | R39: 1 | S39: 1 | T39: 1 | U39: 1 | V39: 1 | W39: 8 | X39: 37.335 | Y39: NO | Z39: COSM3760322 | AA39: haematopoietic_and_lymphoid_tissue, prostate, thyroid | AB39: 2, 5, 1 | AC39: rs2454206 | AD39: rs2454206 | AE39: NO | AF39: 0.272 | AG39: NO | AH39: YES | AI39: 0.041 | AJ39: Tolerated | AK39: 36.76 | AL39: 36.65 | AM39: 1265 | AN39: 1154 | AO39: 2423 | AP39: 0.4762690879 | AQ39: 1355 | AR39: 1356 | AS39: 2712 | AT39: 0.5 | AU39: 0.0989213432 | AV39: 31 | AW39: 31 | AX39: Polymorphism
A40: ESP6500, 1000 Genomes, dbSNP, ExAC, ClinVar, prediction, VAF, many samples | B40: UPN_Te2_013 | C40: 4 | D40: 106196951 | E40: A | F40: G | G40: TET2 | H40: ENST00000380013 | I40: missense_variant | J40: Ata/Gta|p.Ile1762Val/c.5284A>G | K40: 15 | L40: 2974 | M40: 2991 | N40: 0.9943162822 | O40: 1 | P40: 1 | Q40: 1 | R40: 1 | S40: 1 | T40: 1 | U40: 1 | V40: 1 | W40: 8 | X40: 37.335 | Y40: NO | Z40: COSM3760322 | AA40: haematopoietic_and_lymphoid_tissue, prostate, thyroid | AB40: 2, 5, 1 | AC40: rs2454206 | AD40: rs2454206 | AE40: NO | AF40: 0.272 | AG40: NO | AH40: YES | AI40: 0.041 | AJ40: Tolerated | AK40: 27.47 | AL40: 36.48 | AM40: 10 | AN40: 1393 | AO40: 1405 | AP40: 0.9914590747 | AQ40: 5 | AR40: 1581 | AS40: 1586 | AT40: 0.9968474149 | AU40: 0.193215874 | AV40: 31 | AW40: 31 | AX40: Polymorphism
A41: ESP6500, 1000 Genomes, dbSNP, ExAC, ClinVar, prediction, VAF, many samples | B41: UPN_Te2_014 | C41: 4 | D41: 106196951 | E41: A | F41: G | G41: TET2 | H41: ENST00000380013 | I41: missense_variant | J41: Ata/Gta|p.Ile1762Val/c.5284A>G | K41: 6 | L41: 1483 | M41: 1489 | N41: 0.99597045 | O41: 1 | P41: 1 | Q41: 1 | R41: 1 | S41: 1 | T41: 1 | U41: 1 | V41: 1 | W41: 8 | X41: 37.335 | Y41: NO | Z41: COSM3760322 | AA41: haematopoietic_and_lymphoid_tissue, prostate, thyroid | AB41: 2, 5, 1 | AC41: rs2454206 | AD41: rs2454206 | AE41: NO | AF41: 0.272 | AG41: NO | AH41: YES | AI41: 0.041 | AJ41: Tolerated | AK41: 22.67 | AL41: 36.83 | AM41: 2 | AN41: 549 | AO41: 551 | AP41: 0.9963702359 | AQ41: 4 | AR41: 934 | AS41: 938 | AT41: 0.9957356077 | AU41: 1 | AV41: 31 | AW41: 31 | AX41: Polymorphism
A42: ESP6500, 1000 Genomes, dbSNP, ExAC, ClinVar, prediction, VAF, many samples | B42: UPN_Te2_015 | C42: 4 | D42: 106196951 | E42: A | F42: G | G42: TET2 | H42: ENST00000380013 | I42: missense_variant | J42: Ata/Gta|p.Ile1762Val/c.5284A>G | K42: 1371 | L42: 1478 | M42: 2852 | N42: 0.5182328191 | O42: 1 | P42: 1 | Q42: 1 | R42: 1 | S42: 1 | T42: 1 | U42: 1 | V42: 1 | W42: 8 | X42: 37.335 | Y42: NO | Z42: COSM3760322 | AA42: haematopoietic_and_lymphoid_tissue, prostate, thyroid | AB42: 2, 5, 1 | AC42: rs2454206 | AD42: rs2454206 | AE42: NO | AF42: 0.272 | AG42: NO | AH42: YES | AI42: 0.041 | AJ42: Tolerated | AK42: 36.87 | AL42: 36.74 | AM42: 600 | AN42: 631 | AO42: 1234 | AP42: 0.5113452188 | AQ42: 771 | AR42: 847 | AS42: 1618 | AT42: 0.5234857849 | AU42: 0.5704015113 | AV42: 31 | AW42: 31 | AX42: Polymorphism
A43: ESP6500, 1000 Genomes, dbSNP, ExAC, ClinVar, prediction, VAF, many samples | B43: UPN_Te2_016 | C43: 4 | D43: 106196951 | E43: A | F43: G | G43: TET2 | H43: ENST00000380013 | I43: missense_variant | J43: Ata/Gta|p.Ile1762Val/c.5284A>G | K43: 578 | L43: 3060 | M43: 3642 | N43: 0.8401976936 | O43: 1 | P43: 1 | Q43: 1 | R43: 1 | S43: 1 | T43: 1 | U43: 1 | V43: 1 | W43: 8 | X43: 37.335 | Y43: NO | Z43: COSM3760322 | AA43: haematopoietic_and_lymphoid_tissue, prostate, thyroid | AB43: 2, 5, 1 | AC43: rs2454206 | AD43: rs2454206 | AE43: NO | AF43: 0.272 | AG43: NO | AH43: YES | AI43: 0.041 | AJ43: Tolerated | AK43: 36.82 | AL43: 36.41 | AM43: 212 | AN43: 1376 | AO43: 1592 | AP43: 0.864321608 | AQ43: 366 | AR43: 1684 | AS43: 2050 | AT43: 0.8214634146 | AU43: 0.0002496316 | AV43: 31 | AW43: 31 | AX43: Polymorphism
A44: ESP6500, 1000 Genomes, dbSNP, ExAC, ClinVar, prediction, VAF, many samples | B44: UPN_Te2_018 | C44: 4 | D44: 106196951 | E44: A | F44: G | G44: TET2 | H44: ENST00000380013 | I44: missense_variant | J44: Ata/Gta|p.Ile1762Val/c.5284A>G | K44: 1191 | L44: 1332 | M44: 2525 | N44: 0.5275247525 | O44: 1 | P44: 1 | Q44: 1 | R44: 1 | S44: 1 | T44: 1 | U44: 1 | V44: 1 | W44: 8 | X44: 37.335 | Y44: NO | Z44: COSM3760322 | AA44: haematopoietic_and_lymphoid_tissue, prostate, thyroid | AB44: 2, 5, 1 | AC44: rs2454206 | AD44: rs2454206 | AE44: NO | AF44: 0.272 | AG44: NO | AH44: YES | AI44: 0.041 | AJ44: Tolerated | AK44: 36.93 | AL44: 36.77 | AM44: 498 | AN44: 521 | AO44: 1021 | AP44: 0.5102840353 | AQ44: 693 | AR44: 811 | AS44: 1504 | AT44: 0.5392287234 | AU44: 0.1798958331 | AV44: 31 | AW44: 31 | AX44: Polymorphism
A45: ESP6500, 1000 Genomes, dbSNP, ExAC, ClinVar, prediction, VAF, many samples | B45: UPN_Te2_019 | C45: 4 | D45: 106196951 | E45: A | F45: G | G45: TET2 | H45: ENST00000380013 | I45: missense_variant | J45: Ata/Gta|p.Ile1762Val/c.5284A>G | K45: 23 | L45: 2877 | M45: 2902 | N45: 0.9913852516 | O45: 1 | P45: 1 | Q45: 1 | R45: 1 | S45: 1 | T45: 1 | U45: 1 | V45: 1 | W45: 8 | X45: 37.335 | Y45: NO | Z45: COSM3760322 | AA45: haematopoietic_and_lymphoid_tissue, prostate, thyroid | AB45: 2, 5, 1 | AC45: rs2454206 | AD45: rs2454206 | AE45: NO | AF45: 0.272 | AG45: NO | AH45: YES | AI45: 0.041 | AJ45: Tolerated | AK45: 32.43 | AL45: 36.61 | AM45: 16 | AN45: 1177 | AO45: 1195 | AP45: 0.9849372385 | AQ45: 7 | AR45: 1700 | AS45: 1707 | AT45: 0.9958992384 | AU45: 0.0090488784 | AV45: 31 | AW45: 31 | AX45: Polymorphism
A46: ESP6500, 1000 Genomes, dbSNP, ExAC, ClinVar, prediction, VAF, many samples | B46: UPN_Te2_020 | C46: 4 | D46: 106196951 | E46: A | F46: G | G46: TET2 | H46: ENST00000380013 | I46: missense_variant | J46: Ata/Gta|p.Ile1762Val/c.5284A>G | K46: 1122 | L46: 1076 | M46: 2201 | N46: 0.488868696 | O46: 1 | P46: 1 | Q46: 1 | R46: 1 | S46: 1 | T46: 1 | U46: 1 | V46: 1 | W46: 8 | X46: 37.335 | Y46: NO | Z46: COSM3760322 | AA46: haematopoietic_and_lymphoid_tissue, prostate, thyroid | AB46: 2, 5, 1 | AC46: rs2454206 | AD46: rs2454206 | AE46: NO | AF46: 0.272 | AG46: NO | AH46: YES | AI46: 0.041 | AJ46: Tolerated | AK46: 36.66 | AL46: 36.09 | AM46: 505 | AN46: 485 | AO46: 993 | AP46: 0.4884189325 | AQ46: 617 | AR46: 591 | AS46: 1208 | AT46: 0.4892384106 | AU46: 1 | AV46: 31 | AW46: 31 | AX46: Polymorphism
A47: ESP6500, 1000 Genomes, dbSNP, ExAC, ClinVar, prediction, VAF, many samples | B47: UPN_Te2_022 | C47: 4 | D47: 106196951 | E47: A | F47: G | G47: TET2 | H47: ENST00000380013 | I47: missense_variant | J47: Ata/Gta|p.Ile1762Val/c.5284A>G | K47: 32 | L47: 2524 | M47: 2557 | N47: 0.9870942511 | O47: 1 | P47: 1 | Q47: 1 | R47: 1 | S47: 1 | T47: 1 | U47: 1 | V47: 1 | W47: 8 | X47: 37.335 | Y47: NO | Z47: COSM3760322 | AA47: haematopoietic_and_lymphoid_tissue, prostate, thyroid | AB47: 2, 5, 1 | AC47: rs2454206 | AD47: rs2454206 | AE47: NO | AF47: 0.272 | AG47: NO | AH47: YES | AI47: 0.041 | AJ47: Tolerated | AK47: 34.31 | AL47: 36.59 | AM47: 19 | AN47: 1022 | AO47: 1042 | AP47: 0.980806142 | AQ47: 13 | AR47: 1502 | AS47: 1515 | AT47: 0.9914191419 | AU47: 0.0446748189 | AV47: 31 | AW47: 31 | AX47: Polymorphism
A48: ESP6500, 1000 Genomes, dbSNP, ExAC, ClinVar, prediction, VAF, many samples | B48: UPN_Te2_024 | C48: 4 | D48: 106196951 | E48: A | F48: G | G48: TET2 | H48: ENST00000380013 | I48: missense_variant | J48: Ata/Gta|p.Ile1762Val/c.5284A>G | K48: 498 | L48: 540 | M48: 1038 | N48: 0.5202312139 | O48: 1 | P48: 1 | Q48: 1 | R48: 1 | S48: 1 | T48: 1 | U48: 1 | V48: 1 | W48: 8 | X48: 37.335 | Y48: NO | Z48: COSM3760322 | AA48: haematopoietic_and_lymphoid_tissue, prostate, thyroid | AB48: 2, 5, 1 | AC48: rs2454206 | AD48: rs2454206 | AE48: NO | AF48: 0.272 | AG48: NO | AH48: YES | AI48: 0.041 | AJ48: Tolerated | AK48: 37.62 | AL48: 37.06 | AM48: 158 | AN48: 158 | AO48: 316 | AP48: 0.5 | AQ48: 340 | AR48: 382 | AS48: 722 | AT48: 0.5290858726 | AU48: 0.4179643842 | AV48: 31 | AW48: 31 | AX48: Polymorphism
A49: ESP6500, 1000 Genomes, dbSNP, ExAC, ClinVar, prediction, VAF, many samples | B49: UPN_Te2_030 | C49: 4 | D49: 106196951 | E49: A | F49: G | G49: TET2 | H49: ENST00000380013 | I49: missense_variant | J49: Ata/Gta|p.Ile1762Val/c.5284A>G | K49: 361 | L49: 347 | M49: 708 | N49: 0.4901129944 | O49: 1 | P49: 1 | Q49: 1 | R49: 1 | S49: 1 | T49: 1 | U49: 1 | V49: 1 | W49: 8 | X49: 37.335 | Y49: NO | Z49: COSM3760322 | AA49: haematopoietic_and_lymphoid_tissue, prostate, thyroid | AB49: 2, 5, 1 | AC49: rs2454206 | AD49: rs2454206 | AE49: NO | AF49: 0.272 | AG49: NO | AH49: YES | AI49: 0.041 | AJ49: Tolerated | AK49: 37.59 | AL49: 36.48 | AM49: 133 | AN49: 146 | AO49: 279 | AP49: 0.523297491 | AQ49: 228 | AR49: 201 | AS49: 429 | AT49: 0.4685314685 | AU49: 0.1663930915 | AV49: 31 | AW49: 31 | AX49: Polymorphism
A50: ESP6500, 1000 Genomes, dbSNP, ExAC, ClinVar, prediction, VAF, many samples | B50: UPN_Te2_031 | C50: 4 | D50: 106196951 | E50: A | F50: G | G50: TET2 | H50: ENST00000380013 | I50: missense_variant | J50: Ata/Gta|p.Ile1762Val/c.5284A>G | K50: 634 | L50: 677 | M50: 1312 | N50: 0.5160060976 | O50: 1 | P50: 1 | Q50: 1 | R50: 1 | S50: 1 | T50: 1 | U50: 1 | V50: 1 | W50: 8 | X50: 37.335 | Y50: NO | Z50: COSM3760322 | AA50: haematopoietic_and_lymphoid_tissue, prostate, thyroid | AB50: 2, 5, 1 | AC50: rs2454206 | AD50: rs2454206 | AE50: NO | AF50: 0.272 | AG50: NO | AH50: YES | AI50: 0.041 | AJ50: Tolerated | AK50: 36.52 | AL50: 37 | AM50: 295 | AN50: 283 | AO50: 579 | AP50: 0.4887737478 | AQ50: 339 | AR50: 394 | AS50: 733 | AT50: 0.5375170532 | AU50: 0.0949383475 | AV50: 31 | AW50: 31 | AX50: Polymorphism
A51: ESP6500, 1000 Genomes, dbSNP, ExAC, ClinVar, prediction, VAF, many samples | B51: UPN_Te2_032 | C51: 4 | D51: 106196951 | E51: A | F51: G | G51: TET2 | H51: ENST00000380013 | I51: missense_variant | J51: Ata/Gta|p.Ile1762Val/c.5284A>G | K51: 587 | L51: 638 | M51: 1226 | N51: 0.5203915171 | O51: 1 | P51: 1 | Q51: 1 | R51: 1 | S51: 1 | T51: 1 | U51: 1 | V51: 1 | W51: 8 | X51: 37.335 | Y51: NO | Z51: COSM3760322 | AA51: haematopoietic_and_lymphoid_tissue, prostate, thyroid | AB51: 2, 5, 1 | AC51: rs2454206 | AD51: rs2454206 | AE51: NO | AF51: 0.272 | AG51: NO | AH51: YES | AI51: 0.041 | AJ51: Tolerated | AK51: 36.65 | AL51: 36.46 | AM51: 266 | AN51: 280 | AO51: 547 | AP51: 0.5118829982 | AQ51: 321 | AR51: 358 | AS51: 679 | AT51: 0.5272459499 | AU51: 0.645386388 | AV51: 31 | AW51: 31 | AX51: Polymorphism
A52: ESP6500, 1000 Genomes, dbSNP, ExAC, ClinVar, prediction, VAF, many samples | B52: UPN_Te2_033 | C52: 4 | D52: 106196951 | E52: A | F52: G | G52: TET2 | H52: ENST00000380013 | I52: missense_variant | J52: Ata/Gta|p.Ile1762Val/c.5284A>G | K52: 260 | L52: 302 | M52: 562 | N52: 0.537366548 | O52: 1 | P52: 1 | Q52: 1 | R52: 1 | S52: 1 | T52: 1 | U52: 1 | V52: 1 | W52: 8 | X52: 37.335 | Y52: NO | Z52: COSM3760322 | AA52: haematopoietic_and_lymphoid_tissue, prostate, thyroid | AB52: 2, 5, 1 | AC52: rs2454206 | AD52: rs2454206 | AE52: NO | AF52: 0.272 | AG52: NO | AH52: YES | AI52: 0.041 | AJ52: Tolerated | AK52: 37.46 | AL52: 37.02 | AM52: 69 | AN52: 80 | AO52: 149 | AP52: 0.5369127517 | AQ52: 191 | AR52: 222 | AS52: 413 | AT52: 0.5375302663 | AU52: 1 | AV52: 31 | AW52: 31 | AX52: Polymorphism
A53: ESP6500, 1000 Genomes, dbSNP, ExAC, ClinVar, prediction, VAF, many samples | B53: UPN_Te2_037 | C53: 4 | D53: 106196951 | E53: A | F53: G | G53: TET2 | H53: ENST00000380013 | I53: missense_variant | J53: Ata/Gta|p.Ile1762Val/c.5284A>G | K53: 364 | L53: 213 | M53: 578 | N53: 0.3685121107 | O53: 1 | P53: 1 | Q53: 1 | R53: 1 | S53: 1 | T53: 1 | U53: 1 | V53: 1 | W53: 8 | X53: 37.335 | Y53: NO | Z53: COSM3760322 | AA53: haematopoietic_and_lymphoid_tissue, prostate, thyroid | AB53: 2, 5, 1 | AC53: rs2454206 | AD53: rs2454206 | AE53: NO | AF53: 0.272 | AG53: NO | AH53: YES | AI53: 0.041 | AJ53: Tolerated | AK53: 36.9 | AL53: 37.24 | AM53: 122 | AN53: 57 | AO53: 180 | AP53: 0.3166666667 | AQ53: 242 | AR53: 156 | AS53: 398 | AT53: 0.391959799 | AU53: 0.0941165083 | AV53: 31 | AW53: 31 | AX53: Polymorphism
A54: ESP6500, 1000 Genomes, dbSNP, ExAC, ClinVar, prediction, VAF, many samples | B54: UPN_Te2_040 | C54: 4 | D54: 106196951 | E54: A | F54: G | G54: TET2 | H54: ENST00000380013 | I54: missense_variant | J54: Ata/Gta|p.Ile1762Val/c.5284A>G | K54: 1546 | L54: 1475 | M54: 3025 | N54: 0.4876033058 | O54: 1 | P54: 1 | Q54: 1 | R54: 1 | S54: 1 | T54: 1 | U54: 1 | V54: 1 | W54: 8 | X54: 37.335 | Y54: NO | Z54: COSM3760322 | AA54: haematopoietic_and_lymphoid_tissue, prostate, thyroid | AB54: 2, 5, 1 | AC54: rs2454206 | AD54: rs2454206 | AE54: NO | AF54: 0.272 | AG54: NO | AH54: YES | AI54: 0.041 | AJ54: Tolerated | AK54: 36.81 | AL54: 36.09 | AM54: 760 | AN54: 697 | AO54: 1461 | AP54: 0.4770704997 | AQ54: 786 | AR54: 778 | AS54: 1564 | AT54: 0.4974424552 | AU54: 0.3078526946 | AV54: 31 | AW54: 31 | AX54: Polymorphism
A55: ESP6500, 1000 Genomes, dbSNP, ExAC, ClinVar, prediction, VAF, many samples | B55: UPN_Te2_043 | C55: 4 | D55: 106196951 | E55: A | F55: G | G55: TET2 | H55: ENST00000380013 | I55: missense_variant | J55: Ata/Gta|p.Ile1762Val/c.5284A>G | K55: 3063 | L55: 2940 | M55: 6005 | N55: 0.4895920067 | O55: 1 | P55: 1 | Q55: 1 | R55: 1 | S55: 1 | T55: 1 | U55: 1 | V55: 1 | W55: 8 | X55: 37.335 | Y55: NO | Z55: COSM3760322 | AA55: haematopoietic_and_lymphoid_tissue, prostate, thyroid | AB55: 2, 5, 1 | AC55: rs2454206 | AD55: rs2454206 | AE55: NO | AF55: 0.272 | AG55: NO | AH55: YES | AI55: 0.041 | AJ55: Tolerated | AK55: 36.68 | AL55: 36.63 | AM55: 1403 | AN55: 1296 | AO55: 2701 | AP55: 0.479822288 | AQ55: 1660 | AR55: 1644 | AS55: 3304 | AT55: 0.4975786925 | AU55: 0.1856778228 | AV55: 31 | AW55: 31 | AX55: Polymorphism
A56: ESP6500, 1000 Genomes, dbSNP, ExAC, ClinVar, prediction, VAF, many samples | B56: UPN_Te2_044 | C56: 4 | D56: 106196951 | E56: A | F56: G | G56: TET2 | H56: ENST00000380013 | I56: missense_variant | J56: Ata/Gta|p.Ile1762Val/c.5284A>G | K56: 1390 | L56: 1342 | M56: 2734 | N56: 0.4908558888 | O56: 1 | P56: 1 | Q56: 1 | R56: 1 | S56: 1 | T56: 1 | U56: 1 | V56: 1 | W56: 8 | X56: 37.335 | Y56: NO | Z56: COSM3760322 | AA56: haematopoietic_and_lymphoid_tissue, prostate, thyroid | AB56: 2, 5, 1 | AC56: rs2454206 | AD56: rs2454206 | AE56: NO | AF56: 0.272 | AG56: NO | AH56: YES | AI56: 0.041 | AJ56: Tolerated | AK56: 37.11 | AL56: 36.48 | AM56: 619 | AN56: 604 | AO56: 1225 | AP56: 0.4930612245 | AQ56: 771 | AR56: 738 | AS56: 1509 | AT56: 0.4890656064 | AU56: 0.8174420983 | AV56: 31 | AW56: 31 | AX56: Polymorphism
A57: ESP6500, 1000 Genomes, dbSNP, ExAC, ClinVar, prediction, VAF, many samples | B57: UPN_Te2_045 | C57: 4 | D57: 106196951 | E57: A | F57: G | G57: TET2 | H57: ENST00000380013 | I57: missense_variant | J57: Ata/Gta|p.Ile1762Val/c.5284A>G | K57: 1566 | L57: 1467 | M57: 3034 | N57: 0.4835201055 | O57: 1 | P57: 1 | Q57: 1 | R57: 1 | S57: 1 | T57: 1 | U57: 1 | V57: 1 | W57: 8 | X57: 37.335 | Y57: NO | Z57: COSM3760322 | AA57: haematopoietic_and_lymphoid_tissue, prostate, thyroid | AB57: 2, 5, 1 | AC57: rs2454206 | AD57: rs2454206 | AE57: NO | AF57: 0.272 | AG57: NO | AH57: YES | AI57: 0.041 | AJ57: Tolerated | AK57: 36.29 | AL57: 36.4 | AM57: 754 | AN57: 668 | AO57: 1423 | AP57: 0.46943078 | AQ57: 812 | AR57: 799 | AS57: 1611 | AT57: 0.495965239 | AU57: 0.1556944221 | AV57: 31 | AW57: 31 | AX57: Polymorphism
A58: ESP6500, 1000 Genomes, dbSNP, ExAC, ClinVar, prediction, VAF, many samples | B58: UPN_Te2_046 | C58: 4 | D58: 106196951 | E58: A | F58: G | G58: TET2 | H58: ENST00000380013 | I58: missense_variant | J58: Ata/Gta|p.Ile1762Val/c.5284A>G | K58: 661 | L58: 613 | M58: 1275 | N58: 0.4807843137 | O58: 1 | P58: 1 | Q58: 1 | R58: 1 | S58: 1 | T58: 1 | U58: 1 | V58: 1 | W58: 8 | X58: 37.335 | Y58: NO | Z58: COSM3760322 | AA58: haematopoietic_and_lymphoid_tissue, prostate, thyroid | AB58: 2, 5, 1 | AC58: rs2454206 | AD58: rs2454206 | AE58: NO | AF58: 0.272 | AG58: NO | AH58: YES | AI58: 0.041 | AJ58: Tolerated | AK58: 36.79 | AL58: 35.94 | AM58: 304 | AN58: 281 | AO58: 586 | AP58: 0.4795221843 | AQ58: 357 | AR58: 332 | AS58: 689 | AT58: 0.4818577649 | AU58: 1 | AV58: 31 | AW58: 31 | AX58: Polymorphism
A59: ESP6500, 1000 Genomes, dbSNP, ExAC, ClinVar, prediction, VAF | B59: UPN_Te2_002 | C59: 4 | D59: 106197000 | E59: A | F59: G | G59: TET2 | H59: ENST00000380013 | I59: missense_variant | J59: cAt/cGt|p.His1778Arg/c.5333A>G | K59: 494 | L59: 492 | M59: 986 | N59: 0.4989858012 | O59: 1 | P59: 1 | Q59: 1 | R59: 1 | S59: 1 | T59: 1 | U59: 0 | V59: 1 | W59: 7 | X59: 3.017 | Y59: NO | Z59: NO | AA59: NO | AB59: O | AC59: rs62621450 | AD59: rs62621450 | AE59: NO | AF59: 0.045 | AG59: NO | AH59: YES | AI59: -1.986 | AJ59: Tolerated | AK59: 30.41 | AL59: 31.28 | AM59: 49 | AN59: 32 | AO59: 81 | AP59: 0.3950617284 | AQ59: 445 | AR59: 460 | AS59: 905 | AT59: 0.5082872928 | AU59: 0.0629905633 | AV59: 3 | AW59: 3 | AX59: Polymorphism
A60: ESP6500, 1000 Genomes, dbSNP, ExAC, ClinVar, prediction, VAF | B60: UPN_Te2_039 | C60: 4 | D60: 106197000 | E60: A | F60: G | G60: TET2 | H60: ENST00000380013 | I60: missense_variant | J60: cAt/cGt|p.His1778Arg/c.5333A>G | K60: 284 | L60: 246 | M60: 531 | N60: 0.4632768362 | O60: 1 | P60: 1 | Q60: 1 | R60: 1 | S60: 1 | T60: 1 | U60: 1 | V60: 1 | W60: 8 | X60: 3.017 | Y60: NO | Z60: NO | AA60: NO | AB60: O | AC60: rs62621450 | AD60: rs62621450 | AE60: NO | AF60: 0.045 | AG60: NO | AH60: YES | AI60: -1.986 | AJ60: Tolerated | AK60: 30.83 | AL60: 30.3 | AM60: 38 | AN60: 36 | AO60: 75 | AP60: 0.48 | AQ60: 246 | AR60: 210 | AS60: 456 | AT60: 0.4605263158 | AU60: 0.7073288417 | AV60: 3 | AW60: 3 | AX60: Polymorphism
A61: ESP6500, 1000 Genomes, dbSNP, ExAC, ClinVar, prediction, VAF | B61: UPN_Te2_044 | C61: 4 | D61: 106197000 | E61: A | F61: G | G61: TET2 | H61: ENST00000380013 | I61: missense_variant | J61: cAt/cGt|p.His1778Arg/c.5333A>G | K61: 622 | L61: 606 | M61: 1228 | N61: 0.493485342 | O61: 1 | P61: 1 | Q61: 1 | R61: 1 | S61: 1 | T61: 1 | U61: 1 | V61: 1 | W61: 8 | X61: 3.017 | Y61: NO | Z61: NO | AA61: NO | AB61: O | AC61: rs62621450 | AD61: rs62621450 | AE61: NO | AF61: 0.045 | AG61: NO | AH61: YES | AI61: -1.986 | AJ61: Tolerated | AK61: 30.88 | AL61: 29.87 | AM61: 51 | AN61: 58 | AO61: 109 | AP61: 0.5321100917 | AQ61: 571 | AR61: 548 | AS61: 1119 | AT61: 0.4897229669 | AU61: 0.4229698364 | AV61: 3 | AW61: 3 | AX61: Polymorphism
A62: dbSNP, ClinVar, prediction, VAF, many samples | B62: UPN_Te2_006 | C62: 7 | D62: 148525904 | E62: C | F62: G | G62: EZH2 | H62: ENST00000320356 | I62: missense_variant | J62: Gac/Cac|p.Asp185His/c.553G>C | K62: 2 | L62: 429 | M62: 431 | N62: 0.9953596288 | O62: 1 | P62: 1 | Q62: 1 | R62: 1 | S62: 1 | T62: 1 | U62: 1 | V62: 1 | W62: 8 | X62: NO | Y62: NO | Z62: COSM3762469 | AA62: soft_tissue, thyroid | AB62: 3, 1 | AC62: rs2302427 | AD62: rs2302427 | AE62: NO | AF62: NO | AG62: NO | AH62: YES | AI62: -1.884 | AJ62: Tolerated | AK62: 6 | AL62: 35.52 | AM62: 1 | AN62: 104 | AO62: 105 | AP62: 0.9904761905 | AQ62: 1 | AR62: 325 | AS62: 326 | AT62: 0.9969325153 | AU62: 0.4283170561 | AV62: 9 | AW62: 9 | AX62: Polymorphism
A63: dbSNP, ClinVar, prediction, VAF, many samples | B63: UPN_Te2_007 | C63: 7 | D63: 148525904 | E63: C | F63: G | G63: EZH2 | H63: ENST00000320356 | I63: missense_variant | J63: Gac/Cac|p.Asp185His/c.553G>C | K63: 84 | L63: 80 | M63: 164 | N63: 0.487804878 | O63: 1 | P63: 1 | Q63: 1 | R63: 1 | S63: 1 | T63: 1 | U63: 1 | V63: 1 | W63: 8 | X63: NO | Y63: NO | Z63: COSM3762469 | AA63: soft_tissue, thyroid | AB63: 3, 1 | AC63: rs2302427 | AD63: rs2302427 | AE63: NO | AF63: NO | AG63: NO | AH63: YES | AI63: -1.884 | AJ63: Tolerated | AK63: 34.86 | AL63: 35.79 | AM63: 20 | AN63: 13 | AO63: 33 | AP63: 0.3939393939 | AQ63: 64 | AR63: 67 | AS63: 131 | AT63: 0.5114503817 | AU63: 0.2480536811 | AV63: 9 | AW63: 9 | AX63: Polymorphism
A64: dbSNP, ClinVar, prediction, VAF, many samples | B64: UPN_Te2_016 | C64: 7 | D64: 148525904 | E64: C | F64: G | G64: EZH2 | H64: ENST00000320356 | I64: missense_variant | J64: Gac/Cac|p.Asp185His/c.553G>C | K64: 157 | L64: 154 | M64: 311 | N64: 0.4951768489 | O64: 1 | P64: 1 | Q64: 1 | R64: 1 | S64: 1 | T64: 1 | U64: 1 | V64: 1 | W64: 8 | X64: NO | Y64: NO | Z64: COSM3762469 | AA64: soft_tissue, thyroid | AB64: 3, 1 | AC64: rs2302427 | AD64: rs2302427 | AE64: NO | AF64: NO | AG64: NO | AH64: YES | AI64: -1.884 | AJ64: Tolerated | AK64: 34.65 | AL64: 35.97 | AM64: 30 | AN64: 29 | AO64: 59 | AP64: 0.4915254237 | AQ64: 127 | AR64: 125 | AS64: 252 | AT64: 0.496031746 | AU64: 1 | AV64: 9 | AW64: 9 | AX64: Polymorphism
A65: dbSNP, ClinVar, prediction, VAF, many samples | B65: UPN_Te2_023 | C65: 7 | D65: 148525904 | E65: C | F65: G | G65: EZH2 | H65: ENST00000320356 | I65: missense_variant | J65: Gac/Cac|p.Asp185His/c.553G>C | K65: 86 | L65: 108 | M65: 196 | N65: 0.5510204082 | O65: 1 | P65: 1 | Q65: 1 | R65: 1 | S65: 1 | T65: 1 | U65: 1 | V65: 1 | W65: 8 | X65: NO | Y65: NO | Z65: COSM3762469 | AA65: soft_tissue, thyroid | AB65: 3, 1 | AC65: rs2302427 | AD65: rs2302427 | AE65: NO | AF65: NO | AG65: NO | AH65: YES | AI65: -1.884 | AJ65: Tolerated | AK65: 35.85 | AL65: 35.49 | AM65: 12 | AN65: 22 | AO65: 34 | AP65: 0.6470588235 | AQ65: 74 | AR65: 86 | AS65: 162 | AT65: 0.5308641975 | AU65: 0.2607668693 | AV65: 9 | AW65: 9 | AX65: Polymorphism
A66: dbSNP, ClinVar, prediction, VAF, many samples | B66: UPN_Te2_029 | C66: 7 | D66: 148525904 | E66: C | F66: G | G66: EZH2 | H66: ENST00000320356 | I66: missense_variant | J66: Gac/Cac|p.Asp185His/c.553G>C | K66: 32 | L66: 35 | M66: 67 | N66: 0.5223880597 | O66: 1 | P66: 1 | Q66: 1 | R66: 1 | S66: 1 | T66: 1 | U66: 1 | V66: 1 | W66: 8 | X66: NO | Y66: NO | Z66: COSM3762469 | AA66: soft_tissue, thyroid | AB66: 3, 1 | AC66: rs2302427 | AD66: rs2302427 | AE66: NO | AF66: NO | AG66: NO | AH66: YES | AI66: -1.884 | AJ66: Tolerated | AK66: 33.16 | AL66: 38.26 | AM66: 9 | AN66: 8 | AO66: 17 | AP66: 0.4705882353 | AQ66: 23 | AR66: 27 | AS66: 50 | AT66: 0.54 | AU66: 0.7797121534 | AV66: 9 | AW66: 9 | AX66: Polymorphism
A67: dbSNP, ClinVar, prediction, VAF, many samples | B67: UPN_Te2_030 | C67: 7 | D67: 148525904 | E67: C | F67: G | G67: EZH2 | H67: ENST00000320356 | I67: missense_variant | J67: Gac/Cac|p.Asp185His/c.553G>C | K67: 3 | L67: 59 | M67: 62 | N67: 0.9516129032 | O67: 1 | P67: 1 | Q67: 1 | R67: 1 | S67: 1 | T67: 1 | U67: 1 | V67: 1 | W67: 8 | X67: NO | Y67: NO | Z67: COSM3762469 | AA67: soft_tissue, thyroid | AB67: 3, 1 | AC67: rs2302427 | AD67: rs2302427 | AE67: NO | AF67: NO | AG67: NO | AH67: YES | AI67: -1.884 | AJ67: Tolerated | AK67: 40 | AL67: 36.32 | AM67: 1 | AN67: 21 | AO67: 22 | AP67: 0.9545454545 | AQ67: 2 | AR67: 38 | AS67: 40 | AT67: 0.95 | AU67: 1 | AV67: 9 | AW67: 9 | AX67: Polymorphism
A68: dbSNP, ClinVar, prediction, VAF, many samples | B68: UPN_Te2_036 | C68: 7 | D68: 148525904 | E68: C | F68: G | G68: EZH2 | H68: ENST00000320356 | I68: missense_variant | J68: Gac/Cac|p.Asp185His/c.553G>C | K68: 65 | L68: 53 | M68: 118 | N68: 0.4491525424 | O68: 1 | P68: 1 | Q68: 1 | R68: 1 | S68: 1 | T68: 1 | U68: 1 | V68: 1 | W68: 8 | X68: NO | Y68: NO | Z68: COSM3762469 | AA68: soft_tissue, thyroid | AB68: 3, 1 | AC68: rs2302427 | AD68: rs2302427 | AE68: NO | AF68: NO | AG68: NO | AH68: YES | AI68: -1.884 | AJ68: Tolerated | AK68: 33.72 | AL68: 36.17 | AM68: 14 | AN68: 19 | AO68: 33 | AP68: 0.5757575758 | AQ68: 51 | AR68: 34 | AS68: 85 | AT68: 0.4 | AU68: 0.1011994804 | AV68: 9 | AW68: 9 | AX68: Polymorphism
A69: dbSNP, ClinVar, prediction, VAF, many samples | B69: UPN_Te2_040 | C69: 7 | D69: 148525904 | E69: C | F69: G | G69: EZH2 | H69: ENST00000320356 | I69: missense_variant | J69: Gac/Cac|p.Asp185His/c.553G>C | K69: 153 | L69: 143 | M69: 296 | N69: 0.4831081081 | O69: 1 | P69: 1 | Q69: 1 | R69: 1 | S69: 1 | T69: 1 | U69: 1 | V69: 1 | W69: 8 | X69: NO | Y69: NO | Z69: COSM3762469 | AA69: soft_tissue, thyroid | AB69: 3, 1 | AC69: rs2302427 | AD69: rs2302427 | AE69: NO | AF69: NO | AG69: NO | AH69: YES | AI69: -1.884 | AJ69: Tolerated | AK69: 35.07 | AL69: 34.39 | AM69: 29 | AN69: 29 | AO69: 58 | AP69: 0.5 | AQ69: 124 | AR69: 114 | AS69: 238 | AT69: 0.4789915966 | AU69: 0.8836229659 | AV69: 9 | AW69: 9 | AX69: Polymorphism
A70: ESP6500, 1000 Genomes, dbSNP, ExAC, ClinVar, prediction, VAF, many samples | B70: UPN_Te2_001 | C70: 17 | D70: 7579472 | E70: G | F70: C | G70: TP53 | H70: ENST00000269305 | I70: missense_variant | J70: cCc/cGc|p.Pro72Arg/c.215C>G | K70: 171 | L70: 228 | M70: 399 | N70: 0.5714285714 | O70: 1 | P70: 1 | Q70: 1 | R70: 1 | S70: 1 | T70: 1 | U70: 1 | V70: 1 | W70: 8 | X70: 25.4767 | Y70: 0.7147 | Z70: COSM3766190, COSM3766191, COSM250061, COSM3766193, COSM3766192 | AA70: large_intestine, liver, pancreas, pleura, prostate, soft_tissue, stomach, upper_aerodigestive_tract, urinary_tract, central_nervous_system | AB70: 10, 5, 15, 5, 5, 100, 5, 7, 5, 1 | AC70: rs1042522 | AD70: rs1042522 | AE70: NO | AF70: 0.659 | AG70: NO | AH70: YES | AI70: 0.155 | AJ70: Tolerated | AK70: 34.89 | AL70: 35.89 | AM70: 151 | AN70: 216 | AO70: 367 | AP70: 0.5885558583 | AQ70: 20 | AR70: 12 | AS70: 32 | AT70: 0.375 | AU70: 0.0247248536 | AV70: 42 | AW70: 42 | AX70: Polymorphism
A71: ESP6500, 1000 Genomes, dbSNP, ExAC, ClinVar, prediction, VAF, many samples | B71: UPN_Te2_002 | C71: 17 | D71: 7579472 | E71: G | F71: C | G71: TP53 | H71: ENST00000269305 | I71: missense_variant | J71: cCc/cGc|p.Pro72Arg/c.215C>G | K71: 2 | L71: 266 | M71: 269 | N71: 0.9888475836 | O71: 1 | P71: 1 | Q71: 1 | R71: 1 | S71: 1 | T71: 1 | U71: 1 | V71: 1 | W71: 8 | X71: 25.4767 | Y71: 0.7147 | Z71: COSM3766190, COSM3766191, COSM250061, COSM3766193, COSM3766192 | AA71: large_intestine, liver, pancreas, pleura, prostate, soft_tissue, stomach, upper_aerodigestive_tract, urinary_tract, central_nervous_system | AB71: 10, 5, 15, 5, 5, 100, 5, 7, 5, 1 | AC71: rs1042522 | AD71: rs1042522 | AE71: NO | AF71: 0.659 | AG71: NO | AH71: YES | AI71: 0.155 | AJ71: Tolerated | AK71: 32 | AL71: 35.85 | AM71: 2 | AN71: 246 | AO71: 248 | AP71: 0.9919354839 | AQ71: 0 | AR71: 20 | AS71: 21 | AT71: 0.9523809524 | AU71: 1 | AV71: 42 | AW71: 42 | AX71: Polymorphism
A72: ESP6500, 1000 Genomes, dbSNP, ExAC, ClinVar, prediction, VAF, many samples | B72: UPN_Te2_003 | C72: 17 | D72: 7579472 | E72: G | F72: C | G72: TP53 | H72: ENST00000269305 | I72: missense_variant | J72: cCc/cGc|p.Pro72Arg/c.215C>G | K72: 2 | L72: 604 | M72: 606 | N72: 0.99669967 | O72: 1 | P72: 1 | Q72: 1 | R72: 1 | S72: 1 | T72: 1 | U72: 1 | V72: 1 | W72: 8 | X72: 25.4767 | Y72: 0.7147 | Z72: COSM3766190, COSM3766191, COSM250061, COSM3766193, COSM3766192 | AA72: large_intestine, liver, pancreas, pleura, prostate, soft_tissue, stomach, upper_aerodigestive_tract, urinary_tract, central_nervous_system | AB72: 10, 5, 15, 5, 5, 100, 5, 7, 5, 1 | AC72: rs1042522 | AD72: rs1042522 | AE72: NO | AF72: 0.659 | AG72: NO | AH72: YES | AI72: 0.155 | AJ72: Tolerated | AK72: 37 | AL72: 35.98 | AM72: 2 | AN72: 585 | AO72: 587 | AP72: 0.996592845 | AQ72: 0 | AR72: 19 | AS72: 19 | AT72: 1 | AU72: 1 | AV72: 42 | AW72: 42 | AX72: Polymorphism
A73: ESP6500, 1000 Genomes, dbSNP, ExAC, ClinVar, prediction, VAF, many samples | B73: UPN_Te2_004 | C73: 17 | D73: 7579472 | E73: G | F73: C | G73: TP53 | H73: ENST00000269305 | I73: missense_variant | J73: cCc/cGc|p.Pro72Arg/c.215C>G | K73: 2 | L73: 335 | M73: 338 | N73: 0.9911242604 | O73: 1 | P73: 1 | Q73: 1 | R73: 1 | S73: 1 | T73: 1 | U73: 1 | V73: 1 | W73: 8 | X73: 25.4767 | Y73: 0.7147 | Z73: COSM3766190, COSM3766191, COSM250061, COSM3766193, COSM3766192 | AA73: large_intestine, liver, pancreas, pleura, prostate, soft_tissue, stomach, upper_aerodigestive_tract, urinary_tract, central_nervous_system | AB73: 10, 5, 15, 5, 5, 100, 5, 7, 5, 1 | AC73: rs1042522 | AD73: rs1042522 | AE73: NO | AF73: 0.659 | AG73: NO | AH73: YES | AI73: 0.155 | AJ73: Tolerated | AK73: 19.5 | AL73: 33.45 | AM73: 1 | AN73: 261 | AO73: 262 | AP73: 0.9961832061 | AQ73: 1 | AR73: 74 | AS73: 76 | AT73: 0.9736842105 | AU73: 0.3960894447 | AV73: 42 | AW73: 42 | AX73: Polymorphism
A74: ESP6500, 1000 Genomes, dbSNP, ExAC, ClinVar, prediction, VAF, many samples | B74: UPN_Te2_005 | C74: 17 | D74: 7579472 | E74: G | F74: C | G74: TP53 | H74: ENST00000269305 | I74: missense_variant | J74: cCc/cGc|p.Pro72Arg/c.215C>G | K74: 2 | L74: 690 | M74: 692 | N74: 0.9971098266 | O74: 1 | P74: 1 | Q74: 0 | R74: 1 | S74: 1 | T74: 1 | U74: 1 | V74: 1 | W74: 7 | X74: 25.4767 | Y74: 0.7147 | Z74: COSM3766190, COSM3766191, COSM250061, COSM3766193, COSM3766192 | AA74: large_intestine, liver, pancreas, pleura, prostate, soft_tissue, stomach, upper_aerodigestive_tract, urinary_tract, central_nervous_system | AB74: 10, 5, 15, 5, 5, 100, 5, 7, 5, 1 | AC74: rs1042522 | AD74: rs1042522 | AE74: NO | AF74: 0.659 | AG74: NO | AH74: YES | AI74: 0.155 | AJ74: Tolerated | AK74: 8.5 | AL74: 36.08 | AM74: 1 | AN74: 679 | AO74: 680 | AP74: 0.9985294118 | AQ74: 1 | AR74: 11 | AS74: 12 | AT74: 0.9166666667 | AU74: 0.0344060296 | AV74: 42 | AW74: 42 | AX74: Polymorphism
A75: ESP6500, 1000 Genomes, dbSNP, ExAC, ClinVar, prediction, VAF, many samples | B75: UPN_Te2_006 | C75: 17 | D75: 7579472 | E75: G | F75: C | G75: TP53 | H75: ENST00000269305 | I75: missense_variant | J75: cCc/cGc|p.Pro72Arg/c.215C>G | K75: 0 | L75: 449 | M75: 450 | N75: 0.9977777778 | O75: 1 | P75: 1 | Q75: 0 | R75: 1 | S75: 1 | T75: 1 | U75: 1 | V75: 1 | W75: 7 | X75: 25.4767 | Y75: 0.7147 | Z75: COSM3766190, COSM3766191, COSM250061, COSM3766193, COSM3766192 | AA75: large_intestine, liver, pancreas, pleura, prostate, soft_tissue, stomach, upper_aerodigestive_tract, urinary_tract, central_nervous_system | AB75: 10, 5, 15, 5, 5, 100, 5, 7, 5, 1 | AC75: rs1042522 | AD75: rs1042522 | AE75: NO | AF75: 0.659 | AG75: NO | AH75: YES | AI75: 0.155 | AJ75: Tolerated | AK75: 0 | AL75: 36.13 | AM75: 0 | AN75: 426 | AO75: 427 | AP75: 0.9976580796 | AQ75: 0 | AR75: 23 | AS75: 23 | AT75: 1 | AU75: 1 | AV75: 42 | AW75: 42 | AX75: Polymorphism
A76: ESP6500, 1000 Genomes, dbSNP, ExAC, ClinVar, prediction, VAF, many samples | B76: UPN_Te2_007 | C76: 17 | D76: 7579472 | E76: G | F76: C | G76: TP53 | H76: ENST00000269305 | I76: missense_variant | J76: cCc/cGc|p.Pro72Arg/c.215C>G | K76: 3 | L76: 296 | M76: 300 | N76: 0.9866666667 | O76: 1 | P76: 1 | Q76: 1 | R76: 1 | S76: 1 | T76: 1 | U76: 1 | V76: 1 | W76: 8 | X76: 25.4767 | Y76: 0.7147 | Z76: COSM3766190, COSM3766191, COSM250061, COSM3766193, COSM3766192 | AA76: large_intestine, liver, pancreas, pleura, prostate, soft_tissue, stomach, upper_aerodigestive_tract, urinary_tract, central_nervous_system | AB76: 10, 5, 15, 5, 5, 100, 5, 7, 5, 1 | AC76: rs1042522 | AD76: rs1042522 | AE76: NO | AF76: 0.659 | AG76: NO | AH76: YES | AI76: 0.155 | AJ76: Tolerated | AK76: 24.67 | AL76: 35.79 | AM76: 2 | AN76: 286 | AO76: 288 | AP76: 0.9930555556 | AQ76: 1 | AR76: 10 | AS76: 12 | AT76: 0.8333333333 | AU76: 0.1067016827 | AV76: 42 | AW76: 42 | AX76: Polymorphism
A77: ESP6500, 1000 Genomes, dbSNP, ExAC, ClinVar, prediction, VAF, many samples | B77: UPN_Te2_008 | C77: 17 | D77: 7579472 | E77: G | F77: C | G77: TP53 | H77: ENST00000269305 | I77: missense_variant | J77: cCc/cGc|p.Pro72Arg/c.215C>G | K77: 94 | L77: 128 | M77: 223 | N77: 0.5739910314 | O77: 1 | P77: 1 | Q77: 1 | R77: 1 | S77: 1 | T77: 1 | U77: 1 | V77: 1 | W77: 8 | X77: 25.4767 | Y77: 0.7147 | Z77: COSM3766190, COSM3766191, COSM250061, COSM3766193, COSM3766192 | AA77: large_intestine, liver, pancreas, pleura, prostate, soft_tissue, stomach, upper_aerodigestive_tract, urinary_tract, central_nervous_system | AB77: 10, 5, 15, 5, 5, 100, 5, 7, 5, 1 | AC77: rs1042522 | AD77: rs1042522 | AE77: NO | AF77: 0.659 | AG77: NO | AH77: YES | AI77: 0.155 | AJ77: Tolerated | AK77: 35.38 | AL77: 36.17 | AM77: 87 | AN77: 121 | AO77: 208 | AP77: 0.5817307692 | AQ77: 7 | AR77: 7 | AS77: 15 | AT77: 0.4666666667 | AU77: 0.5853391265 | AV77: 42 | AW77: 42 | AX77: Polymorphism
A78: ESP6500, 1000 Genomes, dbSNP, ExAC, ClinVar, prediction, VAF, many samples | B78: UPN_Te2_010 | C78: 17 | D78: 7579472 | E78: G | F78: C | G78: TP53 | H78: ENST00000269305 | I78: missense_variant | J78: cCc/cGc|p.Pro72Arg/c.215C>G | K78: 214 | L78: 256 | M78: 472 | N78: 0.5423728814 | O78: 1 | P78: 1 | Q78: 1 | R78: 1 | S78: 1 | T78: 1 | U78: 1 | V78: 1 | W78: 8 | X78: 25.4767 | Y78: 0.7147 | Z78: COSM3766190, COSM3766191, COSM250061, COSM3766193, COSM3766192 | AA78: large_intestine, liver, pancreas, pleura, prostate, soft_tissue, stomach, upper_aerodigestive_tract, urinary_tract, central_nervous_system | AB78: 10, 5, 15, 5, 5, 100, 5, 7, 5, 1 | AC78: rs1042522 | AD78: rs1042522 | AE78: NO | AF78: 0.659 | AG78: NO | AH78: YES | AI78: 0.155 | AJ78: Tolerated | AK78: 36.05 | AL78: 33.48 | AM78: 165 | AN78: 184 | AO78: 349 | AP78: 0.5272206304 | AQ78: 49 | AR78: 72 | AS78: 123 | AT78: 0.5853658537 | AU78: 0.2053540273 | AV78: 42 | AW78: 42 | AX78: Polymorphism
A79: ESP6500, 1000 Genomes, dbSNP, ExAC, ClinVar, prediction, VAF, many samples | B79: UPN_Te2_011 | C79: 17 | D79: 7579472 | E79: G | F79: C | G79: TP53 | H79: ENST00000269305 | I79: missense_variant | J79: cCc/cGc|p.Pro72Arg/c.215C>G | K79: 211 | L79: 308 | M79: 519 | N79: 0.5934489403 | O79: 1 | P79: 1 | Q79: 1 | R79: 1 | S79: 1 | T79: 1 | U79: 1 | V79: 1 | W79: 8 | X79: 25.4767 | Y79: 0.7147 | Z79: COSM3766190, COSM3766191, COSM250061, COSM3766193, COSM3766192 | AA79: large_intestine, liver, pancreas, pleura, prostate, soft_tissue, stomach, upper_aerodigestive_tract, urinary_tract, central_nervous_system | AB79: 10, 5, 15, 5, 5, 100, 5, 7, 5, 1 | AC79: rs1042522 | AD79: rs1042522 | AE79: NO | AF79: 0.659 | AG79: NO | AH79: YES | AI79: 0.155 | AJ79: Tolerated | AK79: 36.02 | AL79: 35.28 | AM79: 191 | AN79: 288 | AO79: 479 | AP79: 0.6012526096 | AQ79: 20 | AR79: 20 | AS79: 40 | AT79: 0.5 | AU79: 0.2417249791 | AV79: 42 | AW79: 42 | AX79: Polymorphism
A80: ESP6500, 1000 Genomes, dbSNP, ExAC, ClinVar, prediction, VAF, many samples | B80: UPN_Te2_012 | C80: 17 | D80: 7579472 | E80: G | F80: C | G80: TP53 | H80: ENST00000269305 | I80: missense_variant | J80: cCc/cGc|p.Pro72Arg/c.215C>G | K80: 1 | L80: 596 | M80: 597 | N80: 0.9983249581 | O80: 1 | P80: 1 | Q80: 0 | R80: 1 | S80: 1 | T80: 1 | U80: 1 | V80: 1 | W80: 7 | X80: 25.4767 | Y80: 0.7147 | Z80: COSM3766190, COSM3766191, COSM250061, COSM3766193, COSM3766192 | AA80: large_intestine, liver, pancreas, pleura, prostate, soft_tissue, stomach, upper_aerodigestive_tract, urinary_tract, central_nervous_system | AB80: 10, 5, 15, 5, 5, 100, 5, 7, 5, 1 | AC80: rs1042522 | AD80: rs1042522 | AE80: NO | AF80: 0.659 | AG80: NO | AH80: YES | AI80: 0.155 | AJ80: Tolerated | AK80: 37 | AL80: 35.7 | AM80: 1 | AN80: 560 | AO80: 561 | AP80: 0.9982174688 | AQ80: 0 | AR80: 36 | AS80: 36 | AT80: 1 | AU80: 1 | AV80: 42 | AW80: 42 | AX80: Polymorphism
A81: ESP6500, 1000 Genomes, dbSNP, ExAC, ClinVar, prediction, VAF, many samples | B81: UPN_Te2_013 | C81: 17 | D81: 7579472 | E81: G | F81: C | G81: TP53 | H81: ENST00000269305 | I81: missense_variant | J81: cCc/cGc|p.Pro72Arg/c.215C>G | K81: 2 | L81: 473 | M81: 477 | N81: 0.9916142558 | O81: 1 | P81: 1 | Q81: 1 | R81: 1 | S81: 1 | T81: 1 | U81: 1 | V81: 1 | W81: 8 | X81: 25.4767 | Y81: 0.7147 | Z81: COSM3766190, COSM3766191, COSM250061, COSM3766193, COSM3766192 | AA81: large_intestine, liver, pancreas, pleura, prostate, soft_tissue, stomach, upper_aerodigestive_tract, urinary_tract, central_nervous_system | AB81: 10, 5, 15, 5, 5, 100, 5, 7, 5, 1 | AC81: rs1042522 | AD81: rs1042522 | AE81: NO | AF81: 0.659 | AG81: NO | AH81: YES | AI81: 0.155 | AJ81: Tolerated | AK81: 37 | AL81: 35.08 | AM81: 2 | AN81: 431 | AO81: 433 | AP81: 0.9953810624 | AQ81: 0 | AR81: 42 | AS81: 44 | AT81: 0.9545454545 | AU81: 1 | AV81: 42 | AW81: 42 | AX81: Polymorphism
A82: ESP6500, 1000 Genomes, dbSNP, ExAC, ClinVar, prediction, VAF, many samples | B82: UPN_Te2_014 | C82: 17 | D82: 7579472 | E82: G | F82: C | G82: TP53 | H82: ENST00000269305 | I82: missense_variant | J82: cCc/cGc|p.Pro72Arg/c.215C>G | K82: 53 | L82: 86 | M82: 139 | N82: 0.618705036 | O82: 1 | P82: 1 | Q82: 1 | R82: 1 | S82: 1 | T82: 1 | U82: 1 | V82: 1 | W82: 8 | X82: 25.4767 | Y82: 0.7147 | Z82: COSM3766190, COSM3766191, COSM250061, COSM3766193, COSM3766192 | AA82: large_intestine, liver, pancreas, pleura, prostate, soft_tissue, stomach, upper_aerodigestive_tract, urinary_tract, central_nervous_system | AB82: 10, 5, 15, 5, 5, 100, 5, 7, 5, 1 | AC82: rs1042522 | AD82: rs1042522 | AE82: NO | AF82: 0.659 | AG82: NO | AH82: YES | AI82: 0.155 | AJ82: Tolerated | AK82: 34.68 | AL82: 35.76 | AM82: 42 | AN82: 78 | AO82: 120 | AP82: 0.65 | AQ82: 11 | AR82: 8 | AS82: 19 | AT82: 0.4210526316 | AU82: 0.0750764417 | AV82: 42 | AW82: 42 | AX82: Polymorphism
A83: ESP6500, 1000 Genomes, dbSNP, ExAC, ClinVar, prediction, VAF, many samples | B83: UPN_Te2_015 | C83: 17 | D83: 7579472 | E83: G | F83: C | G83: TP53 | H83: ENST00000269305 | I83: missense_variant | J83: cCc/cGc|p.Pro72Arg/c.215C>G | K83: 208 | L83: 246 | M83: 457 | N83: 0.5382932166 | O83: 1 | P83: 1 | Q83: 1 | R83: 1 | S83: 1 | T83: 1 | U83: 1 | V83: 1 | W83: 8 | X83: 25.4767 | Y83: 0.7147 | Z83: COSM3766190, COSM3766191, COSM250061, COSM3766193, COSM3766192 | AA83: large_intestine, liver, pancreas, pleura, prostate, soft_tissue, stomach, upper_aerodigestive_tract, urinary_tract, central_nervous_system | AB83: 10, 5, 15, 5, 5, 100, 5, 7, 5, 1 | AC83: rs1042522 | AD83: rs1042522 | AE83: NO | AF83: 0.659 | AG83: NO | AH83: YES | AI83: 0.155 | AJ83: Tolerated | AK83: 34.97 | AL83: 33.87 | AM83: 167 | AN83: 191 | AO83: 358 | AP83: 0.5335195531 | AQ83: 41 | AR83: 55 | AS83: 99 | AT83: 0.5555555556 | AU83: 0.5643051062 | AV83: 42 | AW83: 42 | AX83: Polymorphism
A84: ESP6500, 1000 Genomes, dbSNP, ExAC, ClinVar, prediction, VAF, many samples | B84: UPN_Te2_016 | C84: 17 | D84: 7579472 | E84: G | F84: C | G84: TP53 | H84: ENST00000269305 | I84: missense_variant | J84: cCc/cGc|p.Pro72Arg/c.215C>G | K84: 9 | L84: 591 | M84: 600 | N84: 0.985 | O84: 1 | P84: 1 | Q84: 1 | R84: 1 | S84: 1 | T84: 1 | U84: 1 | V84: 1 | W84: 8 | X84: 25.4767 | Y84: 0.7147 | Z84: COSM3766190, COSM3766191, COSM250061, COSM3766193, COSM3766192 | AA84: large_intestine, liver, pancreas, pleura, prostate, soft_tissue, stomach, upper_aerodigestive_tract, urinary_tract, central_nervous_system | AB84: 10, 5, 15, 5, 5, 100, 5, 7, 5, 1 | AC84: rs1042522 | AD84: rs1042522 | AE84: NO | AF84: 0.659 | AG84: NO | AH84: YES | AI84: 0.155 | AJ84: Tolerated | AK84: 31.78 | AL84: 34.9 | AM84: 6 | AN84: 483 | AO84: 489 | AP84: 0.9877300613 | AQ84: 3 | AR84: 108 | AS84: 111 | AT84: 0.972972973 | AU84: 0.2218780665 | AV84: 42 | AW84: 42 | AX84: Polymorphism
A85: ESP6500, 1000 Genomes, dbSNP, ExAC, ClinVar, prediction, VAF, many samples | B85: UPN_Te2_017 | C85: 17 | D85: 7579472 | E85: G | F85: C | G85: TP53 | H85: ENST00000269305 | I85: missense_variant | J85: cCc/cGc|p.Pro72Arg/c.215C>G | K85: 217 | L85: 272 | M85: 489 | N85: 0.5562372188 | O85: 1 | P85: 1 | Q85: 1 | R85: 1 | S85: 1 | T85: 1 | U85: 1 | V85: 1 | W85: 8 | X85: 25.4767 | Y85: 0.7147 | Z85: COSM3766190, COSM3766191, COSM250061, COSM3766193, COSM3766192 | AA85: large_intestine, liver, pancreas, pleura, prostate, soft_tissue, stomach, upper_aerodigestive_tract, urinary_tract, central_nervous_system | AB85: 10, 5, 15, 5, 5, 100, 5, 7, 5, 1 | AC85: rs1042522 | AD85: rs1042522 | AE85: NO | AF85: 0.659 | AG85: NO | AH85: YES | AI85: 0.155 | AJ85: Tolerated | AK85: 36 | AL85: 35.49 | AM85: 199 | AN85: 257 | AO85: 456 | AP85: 0.5635964912 | AQ85: 18 | AR85: 15 | AS85: 33 | AT85: 0.4545454545 | AU85: 0.2765690837 | AV85: 42 | AW85: 42 | AX85: Polymorphism
A86: ESP6500, 1000 Genomes, dbSNP, ExAC, ClinVar, prediction, VAF, many samples | B86: UPN_Te2_018 | C86: 17 | D86: 7579472 | E86: G | F86: C | G86: TP53 | H86: ENST00000269305 | I86: missense_variant | J86: cCc/cGc|p.Pro72Arg/c.215C>G | K86: 1 | L86: 252 | M86: 253 | N86: 0.9960474308 | O86: 1 | P86: 1 | Q86: 0 | R86: 1 | S86: 1 | T86: 1 | U86: 1 | V86: 1 | W86: 7 | X86: 25.4767 | Y86: 0.7147 | Z86: COSM3766190, COSM3766191, COSM250061, COSM3766193, COSM3766192 | AA86: large_intestine, liver, pancreas, pleura, prostate, soft_tissue, stomach, upper_aerodigestive_tract, urinary_tract, central_nervous_system | AB86: 10, 5, 15, 5, 5, 100, 5, 7, 5, 1 | AC86: rs1042522 | AD86: rs1042522 | AE86: NO | AF86: 0.659 | AG86: NO | AH86: YES | AI86: 0.155 | AJ86: Tolerated | AK86: 37 | AL86: 35.54 | AM86: 1 | AN86: 236 | AO86: 237 | AP86: 0.9957805907 | AQ86: 0 | AR86: 16 | AS86: 16 | AT86: 1 | AU86: 1 | AV86: 42 | AW86: 42 | AX86: Polymorphism
A87: ESP6500, 1000 Genomes, dbSNP, ExAC, ClinVar, prediction, VAF, many samples | B87: UPN_Te2_019 | C87: 17 | D87: 7579472 | E87: G | F87: C | G87: TP53 | H87: ENST00000269305 | I87: missense_variant | J87: cCc/cGc|p.Pro72Arg/c.215C>G | K87: 195 | L87: 247 | M87: 442 | N87: 0.5588235294 | O87: 1 | P87: 1 | Q87: 1 | R87: 1 | S87: 1 | T87: 1 | U87: 1 | V87: 1 | W87: 8 | X87: 25.4767 | Y87: 0.7147 | Z87: COSM3766190, COSM3766191, COSM250061, COSM3766193, COSM3766192 | AA87: large_intestine, liver, pancreas, pleura, prostate, soft_tissue, stomach, upper_aerodigestive_tract, urinary_tract, central_nervous_system | AB87: 10, 5, 15, 5, 5, 100, 5, 7, 5, 1 | AC87: rs1042522 | AD87: rs1042522 | AE87: NO | AF87: 0.659 | AG87: NO | AH87: YES | AI87: 0.155 | AJ87: Tolerated | AK87: 35.81 | AL87: 35.7 | AM87: 181 | AN87: 238 | AO87: 419 | AP87: 0.5680190931 | AQ87: 14 | AR87: 9 | AS87: 23 | AT87: 0.3913043478 | AU87: 0.1301070213 | AV87: 42 | AW87: 42 | AX87: Polymorphism
A88: ESP6500, 1000 Genomes, dbSNP, ExAC, ClinVar, prediction, VAF, many samples | B88: UPN_Te2_020 | C88: 17 | D88: 7579472 | E88: G | F88: C | G88: TP53 | H88: ENST00000269305 | I88: missense_variant | J88: cCc/cGc|p.Pro72Arg/c.215C>G | K88: 13 | L88: 586 | M88: 603 | N88: 0.9718076285 | O88: 1 | P88: 1 | Q88: 1 | R88: 1 | S88: 1 | T88: 1 | U88: 1 | V88: 1 | W88: 8 | X88: 25.4767 | Y88: 0.7147 | Z88: COSM3766190, COSM3766191, COSM250061, COSM3766193, COSM3766192 | AA88: large_intestine, liver, pancreas, pleura, prostate, soft_tissue, stomach, upper_aerodigestive_tract, urinary_tract, central_nervous_system | AB88: 10, 5, 15, 5, 5, 100, 5, 7, 5, 1 | AC88: rs1042522 | AD88: rs1042522 | AE88: NO | AF88: 0.659 | AG88: NO | AH88: YES | AI88: 0.155 | AJ88: Tolerated | AK88: 25 | AL88: 34.86 | AM88: 6 | AN88: 433 | AO88: 439 | AP88: 0.986332574 | AQ88: 7 | AR88: 153 | AS88: 164 | AT88: 0.9329268293 | AU88: 0.049700101 | AV88: 42 | AW88: 42 | AX88: Polymorphism
A89: ESP6500, 1000 Genomes, dbSNP, ExAC, ClinVar, prediction, VAF, many samples | B89: UPN_Te2_021 | C89: 17 | D89: 7579472 | E89: G | F89: C | G89: TP53 | H89: ENST00000269305 | I89: missense_variant | J89: cCc/cGc|p.Pro72Arg/c.215C>G | K89: 2 | L89: 409 | M89: 412 | N89: 0.9927184466 | O89: 1 | P89: 1 | Q89: 1 | R89: 1 | S89: 1 | T89: 1 | U89: 1 | V89: 1 | W89: 8 | X89: 25.4767 | Y89: 0.7147 | Z89: COSM3766190, COSM3766191, COSM250061, COSM3766193, COSM3766192 | AA89: large_intestine, liver, pancreas, pleura, prostate, soft_tissue, stomach, upper_aerodigestive_tract, urinary_tract, central_nervous_system | AB89: 10, 5, 15, 5, 5, 100, 5, 7, 5, 1 | AC89: rs1042522 | AD89: rs1042522 | AE89: NO | AF89: 0.659 | AG89: NO | AH89: YES | AI89: 0.155 | AJ89: Tolerated | AK89: 37 | AL89: 36.03 | AM89: 2 | AN89: 400 | AO89: 403 | AP89: 0.9925558313 | AQ89: 0 | AR89: 9 | AS89: 9 | AT89: 1 | AU89: 1 | AV89: 42 | AW89: 42 | AX89: Polymorphism
A90: ESP6500, 1000 Genomes, dbSNP, ExAC, ClinVar, prediction, VAF, many samples | B90: UPN_Te2_022 | C90: 17 | D90: 7579472 | E90: G | F90: C | G90: TP53 | H90: ENST00000269305 | I90: missense_variant | J90: cCc/cGc|p.Pro72Arg/c.215C>G | K90: 32 | L90: 416 | M90: 448 | N90: 0.9285714286 | O90: 1 | P90: 1 | Q90: 1 | R90: 0 | S90: 1 | T90: 1 | U90: 1 | V90: 1 | W90: 7 | X90: 25.4767 | Y90: 0.7147 | Z90: COSM3766190, COSM3766191, COSM250061, COSM3766193, COSM3766192 | AA90: large_intestine, liver, pancreas, pleura, prostate, soft_tissue, stomach, upper_aerodigestive_tract, urinary_tract, central_nervous_system | AB90: 10, 5, 15, 5, 5, 100, 5, 7, 5, 1 | AC90: rs1042522 | AD90: rs1042522 | AE90: NO | AF90: 0.659 | AG90: NO | AH90: YES | AI90: 0.155 | AJ90: Tolerated | AK90: 34.75 | AL90: 34.78 | AM90: 16 | AN90: 355 | AO90: 371 | AP90: 0.9568733154 | AQ90: 16 | AR90: 61 | AS90: 77 | AT90: 0.7922077922 | AU90: 8.489611489e-06 | AV90: 42 | AW90: 42 | AX90: Polymorphism
A91: ESP6500, 1000 Genomes, dbSNP, ExAC, ClinVar, prediction, VAF, many samples | B91: UPN_Te2_023 | C91: 17 | D91: 7579472 | E91: G | F91: C | G91: TP53 | H91: ENST00000269305 | I91: missense_variant | J91: cCc/cGc|p.Pro72Arg/c.215C>G | K91: 0 | L91: 299 | M91: 299 | N91: 1 | O91: 1 | P91: 1 | Q91: 0 | R91: 1 | S91: 1 | T91: 1 | U91: 1 | V91: 1 | W91: 7 | X91: 25.4767 | Y91: 0.7147 | Z91: COSM3766190, COSM3766191, COSM250061, COSM3766193, COSM3766192 | AA91: large_intestine, liver, pancreas, pleura, prostate, soft_tissue, stomach, upper_aerodigestive_tract, urinary_tract, central_nervous_system | AB91: 10, 5, 15, 5, 5, 100, 5, 7, 5, 1 | AC91: rs1042522 | AD91: rs1042522 | AE91: NO | AF91: 0.659 | AG91: NO | AH91: YES | AI91: 0.155 | AJ91: Tolerated | AK91: 0 | AL91: 35.68 | AM91: 0 | AN91: 277 | AO91: 277 | AP91: 1 | AQ91: 0 | AR91: 22 | AS91: 22 | AT91: 1 | AU91: 1 | AV91: 42 | AW91: 42 | AX91: Polymorphism
A92: ESP6500, 1000 Genomes, dbSNP, ExAC, ClinVar, prediction, VAF, many samples | B92: UPN_Te2_024 | C92: 17 | D92: 7579472 | E92: G | F92: C | G92: TP53 | H92: ENST00000269305 | I92: missense_variant | J92: cCc/cGc|p.Pro72Arg/c.215C>G | K92: 5 | L92: 58 | M92: 63 | N92: 0.9206349206 | O92: 1 | P92: 1 | Q92: 1 | R92: 1 | S92: 1 | T92: 1 | U92: 1 | V92: 1 | W92: 8 | X92: 25.4767 | Y92: 0.7147 | Z92: COSM3766190, COSM3766191, COSM250061, COSM3766193, COSM3766192 | AA92: large_intestine, liver, pancreas, pleura, prostate, soft_tissue, stomach, upper_aerodigestive_tract, urinary_tract, central_nervous_system | AB92: 10, 5, 15, 5, 5, 100, 5, 7, 5, 1 | AC92: rs1042522 | AD92: rs1042522 | AE92: NO | AF92: 0.659 | AG92: NO | AH92: YES | AI92: 0.155 | AJ92: Tolerated | AK92: 27 | AL92: 32.83 | AM92: 3 | AN92: 34 | AO92: 37 | AP92: 0.9189189189 | AQ92: 2 | AR92: 24 | AS92: 26 | AT92: 0.9230769231 | AU92: 1 | AV92: 42 | AW92: 42 | AX92: Polymorphism
A93: ESP6500, 1000 Genomes, dbSNP, ExAC, ClinVar, prediction, VAF, many samples | B93: UPN_Te2_026 | C93: 17 | D93: 7579472 | E93: G | F93: C | G93: TP53 | H93: ENST00000269305 | I93: missense_variant | J93: cCc/cGc|p.Pro72Arg/c.215C>G | K93: 5 | L93: 417 | M93: 425 | N93: 0.9811764706 | O93: 1 | P93: 1 | Q93: 1 | R93: 1 | S93: 1 | T93: 1 | U93: 1 | V93: 1 | W93: 8 | X93: 25.4767 | Y93: 0.7147 | Z93: COSM3766190, COSM3766191, COSM250061, COSM3766193, COSM3766192 | AA93: large_intestine, liver, pancreas, pleura, prostate, soft_tissue, stomach, upper_aerodigestive_tract, urinary_tract, central_nervous_system | AB93: 10, 5, 15, 5, 5, 100, 5, 7, 5, 1 | AC93: rs1042522 | AD93: rs1042522 | AE93: NO | AF93: 0.659 | AG93: NO | AH93: YES | AI93: 0.155 | AJ93: Tolerated | AK93: 18 | AL93: 34.02 | AM93: 2 | AN93: 324 | AO93: 326 | AP93: 0.9938650307 | AQ93: 3 | AR93: 93 | AS93: 99 | AT93: 0.9393939394 | AU93: 0.0800059609 | AV93: 42 | AW93: 42 | AX93: Polymorphism
A94: ESP6500, 1000 Genomes, dbSNP, ExAC, ClinVar, prediction, VAF, many samples | B94: UPN_Te2_027 | C94: 17 | D94: 7579472 | E94: G | F94: C | G94: TP53 | H94: ENST00000269305 | I94: missense_variant | J94: cCc/cGc|p.Pro72Arg/c.215C>G | K94: 133 | L94: 175 | M94: 310 | N94: 0.564516129 | O94: 1 | P94: 1 | Q94: 1 | R94: 1 | S94: 1 | T94: 1 | U94: 1 | V94: 1 | W94: 8 | X94: 25.4767 | Y94: 0.7147 | Z94: COSM3766190, COSM3766191, COSM250061, COSM3766193, COSM3766192 | AA94: large_intestine, liver, pancreas, pleura, prostate, soft_tissue, stomach, upper_aerodigestive_tract, urinary_tract, central_nervous_system | AB94: 10, 5, 15, 5, 5, 100, 5, 7, 5, 1 | AC94: rs1042522 | AD94: rs1042522 | AE94: NO | AF94: 0.659 | AG94: NO | AH94: YES | AI94: 0.155 | AJ94: Tolerated | AK94: 35.98 | AL94: 34.97 | AM94: 104 | AN94: 136 | AO94: 240 | AP94: 0.5666666667 | AQ94: 29 | AR94: 39 | AS94: 70 | AT94: 0.5571428571 | AU94: 1 | AV94: 42 | AW94: 42 | AX94: Polymorphism
A95: ESP6500, 1000 Genomes, dbSNP, ExAC, ClinVar, prediction, VAF, many samples | B95: UPN_Te2_028 | C95: 17 | D95: 7579472 | E95: G | F95: C | G95: TP53 | H95: ENST00000269305 | I95: missense_variant | J95: cCc/cGc|p.Pro72Arg/c.215C>G | K95: 21 | L95: 424 | M95: 445 | N95: 0.9528089888 | O95: 1 | P95: 1 | Q95: 1 | R95: 1 | S95: 1 | T95: 1 | U95: 1 | V95: 1 | W95: 8 | X95: 25.4767 | Y95: 0.7147 | Z95: COSM3766190, COSM3766191, COSM250061, COSM3766193, COSM3766192 | AA95: large_intestine, liver, pancreas, pleura, prostate, soft_tissue, stomach, upper_aerodigestive_tract, urinary_tract, central_nervous_system | AB95: 10, 5, 15, 5, 5, 100, 5, 7, 5, 1 | AC95: rs1042522 | AD95: rs1042522 | AE95: NO | AF95: 0.659 | AG95: NO | AH95: YES | AI95: 0.155 | AJ95: Tolerated | AK95: 30.57 | AL95: 35.38 | AM95: 19 | AN95: 394 | AO95: 413 | AP95: 0.9539951574 | AQ95: 2 | AR95: 30 | AS95: 32 | AT95: 0.9375 | AU95: 0.6564718408 | AV95: 42 | AW95: 42 | AX95: Polymorphism
A96: ESP6500, 1000 Genomes, dbSNP, ExAC, ClinVar, prediction, VAF, many samples | B96: UPN_Te2_029 | C96: 17 | D96: 7579472 | E96: G | F96: C | G96: TP53 | H96: ENST00000269305 | I96: missense_variant | J96: cCc/cGc|p.Pro72Arg/c.215C>G | K96: 24 | L96: 47 | M96: 72 | N96: 0.6527777778 | O96: 1 | P96: 1 | Q96: 1 | R96: 1 | S96: 1 | T96: 1 | U96: 1 | V96: 1 | W96: 8 | X96: 25.4767 | Y96: 0.7147 | Z96: COSM3766190, COSM3766191, COSM250061, COSM3766193, COSM3766192 | AA96: large_intestine, liver, pancreas, pleura, prostate, soft_tissue, stomach, upper_aerodigestive_tract, urinary_tract, central_nervous_system | AB96: 10, 5, 15, 5, 5, 100, 5, 7, 5, 1 | AC96: rs1042522 | AD96: rs1042522 | AE96: NO | AF96: 0.659 | AG96: NO | AH96: YES | AI96: 0.155 | AJ96: Tolerated | AK96: 35.54 | AL96: 36.15 | AM96: 22 | AN96: 44 | AO96: 66 | AP96: 0.6666666667 | AQ96: 2 | AR96: 3 | AS96: 6 | AT96: 0.5 | AU96: 1 | AV96: 42 | AW96: 42 | AX96: Polymorphism
A97: ESP6500, 1000 Genomes, dbSNP, ExAC, ClinVar, prediction, VAF, many samples | B97: UPN_Te2_030 | C97: 17 | D97: 7579472 | E97: G | F97: C | G97: TP53 | H97: ENST00000269305 | I97: missense_variant | J97: cCc/cGc|p.Pro72Arg/c.215C>G | K97: 1 | L97: 99 | M97: 102 | N97: 0.9705882353 | O97: 1 | P97: 1 | Q97: 1 | R97: 1 | S97: 1 | T97: 1 | U97: 1 | V97: 1 | W97: 8 | X97: 25.4767 | Y97: 0.7147 | Z97: COSM3766190, COSM3766191, COSM250061, COSM3766193, COSM3766192 | AA97: large_intestine, liver, pancreas, pleura, prostate, soft_tissue, stomach, upper_aerodigestive_tract, urinary_tract, central_nervous_system | AB97: 10, 5, 15, 5, 5, 100, 5, 7, 5, 1 | AC97: rs1042522 | AD97: rs1042522 | AE97: NO | AF97: 0.659 | AG97: NO | AH97: YES | AI97: 0.155 | AJ97: Tolerated | AK97: 37 | AL97: 33.96 | AM97: 1 | AN97: 81 | AO97: 83 | AP97: 0.9759036145 | AQ97: 0 | AR97: 18 | AS97: 19 | AT97: 0.9473684211 | AU97: 1 | AV97: 42 | AW97: 42 | AX97: Polymorphism
A98: ESP6500, 1000 Genomes, dbSNP, ExAC, ClinVar, prediction, VAF, many samples | B98: UPN_Te2_031 | C98: 17 | D98: 7579472 | E98: G | F98: C | G98: TP53 | H98: ENST00000269305 | I98: missense_variant | J98: cCc/cGc|p.Pro72Arg/c.215C>G | K98: 87 | L98: 145 | M98: 234 | N98: 0.6196581197 | O98: 1 | P98: 1 | Q98: 1 | R98: 1 | S98: 1 | T98: 1 | U98: 1 | V98: 1 | W98: 8 | X98: 25.4767 | Y98: 0.7147 | Z98: COSM3766190, COSM3766191, COSM250061, COSM3766193, COSM3766192 | AA98: large_intestine, liver, pancreas, pleura, prostate, soft_tissue, stomach, upper_aerodigestive_tract, urinary_tract, central_nervous_system | AB98: 10, 5, 15, 5, 5, 100, 5, 7, 5, 1 | AC98: rs1042522 | AD98: rs1042522 | AE98: NO | AF98: 0.659 | AG98: NO | AH98: YES | AI98: 0.155 | AJ98: Tolerated | AK98: 35.09 | AL98: 35.2 | AM98: 64 | AN98: 113 | AO98: 177 | AP98: 0.6384180791 | AQ98: 23 | AR98: 32 | AS98: 57 | AT98: 0.5614035088 | AU98: 0.5239326676 | AV98: 42 | AW98: 42 | AX98: Polymorphism
A99: ESP6500, 1000 Genomes, dbSNP, ExAC, ClinVar, prediction, VAF, many samples | B99: UPN_Te2_032 | C99: 17 | D99: 7579472 | E99: G | F99: C | G99: TP53 | H99: ENST00000269305 | I99: missense_variant | J99: cCc/cGc|p.Pro72Arg/c.215C>G | K99: 90 | L99: 160 | M99: 252 | N99: 0.6349206349 | O99: 1 | P99: 1 | Q99: 1 | R99: 1 | S99: 1 | T99: 1 | U99: 1 | V99: 1 | W99: 8 | X99: 25.4767 | Y99: 0.7147 | Z99: COSM3766190, COSM3766191, COSM250061, COSM3766193, COSM3766192 | AA99: large_intestine, liver, pancreas, pleura, prostate, soft_tissue, stomach, upper_aerodigestive_tract, urinary_tract, central_nervous_system | AB99: 10, 5, 15, 5, 5, 100, 5, 7, 5, 1 | AC99: rs1042522 | AD99: rs1042522 | AE99: NO | AF99: 0.659 | AG99: NO | AH99: YES | AI99: 0.155 | AJ99: Tolerated | AK99: 35.42 | AL99: 32.9 | AM99: 66 | AN99: 115 | AO99: 181 | AP99: 0.635359116 | AQ99: 24 | AR99: 45 | AS99: 71 | AT99: 0.6338028169 | AU99: 0.8831605296 | AV99: 42 | AW99: 42 | AX99: Polymorphism
A100: ESP6500, 1000 Genomes, dbSNP, ExAC, ClinVar, prediction, VAF, many samples | B100: UPN_Te2_033 | C100: 17 | D100: 7579472 | E100: G | F100: C | G100: TP53 | H100: ENST00000269305 | I100: missense_variant | J100: cCc/cGc|p.Pro72Arg/c.215C>G | K100: 29 | L100: 38 | M100: 68 | N100: 0.5588235294 | O100: 1 | P100: 1 | Q100: 1 | R100: 1 | S100: 1 | T100: 1 | U100: 1 | V100: 1 | W100: 8 | X100: 25.4767 | Y100: 0.7147 | Z100: COSM3766190, COSM3766191, COSM250061, COSM3766193, COSM3766192 | AA100: large_intestine, liver, pancreas, pleura, prostate, soft_tissue, stomach, upper_aerodigestive_tract, urinary_tract, central_nervous_system | AB100: 10, 5, 15, 5, 5, 100, 5, 7, 5, 1 | AC100: rs1042522 | AD100: rs1042522 | AE100: NO | AF100: 0.659 | AG100: NO | AH100: YES | AI100: 0.155 | AJ100: Tolerated | AK100: 37.41 | AL100: 33.39 | AM100: 20 | AN100: 26 | AO100: 46 | AP100: 0.5652173913 | AQ100: 9 | AR100: 12 | AS100: 22 | AT100: 0.5454545455 | AU100: 1 | AV100: 42 | AW100: 42 | AX100: Polymorphism
A101: ESP6500, 1000 Genomes, dbSNP, ExAC, ClinVar, prediction, VAF, many samples | B101: UPN_Te2_035 | C101: 17 | D101: 7579472 | E101: G | F101: C | G101: TP53 | H101: ENST00000269305 | I101: missense_variant | J101: cCc/cGc|p.Pro72Arg/c.215C>G | K101: 4 | L101: 378 | M101: 382 | N101: 0.9895287958 | O101: 1 | P101: 1 | Q101: 1 | R101: 1 | S101: 1 | T101: 1 | U101: 1 | V101: 1 | W101: 8 | X101: 25.4767 | Y101: 0.7147 | Z101: COSM3766190, COSM3766191, COSM250061, COSM3766193, COSM3766192 | AA101: large_intestine, liver, pancreas, pleura, prostate, soft_tissue, stomach, upper_aerodigestive_tract, urinary_tract, central_nervous_system | AB101: 10, 5, 15, 5, 5, 100, 5, 7, 5, 1 | AC101: rs1042522 | AD101: rs1042522 | AE101: NO | AF101: 0.659 | AG101: NO | AH101: YES | AI101: 0.155 | AJ101: Tolerated | AK101: 29.5 | AL101: 34.96 | AM101: 2 | AN101: 336 | AO101: 338 | AP101: 0.9940828402 | AQ101: 2 | AR101: 42 | AS101: 44 | AT101: 0.9545454545 | AU101: 0.0669699452 | AV101: 42 | AW101: 42 | AX101: Polymorphism
A102: ESP6500, 1000 Genomes, dbSNP, ExAC, ClinVar, prediction, VAF, many samples | B102: UPN_Te2_036 | C102: 17 | D102: 7579472 | E102: G | F102: C | G102: TP53 | H102: ENST00000269305 | I102: missense_variant | J102: cCc/cGc|p.Pro72Arg/c.215C>G | K102: 30 | L102: 263 | M102: 293 | N102: 0.8976109215 | O102: 1 | P102: 1 | Q102: 1 | R102: 1 | S102: 1 | T102: 1 | U102: 1 | V102: 1 | W102: 8 | X102: 25.4767 | Y102: 0.7147 | Z102: COSM3766190, COSM3766191, COSM250061, COSM3766193, COSM3766192 | AA102: large_intestine, liver, pancreas, pleura, prostate, soft_tissue, stomach, upper_aerodigestive_tract, urinary_tract, central_nervous_system | AB102: 10, 5, 15, 5, 5, 100, 5, 7, 5, 1 | AC102: rs1042522 | AD102: rs1042522 | AE102: NO | AF102: 0.659 | AG102: NO | AH102: YES | AI102: 0.155 | AJ102: Tolerated | AK102: 33.3 | AL102: 33.68 | AM102: 16 | AN102: 192 | AO102: 208 | AP102: 0.9230769231 | AQ102: 14 | AR102: 71 | AS102: 85 | AT102: 0.8352941176 | AU102: 0.0329510054 | AV102: 42 | AW102: 42 | AX102: Polymorphism
A103: ESP6500, 1000 Genomes, dbSNP, ExAC, ClinVar, prediction, VAF, many samples | B103: UPN_Te2_037 | C103: 17 | D103: 7579472 | E103: G | F103: C | G103: TP53 | H103: ENST00000269305 | I103: missense_variant | J103: cCc/cGc|p.Pro72Arg/c.215C>G | K103: 8 | L103: 167 | M103: 177 | N103: 0.9435028249 | O103: 1 | P103: 1 | Q103: 1 | R103: 1 | S103: 1 | T103: 1 | U103: 1 | V103: 1 | W103: 8 | X103: 25.4767 | Y103: 0.7147 | Z103: COSM3766190, COSM3766191, COSM250061, COSM3766193, COSM3766192 | AA103: large_intestine, liver, pancreas, pleura, prostate, soft_tissue, stomach, upper_aerodigestive_tract, urinary_tract, central_nervous_system | AB103: 10, 5, 15, 5, 5, 100, 5, 7, 5, 1 | AC103: rs1042522 | AD103: rs1042522 | AE103: NO | AF103: 0.659 | AG103: NO | AH103: YES | AI103: 0.155 | AJ103: Tolerated | AK103: 30.62 | AL103: 33.73 | AM103: 7 | AN103: 112 | AO103: 119 | AP103: 0.9411764706 | AQ103: 1 | AR103: 55 | AS103: 58 | AT103: 0.9482758621 | AU103: 0.4389138906 | AV103: 42 | AW103: 42 | AX103: Polymorphism
A104: ESP6500, 1000 Genomes, dbSNP, ExAC, ClinVar, prediction, VAF, many samples | B104: UPN_Te2_039 | C104: 17 | D104: 7579472 | E104: G | F104: C | G104: TP53 | H104: ENST00000269305 | I104: missense_variant | J104: cCc/cGc|p.Pro72Arg/c.215C>G | K104: 0 | L104: 191 | M104: 191 | N104: 1 | O104: 1 | P104: 1 | Q104: 0 | R104: 1 | S104: 1 | T104: 1 | U104: 1 | V104: 1 | W104: 7 | X104: 25.4767 | Y104: 0.7147 | Z104: COSM3766190, COSM3766191, COSM250061, COSM3766193, COSM3766192 | AA104: large_intestine, liver, pancreas, pleura, prostate, soft_tissue, stomach, upper_aerodigestive_tract, urinary_tract, central_nervous_system | AB104: 10, 5, 15, 5, 5, 100, 5, 7, 5, 1 | AC104: rs1042522 | AD104: rs1042522 | AE104: NO | AF104: 0.659 | AG104: NO | AH104: YES | AI104: 0.155 | AJ104: Tolerated | AK104: 0 | AL104: 36.09 | AM104: 0 | AN104: 184 | AO104: 184 | AP104: 1 | AQ104: 0 | AR104: 7 | AS104: 7 | AT104: 1 | AU104: 1 | AV104: 42 | AW104: 42 | AX104: Polymorphism
A105: ESP6500, 1000 Genomes, dbSNP, ExAC, ClinVar, prediction, VAF, many samples | B105: UPN_Te2_040 | C105: 17 | D105: 7579472 | E105: G | F105: C | G105: TP53 | H105: ENST00000269305 | I105: missense_variant | J105: cCc/cGc|p.Pro72Arg/c.215C>G | K105: 0 | L105: 395 | M105: 395 | N105: 1 | O105: 1 | P105: 1 | Q105: 0 | R105: 1 | S105: 1 | T105: 1 | U105: 1 | V105: 1 | W105: 7 | X105: 25.4767 | Y105: 0.7147 | Z105: COSM3766190, COSM3766191, COSM250061, COSM3766193, COSM3766192 | AA105: large_intestine, liver, pancreas, pleura, prostate, soft_tissue, stomach, upper_aerodigestive_tract, urinary_tract, central_nervous_system | AB105: 10, 5, 15, 5, 5, 100, 5, 7, 5, 1 | AC105: rs1042522 | AD105: rs1042522 | AE105: NO | AF105: 0.659 | AG105: NO | AH105: YES | AI105: 0.155 | AJ105: Tolerated | AK105: 0 | AL105: 35.86 | AM105: 0 | AN105: 379 | AO105: 379 | AP105: 1 | AQ105: 0 | AR105: 16 | AS105: 16 | AT105: 1 | AU105: 1 | AV105: 42 | AW105: 42 | AX105: Polymorphism
A106: ESP6500, 1000 Genomes, dbSNP, ExAC, ClinVar, prediction, VAF, many samples | B106: UPN_Te2_041 | C106: 17 | D106: 7579472 | E106: G | F106: C | G106: TP53 | H106: ENST00000269305 | I106: missense_variant | J106: cCc/cGc|p.Pro72Arg/c.215C>G | K106: 481 | L106: 792 | M106: 1275 | N106: 0.6211764706 | O106: 1 | P106: 1 | Q106: 1 | R106: 1 | S106: 1 | T106: 1 | U106: 1 | V106: 1 | W106: 8 | X106: 25.4767 | Y106: 0.7147 | Z106: COSM3766190, COSM3766191, COSM250061, COSM3766193, COSM3766192 | AA106: large_intestine, liver, pancreas, pleura, prostate, soft_tissue, stomach, upper_aerodigestive_tract, urinary_tract, central_nervous_system | AB106: 10, 5, 15, 5, 5, 100, 5, 7, 5, 1 | AC106: rs1042522 | AD106: rs1042522 | AE106: NO | AF106: 0.659 | AG106: NO | AH106: YES | AI106: 0.155 | AJ106: Tolerated | AK106: 35.95 | AL106: 34.88 | AM106: 436 | AN106: 711 | AO106: 1147 | AP106: 0.6198779425 | AQ106: 45 | AR106: 81 | AS106: 128 | AT106: 0.6328125 | AU106: 0.6300279857 | AV106: 42 | AW106: 42 | AX106: Polymorphism
A107: ESP6500, 1000 Genomes, dbSNP, ExAC, ClinVar, prediction, VAF, many samples | B107: UPN_Te2_042 | C107: 17 | D107: 7579472 | E107: G | F107: C | G107: TP53 | H107: ENST00000269305 | I107: missense_variant | J107: cCc/cGc|p.Pro72Arg/c.215C>G | K107: 1 | L107: 421 | M107: 423 | N107: 0.9952718676 | O107: 1 | P107: 1 | Q107: 0 | R107: 1 | S107: 1 | T107: 1 | U107: 1 | V107: 1 | W107: 7 | X107: 25.4767 | Y107: 0.7147 | Z107: COSM3766190, COSM3766191, COSM250061, COSM3766193, COSM3766192 | AA107: large_intestine, liver, pancreas, pleura, prostate, soft_tissue, stomach, upper_aerodigestive_tract, urinary_tract, central_nervous_system | AB107: 10, 5, 15, 5, 5, 100, 5, 7, 5, 1 | AC107: rs1042522 | AD107: rs1042522 | AE107: NO | AF107: 0.659 | AG107: NO | AH107: YES | AI107: 0.155 | AJ107: Tolerated | AK107: 6 | AL107: 35.7 | AM107: 0 | AN107: 405 | AO107: 405 | AP107: 1 | AQ107: 1 | AR107: 16 | AS107: 18 | AT107: 0.8888888889 | AU107: 0.0402843602 | AV107: 42 | AW107: 42 | AX107: Polymorphism
A108: ESP6500, 1000 Genomes, dbSNP, ExAC, ClinVar, prediction, VAF, many samples | B108: UPN_Te2_043 | C108: 17 | D108: 7579472 | E108: G | F108: C | G108: TP53 | H108: ENST00000269305 | I108: missense_variant | J108: cCc/cGc|p.Pro72Arg/c.215C>G | K108: 337 | L108: 500 | M108: 838 | N108: 0.5966587112 | O108: 1 | P108: 1 | Q108: 1 | R108: 1 | S108: 1 | T108: 1 | U108: 1 | V108: 1 | W108: 8 | X108: 25.4767 | Y108: 0.7147 | Z108: COSM3766190, COSM3766191, COSM250061, COSM3766193, COSM3766192 | AA108: large_intestine, liver, pancreas, pleura, prostate, soft_tissue, stomach, upper_aerodigestive_tract, urinary_tract, central_nervous_system | AB108: 10, 5, 15, 5, 5, 100, 5, 7, 5, 1 | AC108: rs1042522 | AD108: rs1042522 | AE108: NO | AF108: 0.659 | AG108: NO | AH108: YES | AI108: 0.155 | AJ108: Tolerated | AK108: 35.17 | AL108: 34.72 | AM108: 276 | AN108: 430 | AO108: 706 | AP108: 0.6090651558 | AQ108: 61 | AR108: 70 | AS108: 132 | AT108: 0.5303030303 | AU108: 0.1208044627 | AV108: 42 | AW108: 42 | AX108: Polymorphism
A109: ESP6500, 1000 Genomes, dbSNP, ExAC, ClinVar, prediction, VAF, many samples | B109: UPN_Te2_044 | C109: 17 | D109: 7579472 | E109: G | F109: C | G109: TP53 | H109: ENST00000269305 | I109: missense_variant | J109: cCc/cGc|p.Pro72Arg/c.215C>G | K109: 112 | L109: 227 | M109: 341 | N109: 0.6656891496 | O109: 1 | P109: 1 | Q109: 1 | R109: 1 | S109: 1 | T109: 1 | U109: 1 | V109: 1 | W109: 8 | X109: 25.4767 | Y109: 0.7147 | Z109: COSM3766190, COSM3766191, COSM250061, COSM3766193, COSM3766192 | AA109: large_intestine, liver, pancreas, pleura, prostate, soft_tissue, stomach, upper_aerodigestive_tract, urinary_tract, central_nervous_system | AB109: 10, 5, 15, 5, 5, 100, 5, 7, 5, 1 | AC109: rs1042522 | AD109: rs1042522 | AE109: NO | AF109: 0.659 | AG109: NO | AH109: YES | AI109: 0.155 | AJ109: Tolerated | AK109: 35.83 | AL109: 35.9 | AM109: 106 | AN109: 217 | AO109: 325 | AP109: 0.6676923077 | AQ109: 6 | AR109: 10 | AS109: 16 | AT109: 0.625 | AU109: 0.7864989723 | AV109: 42 | AW109: 42 | AX109: Polymorphism
A110: ESP6500, 1000 Genomes, dbSNP, ExAC, ClinVar, prediction, VAF, many samples | B110: UPN_Te2_045 | C110: 17 | D110: 7579472 | E110: G | F110: C | G110: TP53 | H110: ENST00000269305 | I110: missense_variant | J110: cCc/cGc|p.Pro72Arg/c.215C>G | K110: 3 | L110: 490 | M110: 493 | N110: 0.9939148073 | O110: 1 | P110: 1 | Q110: 1 | R110: 1 | S110: 1 | T110: 1 | U110: 1 | V110: 1 | W110: 8 | X110: 25.4767 | Y110: 0.7147 | Z110: COSM3766190, COSM3766191, COSM250061, COSM3766193, COSM3766192 | AA110: large_intestine, liver, pancreas, pleura, prostate, soft_tissue, stomach, upper_aerodigestive_tract, urinary_tract, central_nervous_system | AB110: 10, 5, 15, 5, 5, 100, 5, 7, 5, 1 | AC110: rs1042522 | AD110: rs1042522 | AE110: NO | AF110: 0.659 | AG110: NO | AH110: YES | AI110: 0.155 | AJ110: Tolerated | AK110: 38 | AL110: 36.02 | AM110: 2 | AN110: 462 | AO110: 464 | AP110: 0.9956896552 | AQ110: 1 | AR110: 28 | AS110: 29 | AT110: 0.9655172414 | AU110: 0.166611635 | AV110: 42 | AW110: 42 | AX110: Polymorphism
A111: ESP6500, 1000 Genomes, dbSNP, ExAC, ClinVar, prediction, VAF, many samples | B111: UPN_Te2_046 | C111: 17 | D111: 7579472 | E111: G | F111: C | G111: TP53 | H111: ENST00000269305 | I111: missense_variant | J111: cCc/cGc|p.Pro72Arg/c.215C>G | K111: 71 | L111: 102 | M111: 173 | N111: 0.5895953757 | O111: 1 | P111: 1 | Q111: 1 | R111: 1 | S111: 1 | T111: 1 | U111: 1 | V111: 1 | W111: 8 | X111: 25.4767 | Y111: 0.7147 | Z111: COSM3766190, COSM3766191, COSM250061, COSM3766193, COSM3766192 | AA111: large_intestine, liver, pancreas, pleura, prostate, soft_tissue, stomach, upper_aerodigestive_tract, urinary_tract, central_nervous_system | AB111: 10, 5, 15, 5, 5, 100, 5, 7, 5, 1 | AC111: rs1042522 | AD111: rs1042522 | AE111: NO | AF111: 0.659 | AG111: NO | AH111: YES | AI111: 0.155 | AJ111: Tolerated | AK111: 35.89 | AL111: 35.73 | AM111: 69 | AN111: 98 | AO111: 167 | AP111: 0.5868263473 | AQ111: 2 | AR111: 4 | AS111: 6 | AT111: 0.6666666667 | AU111: 1 | AV111: 42 | AW111: 42 | AX111: Polymorphism
A112: VAF, many samples, 1000 Genomes, dbSNP, ExAC, prediction | B112: UPN_Te2_001 | C112: 20 | D112: 31022959 | E112: T | F112: C | G112: ASXL1 | H112: ENST00000375687 | I112: missense_variant | J112: cTg/cCg|p.Leu815Pro/c.2444T>C | K112: 3 | L112: 4833 | M112: 4864 | N112: 0.9936266447 | O112: 1 | P112: 1 | Q112: 1 | R112: 1 | S112: 1 | T112: 1 | U112: 1 | V112: 1 | W112: 8 | X112: 0 | Y112: 1 | Z112: NO | AA112: NO | AB112: O | AC112: rs6058694 | AD112: rs6058694 | AE112: NO | AF112: 1 | AG112: NO | AH112: NO | AI112: 1.033 | AJ112: Tolerated | AK112: 6 | AL112: 36.38 | AM112: 0 | AN112: 2985 | AO112: 2989 | AP112: 0.9986617598 | AQ112: 3 | AR112: 1848 | AS112: 1875 | AT112: 0.9856 | AU112: 0.0560177475 | AV112: 45 | AW112: 45 | AX112: Polymorphism
A113: VAF, many samples, 1000 Genomes, dbSNP, ExAC, prediction | B113: UPN_Te2_002 | C113: 20 | D113: 31022959 | E113: T | F113: C | G113: ASXL1 | H113: ENST00000375687 | I113: missense_variant | J113: cTg/cCg|p.Leu815Pro/c.2444T>C | K113: 1 | L113: 5243 | M113: 5263 | N113: 0.996199886 | O113: 1 | P113: 1 | Q113: 1 | R113: 1 | S113: 1 | T113: 1 | U113: 1 | V113: 1 | W113: 8 | X113: 0 | Y113: 1 | Z113: NO | AA113: NO | AB113: O | AC113: rs6058694 | AD113: rs6058694 | AE113: NO | AF113: 1 | AG113: NO | AH113: NO | AI113: 1.033 | AJ113: Tolerated | AK113: 15 | AL113: 36.31 | AM113: 0 | AN113: 3303 | AO113: 3303 | AP113: 1 | AQ113: 1 | AR113: 1940 | AS113: 1960 | AT113: 0.9897959184 | AU113: 0.3701372998 | AV113: 45 | AW113: 45 | AX113: Polymorphism
A114: VAF, many samples, 1000 Genomes, dbSNP, ExAC, prediction | B114: UPN_Te2_003 | C114: 20 | D114: 31022959 | E114: T | F114: C | G114: ASXL1 | H114: ENST00000375687 | I114: missense_variant | J114: cTg/cCg|p.Leu815Pro/c.2444T>C | K114: 4 | L114: 4725 | M114: 4750 | N114: 0.9947368421 | O114: 1 | P114: 1 | Q114: 1 | R114: 1 | S114: 1 | T114: 1 | U114: 1 | V114: 1 | W114: 8 | X114: 0 | Y114: 1 | Z114: NO | AA114: NO | AB114: O | AC114: rs6058694 | AD114: rs6058694 | AE114: NO | AF114: 1 | AG114: NO | AH114: NO | AI114: 1.033 | AJ114: Tolerated | AK114: 16.75 | AL114: 36.53 | AM114: 2 | AN114: 2970 | AO114: 2976 | AP114: 0.997983871 | AQ114: 2 | AR114: 1755 | AS114: 1774 | AT114: 0.9892897407 | AU114: 0.6310108827 | AV114: 45 | AW114: 45 | AX114: Polymorphism
A115: VAF, many samples, 1000 Genomes, dbSNP, ExAC, prediction | B115: UPN_Te2_004 | C115: 20 | D115: 31022959 | E115: T | F115: C | G115: ASXL1 | H115: ENST00000375687 | I115: missense_variant | J115: cTg/cCg|p.Leu815Pro/c.2444T>C | K115: 4 | L115: 4804 | M115: 4829 | N115: 0.9948229447 | O115: 1 | P115: 1 | Q115: 1 | R115: 1 | S115: 1 | T115: 1 | U115: 1 | V115: 1 | W115: 8 | X115: 0 | Y115: 1 | Z115: NO | AA115: NO | AB115: O | AC115: rs6058694 | AD115: rs6058694 | AE115: NO | AF115: 1 | AG115: NO | AH115: NO | AI115: 1.033 | AJ115: Tolerated | AK115: 12.75 | AL115: 36.29 | AM115: 0 | AN115: 2908 | AO115: 2909 | AP115: 0.9996562393 | AQ115: 4 | AR115: 1896 | AS115: 1920 | AT115: 0.9875 | AU115: 0.0243403246 | AV115: 45 | AW115: 45 | AX115: Polymorphism
A116: VAF, many samples, 1000 Genomes, dbSNP, ExAC, prediction | B116: UPN_Te2_005 | C116: 20 | D116: 31022959 | E116: T | F116: C | G116: ASXL1 | H116: ENST00000375687 | I116: missense_variant | J116: cTg/cCg|p.Leu815Pro/c.2444T>C | K116: 6 | L116: 4648 | M116: 4671 | N116: 0.9950760009 | O116: 1 | P116: 1 | Q116: 1 | R116: 1 | S116: 1 | T116: 1 | U116: 1 | V116: 1 | W116: 8 | X116: 0 | Y116: 1 | Z116: NO | AA116: NO | AB116: O | AC116: rs6058694 | AD116: rs6058694 | AE116: NO | AF116: 1 | AG116: NO | AH116: NO | AI116: 1.033 | AJ116: Tolerated | AK116: 37.83 | AL116: 36.26 | AM116: 0 | AN116: 2746 | AO116: 2748 | AP116: 0.999272198 | AQ116: 6 | AR116: 1902 | AS116: 1923 | AT116: 0.9890795632 | AU116: 0.0047260106 | AV116: 45 | AW116: 45 | AX116: Polymorphism
A117: VAF, many samples, 1000 Genomes, dbSNP, ExAC, prediction | B117: UPN_Te2_006 | C117: 20 | D117: 31022959 | E117: T | F117: C | G117: ASXL1 | H117: ENST00000375687 | I117: missense_variant | J117: cTg/cCg|p.Leu815Pro/c.2444T>C | K117: 3 | L117: 3520 | M117: 3533 | N117: 0.9963204076 | O117: 1 | P117: 1 | Q117: 1 | R117: 1 | S117: 1 | T117: 1 | U117: 1 | V117: 1 | W117: 8 | X117: 0 | Y117: 1 | Z117: NO | AA117: NO | AB117: O | AC117: rs6058694 | AD117: rs6058694 | AE117: NO | AF117: 1 | AG117: NO | AH117: NO | AI117: 1.033 | AJ117: Tolerated | AK117: 27.67 | AL117: 36.04 | AM117: 2 | AN117: 2014 | AO117: 2018 | AP117: 0.9980178394 | AQ117: 1 | AR117: 1506 | AS117: 1515 | AT117: 0.9940594059 | AU117: 1 | AV117: 45 | AW117: 45 | AX117: Polymorphism
A118: VAF, many samples, 1000 Genomes, dbSNP, ExAC, prediction | B118: UPN_Te2_007 | C118: 20 | D118: 31022959 | E118: T | F118: C | G118: ASXL1 | H118: ENST00000375687 | I118: missense_variant | J118: cTg/cCg|p.Leu815Pro/c.2444T>C | K118: 6 | L118: 7401 | M118: 7432 | N118: 0.9958288482 | O118: 1 | P118: 1 | Q118: 1 | R118: 1 | S118: 1 | T118: 1 | U118: 1 | V118: 1 | W118: 8 | X118: 0 | Y118: 1 | Z118: NO | AA118: NO | AB118: O | AC118: rs6058694 | AD118: rs6058694 | AE118: NO | AF118: 1 | AG118: NO | AH118: NO | AI118: 1.033 | AJ118: Tolerated | AK118: 14.33 | AL118: 35.42 | AM118: 3 | AN118: 4015 | AO118: 4022 | AP118: 0.9982595724 | AQ118: 3 | AR118: 3386 | AS118: 3410 | AT118: 0.9929618768 | AU118: 1 | AV118: 45 | AW118: 45 | AX118: Polymorphism
A119: VAF, many samples, 1000 Genomes, dbSNP, ExAC, prediction | B119: UPN_Te2_008 | C119: 20 | D119: 31022959 | E119: T | F119: C | G119: ASXL1 | H119: ENST00000375687 | I119: missense_variant | J119: cTg/cCg|p.Leu815Pro/c.2444T>C | K119: 8 | L119: 1906 | M119: 1923 | N119: 0.9911596464 | O119: 1 | P119: 1 | Q119: 1 | R119: 1 | S119: 1 | T119: 1 | U119: 1 | V119: 1 | W119: 8 | X119: 0 | Y119: 1 | Z119: NO | AA119: NO | AB119: O | AC119: rs6058694 | AD119: rs6058694 | AE119: NO | AF119: 1 | AG119: NO | AH119: NO | AI119: 1.033 | AJ119: Tolerated | AK119: 14.38 | AL119: 36.08 | AM119: 2 | AN119: 1116 | AO119: 1118 | AP119: 0.9982110912 | AQ119: 6 | AR119: 790 | AS119: 805 | AT119: 0.9813664596 | AU119: 0.0734008481 | AV119: 45 | AW119: 45 | AX119: Polymorphism
A120: VAF, many samples, 1000 Genomes, dbSNP, ExAC, prediction | B120: UPN_Te2_009 | C120: 20 | D120: 31022959 | E120: T | F120: C | G120: ASXL1 | H120: ENST00000375687 | I120: missense_variant | J120: cTg/cCg|p.Leu815Pro/c.2444T>C | K120: 7 | L120: 5686 | M120: 5716 | N120: 0.9947515745 | O120: 1 | P120: 1 | Q120: 1 | R120: 1 | S120: 1 | T120: 1 | U120: 1 | V120: 1 | W120: 8 | X120: 0 | Y120: 1 | Z120: NO | AA120: NO | AB120: O | AC120: rs6058694 | AD120: rs6058694 | AE120: NO | AF120: 1 | AG120: NO | AH120: NO | AI120: 1.033 | AJ120: Tolerated | AK120: 24.86 | AL120: 36.17 | AM120: 3 | AN120: 3550 | AO120: 3554 | AP120: 0.9988745076 | AQ120: 4 | AR120: 2136 | AS120: 2162 | AT120: 0.9879740981 | AU120: 0.4367289015 | AV120: 45 | AW120: 45 | AX120: Polymorphism
A121: VAF, many samples, 1000 Genomes, dbSNP, ExAC, prediction | B121: UPN_Te2_010 | C121: 20 | D121: 31022959 | E121: T | F121: C | G121: ASXL1 | H121: ENST00000375687 | I121: missense_variant | J121: cTg/cCg|p.Leu815Pro/c.2444T>C | K121: 2 | L121: 4043 | M121: 4060 | N121: 0.9958128079 | O121: 1 | P121: 1 | Q121: 1 | R121: 1 | S121: 1 | T121: 1 | U121: 1 | V121: 1 | W121: 8 | X121: 0 | Y121: 1 | Z121: NO | AA121: NO | AB121: O | AC121: rs6058694 | AD121: rs6058694 | AE121: NO | AF121: 1 | AG121: NO | AH121: NO | AI121: 1.033 | AJ121: Tolerated | AK121: 19.5 | AL121: 35.72 | AM121: 0 | AN121: 2244 | AO121: 2245 | AP121: 0.9995545657 | AQ121: 2 | AR121: 1799 | AS121: 1815 | AT121: 0.991184573 | AU121: 0.1981785037 | AV121: 45 | AW121: 45 | AX121: Polymorphism
A122: VAF, many samples, 1000 Genomes, dbSNP, ExAC, prediction | B122: UPN_Te2_011 | C122: 20 | D122: 31022959 | E122: T | F122: C | G122: ASXL1 | H122: ENST00000375687 | I122: missense_variant | J122: cTg/cCg|p.Leu815Pro/c.2444T>C | K122: 4 | L122: 6327 | M122: 6361 | N122: 0.9946549285 | O122: 1 | P122: 1 | Q122: 1 | R122: 1 | S122: 1 | T122: 1 | U122: 1 | V122: 1 | W122: 8 | X122: 0 | Y122: 1 | Z122: NO | AA122: NO | AB122: O | AC122: rs6058694 | AD122: rs6058694 | AE122: NO | AF122: 1 | AG122: NO | AH122: NO | AI122: 1.033 | AJ122: Tolerated | AK122: 7.25 | AL122: 36.21 | AM122: 1 | AN122: 3736 | AO122: 3741 | AP122: 0.998663459 | AQ122: 3 | AR122: 2591 | AS122: 2620 | AT122: 0.9889312977 | AU122: 0.3118332144 | AV122: 45 | AW122: 45 | AX122: Polymorphism
A123: VAF, many samples, 1000 Genomes, dbSNP, ExAC, prediction | B123: UPN_Te2_012 | C123: 20 | D123: 31022959 | E123: T | F123: C | G123: ASXL1 | H123: ENST00000375687 | I123: missense_variant | J123: cTg/cCg|p.Leu815Pro/c.2444T>C | K123: 10 | L123: 8694 | M123: 8743 | N123: 0.9943955164 | O123: 1 | P123: 1 | Q123: 1 | R123: 1 | S123: 1 | T123: 1 | U123: 1 | V123: 1 | W123: 8 | X123: 0 | Y123: 1 | Z123: NO | AA123: NO | AB123: O | AC123: rs6058694 | AD123: rs6058694 | AE123: NO | AF123: 1 | AG123: NO | AH123: NO | AI123: 1.033 | AJ123: Tolerated | AK123: 23.6 | AL123: 36.22 | AM123: 6 | AN123: 5083 | AO123: 5092 | AP123: 0.9982325216 | AQ123: 4 | AR123: 3611 | AS123: 3651 | AT123: 0.9890440975 | AU123: 1 | AV123: 45 | AW123: 45 | AX123: Polymorphism
A124: VAF, many samples, 1000 Genomes, dbSNP, ExAC, prediction | B124: UPN_Te2_013 | C124: 20 | D124: 31022959 | E124: T | F124: C | G124: ASXL1 | H124: ENST00000375687 | I124: missense_variant | J124: cTg/cCg|p.Leu815Pro/c.2444T>C | K124: 3 | L124: 4925 | M124: 4947 | N124: 0.9955528603 | O124: 1 | P124: 1 | Q124: 1 | R124: 1 | S124: 1 | T124: 1 | U124: 1 | V124: 1 | W124: 8 | X124: 0 | Y124: 1 | Z124: NO | AA124: NO | AB124: O | AC124: rs6058694 | AD124: rs6058694 | AE124: NO | AF124: 1 | AG124: NO | AH124: NO | AI124: 1.033 | AJ124: Tolerated | AK124: 4.67 | AL124: 35.9 | AM124: 0 | AN124: 2976 | AO124: 2978 | AP124: 0.9993284083 | AQ124: 3 | AR124: 1949 | AS124: 1969 | AT124: 0.9898425597 | AU124: 0.0620903382 | AV124: 45 | AW124: 45 | AX124: Polymorphism
A125: VAF, many samples, 1000 Genomes, dbSNP, ExAC, prediction | B125: UPN_Te2_014 | C125: 20 | D125: 31022959 | E125: T | F125: C | G125: ASXL1 | H125: ENST00000375687 | I125: missense_variant | J125: cTg/cCg|p.Leu815Pro/c.2444T>C | K125: 2 | L125: 3197 | M125: 3213 | N125: 0.9950202303 | O125: 1 | P125: 1 | Q125: 1 | R125: 1 | S125: 1 | T125: 1 | U125: 1 | V125: 1 | W125: 8 | X125: 0 | Y125: 1 | Z125: NO | AA125: NO | AB125: O | AC125: rs6058694 | AD125: rs6058694 | AE125: NO | AF125: 1 | AG125: NO | AH125: NO | AI125: 1.033 | AJ125: Tolerated | AK125: 10.5 | AL125: 36.02 | AM125: 2 | AN125: 1959 | AO125: 1962 | AP125: 0.998470948 | AQ125: 0 | AR125: 1238 | AS125: 1251 | AT125: 0.9896083133 | AU125: 0.5253914753 | AV125: 45 | AW125: 45 | AX125: Polymorphism
A126: VAF, many samples, 1000 Genomes, dbSNP, ExAC, prediction | B126: UPN_Te2_015 | C126: 20 | D126: 31022959 | E126: T | F126: C | G126: ASXL1 | H126: ENST00000375687 | I126: missense_variant | J126: cTg/cCg|p.Leu815Pro/c.2444T>C | K126: 5 | L126: 4830 | M126: 4850 | N126: 0.9958762887 | O126: 1 | P126: 1 | Q126: 1 | R126: 1 | S126: 1 | T126: 1 | U126: 1 | V126: 1 | W126: 8 | X126: 0 | Y126: 1 | Z126: NO | AA126: NO | AB126: O | AC126: rs6058694 | AD126: rs6058694 | AE126: NO | AF126: 1 | AG126: NO | AH126: NO | AI126: 1.033 | AJ126: Tolerated | AK126: 12.4 | AL126: 36.08 | AM126: 4 | AN126: 2990 | AO126: 2997 | AP126: 0.997664331 | AQ126: 1 | AR126: 1840 | AS126: 1853 | AT126: 0.9929843497 | AU126: 0.6555645601 | AV126: 45 | AW126: 45 | AX126: Polymorphism
A127: VAF, many samples, 1000 Genomes, dbSNP, ExAC, prediction | B127: UPN_Te2_016 | C127: 20 | D127: 31022959 | E127: T | F127: C | G127: ASXL1 | H127: ENST00000375687 | I127: missense_variant | J127: cTg/cCg|p.Leu815Pro/c.2444T>C | K127: 0 | L127: 5771 | M127: 5801 | N127: 0.9948284778 | O127: 1 | P127: 1 | Q127: 1 | R127: 1 | S127: 1 | T127: 1 | U127: 1 | V127: 1 | W127: 8 | X127: 0 | Y127: 1 | Z127: NO | AA127: NO | AB127: O | AC127: rs6058694 | AD127: rs6058694 | AE127: NO | AF127: 1 | AG127: NO | AH127: NO | AI127: 1.033 | AJ127: Tolerated | AK127: 0 | AL127: 36.03 | AM127: 0 | AN127: 3392 | AO127: 3394 | AP127: 0.9994107248 | AQ127: 0 | AR127: 2379 | AS127: 2407 | AT127: 0.9883672622 | AU127: 1 | AV127: 45 | AW127: 45 | AX127: Polymorphism
A128: VAF, many samples, 1000 Genomes, dbSNP, ExAC, prediction | B128: UPN_Te2_017 | C128: 20 | D128: 31022959 | E128: T | F128: C | G128: ASXL1 | H128: ENST00000375687 | I128: missense_variant | J128: cTg/cCg|p.Leu815Pro/c.2444T>C | K128: 10 | L128: 6378 | M128: 6414 | N128: 0.9943872778 | O128: 1 | P128: 1 | Q128: 1 | R128: 1 | S128: 1 | T128: 1 | U128: 1 | V128: 1 | W128: 8 | X128: 0 | Y128: 1 | Z128: NO | AA128: NO | AB128: O | AC128: rs6058694 | AD128: rs6058694 | AE128: NO | AF128: 1 | AG128: NO | AH128: NO | AI128: 1.033 | AJ128: Tolerated | AK128: 17.8 | AL128: 35.91 | AM128: 5 | AN128: 3736 | AO128: 3743 | AP128: 0.9981298424 | AQ128: 5 | AR128: 2642 | AS128: 2671 | AT128: 0.9891426432 | AU128: 0.7500540791 | AV128: 45 | AW128: 45 | AX128: Polymorphism
A129: VAF, many samples, 1000 Genomes, dbSNP, ExAC, prediction | B129: UPN_Te2_018 | C129: 20 | D129: 31022959 | E129: T | F129: C | G129: ASXL1 | H129: ENST00000375687 | I129: missense_variant | J129: cTg/cCg|p.Leu815Pro/c.2444T>C | K129: 1 | L129: 4707 | M129: 4731 | N129: 0.9949270767 | O129: 1 | P129: 1 | Q129: 1 | R129: 1 | S129: 1 | T129: 1 | U129: 1 | V129: 1 | W129: 8 | X129: 0 | Y129: 1 | Z129: NO | AA129: NO | AB129: O | AC129: rs6058694 | AD129: rs6058694 | AE129: NO | AF129: 1 | AG129: NO | AH129: NO | AI129: 1.033 | AJ129: Tolerated | AK129: 40 | AL129: 36.11 | AM129: 1 | AN129: 2893 | AO129: 2894 | AP129: 0.9996544575 | AQ129: 0 | AR129: 1814 | AS129: 1837 | AT129: 0.9874795863 | AU129: 1 | AV129: 45 | AW129: 45 | AX129: Polymorphism
A130: VAF, many samples, 1000 Genomes, dbSNP, ExAC, prediction | B130: UPN_Te2_019 | C130: 20 | D130: 31022959 | E130: T | F130: C | G130: ASXL1 | H130: ENST00000375687 | I130: missense_variant | J130: cTg/cCg|p.Leu815Pro/c.2444T>C | K130: 6 | L130: 3307 | M130: 3330 | N130: 0.9930930931 | O130: 1 | P130: 1 | Q130: 1 | R130: 1 | S130: 1 | T130: 1 | U130: 1 | V130: 1 | W130: 8 | X130: 0 | Y130: 1 | Z130: NO | AA130: NO | AB130: O | AC130: rs6058694 | AD130: rs6058694 | AE130: NO | AF130: 1 | AG130: NO | AH130: NO | AI130: 1.033 | AJ130: Tolerated | AK130: 32.17 | AL130: 36.38 | AM130: 5 | AN130: 2259 | AO130: 2267 | AP130: 0.9964711072 | AQ130: 1 | AR130: 1048 | AS130: 1063 | AT130: 0.9858889934 | AU130: 0.6717377343 | AV130: 45 | AW130: 45 | AX130: Polymorphism
A131: VAF, many samples, 1000 Genomes, dbSNP, ExAC, prediction | B131: UPN_Te2_020 | C131: 20 | D131: 31022959 | E131: T | F131: C | G131: ASXL1 | H131: ENST00000375687 | I131: missense_variant | J131: cTg/cCg|p.Leu815Pro/c.2444T>C | K131: 0 | L131: 2501 | M131: 2512 | N131: 0.9956210191 | O131: 1 | P131: 1 | Q131: 1 | R131: 1 | S131: 1 | T131: 1 | U131: 1 | V131: 1 | W131: 8 | X131: 0 | Y131: 1 | Z131: NO | AA131: NO | AB131: O | AC131: rs6058694 | AD131: rs6058694 | AE131: NO | AF131: 1 | AG131: NO | AH131: NO | AI131: 1.033 | AJ131: Tolerated | AK131: 0 | AL131: 36.29 | AM131: 0 | AN131: 1528 | AO131: 1528 | AP131: 1 | AQ131: 0 | AR131: 973 | AS131: 984 | AT131: 0.9888211382 | AU131: 1 | AV131: 45 | AW131: 45 | AX131: Polymorphism
A132: VAF, many samples, 1000 Genomes, dbSNP, ExAC, prediction | B132: UPN_Te2_021 | C132: 20 | D132: 31022959 | E132: T | F132: C | G132: ASXL1 | H132: ENST00000375687 | I132: missense_variant | J132: cTg/cCg|p.Leu815Pro/c.2444T>C | K132: 5 | L132: 4254 | M132: 4279 | N132: 0.9941575134 | O132: 1 | P132: 1 | Q132: 1 | R132: 1 | S132: 1 | T132: 1 | U132: 1 | V132: 1 | W132: 8 | X132: 0 | Y132: 1 | Z132: NO | AA132: NO | AB132: O | AC132: rs6058694 | AD132: rs6058694 | AE132: NO | AF132: 1 | AG132: NO | AH132: NO | AI132: 1.033 | AJ132: Tolerated | AK132: 32 | AL132: 36.19 | AM132: 2 | AN132: 2445 | AO132: 2448 | AP132: 0.9987745098 | AQ132: 3 | AR132: 1809 | AS132: 1831 | AT132: 0.9879847078 | AU132: 0.6564991642 | AV132: 45 | AW132: 45 | AX132: Polymorphism
A133: VAF, many samples, 1000 Genomes, dbSNP, ExAC, prediction | B133: UPN_Te2_022 | C133: 20 | D133: 31022959 | E133: T | F133: C | G133: ASXL1 | H133: ENST00000375687 | I133: missense_variant | J133: cTg/cCg|p.Leu815Pro/c.2444T>C | K133: 1 | L133: 3883 | M133: 3901 | N133: 0.9953857985 | O133: 1 | P133: 1 | Q133: 1 | R133: 1 | S133: 1 | T133: 1 | U133: 1 | V133: 1 | W133: 8 | X133: 0 | Y133: 1 | Z133: NO | AA133: NO | AB133: O | AC133: rs6058694 | AD133: rs6058694 | AE133: NO | AF133: 1 | AG133: NO | AH133: NO | AI133: 1.033 | AJ133: Tolerated | AK133: 40 | AL133: 36.27 | AM133: 1 | AN133: 2349 | AO133: 2350 | AP133: 0.9995744681 | AQ133: 0 | AR133: 1534 | AS133: 1551 | AT133: 0.9890393295 | AU133: 1 | AV133: 45 | AW133: 45 | AX133: Polymorphism
A134: VAF, many samples, 1000 Genomes, dbSNP, ExAC, prediction | B134: UPN_Te2_023 | C134: 20 | D134: 31022959 | E134: T | F134: C | G134: ASXL1 | H134: ENST00000375687 | I134: missense_variant | J134: cTg/cCg|p.Leu815Pro/c.2444T>C | K134: 4 | L134: 3304 | M134: 3323 | N134: 0.9942822751 | O134: 1 | P134: 1 | Q134: 1 | R134: 1 | S134: 1 | T134: 1 | U134: 1 | V134: 1 | W134: 8 | X134: 0 | Y134: 1 | Z134: NO | AA134: NO | AB134: O | AC134: rs6058694 | AD134: rs6058694 | AE134: NO | AF134: 1 | AG134: NO | AH134: NO | AI134: 1.033 | AJ134: Tolerated | AK134: 16.75 | AL134: 36.24 | AM134: 2 | AN134: 2054 | AO134: 2059 | AP134: 0.9975716367 | AQ134: 2 | AR134: 1250 | AS134: 1264 | AT134: 0.9889240506 | AU134: 0.6363984825 | AV134: 45 | AW134: 45 | AX134: Polymorphism
A135: VAF, many samples, 1000 Genomes, dbSNP, ExAC, prediction | B135: UPN_Te2_024 | C135: 20 | D135: 31022959 | E135: T | F135: C | G135: ASXL1 | H135: ENST00000375687 | I135: missense_variant | J135: cTg/cCg|p.Leu815Pro/c.2444T>C | K135: 3 | L135: 2758 | M135: 2765 | N135: 0.9974683544 | O135: 1 | P135: 1 | Q135: 1 | R135: 1 | S135: 1 | T135: 1 | U135: 1 | V135: 1 | W135: 8 | X135: 0 | Y135: 1 | Z135: NO | AA135: NO | AB135: O | AC135: rs6058694 | AD135: rs6058694 | AE135: NO | AF135: 1 | AG135: NO | AH135: NO | AI135: 1.033 | AJ135: Tolerated | AK135: 20.33 | AL135: 36.17 | AM135: 1 | AN135: 1828 | AO135: 1829 | AP135: 0.9994532531 | AQ135: 2 | AR135: 930 | AS135: 936 | AT135: 0.9935897436 | AU135: 0.2648319897 | AV135: 45 | AW135: 45 | AX135: Polymorphism
A136: VAF, many samples, 1000 Genomes, dbSNP, ExAC, prediction | B136: UPN_Te2_025 | C136: 20 | D136: 31022959 | E136: T | F136: C | G136: ASXL1 | H136: ENST00000375687 | I136: missense_variant | J136: cTg/cCg|p.Leu815Pro/c.2444T>C | K136: 4 | L136: 3650 | M136: 3671 | N136: 0.9942794879 | O136: 1 | P136: 1 | Q136: 1 | R136: 1 | S136: 1 | T136: 1 | U136: 1 | V136: 1 | W136: 8 | X136: 0 | Y136: 1 | Z136: NO | AA136: NO | AB136: O | AC136: rs6058694 | AD136: rs6058694 | AE136: NO | AF136: 1 | AG136: NO | AH136: NO | AI136: 1.033 | AJ136: Tolerated | AK136: 21.25 | AL136: 36.18 | AM136: 2 | AN136: 2196 | AO136: 2198 | AP136: 0.9990900819 | AQ136: 2 | AR136: 1454 | AS136: 1473 | AT136: 0.9871011541 | AU136: 0.6529830966 | AV136: 45 | AW136: 45 | AX136: Polymorphism
A137: VAF, many samples, 1000 Genomes, dbSNP, ExAC, prediction | B137: UPN_Te2_026 | C137: 20 | D137: 31022959 | E137: T | F137: C | G137: ASXL1 | H137: ENST00000375687 | I137: missense_variant | J137: cTg/cCg|p.Leu815Pro/c.2444T>C | K137: 0 | L137: 4434 | M137: 4449 | N137: 0.9966284558 | O137: 1 | P137: 1 | Q137: 1 | R137: 1 | S137: 1 | T137: 1 | U137: 1 | V137: 1 | W137: 8 | X137: 0 | Y137: 1 | Z137: NO | AA137: NO | AB137: O | AC137: rs6058694 | AD137: rs6058694 | AE137: NO | AF137: 1 | AG137: NO | AH137: NO | AI137: 1.033 | AJ137: Tolerated | AK137: 0 | AL137: 36.18 | AM137: 0 | AN137: 2757 | AO137: 2758 | AP137: 0.9996374184 | AQ137: 0 | AR137: 1677 | AS137: 1691 | AT137: 0.9917208752 | AU137: 1 | AV137: 45 | AW137: 45 | AX137: Polymorphism
A138: VAF, many samples, 1000 Genomes, dbSNP, ExAC, prediction | B138: UPN_Te2_027 | C138: 20 | D138: 31022959 | E138: T | F138: C | G138: ASXL1 | H138: ENST00000375687 | I138: missense_variant | J138: cTg/cCg|p.Leu815Pro/c.2444T>C | K138: 2 | L138: 2777 | M138: 2794 | N138: 0.9939155333 | O138: 1 | P138: 1 | Q138: 1 | R138: 1 | S138: 1 | T138: 1 | U138: 1 | V138: 1 | W138: 8 | X138: 0 | Y138: 1 | Z138: NO | AA138: NO | AB138: O | AC138: rs6058694 | AD138: rs6058694 | AE138: NO | AF138: 1 | AG138: NO | AH138: NO | AI138: 1.033 | AJ138: Tolerated | AK138: 21 | AL138: 36.33 | AM138: 1 | AN138: 1786 | AO138: 1788 | AP138: 0.9988814318 | AQ138: 1 | AR138: 991 | AS138: 1006 | AT138: 0.9850894632 | AU138: 1 | AV138: 45 | AW138: 45 | AX138: Polymorphism
A139: VAF, many samples, 1000 Genomes, dbSNP, ExAC, prediction | B139: UPN_Te2_028 | C139: 20 | D139: 31022959 | E139: T | F139: C | G139: ASXL1 | H139: ENST00000375687 | I139: missense_variant | J139: cTg/cCg|p.Leu815Pro/c.2444T>C | K139: 9 | L139: 5215 | M139: 5244 | N139: 0.9944698703 | O139: 1 | P139: 1 | Q139: 1 | R139: 1 | S139: 1 | T139: 1 | U139: 1 | V139: 1 | W139: 8 | X139: 0 | Y139: 1 | Z139: NO | AA139: NO | AB139: O | AC139: rs6058694 | AD139: rs6058694 | AE139: NO | AF139: 1 | AG139: NO | AH139: NO | AI139: 1.033 | AJ139: Tolerated | AK139: 13.44 | AL139: 36.16 | AM139: 3 | AN139: 3180 | AO139: 3185 | AP139: 0.9984301413 | AQ139: 6 | AR139: 2035 | AS139: 2059 | AT139: 0.9883438562 | AU139: 0.1673464962 | AV139: 45 | AW139: 45 | AX139: Polymorphism
A140: VAF, many samples, 1000 Genomes, dbSNP, ExAC, prediction | B140: UPN_Te2_029 | C140: 20 | D140: 31022959 | E140: T | F140: C | G140: ASXL1 | H140: ENST00000375687 | I140: missense_variant | J140: cTg/cCg|p.Leu815Pro/c.2444T>C | K140: 2 | L140: 1219 | M140: 1232 | N140: 0.9894480519 | O140: 1 | P140: 1 | Q140: 1 | R140: 1 | S140: 1 | T140: 1 | U140: 1 | V140: 1 | W140: 8 | X140: 0 | Y140: 1 | Z140: NO | AA140: NO | AB140: O | AC140: rs6058694 | AD140: rs6058694 | AE140: NO | AF140: 1 | AG140: NO | AH140: NO | AI140: 1.033 | AJ140: Tolerated | AK140: 21.5 | AL140: 35.77 | AM140: 0 | AN140: 709 | AO140: 712 | AP140: 0.9957865169 | AQ140: 2 | AR140: 510 | AS140: 520 | AT140: 0.9807692308 | AU140: 0.1756367396 | AV140: 45 | AW140: 45 | AX140: Polymorphism
A141: VAF, many samples, 1000 Genomes, dbSNP, ExAC, prediction | B141: UPN_Te2_030 | C141: 20 | D141: 31022959 | E141: T | F141: C | G141: ASXL1 | H141: ENST00000375687 | I141: missense_variant | J141: cTg/cCg|p.Leu815Pro/c.2444T>C | K141: 3 | L141: 1291 | M141: 1297 | N141: 0.9953739399 | O141: 1 | P141: 1 | Q141: 1 | R141: 1 | S141: 1 | T141: 1 | U141: 1 | V141: 1 | W141: 8 | X141: 0 | Y141: 1 | Z141: NO | AA141: NO | AB141: O | AC141: rs6058694 | AD141: rs6058694 | AE141: NO | AF141: 1 | AG141: NO | AH141: NO | AI141: 1.033 | AJ141: Tolerated | AK141: 27.33 | AL141: 36.02 | AM141: 0 | AN141: 792 | AO141: 792 | AP141: 1 | AQ141: 3 | AR141: 499 | AS141: 505 | AT141: 0.9881188119 | AU141: 0.0581722862 | AV141: 45 | AW141: 45 | AX141: Polymorphism
A142: VAF, many samples, 1000 Genomes, dbSNP, ExAC, prediction | B142: UPN_Te2_031 | C142: 20 | D142: 31022959 | E142: T | F142: C | G142: ASXL1 | H142: ENST00000375687 | I142: missense_variant | J142: cTg/cCg|p.Leu815Pro/c.2444T>C | K142: 1 | L142: 1915 | M142: 1921 | N142: 0.9968766268 | O142: 1 | P142: 1 | Q142: 1 | R142: 1 | S142: 1 | T142: 1 | U142: 1 | V142: 1 | W142: 8 | X142: 0 | Y142: 1 | Z142: NO | AA142: NO | AB142: O | AC142: rs6058694 | AD142: rs6058694 | AE142: NO | AF142: 1 | AG142: NO | AH142: NO | AI142: 1.033 | AJ142: Tolerated | AK142: 15 | AL142: 35.73 | AM142: 0 | AN142: 1155 | AO142: 1157 | AP142: 0.9982713915 | AQ142: 1 | AR142: 760 | AS142: 764 | AT142: 0.9947643979 | AU142: 0.3971816284 | AV142: 45 | AW142: 45 | AX142: Polymorphism
A143: VAF, many samples, 1000 Genomes, dbSNP, ExAC, prediction | B143: UPN_Te2_032 | C143: 20 | D143: 31022959 | E143: T | F143: C | G143: ASXL1 | H143: ENST00000375687 | I143: missense_variant | J143: cTg/cCg|p.Leu815Pro/c.2444T>C | K143: 0 | L143: 1902 | M143: 1912 | N143: 0.9947698745 | O143: 1 | P143: 1 | Q143: 1 | R143: 1 | S143: 1 | T143: 1 | U143: 1 | V143: 1 | W143: 8 | X143: 0 | Y143: 1 | Z143: NO | AA143: NO | AB143: O | AC143: rs6058694 | AD143: rs6058694 | AE143: NO | AF143: 1 | AG143: NO | AH143: NO | AI143: 1.033 | AJ143: Tolerated | AK143: 0 | AL143: 36.18 | AM143: 0 | AN143: 1135 | AO143: 1135 | AP143: 1 | AQ143: 0 | AR143: 767 | AS143: 777 | AT143: 0.9871299871 | AU143: 1 | AV143: 45 | AW143: 45 | AX143: Polymorphism
A144: VAF, many samples, 1000 Genomes, dbSNP, ExAC, prediction | B144: UPN_Te2_033 | C144: 20 | D144: 31022959 | E144: T | F144: C | G144: ASXL1 | H144: ENST00000375687 | I144: missense_variant | J144: cTg/cCg|p.Leu815Pro/c.2444T>C | K144: 1 | L144: 1768 | M144: 1775 | N144: 0.996056338 | O144: 1 | P144: 1 | Q144: 1 | R144: 1 | S144: 1 | T144: 1 | U144: 1 | V144: 1 | W144: 8 | X144: 0 | Y144: 1 | Z144: NO | AA144: NO | AB144: O | AC144: rs6058694 | AD144: rs6058694 | AE144: NO | AF144: 1 | AG144: NO | AH144: NO | AI144: 1.033 | AJ144: Tolerated | AK144: 2 | AL144: 36.11 | AM144: 0 | AN144: 1051 | AO144: 1051 | AP144: 1 | AQ144: 1 | AR144: 717 | AS144: 724 | AT144: 0.9903314917 | AU144: 0.4058790277 | AV144: 45 | AW144: 45 | AX144: Polymorphism
A145: VAF, many samples, 1000 Genomes, dbSNP, ExAC, prediction | B145: UPN_Te2_035 | C145: 20 | D145: 31022959 | E145: T | F145: C | G145: ASXL1 | H145: ENST00000375687 | I145: missense_variant | J145: cTg/cCg|p.Leu815Pro/c.2444T>C | K145: 4 | L145: 4755 | M145: 4785 | N145: 0.9937304075 | O145: 1 | P145: 1 | Q145: 1 | R145: 1 | S145: 1 | T145: 1 | U145: 1 | V145: 1 | W145: 8 | X145: 0 | Y145: 1 | Z145: NO | AA145: NO | AB145: O | AC145: rs6058694 | AD145: rs6058694 | AE145: NO | AF145: 1 | AG145: NO | AH145: NO | AI145: 1.033 | AJ145: Tolerated | AK145: 7.25 | AL145: 35.96 | AM145: 1 | AN145: 2703 | AO145: 2704 | AP145: 0.9996301775 | AQ145: 3 | AR145: 2052 | AS145: 2081 | AT145: 0.9860643921 | AU145: 0.3217924769 | AV145: 45 | AW145: 45 | AX145: Polymorphism
A146: VAF, many samples, 1000 Genomes, dbSNP, ExAC, prediction | B146: UPN_Te2_036 | C146: 20 | D146: 31022959 | E146: T | F146: C | G146: ASXL1 | H146: ENST00000375687 | I146: missense_variant | J146: cTg/cCg|p.Leu815Pro/c.2444T>C | K146: 1 | L146: 1734 | M146: 1745 | N146: 0.9936962751 | O146: 1 | P146: 1 | Q146: 1 | R146: 1 | S146: 1 | T146: 1 | U146: 1 | V146: 1 | W146: 8 | X146: 0 | Y146: 1 | Z146: NO | AA146: NO | AB146: O | AC146: rs6058694 | AD146: rs6058694 | AE146: NO | AF146: 1 | AG146: NO | AH146: NO | AI146: 1.033 | AJ146: Tolerated | AK146: 6 | AL146: 36.2 | AM146: 0 | AN146: 1072 | AO146: 1073 | AP146: 0.9990680336 | AQ146: 1 | AR146: 662 | AS146: 672 | AT146: 0.9851190476 | AU146: 0.3821325648 | AV146: 45 | AW146: 45 | AX146: Polymorphism
A147: VAF, many samples, 1000 Genomes, dbSNP, ExAC, prediction | B147: UPN_Te2_037 | C147: 20 | D147: 31022959 | E147: T | F147: C | G147: ASXL1 | H147: ENST00000375687 | I147: missense_variant | J147: cTg/cCg|p.Leu815Pro/c.2444T>C | K147: 1 | L147: 2641 | M147: 2650 | N147: 0.9966037736 | O147: 1 | P147: 1 | Q147: 1 | R147: 1 | S147: 1 | T147: 1 | U147: 1 | V147: 1 | W147: 8 | X147: 0 | Y147: 1 | Z147: NO | AA147: NO | AB147: O | AC147: rs6058694 | AD147: rs6058694 | AE147: NO | AF147: 1 | AG147: NO | AH147: NO | AI147: 1.033 | AJ147: Tolerated | AK147: 37 | AL147: 36.04 | AM147: 1 | AN147: 1669 | AO147: 1671 | AP147: 0.9988031119 | AQ147: 0 | AR147: 972 | AS147: 979 | AT147: 0.9928498468 | AU147: 1 | AV147: 45 | AW147: 45 | AX147: Polymorphism
A148: VAF, many samples, 1000 Genomes, dbSNP, ExAC, prediction | B148: UPN_Te2_038 | C148: 20 | D148: 31022959 | E148: T | F148: C | G148: ASXL1 | H148: ENST00000375687 | I148: missense_variant | J148: cTg/cCg|p.Leu815Pro/c.2444T>C | K148: 0 | L148: 102 | M148: 103 | N148: 0.9902912621 | O148: 1 | P148: 1 | Q148: 1 | R148: 1 | S148: 1 | T148: 1 | U148: 1 | V148: 1 | W148: 8 | X148: 0 | Y148: 1 | Z148: NO | AA148: NO | AB148: O | AC148: rs6058694 | AD148: rs6058694 | AE148: NO | AF148: 1 | AG148: NO | AH148: NO | AI148: 1.033 | AJ148: Tolerated | AK148: 0 | AL148: 36.07 | AM148: 0 | AN148: 65 | AO148: 65 | AP148: 1 | AQ148: 0 | AR148: 37 | AS148: 38 | AT148: 0.9736842105 | AU148: 1 | AV148: 45 | AW148: 45 | AX148: Polymorphism
A149: VAF, many samples, 1000 Genomes, dbSNP, ExAC, prediction | B149: UPN_Te2_039 | C149: 20 | D149: 31022959 | E149: T | F149: C | G149: ASXL1 | H149: ENST00000375687 | I149: missense_variant | J149: cTg/cCg|p.Leu815Pro/c.2444T>C | K149: 0 | L149: 1576 | M149: 1582 | N149: 0.9962073325 | O149: 1 | P149: 1 | Q149: 1 | R149: 1 | S149: 1 | T149: 1 | U149: 1 | V149: 1 | W149: 8 | X149: 0 | Y149: 1 | Z149: NO | AA149: NO | AB149: O | AC149: rs6058694 | AD149: rs6058694 | AE149: NO | AF149: 1 | AG149: NO | AH149: NO | AI149: 1.033 | AJ149: Tolerated | AK149: 0 | AL149: 35.91 | AM149: 0 | AN149: 906 | AO149: 906 | AP149: 1 | AQ149: 0 | AR149: 670 | AS149: 676 | AT149: 0.9911242604 | AU149: 1 | AV149: 45 | AW149: 45 | AX149: Polymorphism
A150: VAF, many samples, 1000 Genomes, dbSNP, ExAC, prediction | B150: UPN_Te2_040 | C150: 20 | D150: 31022959 | E150: T | F150: C | G150: ASXL1 | H150: ENST00000375687 | I150: missense_variant | J150: cTg/cCg|p.Leu815Pro/c.2444T>C | K150: 2 | L150: 3977 | M150: 4000 | N150: 0.99425 | O150: 1 | P150: 1 | Q150: 1 | R150: 1 | S150: 1 | T150: 1 | U150: 1 | V150: 1 | W150: 8 | X150: 0 | Y150: 1 | Z150: NO | AA150: NO | AB150: O | AC150: rs6058694 | AD150: rs6058694 | AE150: NO | AF150: 1 | AG150: NO | AH150: NO | AI150: 1.033 | AJ150: Tolerated | AK150: 10.5 | AL150: 36.2 | AM150: 0 | AN150: 2455 | AO150: 2456 | AP150: 0.9995928339 | AQ150: 2 | AR150: 1522 | AS150: 1544 | AT150: 0.9857512953 | AU150: 0.146637873 | AV150: 45 | AW150: 45 | AX150: Polymorphism
A151: VAF, many samples, 1000 Genomes, dbSNP, ExAC, prediction | B151: UPN_Te2_041 | C151: 20 | D151: 31022959 | E151: T | F151: C | G151: ASXL1 | H151: ENST00000375687 | I151: missense_variant | J151: cTg/cCg|p.Leu815Pro/c.2444T>C | K151: 6 | L151: 11444 | M151: 11490 | N151: 0.9959965187 | O151: 1 | P151: 1 | Q151: 1 | R151: 1 | S151: 1 | T151: 1 | U151: 1 | V151: 1 | W151: 8 | X151: 0 | Y151: 1 | Z151: NO | AA151: NO | AB151: O | AC151: rs6058694 | AD151: rs6058694 | AE151: NO | AF151: 1 | AG151: NO | AH151: NO | AI151: 1.033 | AJ151: Tolerated | AK151: 24.5 | AL151: 36.31 | AM151: 3 | AN151: 7307 | AO151: 7311 | AP151: 0.9994528792 | AQ151: 3 | AR151: 4137 | AS151: 4179 | AT151: 0.9899497487 | AU151: 0.6741361928 | AV151: 45 | AW151: 45 | AX151: Polymorphism
A152: VAF, many samples, 1000 Genomes, dbSNP, ExAC, prediction | B152: UPN_Te2_042 | C152: 20 | D152: 31022959 | E152: T | F152: C | G152: ASXL1 | H152: ENST00000375687 | I152: missense_variant | J152: cTg/cCg|p.Leu815Pro/c.2444T>C | K152: 5 | L152: 3966 | M152: 3985 | N152: 0.9952321205 | O152: 1 | P152: 1 | Q152: 1 | R152: 1 | S152: 1 | T152: 1 | U152: 1 | V152: 1 | W152: 8 | X152: 0 | Y152: 1 | Z152: NO | AA152: NO | AB152: O | AC152: rs6058694 | AD152: rs6058694 | AE152: NO | AF152: 1 | AG152: NO | AH152: NO | AI152: 1.033 | AJ152: Tolerated | AK152: 21.8 | AL152: 36.03 | AM152: 2 | AN152: 2377 | AO152: 2381 | AP152: 0.9983200336 | AQ152: 3 | AR152: 1589 | AS152: 1604 | AT152: 0.9906483791 | AU152: 0.3959655235 | AV152: 45 | AW152: 45 | AX152: Polymorphism
A153: VAF, many samples, 1000 Genomes, dbSNP, ExAC, prediction | B153: UPN_Te2_043 | C153: 20 | D153: 31022959 | E153: T | F153: C | G153: ASXL1 | H153: ENST00000375687 | I153: missense_variant | J153: cTg/cCg|p.Leu815Pro/c.2444T>C | K153: 7 | L153: 9053 | M153: 9113 | N153: 0.9934159991 | O153: 1 | P153: 1 | Q153: 1 | R153: 1 | S153: 1 | T153: 1 | U153: 1 | V153: 1 | W153: 8 | X153: 0 | Y153: 1 | Z153: NO | AA153: NO | AB153: O | AC153: rs6058694 | AD153: rs6058694 | AE153: NO | AF153: 1 | AG153: NO | AH153: NO | AI153: 1.033 | AJ153: Tolerated | AK153: 6.71 | AL153: 36.09 | AM153: 1 | AN153: 5371 | AO153: 5372 | AP153: 0.9998138496 | AQ153: 6 | AR153: 3682 | AS153: 3741 | AT153: 0.9842288158 | AU153: 0.0206961957 | AV153: 45 | AW153: 45 | AX153: Polymorphism
A154: VAF, many samples, 1000 Genomes, dbSNP, ExAC, prediction | B154: UPN_Te2_044 | C154: 20 | D154: 31022959 | E154: T | F154: C | G154: ASXL1 | H154: ENST00000375687 | I154: missense_variant | J154: cTg/cCg|p.Leu815Pro/c.2444T>C | K154: 8 | L154: 4265 | M154: 4290 | N154: 0.9941724942 | O154: 1 | P154: 1 | Q154: 1 | R154: 1 | S154: 1 | T154: 1 | U154: 1 | V154: 1 | W154: 8 | X154: 0 | Y154: 1 | Z154: NO | AA154: NO | AB154: O | AC154: rs6058694 | AD154: rs6058694 | AE154: NO | AF154: 1 | AG154: NO | AH154: NO | AI154: 1.033 | AJ154: Tolerated | AK154: 18.75 | AL154: 36.22 | AM154: 4 | AN154: 2536 | AO154: 2541 | AP154: 0.9980322708 | AQ154: 4 | AR154: 1729 | AS154: 1749 | AT154: 0.9885648942 | AU154: 0.7224931843 | AV154: 45 | AW154: 45 | AX154: Polymorphism
A155: VAF, many samples, 1000 Genomes, dbSNP, ExAC, prediction | B155: UPN_Te2_045 | C155: 20 | D155: 31022959 | E155: T | F155: C | G155: ASXL1 | H155: ENST00000375687 | I155: missense_variant | J155: cTg/cCg|p.Leu815Pro/c.2444T>C | K155: 5 | L155: 3918 | M155: 3935 | N155: 0.9956797967 | O155: 1 | P155: 1 | Q155: 1 | R155: 1 | S155: 1 | T155: 1 | U155: 1 | V155: 1 | W155: 8 | X155: 0 | Y155: 1 | Z155: NO | AA155: NO | AB155: O | AC155: rs6058694 | AD155: rs6058694 | AE155: NO | AF155: 1 | AG155: NO | AH155: NO | AI155: 1.033 | AJ155: Tolerated | AK155: 10.4 | AL155: 36.23 | AM155: 1 | AN155: 2379 | AO155: 2380 | AP155: 0.9995798319 | AQ155: 4 | AR155: 1539 | AS155: 1555 | AT155: 0.9897106109 | AU155: 0.081875986 | AV155: 45 | AW155: 45 | AX155: Polymorphism
A156: VAF, many samples, 1000 Genomes, dbSNP, ExAC, prediction | B156: UPN_Te2_046 | C156: 20 | D156: 31022959 | E156: T | F156: C | G156: ASXL1 | H156: ENST00000375687 | I156: missense_variant | J156: cTg/cCg|p.Leu815Pro/c.2444T>C | K156: 1 | L156: 2497 | M156: 2505 | N156: 0.9968063872 | O156: 1 | P156: 1 | Q156: 1 | R156: 1 | S156: 1 | T156: 1 | U156: 1 | V156: 1 | W156: 8 | X156: 0 | Y156: 1 | Z156: NO | AA156: NO | AB156: O | AC156: rs6058694 | AD156: rs6058694 | AE156: NO | AF156: 1 | AG156: NO | AH156: NO | AI156: 1.033 | AJ156: Tolerated | AK156: 2 | AL156: 36.24 | AM156: 0 | AN156: 1526 | AO156: 1527 | AP156: 0.9993451212 | AQ156: 1 | AR156: 971 | AS156: 978 | AT156: 0.9928425358 | AU156: 0.389111289 | AV156: 45 | AW156: 45 | AX156: Polymorphism
A157: ESP6500, ExAC, prediction, VAF | B157: UPN_Te2_003 | C157: 20 | D157: 31024698 | E157: C | F157: G | G157: ASXL1 | H157: ENST00000375687 | I157: missense_variant | J157: Ctg/Gtg|p.Leu1395Val/c.4183C>G | K157: 1817 | L157: 1736 | M157: 3555 | N157: 0.488326301 | O157: 1 | P157: 1 | Q157: 1 | R157: 1 | S157: 1 | T157: 1 | U157: 1 | V157: 1 | W157: 8 | X157: 0.0814 | Y157: NO | Z157: COSM41990 | AA157: haematopoietic_and_lymphoid_tissue | AB157: 2 | AC157: NO | AD157: rs150004862 | AE157: NO | AF157: 0.0004201 | AG157: NO | AH157: NO | AI157: -0.731 | AJ157: Tolerated | AK157: 34.13 | AL157: 34.33 | AM157: 839 | AN157: 792 | AO157: 1631 | AP157: 0.4855916616 | AQ157: 978 | AR157: 944 | AS157: 1924 | AT157: 0.4906444906 | AU157: 0.7618426665 | AV157: 2 | AW157: 2 | AX157: Polymorphism
A158: ESP6500, ExAC, ClinVar, prediction, VAF | B158: UPN_Te2_017 | C158: 20 | D158: 31024704 | E158: G | F158: A | G158: ASXL1 | H158: ENST00000375687 | I158: missense_variant | J158: Ggt/Agt|p.Gly1397Ser/c.4189G>A | K158: 2638 | L158: 2711 | M158: 5356 | N158: 0.5061613144 | O158: 1 | P158: 1 | Q158: 1 | R158: 1 | S158: 1 | T158: 1 | U158: 1 | V158: 1 | W158: 8 | X158: 0.1977 | Y158: 0.003 | Z158: COSM133033 | AA158: haematopoietic_and_lymphoid_tissue, kidney | AB158: 4, 1 | AC158: NO | AD158: rs146464648 | AE158: NO | AF158: 0.002067 | AG158: NO | AH158: YES | AI158: -0.068 | AJ158: Tolerated | AK158: 34.3 | AL158: 34.01 | AM158: 1300 | AN158: 1311 | AO158: 2611 | AP158: 0.5021064726 | AQ158: 1338 | AR158: 1400 | AS158: 2745 | AT158: 0.5100182149 | AU158: 0.5114952495 | AV158: 1 | AW158: 1 | AX158: Polymorphism
A159: 1000 Genomes, prediction, inframe | B159: UPN_Te2_037 | C159: X | D159: 15841230 | E159: C | F159: CAGCCGG | G159: ZRSR2 | H159: ENST00000307771 | I159: disruptive_inframe_insertion | J159: cgc/cgGAGCCGc|p.Arg448_Arg449insSerArg/c.1338_1343dupGAGCCG | K159: 1082 | L159: 326 | M159: 1097 | N159: 0.2971741112 | O159: 1 | P159: 1 | Q159: 1 | R159: 1 | S159: 1 | T159: 1 | U159: 0 | V159: 1 | W159: 7 | X159: NO | Y159: 0.0209 | Z159: NO | AA159: NO | AB159: O | AC159: NO | AD159: NO | AE159: NO | AF159: NO | AG159: NO | AH159: NO | AI159: 0.745 | AJ159: Tolerated | AK159: 24.99 | AL159: NA | AM159: 616 | AN159: 148 | AO159: 627 | AP159: 0.2360446571 | AQ159: 466 | AR159: 178 | AS159: 470 | AT159: 0.3787234043 | AU159: 0.000294218 | AV159: 2 | AW159: 2 | AX159: Polymorphism
A160: 1000 Genomes, prediction, inframe | B160: UPN_Te2_039 | C160: X | D160: 15841230 | E160: C | F160: CAGCCGG | G160: ZRSR2 | H160: ENST00000307771 | I160: disruptive_inframe_insertion | J160: cgc/cgGAGCCGc|p.Arg448_Arg449insSerArg/c.1338_1343dupGAGCCG | K160: 65 | L160: 39 | M160: 66 | N160: 0.5909090909 | O160: 1 | P160: 1 | Q160: 1 | R160: 1 | S160: 1 | T160: 1 | U160: 1 | V160: 1 | W160: 8 | X160: NO | Y160: 0.0209 | Z160: NO | AA160: NO | AB160: O | AC160: NO | AD160: NO | AE160: NO | AF160: NO | AG160: NO | AH160: NO | AI160: 0.745 | AJ160: Tolerated | AK160: 24.78 | AL160: NA | AM160: 42 | AN160: 17 | AO160: 43 | AP160: 0.3953488372 | AQ160: 23 | AR160: 22 | AS160: 23 | AT160: 0.9565217391 | AU160: 0.0427317973 | AV160: 2 | AW160: 2 | AX160: Polymorphism
O161: 159 | P161: =SUM(P2:P160) -> 159 | Q161: =SUM(Q2:Q160) -> 151 | R161: =SUM(R2:R160) -> 157 | S161: =SUM(S2:S160) -> 159 | T161: =SUM(T2:T160) -> 159 | U161: =SUM(U2:U160) -> 157 | V161: =SUM(V2:V160) -> 159

Sheet FN Mutations
A1: Sample | B1: Chr | C1: Pos | D1: Ref | E1: Alt | F1: Gene | G1: ENST | H1: Type | I1: Mutation | J1: Nr_Ref | K1: Nr_Alt | L1: DP | M1: VAF | N1: GATK | O1: Platypus | P1: VarScan | Q1: LoFreq | R1: FreeBayes | S1: SNVer | T1: SAMtools | U1: VarDict | V1: Called | W1: ESP6500 | X1: G1000 | Y1: Cosmic | Z1: Cosmic_location | AA1: Cosmic_occurence | AB1: dbSNP_SNPs | AC1: dbSNP_SNVs | AD1: PM_flag | AE1: ExAC | AF1: ClinVar_clinical | AG1: ClinVar_noimpact | AH1: provean_score | AI1: prediction | AJ1: BQ_Ref | AK1: BQ_Alt | AL1: Nr_Ref_fwd | AM1: Nr_Alt_fwd | AN1: DP_fwd | AO1: VAF_fwd | AP1: Nr_Ref_rev | AQ1: Nr_Alt_rev | AR1: DP_rev | AS1: VAF_rev | AT1: strandbias | AU1: nr_samples | AV1: nr_samples_similar | AW1: Category

Sheet FN Polymorphisms
A1: Sample | B1: Chr | C1: Pos | D1: Ref | E1: Alt | F1: Gene | G1: ENST | H1: Type | I1: Mutation | J1: Nr_Ref | K1: Nr_Alt | L1: DP | M1: VAF | N1: GATK | O1: Platypus | P1: VarScan | Q1: LoFreq | R1: FreeBayes | S1: SNVer | T1: SAMtools | U1: VarDict | V1: Called | W1: ESP6500 | X1: G1000 | Y1: Cosmic | Z1: Cosmic_location | AA1: Cosmic_occurence | AB1: dbSNP_SNPs | AC1: dbSNP_SNVs | AD1: PM_flag | AE1: ExAC | AF1: ClinVar_clinical | AG1: ClinVar_noimpact | AH1: provean_score | AI1: prediction | AJ1: BQ_Ref | AK1: BQ_Alt | AL1: Nr_Ref_fwd | AM1: Nr_Alt_fwd | AN1: DP_fwd | AO1: VAF_fwd | AP1: Nr_Ref_rev | AQ1: Nr_Alt_rev | AR1: DP_rev | AS1: VAF_rev | AT1: strandbias | AU1: nr_samples | AV1: nr_samples_similar | AW1: Category

Sheet FP Mutations
A1: Artifact because... | B1: Sample | C1: Chr | D1: Pos | E1: Ref | F1: Alt | G1: Gene | H1: ENST | I1: Type | J1: Mutation | K1: Nr_Ref | L1: Nr_Alt | M1: DP | N1: VAF | O1: GATK | P1: Platypus | Q1: VarScan | R1: LoFreq | S1: FreeBayes | T1: SNVer | U1: SAMtools | V1: VarDict | W1: Called | X1: ESP6500 | Y1: G1000 | Z1: Cosmic | AA1: Cosmic_location | AB1: Cosmic_occurence | AC1: dbSNP_SNPs | AD1: dbSNP_SNVs | AE1: PM_flag | AF1: ExAC | AG1: ClinVar_clinical | AH1: ClinVar_noimpact | AI1: provean_score | AJ1: prediction | AK1: BQ_Ref | AL1: BQ_Alt | AM1: Nr_Ref_fwd | AN1: Nr_Alt_fwd | AO1: DP_fwd | AP1: VAF_fwd | AQ1: Nr_Ref_rev | AR1: Nr_Alt_rev | AS1: DP_rev | AT1: VAF_rev | AU1: strandbias | AV1: nr_samples | AW1: nr_samples_similar | AX1: Category
A2: Inspected | B2: UPN_Te2_040 | C2: 4 | D2: 106164772 | E2: C | F2: T | G2: TET2 | H2: ENST00000380013 | I2: missense_variant | J2: Cgg/Tgg|p.Arg1214Trp/c.3640C>T | K2: 1351 | L2: 26 | M2: 1377 | N2: 0.0188816267 | O2: 0 | P2: 0 | Q2: 0 | R2: 1 | S2: 1 | T2: 0 | U2: 0 | V2: 1 | W2: 3 | X2: NO | Y2: NO | Z2: COSM42028 | AA2: haematopoietic_and_lymphoid_tissue, large_intestine | AB2: 5, 1 | AC2: NO | AD2: NO | AE2: NO | AF2: 3.926e-05 | AG2: NO | AH2: NO | AI2: -7.313 | AJ2: Deleterious | AK2: 36.63 | AL2: 38.27 | AM2: 0 | AN2: 0 | AO2: 0 | AP2: NA | AQ2: 1351 | AR2: 26 | AS2: 1377 | AT2: 0.0188816267 | AU2: 1 | AV2: 1 | AW2: 1 | AX2: Probably True (-2)
A3: looks like polymorphism, but freq too low | B3: UPN_Te2_009 | C3: 7 | D3: 148525904 | E3: C | F3: G | G3: EZH2 | H3: ENST00000320356 | I3: missense_variant | J3: Gac/Cac|p.Asp185His/c.553G>C | K3: 170 | L3: 34 | M3: 206 | N3: 0.1650485437 | O3: 1 | P3: 0 | Q3: 0 | R3: 1 | S3: 1 | T3: 1 | U3: 1 | V3: 1 | W3: 6 | X3: NO | Y3: NO | Z3: COSM3762469 | AA3: soft_tissue, thyroid | AB3: 3, 1 | AC3: rs2302427 | AD3: rs2302427 | AE3: NO | AF3: NO | AG3: NO | AH3: YES | AI3: -1.884 | AJ3: Tolerated | AK3: 34.49 | AL3: 36.88 | AM3: 35 | AN3: 9 | AO3: 44 | AP3: 0.2045454545 | AQ3: 135 | AR3: 25 | AS3: 162 | AT3: 0.1543209877 | AU3: 0.4940272912 | AV3: 9 | AW3: 9 | AX3: Probably True (-2)
A4: Inspected | B4: UPN_Te2_024 | C4: 12 | D4: 12038957 | E4: T | F4: G | G4: ETV6 | H4: ENST00000396373 | I4: missense_variant | J4: tTc/tGc|p.Phe417Cys/c.1250T>G | K4: 530 | L4: 44 | M4: 577 | N4: 0.0762564991 | O4: 0 | P4: 0 | Q4: 0 | R4: 1 | S4: 1 | T4: 0 | U4: 0 | V4: 1 | W4: 3 | X4: NO | Y4: NO | Z4: NO | AA4: NO | AB4: O | AC4: NO | AD4: NO | AE4: NO | AF4: NO | AG4: NO | AH4: NO | AI4: -6.483 | AJ4: Deleterious | AK4: 35.25 | AL4: 30.64 | AM4: 3 | AN4: 0 | AO4: 3 | AP4: 0 | AQ4: 527 | AR4: 44 | AS4: 574 | AT4: 0.0766550523 | AU4: 1 | AV4: 10 | AW4: 10 | AX4: Probably True (-1)
O5: =SUM(O2:O4) -> 1 | P5: =SUM(P2:P4) -> 0 | Q5: =SUM(Q2:Q4) -> 0 | R5: =SUM(R2:R4) -> 3 | S5: =SUM(S2:S4) -> 3 | T5: =SUM(T2:T4) -> 1 | U5: =SUM(U2:U4) -> 1 | V5: =SUM(V2:V4) -> 3

Sheet FP Polymorphisms
A1: Sample | B1: Chr | C1: Pos | D1: Ref | E1: Alt | F1: Gene | G1: ENST | H1: Type | I1: Mutation | J1: Nr_Ref | K1: Nr_Alt | L1: DP | M1: VAF | N1: GATK | O1: Platypus | P1: VarScan | Q1: LoFreq | R1: FreeBayes | S1: SNVer | T1: SAMtools | U1: VarDict | V1: Called | W1: ESP6500 | X1: G1000 | Y1: Cosmic | Z1: Cosmic_location | AA1: Cosmic_occurence | AB1: dbSNP_SNPs | AC1: dbSNP_SNVs | AD1: PM_flag | AE1: ExAC | AF1: ClinVar_clinical | AG1: ClinVar_noimpact | AH1: provean_score | AI1: prediction | AJ1: BQ_Ref | AK1: BQ_Alt | AL1: Nr_Ref_fwd | AM1: Nr_Alt_fwd | AN1: DP_fwd | AO1: VAF_fwd | AP1: Nr_Ref_rev | AQ1: Nr_Alt_rev | AR1: DP_rev | AS1: VAF_rev | AT1: strandbias | AU1: nr_samples | AV1: nr_samples_similar | AW1: Category

Sheet TN Mutations Filter 2
A1: Sample | B1: Chr | C1: Pos | D1: Ref | E1: Alt | F1: Gene | G1: ENST | H1: Type | I1: Mutation | J1: Nr_Ref | K1: Nr_Alt | L1: DP | M1: VAF | N1: GATK | O1: Platypus | P1: VarScan | Q1: LoFreq | R1: FreeBayes | S1: SNVer | T1: SAMtools | U1: VarDict | V1: Called | W1: ESP6500 | X1: G1000 | Y1: Cosmic | Z1: Cosmic_location | AA1: Cosmic_occurence | AB1: dbSNP_SNPs | AC1: dbSNP_SNVs | AD1: PM_flag | AE1: ExAC | AF1: ClinVar_clinical | AG1: ClinVar_noimpact | AH1: provean_score | AI1: prediction | AJ1: BQ_Ref | AK1: BQ_Alt | AL1: Nr_Ref_fwd | AM1: Nr_Alt_fwd | AN1: DP_fwd | AO1: VAF_fwd | AP1: Nr_Ref_rev | AQ1: Nr_Alt_rev | AR1: DP_rev | AS1: VAF_rev | AT1: strandbias | AU1: nr_samples | AV1: nr_samples_similar | AW1: Category
A2: UPN_Te2_022 | B2: 1 | C2: 115256529 | D2: T | E2: G | F2: NRAS | G2: ENST00000369535 | H2: missense_variant | I2: cAa/cCa|p.Gln61Pro/c.182A>C | J2: 3462 | K2: 37 | L2: 3500 | M2: 0.0105714286 | N2: 0 | O2: 0 | P2: 0 | Q2: 0 | R2: 1 | S2: 0 | T2: 0 | U2: 0 | V2: 1 | W2: NO | X2: NO | Y2: COSM582 | Z2: haematopoietic_and_lymphoid_tissue, skin | AA2: 22, 2 | AB2: rs11554290 | AC2: rs11554290 | AD2: YES | AE2: NO | AF2: NO | AG2: NO | AH2: -5.836 | AI2: Deleterious | AJ2: 36.45 | AK2: 30.03 | AL2: 1311 | AM2: 0 | AN2: 1311 | AO2: 0 | AP2: 2151 | AQ2: 37 | AR2: 2189 | AS2: 0.0169026953 | AT2: 3.34118865e-08 | AU2: 2 | AV2: 2 | AW2: Artifact (0)
A3: UPN_Te2_023 | B3: 1 | C3: 115256529 | D3: T | E3: G | F3: NRAS | G3: ENST00000369535 | H3: missense_variant | I3: cAa/cCa|p.Gln61Pro/c.182A>C | J3: 2585 | K3: 32 | L3: 2620 | M3: 0.0122137405 | N3: 0 | O3: 0 | P3: 0 | Q3: 0 | R3: 1 | S3: 0 | T3: 0 | U3: 0 | V3: 1 | W3: NO | X3: NO | Y3: COSM582 | Z3: haematopoietic_and_lymphoid_tissue, skin | AA3: 22, 2 | AB3: rs11554290 | AC3: rs11554290 | AD3: YES | AE3: NO | AF3: NO | AG3: NO | AH3: -5.836 | AI3: Deleterious | AJ3: 36.39 | AK3: 29.41 | AL3: 979 | AM3: 0 | AN3: 979 | AO3: 0 | AP3: 1606 | AQ3: 32 | AR3: 1641 | AS3: 0.0195003047 | AT3: 3.277908611e-07 | AU3: 2 | AV3: 2 | AW3: Artifact (0)
A4: UPN_Te2_019 | B4: 12 | C4: 11992139 | D4: T | E4: G | F4: ETV6 | G4: ENST00000396373 | H4: missense_variant | I4: Ttt/Gtt|p.Phe77Val/c.229T>G | J4: 2579 | K4: 54 | L4: 2642 | M4: 0.0204390613 | N4: 0 | O4: 0 | P4: 0 | Q4: 0 | R4: 1 | S4: 0 | T4: 0 | U4: 1 | V4: 2 | W4: NO | X4: NO | Y4: NO | Z4: NO | AA4: O | AB4: NO | AC4: NO | AD4: NO | AE4: NO | AF4: NO | AG4: NO | AH4: -4.298 | AI4: Deleterious | AJ4: 33.17 | AK4: 26.5 | AL4: 537 | AM4: 3 | AN4: 543 | AO4: 0.0055248619 | AP4: 2042 | AQ4: 51 | AR4: 2099 | AS4: 0.0242972844 | AT4: 0.0034041003 | AU4: 3 | AV4: 3 | AW4: Artifact (0)
A5: UPN_Te2_002 | B5: 12 | C5: 12038957 | D5: T | E5: G | F5: ETV6 | G5: ENST00000396373 | H5: missense_variant | I5: tTc/tGc|p.Phe417Cys/c.1250T>G | J5: 1389 | K5: 110 | L5: 1506 | M5: 0.0730411687 | N5: 0 | O5: 0 | P5: 0 | Q5: 1 | R5: 1 | S5: 0 | T5: 0 | U5: 1 | V5: 3 | W5: NO | X5: NO | Y5: NO | Z5: NO | AA5: O | AB5: NO | AC5: NO | AD5: NO | AE5: NO | AF5: NO | AG5: NO | AH5: -6.483 | AI5: Deleterious | AJ5: 35.35 | AK5: 29.48 | AL5: 65 | AM5: 0 | AN5: 65 | AO5: 0 | AP5: 1324 | AQ5: 110 | AR5: 1441 | AS5: 0.0763358779 | AT5: 0.0124174778 | AU5: 10 | AV5: 10 | AW5: Artifact (0)
A6: UPN_Te2_027 | B6: 12 | C6: 12038957 | D6: T | E6: G | F6: ETV6 | G6: ENST00000396373 | H6: missense_variant | I6: tTc/tGc|p.Phe417Cys/c.1250T>G | J6: 800 | K6: 52 | L6: 854 | M6: 0.0608899297 | N6: 0 | O6: 0 | P6: 0 | Q6: 1 | R6: 1 | S6: 0 | T6: 0 | U6: 1 | V6: 3 | W6: NO | X6: NO | Y6: NO | Z6: NO | AA6: O | AB6: NO | AC6: NO | AD6: NO | AE6: NO | AF6: NO | AG6: NO | AH6: -6.483 | AI6: Deleterious | AJ6: 35.14 | AK6: 30.15 | AL6: 36 | AM6: 0 | AN6: 36 | AO6: 0 | AP6: 764 | AQ6: 52 | AR6: 818 | AS6: 0.0635696822 | AT6: 0.1604834525 | AU6: 10 | AV6: 10 | AW6: Artifact (0)
A7: UPN_Te2_037 | B7: 19 | C7: 33792446 | D7: T | E7: C | F7: CEBPA | G7: ENST00000498907 | H7: missense_variant | I7: aAc/aGc|p.Asn292Ser/c.875A>G | J7: 1685 | K7: 36 | L7: 1747 | M7: 0.0206067544 | N7: 0 | O7: 0 | P7: 0 | Q7: 0 | R7: 0 | S7: 1 | T7: 0 | U7: 1 | V7: 2 | W7: NO | X7: NO | Y7: NO | Z7: NA | AA7: NA | AB7: NO | AC7: NO | AD7: NO | AE7: NO | AF7: NO | AG7: NO | AH7: -4.905 | AI7: Deleterious | AJ7: 31.71 | AK7: 29.75 | AL7: 800 | AM7: 18 | AN7: 843 | AO7: 0.0213523132 | AP7: 885 | AQ7: 18 | AR7: 904 | AS7: 0.0199115044 | AT7: 0.8664284279 | AU7: 1 | AV7: 1 | AW7: Artifact (0)
A8: UPN_Te2_003 | B8: 2 | C8: 198266834 | D8: T | E8: C | F8: SF3B1 | G8: ENST00000335508 | H8: missense_variant | I8: Aaa/Gaa|p.Lys700Glu/c.2098A>G | J8: 4530 | K8: 62 | L8: 4597 | M8: 0.0134870568 | N8: 0 | O8: 0 | P8: 0 | Q8: 0 | R8: 1 | S8: 0 | T8: 0 | U8: 1 | V8: 2 | W8: NO | X8: 0 | Y8: COSM84677 | Z8: breast, central_nervous_system, eye, haematopoietic_and_lymphoid_tissue, kidney, NS, oesophagus, pancreas, prostate | AA8: 14, 2, 1, 395, 1, 515, 1, 13, 4 | AB8: NO | AC8: NO | AD8: NO | AE8: 0.0002306 | AF8: NO | AG8: NO | AH8: -3.819 | AI8: Deleterious | AJ8: 37.1 | AK8: 34.63 | AL8: 2760 | AM8: 36 | AN8: 2798 | AO8: 0.0128663331 | AP8: 1770 | AQ8: 26 | AR8: 1799 | AS8: 0.0144524736 | AT8: 0.6947662041 | AU8: 22 | AV8: 22 | AW8: Artifact (0)
A9: UPN_Te2_029 | B9: 2 | C9: 198266834 | D9: T | E9: C | F9: SF3B1 | G9: ENST00000335508 | H9: missense_variant | I9: Aaa/Gaa|p.Lys700Glu/c.2098A>G | J9: 1345 | K9: 22 | L9: 1367 | M9: 0.0160936357 | N9: 0 | O9: 0 | P9: 0 | Q9: 0 | R9: 1 | S9: 0 | T9: 0 | U9: 1 | V9: 2 | W9: NO | X9: 0 | Y9: COSM84677 | Z9: breast, central_nervous_system, eye, haematopoietic_and_lymphoid_tissue, kidney, NS, oesophagus, pancreas, prostate | AA9: 14, 2, 1, 395, 1, 515, 1, 13, 4 | AB9: NO | AC9: NO | AD9: NO | AE9: 0.0002306 | AF9: NO | AG9: NO | AH9: -3.819 | AI9: Deleterious | AJ9: 37.3 | AK9: 36.5 | AL9: 812 | AM9: 11 | AN9: 823 | AO9: 0.0133657351 | AP9: 533 | AQ9: 11 | AR9: 544 | AS9: 0.0202205882 | AT9: 0.3814408115 | AU9: 22 | AV9: 22 | AW9: Artifact (0)
A10: UPN_Te2_040 | B10: 4 | C10: 106157121 | D10: G | E10: GC | F10: TET2 | G10: ENST00000380013 | H10: frameshift_variant | I10: tca/Ctca|p.Ser675fs/c.2022_2023insC | J10: 2408 | K10: 53 | L10: 2415 | M10: 0.0219461698 | N10: 0 | O10: 0 | P10: 0 | Q10: 1 | R10: 1 | S10: 0 | T10: 0 | U10: 1 | V10: 3 | W10: NO | X10: NO | Y10: NO | Z10: NO | AA10: O | AB10: NO | AC10: NO | AD10: NO | AE10: NO | AF10: NO | AG10: NO | AH10: NA | AI10: NA | AJ10: 33.75 | AK10: NA | AL10: 2338 | AM10: 51 | AN10: 2345 | AO10: 0.0217484009 | AP10: 70 | AQ10: 2 | AR10: 70 | AS10: 0.0285714286 | AT10: 0.6672993698 | AU10: 1 | AV10: 1 | AW10: Artifact (0)
A11: UPN_Te2_023 | B11: 9 | C11: 5073770 | D11: G | E11: T | F11: JAK2 | G11: ENST00000381652 | H11: missense_variant | I11: Gtc/Ttc|p.Val617Phe/c.1849G>T | J11: 2352 | K11: 47 | L11: 2399 | M11: 0.0195914965 | N11: 0 | O11: 0 | P11: 0 | Q11: 0 | R11: 1 | S11: 1 | T11: 0 | U11: 1 | V11: 3 | W11: 0.0233 | X11: NO | Y11: COSM12600 | Z11: central_nervous_system, haematopoietic_and_lymphoid_tissue, lung | AA11: 1, 37620, 3 | AB11: NO | AC11: rs77375493 | AD11: YES | AE11: 0.0006919 | AF11: NO | AG11: NO | AH11: -3.94 | AI11: Deleterious | AJ11: 36.96 | AK11: 34.47 | AL11: 1148 | AM11: 26 | AN11: 1174 | AO11: 0.0221465077 | AP11: 1204 | AQ11: 21 | AR11: 1225 | AS11: 0.0171428571 | AT11: 0.3818303239 | AU11: 9 | AV11: 9 | AW11: Artifact (0)
A12: UPN_Te2_005 | B12: 1 | C12: 115256532 | D12: C | E12: A | F12: NRAS | G12: ENST00000369535 | H12: missense_variant | I12: gGa/gTa|p.Gly60Val/c.179G>T | J12: 2339 | K12: 26 | L12: 2369 | M12: 0.010975095 | N12: 0 | O12: 0 | P12: 0 | Q12: 0 | R12: 1 | S12: 0 | T12: 0 | U12: 1 | V12: 2 | W12: NO | X12: NO | Y12: COSM4606360 | Z12: haematopoietic_and_lymphoid_tissue | AA12: 1 | AB12: NO | AC12: NO | AD12: NO | AE12: NO | AF12: NO | AG12: NO | AH12: -8.934 | AI12: Deleterious | AJ12: 35.72 | AK12: 31.19 | AL12: 672 | AM12: 11 | AN12: 683 | AO12: 0.0161054173 | AP12: 1667 | AQ12: 15 | AR12: 1686 | AS12: 0.0088967972 | AT12: 0.1323766777 | AU12: 1 | AV12: 1 | AW12: Artifact (1)
A13: UPN_Te2_039 | B13: 13 | C13: 28592713 | D13: T | E13: G | F13: FLT3 | G13: ENST00000241453 | H13: missense_variant | I13: gAc/gCc|p.Asp811Ala/c.2432A>C | J13: 1089 | K13: 31 | L13: 1123 | M13: 0.0276046305 | N13: 0 | O13: 0 | P13: 0 | Q13: 0 | R13: 1 | S13: 0 | T13: 0 | U13: 1 | V13: 2 | W13: NO | X13: NO | Y13: NO | Z13: NO | AA13: O | AB13: NO | AC13: NO | AD13: NO | AE13: NO | AF13: NO | AG13: NO | AH13: -7.142 | AI13: Deleterious | AJ13: 33.53 | AK13: 27.29 | AL13: 49 | AM13: 0 | AN13: 49 | AO13: 0 | AP13: 1040 | AQ13: 31 | AR13: 1074 | AS13: 0.0288640596 | AT13: 0.3952801982 | AU13: 2 | AV13: 2 | AW13: Artifact (1)
A14: UPN_Te2_001 | B14: 17 | C14: 7577524 | D14: T | E14: G | F14: TP53 | G14: ENST00000269305 | H14: missense_variant | I14: Acc/Ccc|p.Thr253Pro/c.757A>C | J14: 5012 | K14: 74 | L14: 5106 | M14: 0.0144927536 | N14: 0 | O14: 0 | P14: 0 | Q14: 0 | R14: 1 | S14: 0 | T14: 0 | U14: 1 | V14: 2 | W14: NO | X14: NO | Y14: COSM45980 | Z14: breast, ovary, small_intestine | AA14: 1, 1, 1 | AB14: NO | AC14: NO | AD14: NO | AE14: NO | AF14: NO | AG14: NO | AH14: -4.126 | AI14: Deleterious | AJ14: 31.71 | AK14: 24.89 | AL14: 2523 | AM14: 11 | AN14: 2551 | AO14: 0.0043120345 | AP14: 2489 | AQ14: 63 | AR14: 2555 | AS14: 0.0246575342 | AT14: 4.146686279e-10 | AU14: 3 | AV14: 3 | AW14: Artifact (1)
A15: UPN_Te2_009 | B15: 17 | C15: 7577524 | D15: T | E15: G | F15: TP53 | G15: ENST00000269305 | H15: missense_variant | I15: Acc/Ccc|p.Thr253Pro/c.757A>C | J15: 6720 | K15: 101 | L15: 6850 | M15: 0.0147445255 | N15: 0 | O15: 0 | P15: 0 | Q15: 0 | R15: 1 | S15: 0 | T15: 0 | U15: 1 | V15: 2 | W15: NO | X15: NO | Y15: COSM45980 | Z15: breast, ovary, small_intestine | AA15: 1, 1, 1 | AB15: NO | AC15: NO | AD15: NO | AE15: NO | AF15: NO | AG15: NO | AH15: -4.126 | AI15: Deleterious | AJ15: 31.91 | AK15: 25.89 | AL15: 3392 | AM15: 18 | AN15: 3429 | AO15: 0.0052493438 | AP15: 3328 | AQ15: 83 | AR15: 3421 | AS15: 0.0242619117 | AT15: 2.729644495e-11 | AU15: 3 | AV15: 3 | AW15: Artifact (1)
A16: UPN_Te2_012 | B16: 20 | C16: 31022440 | D16: G | E16: GA | F16: ASXL1 | G16: ENST00000375687 | H16: frameshift_variant | I16: ggg/Aggg|p.Gly643fs/c.1926dupA | J16: 2440 | K16: 740 | L16: 2496 | M16: 0.296474359 | N16: 1 | O16: 0 | P16: 0 | Q16: 1 | R16: 0 | S16: 1 | T16: 0 | U16: 0 | V16: 3 | W16: NO | X16: NO | Y16: NO | Z16: NA | AA16: NA | AB16: NO | AC16: NO | AD16: NO | AE16: NO | AF16: NO | AG16: NO | AH16: NA | AI16: NA | AJ16: 24.49 | AK16: NA | AL16: 1860 | AM16: 740 | AN16: 1868 | AO16: 0.3961456103 | AP16: 580 | AQ16: 0 | AR16: 628 | AS16: 0 | AT16: 3.08490816e-75 | AU16: 1 | AV16: 1 | AW16: Artifact (1)
A17: UPN_Te2_004 | B17: 20 | C17: 31022441 | D17: A | E17: AG | F17: ASXL1 | G17: ENST00000375687 | H17: frameshift_variant | I17: ggt/ggGt|p.Gly646fs/c.1934dupG | J17: 1623 | K17: 177 | L17: 1697 | M17: 0.1043017089 | N17: 0 | O17: 1 | P17: 0 | Q17: 1 | R17: 0 | S17: 1 | T17: 0 | U17: 0 | V17: 3 | W17: NO | X17: NO | Y17: NO | Z17: NA | AA17: NA | AB17: NO | AC17: NO | AD17: NO | AE17: NO | AF17: NO | AG17: NO | AH17: NA | AI17: NA | AJ17: 20 | AK17: NA | AL17: 887 | AM17: 177 | AN17: 954 | AO17: 0.1855345912 | AP17: 736 | AQ17: 0 | AR17: 743 | AS17: 0 | AT17: 9.22467767e-44 | AU17: 3 | AV17: 3 | AW17: Artifact (1)
A18: UPN_Te2_019 | B18: 20 | C18: 31022441 | D18: A | E18: AG | F18: ASXL1 | G18: ENST00000375687 | H18: frameshift_variant | I18: ggt/ggGt|p.Gly646fs/c.1934dupG | J18: 891 | K18: 97 | L18: 947 | M18: 0.1024287223 | N18: 0 | O18: 1 | P18: 0 | Q18: 1 | R18: 0 | S18: 1 | T18: 0 | U18: 0 | V18: 3 | W18: NO | X18: NO | Y18: NO | Z18: NA | AA18: NA | AB18: NO | AC18: NO | AD18: NO | AE18: NO | AF18: NO | AG18: NO | AH18: NA | AI18: NA | AJ18: 18.91 | AK18: NA | AL18: 544 | AM18: 97 | AN18: 592 | AO18: 0.1638513514 | AP18: 347 | AQ18: 0 | AR18: 355 | AS18: 0 | AT18: 4.242097596e-20 | AU18: 3 | AV18: 3 | AW18: Artifact (1)
A19: UPN_Te2_012 | B19: 20 | C19: 31022442 | D19: G | E19: A | F19: ASXL1 | G19: ENST00000375687 | H19: missense_variant | I19: Ggg/Agg|p.Gly643Arg/c.1927G>A | J19: 2431 | K19: 56 | L19: 2498 | M19: 0.0224179343 | N19: 0 | O19: 0 | P19: 0 | Q19: 0 | R19: 1 | S19: 1 | T19: 0 | U19: 0 | V19: 2 | W19: NO | X19: NO | Y19: NO | Z19: NA | AA19: NA | AB19: NO | AC19: NO | AD19: NO | AE19: NO | AF19: NO | AG19: NO | AH19: -2.846 | AI19: Deleterious | AJ19: 20.77 | AK19: 25.45 | AL19: 1830 | AM19: 33 | AN19: 1868 | AO19: 0.0176659529 | AP19: 601 | AQ19: 23 | AR19: 630 | AS19: 0.0365079365 | AT19: 0.0076718486 | AU19: 1 | AV19: 1 | AW19: Artifact (1)
A20: UPN_Te2_038 | B20: 20 | C20: 31022965 | D20: TA | E20: C | F20: ASXL1 | G20: ENST00000375687 | H20: frameshift_variant+missense_variant | I20: cta/cC|p.Leu817fs/c.2450_2451delTAinsC | J20: 69 | K20: NA | L20: 71 | M20: NA | N20: 0 | O20: 0 | P20: 0 | Q20: 0 | R20: 0 | S20: 0 | T20: 0 | U20: 1 | V20: 1 | W20: NO | X20: NO | Y20: NO | Z20: NO | AA20: O | AB20: NO | AC20: NO | AD20: NO | AE20: NO | AF20: NO | AG20: NO | AH20: NA | AI20: NA | AJ20: 36.23 | AK20: NA | AL20: 31 | AM20: NA | AN20: 33 | AO20: NA | AP20: 38 | AQ20: NA | AR20: 38 | AS20: NA | AT20: NA | AU20: 1 | AV20: 1 | AW20: Artifact (1)
A21: UPN_Te2_033 | B21: 20 | C21: 31025049 | D21: G | E21: T | F21: ASXL1 | G21: ENST00000375687 | H21: missense_variant | I21: Gcc/Tcc|p.Ala1512Ser/c.4534G>T | J21: 979 | K21: 28 | L21: 1011 | M21: 0.0276953511 | N21: 0 | O21: 0 | P21: 0 | Q21: 0 | R21: 1 | S21: 0 | T21: 0 | U21: 1 | V21: 2 | W21: NO | X21: NO | Y21: NO | Z21: NO | AA21: O | AB21: NO | AC21: NO | AD21: NO | AE21: NO | AF21: NO | AG21: NO | AH21: -2.513 | AI21: Deleterious | AJ21: 32.96 | AK21: 28 | AL21: 0 | AM21: 0 | AN21: 0 | AO21: NA | AP21: 979 | AQ21: 28 | AR21: 1011 | AS21: 0.0276953511 | AT21: 1 | AU21: 1 | AV21: 1 | AW21: Artifact (1)
A22: UPN_Te2_004 | B22: 21 | C22: 36164569 | D22: A | E22: AGGCG | F22: RUNX1 | G22: ENST00000437180 | H22: frameshift_variant | I22: gcc/gccCGCC|p.Ser436fs/c.1302_1305dupCGCC | J22: 2009 | K22: 22 | L22: 2029 | M22: 0.0108427797 | N22: 0 | O22: 0 | P22: 0 | Q22: 1 | R22: 1 | S22: 0 | T22: 0 | U22: 1 | V22: 3 | W22: NO | X22: NO | Y22: NO | Z22: NO | AA22: O | AB22: NO | AC22: NO | AD22: NO | AE22: NO | AF22: NO | AG22: NO | AH22: NA | AI22: NA | AJ22: 29.75 | AK22: NA | AL22: 1001 | AM22: 11 | AN22: 1001 | AO22: 0.010989011 | AP22: 1008 | AQ22: 11 | AR22: 1028 | AS22: 0.0107003891 | AT22: 1 | AU22: 1 | AV22: 1 | AW22: Artifact (1)
A23: UPN_Te2_025 | B23: 4 | C23: 106155662 | D23: A | E23: AAAGTGCTAATTACCATGACAAGAACATTGTT | F23: TET2 | G23: ENST00000380013 | H23: frameshift_variant+stop_gained | I23: gta/gtTAAGTGCTAATTACCATGACAAGAACATTGTa|p.Leu199fs/c.593_594insTAAGTGCTAATTACCATGACAAGAACATTGT | J23: 1994 | K23: NA | L23: 1998 | M23: NA | N23: 0 | O23: 0 | P23: 0 | Q23: 0 | R23: 0 | S23: 0 | T23: 0 | U23: 1 | V23: 1 | W23: NO | X23: NO | Y23: NO | Z23: NO | AA23: O | AB23: NO | AC23: NO | AD23: NO | AE23: NO | AF23: NO | AG23: NO | AH23: NA | AI23: NA | AJ23: 35.69 | AK23: NA | AL23: 782 | AM23: NA | AN23: 786 | AO23: NA | AP23: 1212 | AQ23: NA | AR23: 1212 | AS23: NA | AT23: NA | AU23: 1 | AV23: 1 | AW23: Artifact (1)
A24: UPN_Te2_002 | B24: 4 | C24: 106157726 | D24: A | E24: C | F24: TET2 | G24: ENST00000380013 | H24: missense_variant | I24: cAa/cCa|p.Gln876Pro/c.2627A>C | J24: 419 | K24: 29 | L24: 449 | M24: 0.0645879733 | N24: 0 | O24: 0 | P24: 0 | Q24: 1 | R24: 1 | S24: 0 | T24: 0 | U24: 1 | V24: 3 | W24: NO | X24: NO | Y24: NO | Z24: NO | AA24: O | AB24: NO | AC24: NO | AD24: NO | AE24: NO | AF24: NO | AG24: NO | AH24: -0.817 | AI24: Tolerated | AJ24: 36.29 | AK24: 30.03 | AL24: 419 | AM24: 29 | AN24: 449 | AO24: 0.0645879733 | AP24: 0 | AQ24: 0 | AR24: 0 | AS24: NA | AT24: 1 | AU24: 18 | AV24: 18 | AW24: Artifact (1)
A25: UPN_Te2_006 | B25: 4 | C25: 106157726 | D25: A | E25: C | F25: TET2 | G25: ENST00000380013 | H25: missense_variant | I25: cAa/cCa|p.Gln876Pro/c.2627A>C | J25: 614 | K25: 40 | L25: 655 | M25: 0.0610687023 | N25: 0 | O25: 0 | P25: 0 | Q25: 1 | R25: 1 | S25: 0 | T25: 0 | U25: 1 | V25: 3 | W25: NO | X25: NO | Y25: NO | Z25: NO | AA25: O | AB25: NO | AC25: NO | AD25: NO | AE25: NO | AF25: NO | AG25: NO | AH25: -0.817 | AI25: Tolerated | AJ25: 36.92 | AK25: 30.7 | AL25: 614 | AM25: 40 | AN25: 655 | AO25: 0.0610687023 | AP25: 0 | AQ25: 0 | AR25: 0 | AS25: NA | AT25: 1 | AU25: 18 | AV25: 18 | AW25: Artifact (1)
A26: UPN_Te2_007 | B26: 4 | C26: 106157726 | D26: A | E26: C | F26: TET2 | G26: ENST00000380013 | H26: missense_variant | I26: cAa/cCa|p.Gln876Pro/c.2627A>C | J26: 348 | K26: 25 | L26: 374 | M26: 0.0668449198 | N26: 0 | O26: 0 | P26: 0 | Q26: 1 | R26: 1 | S26: 0 | T26: 0 | U26: 1 | V26: 3 | W26: NO | X26: NO | Y26: NO | Z26: NO | AA26: O | AB26: NO | AC26: NO | AD26: NO | AE26: NO | AF26: NO | AG26: NO | AH26: -0.817 | AI26: Tolerated | AJ26: 36.8 | AK26: 30.76 | AL26: 348 | AM26: 25 | AN26: 374 | AO26: 0.0668449198 | AP26: 0 | AQ26: 0 | AR26: 0 | AS26: NA | AT26: 1 | AU26: 18 | AV26: 18 | AW26: Artifact (1)
A27: UPN_Te2_009 | B27: 4 | C27: 106157726 | D27: A | E27: C | F27: TET2 | G27: ENST00000380013 | H27: missense_variant | I27: cAa/cCa|p.Gln876Pro/c.2627A>C | J27: 893 | K27: 65 | L27: 962 | M27: 0.0675675676 | N27: 0 | O27: 0 | P27: 0 | Q27: 1 | R27: 1 | S27: 0 | T27: 0 | U27: 1 | V27: 3 | W27: NO | X27: NO | Y27: NO | Z27: NO | AA27: O | AB27: NO | AC27: NO | AD27: NO | AE27: NO | AF27: NO | AG27: NO | AH27: -0.817 | AI27: Tolerated | AJ27: 36.71 | AK27: 29.77 | AL27: 893 | AM27: 65 | AN27: 962 | AO27: 0.0675675676 | AP27: 0 | AQ27: 0 | AR27: 0 | AS27: NA | AT27: 1 | AU27: 18 | AV27: 18 | AW27: Artifact (1)
A28: UPN_Te2_010 | B28: 4 | C28: 106157726 | D28: A | E28: C | F28: TET2 | G28: ENST00000380013 | H28: missense_variant | I28: cAa/cCa|p.Gln876Pro/c.2627A>C | J28: 434 | K28: 38 | L28: 472 | M28: 0.0805084746 | N28: 0 | O28: 0 | P28: 0 | Q28: 1 | R28: 1 | S28: 0 | T28: 0 | U28: 1 | V28: 3 | W28: NO | X28: NO | Y28: NO | Z28: NO | AA28: O | AB28: NO | AC28: NO | AD28: NO | AE28: NO | AF28: NO | AG28: NO | AH28: -0.817 | AI28: Tolerated | AJ28: 37.1 | AK28: 31.13 | AL28: 434 | AM28: 38 | AN28: 472 | AO28: 0.0805084746 | AP28: 0 | AQ28: 0 | AR28: 0 | AS28: NA | AT28: 1 | AU28: 18 | AV28: 18 | AW28: Artifact (1)
A29: UPN_Te2_011 | B29: 4 | C29: 106157726 | D29: A | E29: C | F29: TET2 | G29: ENST00000380013 | H29: missense_variant | I29: cAa/cCa|p.Gln876Pro/c.2627A>C | J29: 1025 | K29: 70 | L29: 1099 | M29: 0.0636942675 | N29: 0 | O29: 0 | P29: 0 | Q29: 1 | R29: 1 | S29: 0 | T29: 0 | U29: 1 | V29: 3 | W29: NO | X29: NO | Y29: NO | Z29: NO | AA29: O | AB29: NO | AC29: NO | AD29: NO | AE29: NO | AF29: NO | AG29: NO | AH29: -0.817 | AI29: Tolerated | AJ29: 36.48 | AK29: 30 | AL29: 1025 | AM29: 70 | AN29: 1099 | AO29: 0.0636942675 | AP29: 0 | AQ29: 0 | AR29: 0 | AS29: NA | AT29: 1 | AU29: 18 | AV29: 18 | AW29: Artifact (1)
A30: UPN_Te2_015 | B30: 4 | C30: 106157726 | D30: A | E30: C | F30: TET2 | G30: ENST00000380013 | H30: missense_variant | I30: cAa/cCa|p.Gln876Pro/c.2627A>C | J30: 496 | K30: 28 | L30: 524 | M30: 0.0534351145 | N30: 0 | O30: 0 | P30: 0 | Q30: 1 | R30: 1 | S30: 0 | T30: 0 | U30: 1 | V30: 3 | W30: NO | X30: NO | Y30: NO | Z30: NO | AA30: O | AB30: NO | AC30: NO | AD30: NO | AE30: NO | AF30: NO | AG30: NO | AH30: -0.817 | AI30: Tolerated | AJ30: 36.59 | AK30: 30.25 | AL30: 496 | AM30: 28 | AN30: 524 | AO30: 0.0534351145 | AP30: 0 | AQ30: 0 | AR30: 0 | AS30: NA | AT30: 1 | AU30: 18 | AV30: 18 | AW30: Artifact (1)
A31: UPN_Te2_016 | B31: 4 | C31: 106157726 | D31: A | E31: C | F31: TET2 | G31: ENST00000380013 | H31: missense_variant | I31: cAa/cCa|p.Gln876Pro/c.2627A>C | J31: 815 | K31: 61 | L31: 879 | M31: 0.0693970421 | N31: 0 | O31: 0 | P31: 0 | Q31: 1 | R31: 1 | S31: 0 | T31: 0 | U31: 1 | V31: 3 | W31: NO | X31: NO | Y31: NO | Z31: NO | AA31: O | AB31: NO | AC31: NO | AD31: NO | AE31: NO | AF31: NO | AG31: NO | AH31: -0.817 | AI31: Tolerated | AJ31: 36.76 | AK31: 31.31 | AL31: 815 | AM31: 61 | AN31: 879 | AO31: 0.0693970421 | AP31: 0 | AQ31: 0 | AR31: 0 | AS31: NA | AT31: 1 | AU31: 18 | AV31: 18 | AW31: Artifact (1)
A32: UPN_Te2_017 | B32: 4 | C32: 106157726 | D32: A | E32: C | F32: TET2 | G32: ENST00000380013 | H32: missense_variant | I32: cAa/cCa|p.Gln876Pro/c.2627A>C | J32: 978 | K32: 66 | L32: 1046 | M32: 0.0630975143 | N32: 0 | O32: 0 | P32: 0 | Q32: 1 | R32: 1 | S32: 0 | T32: 0 | U32: 1 | V32: 3 | W32: NO | X32: NO | Y32: NO | Z32: NO | AA32: O | AB32: NO | AC32: NO | AD32: NO | AE32: NO | AF32: NO | AG32: NO | AH32: -0.817 | AI32: Tolerated | AJ32: 36.75 | AK32: 30.15 | AL32: 978 | AM32: 66 | AN32: 1046 | AO32: 0.0630975143 | AP32: 0 | AQ32: 0 | AR32: 0 | AS32: NA | AT32: 1 | AU32: 18 | AV32: 18 | AW32: Artifact (1)
A33: UPN_Te2_019 | B33: 4 | C33: 106157726 | D33: A | E33: C | F33: TET2 | G33: ENST00000380013 | H33: missense_variant | I33: cAa/cCa|p.Gln876Pro/c.2627A>C | J33: 419 | K33: 28 | L33: 448 | M33: 0.0625 | N33: 0 | O33: 0 | P33: 0 | Q33: 1 | R33: 1 | S33: 0 | T33: 0 | U33: 1 | V33: 3 | W33: NO | X33: NO | Y33: NO | Z33: NO | AA33: O | AB33: NO | AC33: NO | AD33: NO | AE33: NO | AF33: NO | AG33: NO | AH33: -0.817 | AI33: Tolerated | AJ33: 36.68 | AK33: 30.64 | AL33: 419 | AM33: 28 | AN33: 448 | AO33: 0.0625 | AP33: 0 | AQ33: 0 | AR33: 0 | AS33: NA | AT33: 1 | AU33: 18 | AV33: 18 | AW33: Artifact (1)
A34: UPN_Te2_021 | B34: 4 | C34: 106157726 | D34: A | E34: C | F34: TET2 | G34: ENST00000380013 | H34: missense_variant | I34: cAa/cCa|p.Gln876Pro/c.2627A>C | J34: 560 | K34: 47 | L34: 609 | M34: 0.0771756979 | N34: 0 | O34: 0 | P34: 0 | Q34: 1 | R34: 1 | S34: 0 | T34: 0 | U34: 1 | V34: 3 | W34: NO | X34: NO | Y34: NO | Z34: NO | AA34: O | AB34: NO | AC34: NO | AD34: NO | AE34: NO | AF34: NO | AG34: NO | AH34: -0.817 | AI34: Tolerated | AJ34: 36.65 | AK34: 31.45 | AL34: 560 | AM34: 47 | AN34: 609 | AO34: 0.0771756979 | AP34: 0 | AQ34: 0 | AR34: 0 | AS34: NA | AT34: 1 | AU34: 18 | AV34: 18 | AW34: Artifact (1)
A35: UPN_Te2_022 | B35: 4 | C35: 106157726 | D35: A | E35: C | F35: TET2 | G35: ENST00000380013 | H35: missense_variant | I35: cAa/cCa|p.Gln876Pro/c.2627A>C | J35: 533 | K35: 44 | L35: 577 | M35: 0.0762564991 | N35: 0 | O35: 0 | P35: 0 | Q35: 1 | R35: 1 | S35: 0 | T35: 0 | U35: 1 | V35: 3 | W35: NO | X35: NO | Y35: NO | Z35: NO | AA35: O | AB35: NO | AC35: NO | AD35: NO | AE35: NO | AF35: NO | AG35: NO | AH35: -0.817 | AI35: Tolerated | AJ35: 36.65 | AK35: 31.34 | AL35: 533 | AM35: 44 | AN35: 577 | AO35: 0.0762564991 | AP35: 0 | AQ35: 0 | AR35: 0 | AS35: NA | AT35: 1 | AU35: 18 | AV35: 18 | AW35: Artifact (1)
A36: UPN_Te2_026 | B36: 4 | C36: 106157726 | D36: A | E36: C | F36: TET2 | G36: ENST00000380013 | H36: missense_variant | I36: cAa/cCa|p.Gln876Pro/c.2627A>C | J36: 548 | K36: 35 | L36: 584 | M36: 0.0599315068 | N36: 0 | O36: 0 | P36: 0 | Q36: 1 | R36: 1 | S36: 0 | T36: 0 | U36: 1 | V36: 3 | W36: NO | X36: NO | Y36: NO | Z36: NO | AA36: O | AB36: NO | AC36: NO | AD36: NO | AE36: NO | AF36: NO | AG36: NO | AH36: -0.817 | AI36: Tolerated | AJ36: 36.71 | AK36: 29.91 | AL36: 548 | AM36: 35 | AN36: 584 | AO36: 0.0599315068 | AP36: 0 | AQ36: 0 | AR36: 0 | AS36: NA | AT36: 1 | AU36: 18 | AV36: 18 | AW36: Artifact (1)
A37: UPN_Te2_035 | B37: 4 | C37: 106157726 | D37: A | E37: C | F37: TET2 | G37: ENST00000380013 | H37: missense_variant | I37: cAa/cCa|p.Gln876Pro/c.2627A>C | J37: 520 | K37: 38 | L37: 559 | M37: 0.0679785331 | N37: 0 | O37: 0 | P37: 0 | Q37: 1 | R37: 1 | S37: 0 | T37: 0 | U37: 1 | V37: 3 | W37: NO | X37: NO | Y37: NO | Z37: NO | AA37: O | AB37: NO | AC37: NO | AD37: NO | AE37: NO | AF37: NO | AG37: NO | AH37: -0.817 | AI37: Tolerated | AJ37: 36.44 | AK37: 31.32 | AL37: 520 | AM37: 38 | AN37: 559 | AO37: 0.0679785331 | AP37: 0 | AQ37: 0 | AR37: 0 | AS37: NA | AT37: 1 | AU37: 18 | AV37: 18 | AW37: Artifact (1)
A38: UPN_Te2_041 | B38: 4 | C38: 106157726 | D38: A | E38: C | F38: TET2 | G38: ENST00000380013 | H38: missense_variant | I38: cAa/cCa|p.Gln876Pro/c.2627A>C | J38: 1764 | K38: 130 | L38: 1901 | M38: 0.0683850605 | N38: 0 | O38: 0 | P38: 0 | Q38: 1 | R38: 1 | S38: 0 | T38: 0 | U38: 1 | V38: 3 | W38: NO | X38: NO | Y38: NO | Z38: NO | AA38: O | AB38: NO | AC38: NO | AD38: NO | AE38: NO | AF38: NO | AG38: NO | AH38: -0.817 | AI38: Tolerated | AJ38: 36.64 | AK38: 29.8 | AL38: 1764 | AM38: 130 | AN38: 1901 | AO38: 0.0683850605 | AP38: 0 | AQ38: 0 | AR38: 0 | AS38: NA | AT38: 1 | AU38: 18 | AV38: 18 | AW38: Artifact (1)
A39: UPN_Te2_043 | B39: 4 | C39: 106157726 | D39: A | E39: C | F39: TET2 | G39: ENST00000380013 | H39: missense_variant | I39: cAa/cCa|p.Gln876Pro/c.2627A>C | J39: 1196 | K39: 96 | L39: 1296 | M39: 0.0740740741 | N39: 0 | O39: 0 | P39: 0 | Q39: 1 | R39: 1 | S39: 0 | T39: 0 | U39: 1 | V39: 3 | W39: NO | X39: NO | Y39: NO | Z39: NO | AA39: O | AB39: NO | AC39: NO | AD39: NO | AE39: NO | AF39: NO | AG39: NO | AH39: -0.817 | AI39: Tolerated | AJ39: 36.43 | AK39: 30.56 | AL39: 1196 | AM39: 96 | AN39: 1296 | AO39: 0.0740740741 | AP39: 0 | AQ39: 0 | AR39: 0 | AS39: NA | AT39: 1 | AU39: 18 | AV39: 18 | AW39: Artifact (1)
A40: UPN_Te2_044 | B40: 4 | C40: 106157726 | D40: A | E40: C | F40: TET2 | G40: ENST00000380013 | H40: missense_variant | I40: cAa/cCa|p.Gln876Pro/c.2627A>C | J40: 559 | K40: 31 | L40: 592 | M40: 0.0523648649 | N40: 0 | O40: 0 | P40: 0 | Q40: 1 | R40: 1 | S40: 0 | T40: 0 | U40: 1 | V40: 3 | W40: NO | X40: NO | Y40: NO | Z40: NO | AA40: O | AB40: NO | AC40: NO | AD40: NO | AE40: NO | AF40: NO | AG40: NO | AH40: -0.817 | AI40: Tolerated | AJ40: 36.68 | AK40: 32.06 | AL40: 559 | AM40: 31 | AN40: 592 | AO40: 0.0523648649 | AP40: 0 | AQ40: 0 | AR40: 0 | AS40: NA | AT40: 1 | AU40: 18 | AV40: 18 | AW40: Artifact (1)
A41: UPN_Te2_025 | B41: 7 | C41: 148514324 | D41: GT | E41: G | F41: EZH2 | G41: ENST00000320356 | H41: frameshift_variant | I41: aca/|p.Thr467fs/c.1399delA | J41: 1168 | K41: 21 | L41: 1191 | M41: 0.0176322418 | N41: 0 | O41: 0 | P41: 0 | Q41: 1 | R41: 1 | S41: 0 | T41: 0 | U41: 1 | V41: 3 | W41: NO | X41: NO | Y41: NO | Z41: NO | AA41: O | AB41: NO | AC41: NO | AD41: NO | AE41: NO | AF41: NO | AG41: NO | AH41: NA | AI41: NA | AJ41: 33.3 | AK41: NA | AL41: 495 | AM41: 9 | AN41: 504 | AO41: 0.0178571429 | AP41: 673 | AQ41: 12 | AR41: 687 | AS41: 0.0174672489 | AT41: 1 | AU41: 1 | AV41: 1 | AW41: Artifact (1)
A42: UPN_Te2_024 | B42: 7 | C42: 148523617 | D42: T | E42: G | F42: EZH2 | G42: ENST00000320356 | H42: missense_variant | I42: cAc/cCc|p.His279Pro/c.836A>C | J42: 955 | K42: 23 | L42: 984 | M42: 0.0233739837 | N42: 0 | O42: 0 | P42: 0 | Q42: 0 | R42: 1 | S42: 0 | T42: 0 | U42: 1 | V42: 2 | W42: NO | X42: NO | Y42: NO | Z42: NO | AA42: O | AB42: NO | AC42: NO | AD42: NO | AE42: 8.236e-06 | AF42: NO | AG42: NO | AH42: -9.151 | AI42: Deleterious | AJ42: 32.59 | AK42: 26.04 | AL42: 456 | AM42: 3 | AN42: 464 | AO42: 0.0064655172 | AP42: 499 | AQ42: 20 | AR42: 520 | AS42: 0.0384615385 | AT42: 0.0010211232 | AU42: 4 | AV42: 4 | AW42: Artifact (1)
A43: UPN_Te2_043 | B43: 7 | C43: 148525915 | D43: T | E43: G | F43: EZH2 | G43: ENST00000320356 | H43: missense_variant | I43: tAt/tCt|p.Tyr181Ser/c.542A>C | J43: 507 | K43: 30 | L43: 537 | M43: 0.0558659218 | N43: 0 | O43: 0 | P43: 0 | Q43: 1 | R43: 1 | S43: 0 | T43: 0 | U43: 0 | V43: 2 | W43: NO | X43: NO | Y43: NO | Z43: NA | AA43: NA | AB43: NO | AC43: NO | AD43: NO | AE43: NO | AF43: NO | AG43: NO | AH43: -4.079 | AI43: Deleterious | AJ43: 35.97 | AK43: 29 | AL43: 113 | AM43: 0 | AN43: 113 | AO43: 0 | AP43: 394 | AQ43: 30 | AR43: 424 | AS43: 0.070754717 | AT43: 0.0009368278 | AU43: 2 | AV43: 2 | AW43: Artifact (1)
A44: UPN_Te2_003 | B44: X | C44: 15822274 | D44: A | E44: C | F44: ZRSR2 | G44: ENST00000307771 | H44: missense_variant | I44: gAg/gCg|p.Glu118Ala/c.353A>C | J44: 334 | K44: 22 | L44: 359 | M44: 0.061281337 | N44: 0 | O44: 0 | P44: 0 | Q44: 0 | R44: 1 | S44: 0 | T44: 0 | U44: 1 | V44: 2 | W44: NO | X44: NO | Y44: NO | Z44: NO | AA44: O | AB44: NO | AC44: NO | AD44: NO | AE44: NO | AF44: NO | AG44: NO | AH44: -2.42 | AI44: Tolerated | AJ44: 32.66 | AK44: 27.18 | AL44: 334 | AM44: 22 | AN44: 359 | AO44: 0.061281337 | AP44: 0 | AQ44: 0 | AR44: 0 | AS44: NA | AT44: 1 | AU44: 2 | AV44: 2 | AW44: Artifact (1)
A45: UPN_Te2_021 | B45: X | C45: 15833915 | D45: C | E45: A | F45: ZRSR2 | G45: ENST00000307771 | H45: missense_variant | I45: Ctg/Atg|p.Leu225Met/c.673C>A | J45: 910 | K45: 29 | L45: 942 | M45: 0.0307855626 | N45: 0 | O45: 0 | P45: 0 | Q45: 0 | R45: 1 | S45: 0 | T45: 0 | U45: 1 | V45: 2 | W45: NO | X45: NO | Y45: NO | Z45: NO | AA45: O | AB45: NO | AC45: NO | AD45: NO | AE45: NO | AF45: NO | AG45: NO | AH45: -1.911 | AI45: Tolerated | AJ45: 34.39 | AK45: 28.41 | AL45: 909 | AM45: 29 | AN45: 941 | AO45: 0.0308182784 | AP45: 1 | AQ45: 0 | AR45: 1 | AS45: 0 | AT45: 1 | AU45: 1 | AV45: 1 | AW45: Artifact (1)
A46: UPN_Te2_040 | B46: 20 | C46: 31024698 | D46: C | E46: G | F46: ASXL1 | G46: ENST00000375687 | H46: missense_variant | I46: Ctg/Gtg|p.Leu1395Val/c.4183C>G | J46: 3615 | K46: 42 | L46: 3662 | M46: 0.0114691425 | N46: 0 | O46: 0 | P46: 0 | Q46: 0 | R46: 1 | S46: 0 | T46: 0 | U46: 1 | V46: 2 | W46: 0.0814 | X46: NO | Y46: COSM41990 | Z46: haematopoietic_and_lymphoid_tissue | AA46: 2 | AB46: NO | AC46: rs150004862 | AD46: NO | AE46: 0.0004201 | AF46: NO | AG46: NO | AH46: -0.731 | AI46: Tolerated | AJ46: 34.08 | AK46: 32.31 | AL46: 1588 | AM46: 18 | AN46: 1607 | AO46: 0.0112009956 | AP46: 2027 | AQ46: 24 | AR46: 2055 | AS46: 0.0116788321 | AT46: 1 | AU46: 2 | AV46: 2 | AW46: Artifact (10)
A47: UPN_Te2_009 | B47: 4 | C47: 106156053 | D47: A | E47: C | F47: TET2 | G47: ENST00000380013 | H47: missense_variant | I47: aaA/aaC|p.Lys318Asn/c.954A>C | J47: 7269 | K47: 135 | L47: 7416 | M47: 0.0182038835 | N47: 0 | O47: 0 | P47: 0 | Q47: 0 | R47: 1 | S47: 1 | T47: 0 | U47: 0 | V47: 2 | W47: NO | X47: NO | Y47: NO | Z47: NO | AA47: O | AB47: NO | AC47: NO | AD47: NO | AE47: NO | AF47: NO | AG47: NO | AH47: -1.297 | AI47: Tolerated | AJ47: 35.18 | AK47: 31.07 | AL47: 4179 | AM47: 134 | AN47: 4318 | AO47: 0.0310328856 | AP47: 3090 | AQ47: 1 | AR47: 3098 | AS47: 0.0003227889 | AT47: 9.426466102e-31 | AU47: 40 | AV47: 40 | AW47: Artifact (10)
A48: UPN_Te2_003 | B48: 4 | C48: 106156282 | D48: A | E48: C | F48: TET2 | G48: ENST00000380013 | H48: missense_variant | I48: Act/Cct|p.Thr395Pro/c.1183A>C | J48: 5074 | K48: 84 | L48: 5167 | M48: 0.0162570157 | N48: 0 | O48: 0 | P48: 0 | Q48: 0 | R48: 1 | S48: 0 | T48: 0 | U48: 1 | V48: 2 | W48: NO | X48: NO | Y48: NO | Z48: NO | AA48: O | AB48: NO | AC48: NO | AD48: NO | AE48: NO | AF48: NO | AG48: NO | AH48: -0.504 | AI48: Tolerated | AJ48: 34.03 | AK48: 28.36 | AL48: 1757 | AM48: 77 | AN48: 1836 | AO48: 0.0419389978 | AP48: 3317 | AQ48: 7 | AR48: 3331 | AS48: 0.002101471 | AT48: 2.247015588e-27 | AU48: 39 | AV48: 39 | AW48: Artifact (10)
A49: UPN_Te2_009 | B49: 4 | C49: 106156282 | D49: A | E49: C | F49: TET2 | G49: ENST00000380013 | H49: missense_variant | I49: Act/Cct|p.Thr395Pro/c.1183A>C | J49: 6169 | K49: 103 | L49: 6294 | M49: 0.0163647919 | N49: 0 | O49: 0 | P49: 0 | Q49: 0 | R49: 1 | S49: 0 | T49: 0 | U49: 1 | V49: 2 | W49: NO | X49: NO | Y49: NO | Z49: NO | AA49: O | AB49: NO | AC49: NO | AD49: NO | AE49: NO | AF49: NO | AG49: NO | AH49: -0.504 | AI49: Tolerated | AJ49: 33.81 | AK49: 27.6 | AL49: 2196 | AM49: 95 | AN49: 2295 | AO49: 0.0413943355 | AP49: 3973 | AQ49: 8 | AR49: 3999 | AS49: 0.0020005001 | AT49: 5.893363578e-33 | AU49: 39 | AV49: 39 | AW49: Artifact (10)
A50: UPN_Te2_011 | B50: 4 | C50: 106156282 | D50: A | E50: C | F50: TET2 | G50: ENST00000380013 | H50: missense_variant | I50: Act/Cct|p.Thr395Pro/c.1183A>C | J50: 7867 | K50: 125 | L50: 8006 | M50: 0.01561329 | N50: 0 | O50: 0 | P50: 0 | Q50: 0 | R50: 1 | S50: 0 | T50: 0 | U50: 1 | V50: 2 | W50: NO | X50: NO | Y50: NO | Z50: NO | AA50: O | AB50: NO | AC50: NO | AD50: NO | AE50: NO | AF50: NO | AG50: NO | AH50: -0.504 | AI50: Tolerated | AJ50: 33.78 | AK50: 27.94 | AL50: 2799 | AM50: 116 | AN50: 2918 | AO50: 0.0397532557 | AP50: 5068 | AQ50: 9 | AR50: 5088 | AS50: 0.0017688679 | AT50: 1.078712446e-40 | AU50: 39 | AV50: 39 | AW50: Artifact (10)
A51: UPN_Te2_012 | B51: 4 | C51: 106156282 | D51: A | E51: C | F51: TET2 | G51: ENST00000380013 | H51: missense_variant | I51: Act/Cct|p.Thr395Pro/c.1183A>C | J51: 5853 | K51: 98 | L51: 5969 | M51: 0.0164181605 | N51: 0 | O51: 0 | P51: 0 | Q51: 0 | R51: 1 | S51: 0 | T51: 0 | U51: 1 | V51: 2 | W51: NO | X51: NO | Y51: NO | Z51: NO | AA51: O | AB51: NO | AC51: NO | AD51: NO | AE51: NO | AF51: NO | AG51: NO | AH51: -0.504 | AI51: Tolerated | AJ51: 33.77 | AK51: 29.19 | AL51: 1920 | AM51: 89 | AN51: 2011 | AO51: 0.0442565888 | AP51: 3933 | AQ51: 9 | AR51: 3958 | AS51: 0.0022738757 | AT51: 1.321024645e-32 | AU51: 39 | AV51: 39 | AW51: Artifact (10)
A52: UPN_Te2_013 | B52: 4 | C52: 106156282 | D52: A | E52: C | F52: TET2 | G52: ENST00000380013 | H52: missense_variant | I52: Act/Cct|p.Thr395Pro/c.1183A>C | J52: 5069 | K52: 91 | L52: 5175 | M52: 0.0175845411 | N52: 0 | O52: 0 | P52: 0 | Q52: 0 | R52: 1 | S52: 0 | T52: 0 | U52: 1 | V52: 2 | W52: NO | X52: NO | Y52: NO | Z52: NO | AA52: O | AB52: NO | AC52: NO | AD52: NO | AE52: NO | AF52: NO | AG52: NO | AH52: -0.504 | AI52: Tolerated | AJ52: 33.88 | AK52: 27.1 | AL52: 1814 | AM52: 85 | AN52: 1902 | AO52: 0.0446898002 | AP52: 3255 | AQ52: 6 | AR52: 3273 | AS52: 0.0018331806 | AT52: 1.821372592e-30 | AU52: 39 | AV52: 39 | AW52: Artifact (10)
A53: UPN_Te2_016 | B53: 4 | C53: 106156282 | D53: A | E53: C | F53: TET2 | G53: ENST00000380013 | H53: missense_variant | I53: Act/Cct|p.Thr395Pro/c.1183A>C | J53: 6230 | K53: 84 | L53: 6323 | M53: 0.0132848331 | N53: 0 | O53: 0 | P53: 0 | Q53: 0 | R53: 1 | S53: 0 | T53: 0 | U53: 1 | V53: 2 | W53: NO | X53: NO | Y53: NO | Z53: NO | AA53: O | AB53: NO | AC53: NO | AD53: NO | AE53: NO | AF53: NO | AG53: NO | AH53: -0.504 | AI53: Tolerated | AJ53: 33.85 | AK53: 28.5 | AL53: 2155 | AM53: 79 | AN53: 2236 | AO53: 0.0353309481 | AP53: 4075 | AQ53: 5 | AR53: 4087 | AS53: 0.0012233912 | AT53: 3.491574095e-30 | AU53: 39 | AV53: 39 | AW53: Artifact (10)
A54: UPN_Te2_017 | B54: 4 | C54: 106156282 | D54: A | E54: C | F54: TET2 | G54: ENST00000380013 | H54: missense_variant | I54: Act/Cct|p.Thr395Pro/c.1183A>C | J54: 7501 | K54: 117 | L54: 7637 | M54: 0.0153201519 | N54: 0 | O54: 0 | P54: 0 | Q54: 0 | R54: 1 | S54: 0 | T54: 0 | U54: 1 | V54: 2 | W54: NO | X54: NO | Y54: NO | Z54: NO | AA54: O | AB54: NO | AC54: NO | AD54: NO | AE54: NO | AF54: NO | AG54: NO | AH54: -0.504 | AI54: Tolerated | AJ54: 33.53 | AK54: 28.46 | AL54: 2499 | AM54: 108 | AN54: 2621 | AO54: 0.0412056467 | AP54: 5002 | AQ54: 9 | AR54: 5016 | AS54: 0.0017942584 | AT54: 2.581964498e-40 | AU54: 39 | AV54: 39 | AW54: Artifact (10)
A55: UPN_Te2_019 | B55: 4 | C55: 106156282 | D55: A | E55: C | F55: TET2 | G55: ENST00000380013 | H55: missense_variant | I55: Act/Cct|p.Thr395Pro/c.1183A>C | J55: 4145 | K55: 82 | L55: 4240 | M55: 0.0193396226 | N55: 0 | O55: 0 | P55: 0 | Q55: 0 | R55: 1 | S55: 0 | T55: 0 | U55: 1 | V55: 2 | W55: NO | X55: NO | Y55: NO | Z55: NO | AA55: O | AB55: NO | AC55: NO | AD55: NO | AE55: NO | AF55: NO | AG55: NO | AH55: -0.504 | AI55: Tolerated | AJ55: 33.74 | AK55: 28.16 | AL55: 1653 | AM55: 74 | AN55: 1728 | AO55: 0.0428240741 | AP55: 2492 | AQ55: 8 | AR55: 2512 | AS55: 0.0031847134 | AT55: 4.379878628e-21 | AU55: 39 | AV55: 39 | AW55: Artifact (10)
A56: UPN_Te2_020 | B56: 4 | C56: 106156282 | D56: A | E56: C | F56: TET2 | G56: ENST00000380013 | H56: missense_variant | I56: Act/Cct|p.Thr395Pro/c.1183A>C | J56: 4763 | K56: 90 | L56: 4867 | M56: 0.0184918841 | N56: 0 | O56: 0 | P56: 0 | Q56: 0 | R56: 1 | S56: 0 | T56: 0 | U56: 1 | V56: 2 | W56: NO | X56: NO | Y56: NO | Z56: NO | AA56: O | AB56: NO | AC56: NO | AD56: NO | AE56: NO | AF56: NO | AG56: NO | AH56: -0.504 | AI56: Tolerated | AJ56: 33.74 | AK56: 27.43 | AL56: 1647 | AM56: 85 | AN56: 1739 | AO56: 0.0488786659 | AP56: 3116 | AQ56: 5 | AR56: 3128 | AS56: 0.0015984655 | AT56: 1.296201028e-32 | AU56: 39 | AV56: 39 | AW56: Artifact (10)
A57: UPN_Te2_022 | B57: 4 | C57: 106156282 | D57: A | E57: C | F57: TET2 | G57: ENST00000380013 | H57: missense_variant | I57: Act/Cct|p.Thr395Pro/c.1183A>C | J57: 5137 | K57: 88 | L57: 5236 | M57: 0.0168067227 | N57: 0 | O57: 0 | P57: 0 | Q57: 0 | R57: 1 | S57: 0 | T57: 0 | U57: 1 | V57: 2 | W57: NO | X57: NO | Y57: NO | Z57: NO | AA57: O | AB57: NO | AC57: NO | AD57: NO | AE57: NO | AF57: NO | AG57: NO | AH57: -0.504 | AI57: Tolerated | AJ57: 33.72 | AK57: 27.22 | AL57: 1820 | AM57: 79 | AN57: 1902 | AO57: 0.0415352261 | AP57: 3317 | AQ57: 9 | AR57: 3334 | AS57: 0.0026994601 | AT57: 7.838856517e-26 | AU57: 39 | AV57: 39 | AW57: Artifact (10)
A58: UPN_Te2_024 | B58: 4 | C58: 106156282 | D58: A | E58: C | F58: TET2 | G58: ENST00000380013 | H58: missense_variant | I58: Act/Cct|p.Thr395Pro/c.1183A>C | J58: 4453 | K58: 62 | L58: 4524 | M58: 0.0137046861 | N58: 0 | O58: 0 | P58: 0 | Q58: 0 | R58: 1 | S58: 0 | T58: 0 | U58: 1 | V58: 2 | W58: NO | X58: NO | Y58: NO | Z58: NO | AA58: O | AB58: NO | AC58: NO | AD58: NO | AE58: NO | AF58: NO | AG58: NO | AH58: -0.504 | AI58: Tolerated | AJ58: 33.74 | AK58: 28.5 | AL58: 1711 | AM58: 56 | AN58: 1769 | AO58: 0.031656303 | AP58: 2742 | AQ58: 6 | AR58: 2755 | AS58: 0.0021778584 | AT58: 3.207764181e-17 | AU58: 39 | AV58: 39 | AW58: Artifact (10)
A59: UPN_Te2_026 | B59: 4 | C59: 106156282 | D59: A | E59: C | F59: TET2 | G59: ENST00000380013 | H59: missense_variant | I59: Act/Cct|p.Thr395Pro/c.1183A>C | J59: 5331 | K59: 99 | L59: 5444 | M59: 0.018185158 | N59: 0 | O59: 0 | P59: 0 | Q59: 0 | R59: 1 | S59: 0 | T59: 0 | U59: 1 | V59: 2 | W59: NO | X59: NO | Y59: NO | Z59: NO | AA59: O | AB59: NO | AC59: NO | AD59: NO | AE59: NO | AF59: NO | AG59: NO | AH59: -0.504 | AI59: Tolerated | AJ59: 33.66 | AK59: 27.27 | AL59: 1921 | AM59: 94 | AN59: 2018 | AO59: 0.046580773 | AP59: 3410 | AQ59: 5 | AR59: 3426 | AS59: 0.0014594279 | AT59: 6.654760907e-35 | AU59: 39 | AV59: 39 | AW59: Artifact (10)
A60: UPN_Te2_027 | B60: 4 | C60: 106156282 | D60: A | E60: C | F60: TET2 | G60: ENST00000380013 | H60: missense_variant | I60: Act/Cct|p.Thr395Pro/c.1183A>C | J60: 2416 | K60: 42 | L60: 2466 | M60: 0.0170316302 | N60: 0 | O60: 0 | P60: 0 | Q60: 0 | R60: 1 | S60: 0 | T60: 0 | U60: 1 | V60: 2 | W60: NO | X60: NO | Y60: NO | Z60: NO | AA60: O | AB60: NO | AC60: NO | AD60: NO | AE60: NO | AF60: NO | AG60: NO | AH60: -0.504 | AI60: Tolerated | AJ60: 33.58 | AK60: 29.17 | AL60: 854 | AM60: 38 | AN60: 894 | AO60: 0.0425055928 | AP60: 1562 | AQ60: 4 | AR60: 1572 | AS60: 0.0025445293 | AT60: 2.324538177e-13 | AU60: 39 | AV60: 39 | AW60: Artifact (10)
A61: UPN_Te2_028 | B61: 4 | C61: 106156282 | D61: A | E61: C | F61: TET2 | G61: ENST00000380013 | H61: missense_variant | I61: Act/Cct|p.Thr395Pro/c.1183A>C | J61: 6509 | K61: 101 | L61: 6622 | M61: 0.0152521897 | N61: 0 | O61: 0 | P61: 0 | Q61: 0 | R61: 1 | S61: 0 | T61: 0 | U61: 1 | V61: 2 | W61: NO | X61: NO | Y61: NO | Z61: NO | AA61: O | AB61: NO | AC61: NO | AD61: NO | AE61: NO | AF61: NO | AG61: NO | AH61: -0.504 | AI61: Tolerated | AJ61: 33.99 | AK61: 28.13 | AL61: 2241 | AM61: 93 | AN61: 2338 | AO61: 0.0397775877 | AP61: 4268 | AQ61: 8 | AR61: 4284 | AS61: 0.0018674136 | AT61: 1.952138851e-33 | AU61: 39 | AV61: 39 | AW61: Artifact (10)
A62: UPN_Te2_046 | B62: 4 | C62: 106156282 | D62: A | E62: C | F62: TET2 | G62: ENST00000380013 | H62: missense_variant | I62: Act/Cct|p.Thr395Pro/c.1183A>C | J62: 2263 | K62: 31 | L62: 2298 | M62: 0.0134899913 | N62: 0 | O62: 0 | P62: 0 | Q62: 0 | R62: 1 | S62: 0 | T62: 0 | U62: 1 | V62: 2 | W62: NO | X62: NO | Y62: NO | Z62: NO | AA62: O | AB62: NO | AC62: NO | AD62: NO | AE62: NO | AF62: NO | AG62: NO | AH62: -0.504 | AI62: Tolerated | AJ62: 33.67 | AK62: 29.74 | AL62: 764 | AM62: 29 | AN62: 795 | AO62: 0.0364779874 | AP62: 1499 | AQ62: 2 | AR62: 1503 | AS62: 0.001330672 | AT62: 6.288542304e-12 | AU62: 39 | AV62: 39 | AW62: Artifact (10)
A63: UPN_Te2_002 | B63: 4 | C63: 106196567 | D63: A | E63: C | F63: TET2 | G63: ENST00000380013 | H63: missense_variant | I63: Aat/Cat|p.Asn1634His/c.4900A>C | J63: 2484 | K63: 49 | L63: 2540 | M63: 0.0192913386 | N63: 0 | O63: 0 | P63: 0 | Q63: 0 | R63: 1 | S63: 0 | T63: 0 | U63: 1 | V63: 2 | W63: NO | X63: NO | Y63: NO | Z63: NO | AA63: O | AB63: NO | AC63: NO | AD63: NO | AE63: NO | AF63: NO | AG63: NO | AH63: -1.492 | AI63: Tolerated | AJ63: 33.35 | AK63: 28.88 | AL63: 2437 | AM63: 49 | AN63: 2493 | AO63: 0.0196550341 | AP63: 47 | AQ63: 0 | AR63: 47 | AS63: 0 | AT63: 1 | AU63: 31 | AV63: 31 | AW63: Artifact (10)
A64: UPN_Te2_004 | B64: 4 | C64: 106196567 | D64: A | E64: C | F64: TET2 | G64: ENST00000380013 | H64: missense_variant | I64: Aat/Cat|p.Asn1634His/c.4900A>C | J64: 1928 | K64: 36 | L64: 1967 | M64: 0.0183019827 | N64: 0 | O64: 0 | P64: 0 | Q64: 0 | R64: 1 | S64: 0 | T64: 0 | U64: 1 | V64: 2 | W64: NO | X64: NO | Y64: NO | Z64: NO | AA64: O | AB64: NO | AC64: NO | AD64: NO | AE64: NO | AF64: NO | AG64: NO | AH64: -1.492 | AI64: Tolerated | AJ64: 33.45 | AK64: 27.5 | AL64: 1869 | AM64: 36 | AN64: 1908 | AO64: 0.0188679245 | AP64: 59 | AQ64: 0 | AR64: 59 | AS64: 0 | AT64: 0.6249659942 | AU64: 31 | AV64: 31 | AW64: Artifact (10)
A65: UPN_Te2_005 | B65: 4 | C65: 106196567 | D65: A | E65: C | F65: TET2 | G65: ENST00000380013 | H65: missense_variant | I65: Aat/Cat|p.Asn1634His/c.4900A>C | J65: 2072 | K65: 33 | L65: 2107 | M65: 0.0156620788 | N65: 0 | O65: 0 | P65: 0 | Q65: 0 | R65: 1 | S65: 0 | T65: 0 | U65: 1 | V65: 2 | W65: NO | X65: NO | Y65: NO | Z65: NO | AA65: O | AB65: NO | AC65: NO | AD65: NO | AE65: NO | AF65: NO | AG65: NO | AH65: -1.492 | AI65: Tolerated | AJ65: 33.37 | AK65: 28.94 | AL65: 1993 | AM65: 33 | AN65: 2028 | AO65: 0.0162721893 | AP65: 79 | AQ65: 0 | AR65: 79 | AS65: 0 | AT65: 0.6336423039 | AU65: 31 | AV65: 31 | AW65: Artifact (10)
A66: UPN_Te2_009 | B66: 4 | C66: 106196567 | D66: A | E66: C | F66: TET2 | G66: ENST00000380013 | H66: missense_variant | I66: Aat/Cat|p.Asn1634His/c.4900A>C | J66: 3362 | K66: 57 | L66: 3428 | M66: 0.0166277713 | N66: 0 | O66: 0 | P66: 0 | Q66: 0 | R66: 1 | S66: 0 | T66: 0 | U66: 1 | V66: 2 | W66: NO | X66: NO | Y66: NO | Z66: NO | AA66: O | AB66: NO | AC66: NO | AD66: NO | AE66: NO | AF66: NO | AG66: NO | AH66: -1.492 | AI66: Tolerated | AJ66: 33.57 | AK66: 28.12 | AL66: 3240 | AM66: 57 | AN66: 3306 | AO66: 0.0172413793 | AP66: 122 | AQ66: 0 | AR66: 122 | AS66: 0 | AT66: 0.2680879144 | AU66: 31 | AV66: 31 | AW66: Artifact (10)
A67: UPN_Te2_010 | B67: 4 | C67: 106196567 | D67: A | E67: C | F67: TET2 | G67: ENST00000380013 | H67: missense_variant | I67: Aat/Cat|p.Asn1634His/c.4900A>C | J67: 2463 | K67: 48 | L67: 2518 | M67: 0.0190627482 | N67: 0 | O67: 0 | P67: 0 | Q67: 0 | R67: 1 | S67: 0 | T67: 0 | U67: 1 | V67: 2 | W67: NO | X67: NO | Y67: NO | Z67: NO | AA67: O | AB67: NO | AC67: NO | AD67: NO | AE67: NO | AF67: NO | AG67: NO | AH67: -1.492 | AI67: Tolerated | AJ67: 33.52 | AK67: 28.15 | AL67: 2377 | AM67: 48 | AN67: 2432 | AO67: 0.0197368421 | AP67: 86 | AQ67: 0 | AR67: 86 | AS67: 0 | AT67: 0.4101075553 | AU67: 31 | AV67: 31 | AW67: Artifact (10)
A68: UPN_Te2_013 | B68: 4 | C68: 106196567 | D68: A | E68: C | F68: TET2 | G68: ENST00000380013 | H68: missense_variant | I68: Aat/Cat|p.Asn1634His/c.4900A>C | J68: 2756 | K68: 48 | L68: 2810 | M68: 0.0170818505 | N68: 0 | O68: 0 | P68: 0 | Q68: 0 | R68: 1 | S68: 0 | T68: 0 | U68: 1 | V68: 2 | W68: NO | X68: NO | Y68: NO | Z68: NO | AA68: O | AB68: NO | AC68: NO | AD68: NO | AE68: NO | AF68: NO | AG68: NO | AH68: -1.492 | AI68: Tolerated | AJ68: 33.23 | AK68: 29.67 | AL68: 2660 | AM68: 48 | AN68: 2714 | AO68: 0.0176860722 | AP68: 96 | AQ68: 0 | AR68: 96 | AS68: 0 | AT68: 0.4104868911 | AU68: 31 | AV68: 31 | AW68: Artifact (10)
A69: UPN_Te2_015 | B69: 4 | C69: 106196567 | D69: A | E69: C | F69: TET2 | G69: ENST00000380013 | H69: missense_variant | I69: Aat/Cat|p.Asn1634His/c.4900A>C | J69: 3030 | K69: 56 | L69: 3090 | M69: 0.0181229773 | N69: 0 | O69: 0 | P69: 0 | Q69: 0 | R69: 1 | S69: 0 | T69: 0 | U69: 1 | V69: 2 | W69: NO | X69: NO | Y69: NO | Z69: NO | AA69: O | AB69: NO | AC69: NO | AD69: NO | AE69: NO | AF69: NO | AG69: NO | AH69: -1.492 | AI69: Tolerated | AJ69: 33.39 | AK69: 27.43 | AL69: 2957 | AM69: 56 | AN69: 3017 | AO69: 0.0185614849 | AP69: 73 | AQ69: 0 | AR69: 73 | AS69: 0 | AT69: 0.6427460956 | AU69: 31 | AV69: 31 | AW69: Artifact (10)
A70: UPN_Te2_016 | B70: 4 | C70: 106196567 | D70: A | E70: C | F70: TET2 | G70: ENST00000380013 | H70: missense_variant | I70: Aat/Cat|p.Asn1634His/c.4900A>C | J70: 3138 | K70: 53 | L70: 3198 | M70: 0.016572858 | N70: 0 | O70: 0 | P70: 0 | Q70: 0 | R70: 1 | S70: 0 | T70: 0 | U70: 1 | V70: 2 | W70: NO | X70: NO | Y70: NO | Z70: NO | AA70: O | AB70: NO | AC70: NO | AD70: NO | AE70: NO | AF70: NO | AG70: NO | AH70: -1.492 | AI70: Tolerated | AJ70: 33.45 | AK70: 28.74 | AL70: 3039 | AM70: 53 | AN70: 3099 | AO70: 0.0171022911 | AP70: 99 | AQ70: 0 | AR70: 99 | AS70: 0 | AT70: 0.4113533943 | AU70: 31 | AV70: 31 | AW70: Artifact (10)
A71: UPN_Te2_019 | B71: 4 | C71: 106196567 | D71: A | E71: C | F71: TET2 | G71: ENST00000380013 | H71: missense_variant | I71: Aat/Cat|p.Asn1634His/c.4900A>C | J71: 2204 | K71: 38 | L71: 2247 | M71: 0.0169114375 | N71: 0 | O71: 0 | P71: 0 | Q71: 0 | R71: 1 | S71: 0 | T71: 0 | U71: 1 | V71: 2 | W71: NO | X71: NO | Y71: NO | Z71: NO | AA71: O | AB71: NO | AC71: NO | AD71: NO | AE71: NO | AF71: NO | AG71: NO | AH71: -1.492 | AI71: Tolerated | AJ71: 33.32 | AK71: 28.95 | AL71: 2108 | AM71: 38 | AN71: 2151 | AO71: 0.0176662018 | AP71: 96 | AQ71: 0 | AR71: 96 | AS71: 0 | AT71: 0.4074293681 | AU71: 31 | AV71: 31 | AW71: Artifact (10)
A72: UPN_Te2_021 | B72: 4 | C72: 106196567 | D72: A | E72: C | F72: TET2 | G72: ENST00000380013 | H72: missense_variant | I72: Aat/Cat|p.Asn1634His/c.4900A>C | J72: 2579 | K72: 43 | L72: 2625 | M72: 0.0163809524 | N72: 0 | O72: 0 | P72: 0 | Q72: 0 | R72: 1 | S72: 0 | T72: 0 | U72: 1 | V72: 2 | W72: NO | X72: NO | Y72: NO | Z72: NO | AA72: O | AB72: NO | AC72: NO | AD72: NO | AE72: NO | AF72: NO | AG72: NO | AH72: -1.492 | AI72: Tolerated | AJ72: 33.42 | AK72: 27.67 | AL72: 2473 | AM72: 43 | AN72: 2519 | AO72: 0.017070266 | AP72: 106 | AQ72: 0 | AR72: 106 | AS72: 0 | AT72: 0.4178628246 | AU72: 31 | AV72: 31 | AW72: Artifact (10)
A73: UPN_Te2_022 | B73: 4 | C73: 106196567 | D73: A | E73: C | F73: TET2 | G73: ENST00000380013 | H73: missense_variant | I73: Aat/Cat|p.Asn1634His/c.4900A>C | J73: 2163 | K73: 41 | L73: 2208 | M73: 0.0185688406 | N73: 0 | O73: 0 | P73: 0 | Q73: 0 | R73: 1 | S73: 0 | T73: 0 | U73: 1 | V73: 2 | W73: NO | X73: NO | Y73: NO | Z73: NO | AA73: O | AB73: NO | AC73: NO | AD73: NO | AE73: NO | AF73: NO | AG73: NO | AH73: -1.492 | AI73: Tolerated | AJ73: 33.35 | AK73: 28.39 | AL73: 2105 | AM73: 41 | AN73: 2150 | AO73: 0.0190697674 | AP73: 58 | AQ73: 0 | AR73: 58 | AS73: 0 | AT73: 0.6254802692 | AU73: 31 | AV73: 31 | AW73: Artifact (10)
A74: UPN_Te2_023 | B74: 4 | C74: 106196567 | D74: A | E74: C | F74: TET2 | G74: ENST00000380013 | H74: missense_variant | I74: Aat/Cat|p.Asn1634His/c.4900A>C | J74: 1848 | K74: 32 | L74: 1883 | M74: 0.0169941583 | N74: 0 | O74: 0 | P74: 0 | Q74: 0 | R74: 1 | S74: 0 | T74: 0 | U74: 1 | V74: 2 | W74: NO | X74: NO | Y74: NO | Z74: NO | AA74: O | AB74: NO | AC74: NO | AD74: NO | AE74: NO | AF74: NO | AG74: NO | AH74: -1.492 | AI74: Tolerated | AJ74: 33 | AK74: 30.34 | AL74: 1783 | AM74: 32 | AN74: 1818 | AO74: 0.0176017602 | AP74: 65 | AQ74: 0 | AR74: 65 | AS74: 0 | AT74: 0.6254422589 | AU74: 31 | AV74: 31 | AW74: Artifact (10)
A75: UPN_Te2_026 | B75: 4 | C75: 106196567 | D75: A | E75: C | F75: TET2 | G75: ENST00000380013 | H75: missense_variant | I75: Aat/Cat|p.Asn1634His/c.4900A>C | J75: 2547 | K75: 50 | L75: 2600 | M75: 0.0192307692 | N75: 0 | O75: 0 | P75: 0 | Q75: 0 | R75: 1 | S75: 0 | T75: 0 | U75: 1 | V75: 2 | W75: NO | X75: NO | Y75: NO | Z75: NO | AA75: O | AB75: NO | AC75: NO | AD75: NO | AE75: NO | AF75: NO | AG75: NO | AH75: -1.492 | AI75: Tolerated | AJ75: 33.43 | AK75: 27.12 | AL75: 2484 | AM75: 50 | AN75: 2537 | AO75: 0.0197083169 | AP75: 63 | AQ75: 0 | AR75: 63 | AS75: 0 | AT75: 0.6330916302 | AU75: 31 | AV75: 31 | AW75: Artifact (10)
A76: UPN_Te2_027 | B76: 4 | C76: 106196567 | D76: A | E76: C | F76: TET2 | G76: ENST00000380013 | H76: missense_variant | I76: Aat/Cat|p.Asn1634His/c.4900A>C | J76: 1299 | K76: 21 | L76: 1326 | M76: 0.0158371041 | N76: 0 | O76: 0 | P76: 0 | Q76: 0 | R76: 1 | S76: 0 | T76: 0 | U76: 1 | V76: 2 | W76: NO | X76: NO | Y76: NO | Z76: NO | AA76: O | AB76: NO | AC76: NO | AD76: NO | AE76: NO | AF76: NO | AG76: NO | AH76: -1.492 | AI76: Tolerated | AJ76: 33.03 | AK76: 26.19 | AL76: 1262 | AM76: 21 | AN76: 1289 | AO76: 0.016291699 | AP76: 37 | AQ76: 0 | AR76: 37 | AS76: 0 | AT76: 1 | AU76: 31 | AV76: 31 | AW76: Artifact (10)
A77: UPN_Te2_031 | B77: 4 | C77: 106196567 | D77: A | E77: C | F77: TET2 | G77: ENST00000380013 | H77: missense_variant | I77: Aat/Cat|p.Asn1634His/c.4900A>C | J77: 1146 | K77: 21 | L77: 1169 | M77: 0.0179640719 | N77: 0 | O77: 0 | P77: 0 | Q77: 0 | R77: 1 | S77: 0 | T77: 0 | U77: 1 | V77: 2 | W77: NO | X77: NO | Y77: NO | Z77: NO | AA77: O | AB77: NO | AC77: NO | AD77: NO | AE77: NO | AF77: NO | AG77: NO | AH77: -1.492 | AI77: Tolerated | AJ77: 33.45 | AK77: 27.76 | AL77: 1114 | AM77: 21 | AN77: 1137 | AO77: 0.018469657 | AP77: 32 | AQ77: 0 | AR77: 32 | AS77: 0 | AT77: 1 | AU77: 31 | AV77: 31 | AW77: Artifact (10)
A78: UPN_Te2_035 | B78: 4 | C78: 106196567 | D78: A | E78: C | F78: TET2 | G78: ENST00000380013 | H78: missense_variant | I78: Aat/Cat|p.Asn1634His/c.4900A>C | J78: 2196 | K78: 44 | L78: 2248 | M78: 0.0195729537 | N78: 0 | O78: 0 | P78: 0 | Q78: 0 | R78: 1 | S78: 0 | T78: 0 | U78: 1 | V78: 2 | W78: NO | X78: NO | Y78: NO | Z78: NO | AA78: O | AB78: NO | AC78: NO | AD78: NO | AE78: NO | AF78: NO | AG78: NO | AH78: -1.492 | AI78: Tolerated | AJ78: 33.19 | AK78: 26.8 | AL78: 2140 | AM78: 44 | AN78: 2192 | AO78: 0.0200729927 | AP78: 56 | AQ78: 0 | AR78: 56 | AS78: 0 | AT78: 0.6263528547 | AU78: 31 | AV78: 31 | AW78: Artifact (10)
A79: UPN_Te2_040 | B79: 4 | C79: 106196567 | D79: A | E79: C | F79: TET2 | G79: ENST00000380013 | H79: missense_variant | I79: Aat/Cat|p.Asn1634His/c.4900A>C | J79: 2414 | K79: 30 | L79: 2448 | M79: 0.012254902 | N79: 0 | O79: 0 | P79: 0 | Q79: 0 | R79: 1 | S79: 0 | T79: 0 | U79: 1 | V79: 2 | W79: NO | X79: NO | Y79: NO | Z79: NO | AA79: O | AB79: NO | AC79: NO | AD79: NO | AE79: NO | AF79: NO | AG79: NO | AH79: -1.492 | AI79: Tolerated | AJ79: 33.29 | AK79: 29.23 | AL79: 2323 | AM79: 30 | AN79: 2356 | AO79: 0.0127334465 | AP79: 91 | AQ79: 0 | AR79: 92 | AS79: 0 | AT79: 0.6262905429 | AU79: 31 | AV79: 31 | AW79: Artifact (10)
A80: UPN_Te2_042 | B80: 4 | C80: 106196567 | D80: A | E80: C | F80: TET2 | G80: ENST00000380013 | H80: missense_variant | I80: Aat/Cat|p.Asn1634His/c.4900A>C | J80: 2351 | K80: 47 | L80: 2403 | M80: 0.0195588847 | N80: 0 | O80: 0 | P80: 0 | Q80: 0 | R80: 1 | S80: 0 | T80: 0 | U80: 1 | V80: 2 | W80: NO | X80: NO | Y80: NO | Z80: NO | AA80: O | AB80: NO | AC80: NO | AD80: NO | AE80: NO | AF80: NO | AG80: NO | AH80: -1.492 | AI80: Tolerated | AJ80: 33.36 | AK80: 27 | AL80: 2291 | AM80: 47 | AN80: 2343 | AO80: 0.0200597525 | AP80: 60 | AQ80: 0 | AR80: 60 | AS80: 0 | AT80: 0.6304068287 | AU80: 31 | AV80: 31 | AW80: Artifact (10)
A81: UPN_Te2_043 | B81: 4 | C81: 106196567 | D81: A | E81: C | F81: TET2 | G81: ENST00000380013 | H81: missense_variant | I81: Aat/Cat|p.Asn1634His/c.4900A>C | J81: 5609 | K81: 107 | L81: 5722 | M81: 0.0186997553 | N81: 0 | O81: 0 | P81: 0 | Q81: 0 | R81: 1 | S81: 0 | T81: 0 | U81: 1 | V81: 2 | W81: NO | X81: NO | Y81: NO | Z81: NO | AA81: O | AB81: NO | AC81: NO | AD81: NO | AE81: NO | AF81: NO | AG81: NO | AH81: -1.492 | AI81: Tolerated | AJ81: 33.48 | AK81: 28.26 | AL81: 5409 | AM81: 107 | AN81: 5522 | AO81: 0.0193770373 | AP81: 200 | AQ81: 0 | AR81: 200 | AS81: 0 | AT81: 0.0544610445 | AU81: 31 | AV81: 31 | AW81: Artifact (10)
A82: UPN_Te2_005 | B82: 2 | C82: 25471015 | D82: T | E82: G | F82: DNMT3A | G82: ENST00000264709 | H82: missense_variant | I82: cAg/cCg|p.Gln249Pro/c.746A>C | J82: 2947 | K82: 54 | L82: 3002 | M82: 0.017988008 | N82: 0 | O82: 0 | P82: 0 | Q82: 0 | R82: 1 | S82: 0 | T82: 0 | U82: 0 | V82: 1 | W82: NO | X82: NO | Y82: NO | Z82: NO | AA82: O | AB82: NO | AC82: NO | AD82: NO | AE82: NO | AF82: NO | AG82: NO | AH82: -1.221 | AI82: Tolerated | AJ82: 33.64 | AK82: 27.81 | AL82: 1680 | AM82: 0 | AN82: 1680 | AO82: 0 | AP82: 1267 | AQ82: 54 | AR82: 1322 | AS82: 0.0408472012 | AT82: 3.074527034e-20 | AU82: 31 | AV82: 31 | AW82: Artifact (11)
A83: UPN_Te2_008 | B83: 2 | C83: 25471015 | D83: T | E83: G | F83: DNMT3A | G83: ENST00000264709 | H83: missense_variant | I83: cAg/cCg|p.Gln249Pro/c.746A>C | J83: 1432 | K83: 25 | L83: 1457 | M83: 0.017158545 | N83: 0 | O83: 0 | P83: 0 | Q83: 0 | R83: 1 | S83: 0 | T83: 0 | U83: 0 | V83: 1 | W83: NO | X83: NO | Y83: NO | Z83: NO | AA83: O | AB83: NO | AC83: NO | AD83: NO | AE83: NO | AF83: NO | AG83: NO | AH83: -1.221 | AI83: Tolerated | AJ83: 32.84 | AK83: 28.24 | AL83: 790 | AM83: 1 | AN83: 791 | AO83: 0.0012642225 | AP83: 642 | AQ83: 24 | AR83: 666 | AS83: 0.036036036 | AT83: 7.846564708e-08 | AU83: 31 | AV83: 31 | AW83: Artifact (11)
A84: UPN_Te2_016 | B84: 2 | C84: 25471015 | D84: T | E84: G | F84: DNMT3A | G84: ENST00000264709 | H84: missense_variant | I84: cAg/cCg|p.Gln249Pro/c.746A>C | J84: 4556 | K84: 85 | L84: 4645 | M84: 0.0182992465 | N84: 0 | O84: 0 | P84: 0 | Q84: 0 | R84: 1 | S84: 0 | T84: 0 | U84: 0 | V84: 1 | W84: NO | X84: NO | Y84: NO | Z84: NO | AA84: O | AB84: NO | AC84: NO | AD84: NO | AE84: NO | AF84: NO | AG84: NO | AH84: -1.221 | AI84: Tolerated | AJ84: 32.51 | AK84: 27.21 | AL84: 2392 | AM84: 0 | AN84: 2395 | AO84: 0 | AP84: 2164 | AQ84: 85 | AR84: 2250 | AS84: 0.0377777778 | AT84: 7.853303809e-28 | AU84: 31 | AV84: 31 | AW84: Artifact (11)
A85: UPN_Te2_030 | B85: 2 | C85: 25471015 | D85: T | E85: G | F85: DNMT3A | G85: ENST00000264709 | H85: missense_variant | I85: cAg/cCg|p.Gln249Pro/c.746A>C | J85: 1220 | K85: 20 | L85: 1242 | M85: 0.0161030596 | N85: 0 | O85: 0 | P85: 0 | Q85: 0 | R85: 1 | S85: 0 | T85: 0 | U85: 0 | V85: 1 | W85: NO | X85: NO | Y85: NO | Z85: NO | AA85: O | AB85: NO | AC85: NO | AD85: NO | AE85: NO | AF85: NO | AG85: NO | AH85: -1.221 | AI85: Tolerated | AJ85: 32.97 | AK85: 28.85 | AL85: 614 | AM85: 1 | AN85: 615 | AO85: 0.0016260163 | AP85: 606 | AQ85: 19 | AR85: 627 | AS85: 0.0303030303 | AT85: 3.567669255e-05 | AU85: 31 | AV85: 31 | AW85: Artifact (11)
A86: UPN_Te2_036 | B86: 2 | C86: 25471015 | D86: T | E86: G | F86: DNMT3A | G86: ENST00000264709 | H86: missense_variant | I86: cAg/cCg|p.Gln249Pro/c.746A>C | J86: 1676 | K86: 30 | L86: 1706 | M86: 0.0175849941 | N86: 0 | O86: 0 | P86: 0 | Q86: 0 | R86: 1 | S86: 0 | T86: 0 | U86: 0 | V86: 1 | W86: NO | X86: NO | Y86: NO | Z86: NO | AA86: O | AB86: NO | AC86: NO | AD86: NO | AE86: NO | AF86: NO | AG86: NO | AH86: -1.221 | AI86: Tolerated | AJ86: 32.5 | AK86: 25.8 | AL86: 854 | AM86: 1 | AN86: 855 | AO86: 0.0011695906 | AP86: 822 | AQ86: 29 | AR86: 851 | AS86: 0.0340775558 | AT86: 2.230974954e-08 | AU86: 31 | AV86: 31 | AW86: Artifact (11)
A87: UPN_Te2_042 | B87: 2 | C87: 25471015 | D87: T | E87: G | F87: DNMT3A | G87: ENST00000264709 | H87: missense_variant | I87: cAg/cCg|p.Gln249Pro/c.746A>C | J87: 3465 | K87: 68 | L87: 3535 | M87: 0.0192362093 | N87: 0 | O87: 0 | P87: 0 | Q87: 0 | R87: 1 | S87: 0 | T87: 0 | U87: 0 | V87: 1 | W87: NO | X87: NO | Y87: NO | Z87: NO | AA87: O | AB87: NO | AC87: NO | AD87: NO | AE87: NO | AF87: NO | AG87: NO | AH87: -1.221 | AI87: Tolerated | AJ87: 32.59 | AK87: 25.63 | AL87: 1871 | AM87: 0 | AN87: 1872 | AO87: 0 | AP87: 1594 | AQ87: 68 | AR87: 1663 | AS87: 0.0408899579 | AT87: 2.555519798e-23 | AU87: 31 | AV87: 31 | AW87: Artifact (11)
A88: UPN_Te2_001 | B88: 4 | C88: 106156053 | D88: A | E88: C | F88: TET2 | G88: ENST00000380013 | H88: missense_variant | I88: aaA/aaC|p.Lys318Asn/c.954A>C | J88: 5669 | K88: 107 | L88: 5788 | M88: 0.0184865238 | N88: 0 | O88: 0 | P88: 0 | Q88: 0 | R88: 1 | S88: 0 | T88: 0 | U88: 0 | V88: 1 | W88: NO | X88: NO | Y88: NO | Z88: NO | AA88: O | AB88: NO | AC88: NO | AD88: NO | AE88: NO | AF88: NO | AG88: NO | AH88: -1.297 | AI88: Tolerated | AJ88: 35.13 | AK88: 29.14 | AL88: 3596 | AM88: 107 | AN88: 3711 | AO88: 0.0288331986 | AP88: 2073 | AQ88: 0 | AR88: 2077 | AS88: 0 | AT88: 1.548619475e-21 | AU88: 40 | AV88: 40 | AW88: Artifact (11)
A89: UPN_Te2_002 | B89: 4 | C89: 106156053 | D89: A | E89: C | F89: TET2 | G89: ENST00000380013 | H89: missense_variant | I89: aaA/aaC|p.Lys318Asn/c.954A>C | J89: 6144 | K89: 118 | L89: 6267 | M89: 0.0188287857 | N89: 0 | O89: 0 | P89: 0 | Q89: 0 | R89: 1 | S89: 0 | T89: 0 | U89: 0 | V89: 1 | W89: NO | X89: NO | Y89: NO | Z89: NO | AA89: O | AB89: NO | AC89: NO | AD89: NO | AE89: NO | AF89: NO | AG89: NO | AH89: -1.297 | AI89: Tolerated | AJ89: 35.22 | AK89: 30.76 | AL89: 3507 | AM89: 118 | AN89: 3629 | AO89: 0.0325158446 | AP89: 2637 | AQ89: 0 | AR89: 2638 | AS89: 0 | AT89: 4.673141007e-29 | AU89: 40 | AV89: 40 | AW89: Artifact (11)
A90: UPN_Te2_003 | B90: 4 | C90: 106156053 | D90: A | E90: C | F90: TET2 | G90: ENST00000380013 | H90: missense_variant | I90: aaA/aaC|p.Lys318Asn/c.954A>C | J90: 4751 | K90: 65 | L90: 4819 | M90: 0.0134882756 | N90: 0 | O90: 0 | P90: 0 | Q90: 0 | R90: 1 | S90: 0 | T90: 0 | U90: 0 | V90: 1 | W90: NO | X90: NO | Y90: NO | Z90: NO | AA90: O | AB90: NO | AC90: NO | AD90: NO | AE90: NO | AF90: NO | AG90: NO | AH90: -1.297 | AI90: Tolerated | AJ90: 35.37 | AK90: 28.45 | AL90: 2951 | AM90: 64 | AN90: 3018 | AO90: 0.0212060968 | AP90: 1800 | AQ90: 1 | AR90: 1801 | AS90: 0.0005552471 | AT90: 3.781922198e-12 | AU90: 40 | AV90: 40 | AW90: Artifact (11)
A91: UPN_Te2_004 | B91: 4 | C91: 106156053 | D91: A | E91: C | F91: TET2 | G91: ENST00000380013 | H91: missense_variant | I91: aaA/aaC|p.Lys318Asn/c.954A>C | J91: 3525 | K91: 68 | L91: 3599 | M91: 0.0188941373 | N91: 0 | O91: 0 | P91: 0 | Q91: 0 | R91: 1 | S91: 0 | T91: 0 | U91: 0 | V91: 1 | W91: NO | X91: NO | Y91: NO | Z91: NO | AA91: O | AB91: NO | AC91: NO | AD91: NO | AE91: NO | AF91: NO | AG91: NO | AH91: -1.297 | AI91: Tolerated | AJ91: 35.08 | AK91: 31.51 | AL91: 2116 | AM91: 68 | AN91: 2187 | AO91: 0.0310928212 | AP91: 1409 | AQ91: 0 | AR91: 1412 | AS91: 0 | AT91: 1.655323e-15 | AU91: 40 | AV91: 40 | AW91: Artifact (11)
A92: UPN_Te2_005 | B92: 4 | C92: 106156053 | D92: A | E92: C | F92: TET2 | G92: ENST00000380013 | H92: missense_variant | I92: aaA/aaC|p.Lys318Asn/c.954A>C | J92: 4361 | K92: 79 | L92: 4446 | M92: 0.0177687809 | N92: 0 | O92: 0 | P92: 0 | Q92: 0 | R92: 1 | S92: 0 | T92: 0 | U92: 0 | V92: 1 | W92: NO | X92: NO | Y92: NO | Z92: NO | AA92: O | AB92: NO | AC92: NO | AD92: NO | AE92: NO | AF92: NO | AG92: NO | AH92: -1.297 | AI92: Tolerated | AJ92: 35.34 | AK92: 28.89 | AL92: 2765 | AM92: 79 | AN92: 2847 | AO92: 0.0277485072 | AP92: 1596 | AQ92: 0 | AR92: 1599 | AS92: 0 | AT92: 5.024342184e-16 | AU92: 40 | AV92: 40 | AW92: Artifact (11)
A93: UPN_Te2_006 | B93: 4 | C93: 106156053 | D93: A | E93: C | F93: TET2 | G93: ENST00000380013 | H93: missense_variant | I93: aaA/aaC|p.Lys318Asn/c.954A>C | J93: 5279 | K93: 90 | L93: 5379 | M93: 0.0167317345 | N93: 0 | O93: 0 | P93: 0 | Q93: 0 | R93: 1 | S93: 0 | T93: 0 | U93: 0 | V93: 1 | W93: NO | X93: NO | Y93: NO | Z93: NO | AA93: O | AB93: NO | AC93: NO | AD93: NO | AE93: NO | AF93: NO | AG93: NO | AH93: -1.297 | AI93: Tolerated | AJ93: 35.12 | AK93: 31.5 | AL93: 3366 | AM93: 89 | AN93: 3461 | AO93: 0.0257151112 | AP93: 1913 | AQ93: 1 | AR93: 1918 | AS93: 0.0005213764 | AT93: 4.20438491e-16 | AU93: 40 | AV93: 40 | AW93: Artifact (11)
A94: UPN_Te2_010 | B94: 4 | C94: 106156053 | D94: A | E94: C | F94: TET2 | G94: ENST00000380013 | H94: missense_variant | I94: aaA/aaC|p.Lys318Asn/c.954A>C | J94: 5622 | K94: 104 | L94: 5735 | M94: 0.0181342633 | N94: 0 | O94: 0 | P94: 0 | Q94: 0 | R94: 1 | S94: 0 | T94: 0 | U94: 0 | V94: 1 | W94: NO | X94: NO | Y94: NO | Z94: NO | AA94: O | AB94: NO | AC94: NO | AD94: NO | AE94: NO | AF94: NO | AG94: NO | AH94: -1.297 | AI94: Tolerated | AJ94: 35.26 | AK94: 29.07 | AL94: 3329 | AM94: 102 | AN94: 3438 | AO94: 0.0296684119 | AP94: 2293 | AQ94: 2 | AR94: 2297 | AS94: 0.0008707009 | AT94: 1.45316165e-20 | AU94: 40 | AV94: 40 | AW94: Artifact (11)
A95: UPN_Te2_011 | B95: 4 | C95: 106156053 | D95: A | E95: C | F95: TET2 | G95: ENST00000380013 | H95: missense_variant | I95: aaA/aaC|p.Lys318Asn/c.954A>C | J95: 8502 | K95: 137 | L95: 8652 | M95: 0.0158344891 | N95: 0 | O95: 0 | P95: 0 | Q95: 0 | R95: 1 | S95: 0 | T95: 0 | U95: 0 | V95: 1 | W95: NO | X95: NO | Y95: NO | Z95: NO | AA95: O | AB95: NO | AC95: NO | AD95: NO | AE95: NO | AF95: NO | AG95: NO | AH95: -1.297 | AI95: Tolerated | AJ95: 35.24 | AK95: 30.13 | AL95: 5376 | AM95: 135 | AN95: 5524 | AO95: 0.0244388125 | AP95: 3126 | AQ95: 2 | AR95: 3128 | AS95: 0.0006393862 | AT95: 4.151625347e-24 | AU95: 40 | AV95: 40 | AW95: Artifact (11)
A96: UPN_Te2_012 | B96: 4 | C96: 106156053 | D96: A | E96: C | F96: TET2 | G96: ENST00000380013 | H96: missense_variant | I96: aaA/aaC|p.Lys318Asn/c.954A>C | J96: 6648 | K96: 114 | L96: 6769 | M96: 0.0168414832 | N96: 0 | O96: 0 | P96: 0 | Q96: 0 | R96: 1 | S96: 0 | T96: 0 | U96: 0 | V96: 1 | W96: NO | X96: NO | Y96: NO | Z96: NO | AA96: O | AB96: NO | AC96: NO | AD96: NO | AE96: NO | AF96: NO | AG96: NO | AH96: -1.297 | AI96: Tolerated | AJ96: 35.3 | AK96: 28.42 | AL96: 3995 | AM96: 111 | AN96: 4110 | AO96: 0.0270072993 | AP96: 2653 | AQ96: 3 | AR96: 2659 | AS96: 0.0011282437 | AT96: 9.586962645e-21 | AU96: 40 | AV96: 40 | AW96: Artifact (11)
A97: UPN_Te2_013 | B97: 4 | C97: 106156053 | D97: A | E97: C | F97: TET2 | G97: ENST00000380013 | H97: missense_variant | I97: aaA/aaC|p.Lys318Asn/c.954A>C | J97: 5546 | K97: 112 | L97: 5661 | M97: 0.0197844904 | N97: 0 | O97: 0 | P97: 0 | Q97: 0 | R97: 1 | S97: 0 | T97: 0 | U97: 0 | V97: 1 | W97: NO | X97: NO | Y97: NO | Z97: NO | AA97: O | AB97: NO | AC97: NO | AD97: NO | AE97: NO | AF97: NO | AG97: NO | AH97: -1.297 | AI97: Tolerated | AJ97: 35.21 | AK97: 29.98 | AL97: 3408 | AM97: 112 | AN97: 3521 | AO97: 0.0318091451 | AP97: 2138 | AQ97: 0 | AR97: 2140 | AS97: 0 | AT97: 8.369793887e-24 | AU97: 40 | AV97: 40 | AW97: Artifact (11)
A98: UPN_Te2_014 | B98: 4 | C98: 106156053 | D98: A | E98: C | F98: TET2 | G98: ENST00000380013 | H98: missense_variant | I98: aaA/aaC|p.Lys318Asn/c.954A>C | J98: 3142 | K98: 60 | L98: 3206 | M98: 0.0187149095 | N98: 0 | O98: 0 | P98: 0 | Q98: 0 | R98: 1 | S98: 0 | T98: 0 | U98: 0 | V98: 1 | W98: NO | X98: NO | Y98: NO | Z98: NO | AA98: O | AB98: NO | AC98: NO | AD98: NO | AE98: NO | AF98: NO | AG98: NO | AH98: -1.297 | AI98: Tolerated | AJ98: 35.43 | AK98: 30.7 | AL98: 1842 | AM98: 60 | AN98: 1905 | AO98: 0.031496063 | AP98: 1300 | AQ98: 0 | AR98: 1301 | AS98: 0 | AT98: 2.978443387e-14 | AU98: 40 | AV98: 40 | AW98: Artifact (11)
A99: UPN_Te2_016 | B99: 4 | C99: 106156053 | D99: A | E99: C | F99: TET2 | G99: ENST00000380013 | H99: missense_variant | I99: aaA/aaC|p.Lys318Asn/c.954A>C | J99: 6830 | K99: 132 | L99: 6972 | M99: 0.0189328744 | N99: 0 | O99: 0 | P99: 0 | Q99: 0 | R99: 1 | S99: 0 | T99: 0 | U99: 0 | V99: 1 | W99: NO | X99: NO | Y99: NO | Z99: NO | AA99: O | AB99: NO | AC99: NO | AD99: NO | AE99: NO | AF99: NO | AG99: NO | AH99: -1.297 | AI99: Tolerated | AJ99: 35.26 | AK99: 28.82 | AL99: 4124 | AM99: 130 | AN99: 4261 | AO99: 0.0305092701 | AP99: 2706 | AQ99: 2 | AR99: 2711 | AS99: 0.0007377352 | AT99: 1.364710919e-25 | AU99: 40 | AV99: 40 | AW99: Artifact (11)
A100: UPN_Te2_017 | B100: 4 | C100: 106156053 | D100: A | E100: C | F100: TET2 | G100: ENST00000380013 | H100: missense_variant | I100: aaA/aaC|p.Lys318Asn/c.954A>C | J100: 6734 | K100: 96 | L100: 6837 | M100: 0.0140412462 | N100: 0 | O100: 0 | P100: 0 | Q100: 0 | R100: 1 | S100: 0 | T100: 0 | U100: 0 | V100: 1 | W100: NO | X100: NO | Y100: NO | Z100: NO | AA100: O | AB100: NO | AC100: NO | AD100: NO | AE100: NO | AF100: NO | AG100: NO | AH100: -1.297 | AI100: Tolerated | AJ100: 35.2 | AK100: 30 | AL100: 4162 | AM100: 95 | AN100: 4264 | AO100: 0.0222795497 | AP100: 2572 | AQ100: 1 | AR100: 2573 | AS100: 0.0003886514 | AT100: 9.893453975e-19 | AU100: 40 | AV100: 40 | AW100: Artifact (11)
A101: UPN_Te2_018 | B101: 4 | C101: 106156053 | D101: A | E101: C | F101: TET2 | G101: ENST00000380013 | H101: missense_variant | I101: aaA/aaC|p.Lys318Asn/c.954A>C | J101: 5680 | K101: 110 | L101: 5793 | M101: 0.0189884343 | N101: 0 | O101: 0 | P101: 0 | Q101: 0 | R101: 1 | S101: 0 | T101: 0 | U101: 0 | V101: 1 | W101: NO | X101: NO | Y101: NO | Z101: NO | AA101: O | AB101: NO | AC101: NO | AD101: NO | AE101: NO | AF101: NO | AG101: NO | AH101: -1.297 | AI101: Tolerated | AJ101: 35.19 | AK101: 31.15 | AL101: 3299 | AM101: 110 | AN101: 3411 | AO101: 0.0322486074 | AP101: 2381 | AQ101: 0 | AR101: 2382 | AS101: 0 | AT101: 2.668504215e-26 | AU101: 40 | AV101: 40 | AW101: Artifact (11)
A102: UPN_Te2_019 | B102: 4 | C102: 106156053 | D102: A | E102: C | F102: TET2 | G102: ENST00000380013 | H102: missense_variant | I102: aaA/aaC|p.Lys318Asn/c.954A>C | J102: 4084 | K102: 77 | L102: 4168 | M102: 0.0184740883 | N102: 0 | O102: 0 | P102: 0 | Q102: 0 | R102: 1 | S102: 0 | T102: 0 | U102: 0 | V102: 1 | W102: NO | X102: NO | Y102: NO | Z102: NO | AA102: O | AB102: NO | AC102: NO | AD102: NO | AE102: NO | AF102: NO | AG102: NO | AH102: -1.297 | AI102: Tolerated | AJ102: 34.88 | AK102: 29.99 | AL102: 2622 | AM102: 75 | AN102: 2702 | AO102: 0.0277572169 | AP102: 1462 | AQ102: 2 | AR102: 1466 | AS102: 0.0013642565 | AT102: 2.525335466e-12 | AU102: 40 | AV102: 40 | AW102: Artifact (11)
A103: UPN_Te2_020 | B103: 4 | C103: 106156053 | D103: A | E103: C | F103: TET2 | G103: ENST00000380013 | H103: missense_variant | I103: aaA/aaC|p.Lys318Asn/c.954A>C | J103: 4444 | K103: 89 | L103: 4535 | M103: 0.0196251378 | N103: 0 | O103: 0 | P103: 0 | Q103: 0 | R103: 1 | S103: 0 | T103: 0 | U103: 0 | V103: 1 | W103: NO | X103: NO | Y103: NO | Z103: NO | AA103: O | AB103: NO | AC103: NO | AD103: NO | AE103: NO | AF103: NO | AG103: NO | AH103: -1.297 | AI103: Tolerated | AJ103: 35.27 | AK103: 30.98 | AL103: 2545 | AM103: 88 | AN103: 2635 | AO103: 0.0333965844 | AP103: 1899 | AQ103: 1 | AR103: 1900 | AS103: 0.0005263158 | AT103: 5.208426911e-20 | AU103: 40 | AV103: 40 | AW103: Artifact (11)
A104: UPN_Te2_021 | B104: 4 | C104: 106156053 | D104: A | E104: C | F104: TET2 | G104: ENST00000380013 | H104: missense_variant | I104: aaA/aaC|p.Lys318Asn/c.954A>C | J104: 4903 | K104: 84 | L104: 4991 | M104: 0.0168302945 | N104: 0 | O104: 0 | P104: 0 | Q104: 0 | R104: 1 | S104: 0 | T104: 0 | U104: 0 | V104: 1 | W104: NO | X104: NO | Y104: NO | Z104: NO | AA104: O | AB104: NO | AC104: NO | AD104: NO | AE104: NO | AF104: NO | AG104: NO | AH104: -1.297 | AI104: Tolerated | AJ104: 35.37 | AK104: 29.64 | AL104: 3069 | AM104: 83 | AN104: 3155 | AO104: 0.0263074485 | AP104: 1834 | AQ104: 1 | AR104: 1836 | AS104: 0.0005446623 | AT104: 1.183553304e-15 | AU104: 40 | AV104: 40 | AW104: Artifact (11)
A105: UPN_Te2_022 | B105: 4 | C105: 106156053 | D105: A | E105: C | F105: TET2 | G105: ENST00000380013 | H105: missense_variant | I105: aaA/aaC|p.Lys318Asn/c.954A>C | J105: 4531 | K105: 86 | L105: 4625 | M105: 0.0185945946 | N105: 0 | O105: 0 | P105: 0 | Q105: 0 | R105: 1 | S105: 0 | T105: 0 | U105: 0 | V105: 1 | W105: NO | X105: NO | Y105: NO | Z105: NO | AA105: O | AB105: NO | AC105: NO | AD105: NO | AE105: NO | AF105: NO | AG105: NO | AH105: -1.297 | AI105: Tolerated | AJ105: 35.23 | AK105: 29.34 | AL105: 2825 | AM105: 85 | AN105: 2917 | AO105: 0.0291395269 | AP105: 1706 | AQ105: 1 | AR105: 1708 | AS105: 0.0005854801 | AT105: 3.343696502e-16 | AU105: 40 | AV105: 40 | AW105: Artifact (11)
A106: UPN_Te2_023 | B106: 4 | C106: 106156053 | D106: A | E106: C | F106: TET2 | G106: ENST00000380013 | H106: missense_variant | I106: aaA/aaC|p.Lys318Asn/c.954A>C | J106: 3657 | K106: 72 | L106: 3731 | M106: 0.0192977754 | N106: 0 | O106: 0 | P106: 0 | Q106: 0 | R106: 1 | S106: 0 | T106: 0 | U106: 0 | V106: 1 | W106: NO | X106: NO | Y106: NO | Z106: NO | AA106: O | AB106: NO | AC106: NO | AD106: NO | AE106: NO | AF106: NO | AG106: NO | AH106: -1.297 | AI106: Tolerated | AJ106: 35.25 | AK106: 30.97 | AL106: 2334 | AM106: 72 | AN106: 2407 | AO106: 0.0299127545 | AP106: 1323 | AQ106: 0 | AR106: 1324 | AS106: 0 | AT106: 1.671623197e-14 | AU106: 40 | AV106: 40 | AW106: Artifact (11)
A107: UPN_Te2_025 | B107: 4 | C107: 106156053 | D107: A | E107: C | F107: TET2 | G107: ENST00000380013 | H107: missense_variant | I107: aaA/aaC|p.Lys318Asn/c.954A>C | J107: 3048 | K107: 44 | L107: 3097 | M107: 0.0142072974 | N107: 0 | O107: 0 | P107: 0 | Q107: 0 | R107: 1 | S107: 0 | T107: 0 | U107: 0 | V107: 1 | W107: NO | X107: NO | Y107: NO | Z107: NO | AA107: O | AB107: NO | AC107: NO | AD107: NO | AE107: NO | AF107: NO | AG107: NO | AH107: -1.297 | AI107: Tolerated | AJ107: 35.3 | AK107: 32.41 | AL107: 1932 | AM107: 43 | AN107: 1979 | AO107: 0.0217281455 | AP107: 1116 | AQ107: 1 | AR107: 1118 | AS107: 0.0008944544 | AT107: 8.485409243e-08 | AU107: 40 | AV107: 40 | AW107: Artifact (11)
A108: UPN_Te2_026 | B108: 4 | C108: 106156053 | D108: A | E108: C | F108: TET2 | G108: ENST00000380013 | H108: missense_variant | I108: aaA/aaC|p.Lys318Asn/c.954A>C | J108: 5702 | K108: 90 | L108: 5802 | M108: 0.0155118925 | N108: 0 | O108: 0 | P108: 0 | Q108: 0 | R108: 1 | S108: 0 | T108: 0 | U108: 0 | V108: 1 | W108: NO | X108: NO | Y108: NO | Z108: NO | AA108: O | AB108: NO | AC108: NO | AD108: NO | AE108: NO | AF108: NO | AG108: NO | AH108: -1.297 | AI108: Tolerated | AJ108: 35.26 | AK108: 29.16 | AL108: 3267 | AM108: 90 | AN108: 3363 | AO108: 0.0267618198 | AP108: 2435 | AQ108: 0 | AR108: 2439 | AS108: 0 | AT108: 3.617108752e-22 | AU108: 40 | AV108: 40 | AW108: Artifact (11)
A109: UPN_Te2_027 | B109: 4 | C109: 106156053 | D109: A | E109: C | F109: TET2 | G109: ENST00000380013 | H109: missense_variant | I109: aaA/aaC|p.Lys318Asn/c.954A>C | J109: 2155 | K109: 34 | L109: 2190 | M109: 0.0155251142 | N109: 0 | O109: 0 | P109: 0 | Q109: 0 | R109: 1 | S109: 0 | T109: 0 | U109: 0 | V109: 1 | W109: NO | X109: NO | Y109: NO | Z109: NO | AA109: O | AB109: NO | AC109: NO | AD109: NO | AE109: NO | AF109: NO | AG109: NO | AH109: -1.297 | AI109: Tolerated | AJ109: 35.55 | AK109: 31.21 | AL109: 1378 | AM109: 33 | AN109: 1412 | AO109: 0.0233711048 | AP109: 777 | AQ109: 1 | AR109: 778 | AS109: 0.001285347 | AT109: 1.1893913e-05 | AU109: 40 | AV109: 40 | AW109: Artifact (11)
A110: UPN_Te2_028 | B110: 4 | C110: 106156053 | D110: A | E110: C | F110: TET2 | G110: ENST00000380013 | H110: missense_variant | I110: aaA/aaC|p.Lys318Asn/c.954A>C | J110: 7054 | K110: 120 | L110: 7183 | M110: 0.0167061117 | N110: 0 | O110: 0 | P110: 0 | Q110: 0 | R110: 1 | S110: 0 | T110: 0 | U110: 0 | V110: 1 | W110: NO | X110: NO | Y110: NO | Z110: NO | AA110: O | AB110: NO | AC110: NO | AD110: NO | AE110: NO | AF110: NO | AG110: NO | AH110: -1.297 | AI110: Tolerated | AJ110: 35.1 | AK110: 29.05 | AL110: 4269 | AM110: 120 | AN110: 4394 | AO110: 0.0273099681 | AP110: 2785 | AQ110: 0 | AR110: 2789 | AS110: 0 | AT110: 2.216244835e-26 | AU110: 40 | AV110: 40 | AW110: Artifact (11)
A111: UPN_Te2_032 | B111: 4 | C111: 106156053 | D111: A | E111: C | F111: TET2 | G111: ENST00000380013 | H111: missense_variant | I111: aaA/aaC|p.Lys318Asn/c.954A>C | J111: 1972 | K111: 24 | L111: 1997 | M111: 0.012018027 | N111: 0 | O111: 0 | P111: 0 | Q111: 0 | R111: 1 | S111: 0 | T111: 0 | U111: 0 | V111: 1 | W111: NO | X111: NO | Y111: NO | Z111: NO | AA111: O | AB111: NO | AC111: NO | AD111: NO | AE111: NO | AF111: NO | AG111: NO | AH111: -1.297 | AI111: Tolerated | AJ111: 35.25 | AK111: 28.71 | AL111: 1241 | AM111: 24 | AN111: 1266 | AO111: 0.018957346 | AP111: 731 | AQ111: 0 | AR111: 731 | AS111: 0 | AT111: 1.943633553e-05 | AU111: 40 | AV111: 40 | AW111: Artifact (11)
A112: UPN_Te2_039 | B112: 4 | C112: 106156053 | D112: A | E112: C | F112: TET2 | G112: ENST00000380013 | H112: missense_variant | I112: aaA/aaC|p.Lys318Asn/c.954A>C | J112: 2305 | K112: 36 | L112: 2341 | M112: 0.0153780436 | N112: 0 | O112: 0 | P112: 0 | Q112: 0 | R112: 1 | S112: 0 | T112: 0 | U112: 0 | V112: 1 | W112: NO | X112: NO | Y112: NO | Z112: NO | AA112: O | AB112: NO | AC112: NO | AD112: NO | AE112: NO | AF112: NO | AG112: NO | AH112: -1.297 | AI112: Tolerated | AJ112: 35.58 | AK112: 30.22 | AL112: 1452 | AM112: 35 | AN112: 1487 | AO112: 0.0235373235 | AP112: 853 | AQ112: 1 | AR112: 854 | AS112: 0.0011709602 | AT112: 1.946393707e-06 | AU112: 40 | AV112: 40 | AW112: Artifact (11)
A113: UPN_Te2_040 | B113: 4 | C113: 106156053 | D113: A | E113: C | F113: TET2 | G113: ENST00000380013 | H113: missense_variant | I113: aaA/aaC|p.Lys318Asn/c.954A>C | J113: 4573 | K113: 80 | L113: 4658 | M113: 0.0171747531 | N113: 0 | O113: 0 | P113: 0 | Q113: 0 | R113: 1 | S113: 0 | T113: 0 | U113: 0 | V113: 1 | W113: NO | X113: NO | Y113: NO | Z113: NO | AA113: O | AB113: NO | AC113: NO | AD113: NO | AE113: NO | AF113: NO | AG113: NO | AH113: -1.297 | AI113: Tolerated | AJ113: 35.07 | AK113: 31.15 | AL113: 2887 | AM113: 79 | AN113: 2968 | AO113: 0.0266172507 | AP113: 1686 | AQ113: 1 | AR113: 1690 | AS113: 0.000591716 | AT113: 1.303862207e-14 | AU113: 40 | AV113: 40 | AW113: Artifact (11)
A114: UPN_Te2_041 | B114: 4 | C114: 106156053 | D114: A | E114: C | F114: TET2 | G114: ENST00000380013 | H114: missense_variant | I114: aaA/aaC|p.Lys318Asn/c.954A>C | J114: 10941 | K114: 216 | L114: 11179 | M114: 0.0193219429 | N114: 0 | O114: 0 | P114: 0 | Q114: 0 | R114: 1 | S114: 0 | T114: 0 | U114: 0 | V114: 1 | W114: NO | X114: NO | Y114: NO | Z114: NO | AA114: O | AB114: NO | AC114: NO | AD114: NO | AE114: NO | AF114: NO | AG114: NO | AH114: -1.297 | AI114: Tolerated | AJ114: 35.15 | AK114: 29.01 | AL114: 6783 | AM114: 212 | AN114: 7006 | AO114: 0.0302597773 | AP114: 4158 | AQ114: 4 | AR114: 4173 | AS114: 0.000958543 | AT114: 7.407063119e-38 | AU114: 40 | AV114: 40 | AW114: Artifact (11)
A115: UPN_Te2_042 | B115: 4 | C115: 106156053 | D115: A | E115: C | F115: TET2 | G115: ENST00000380013 | H115: missense_variant | I115: aaA/aaC|p.Lys318Asn/c.954A>C | J115: 5123 | K115: 95 | L115: 5231 | M115: 0.0181609635 | N115: 0 | O115: 0 | P115: 0 | Q115: 0 | R115: 1 | S115: 0 | T115: 0 | U115: 0 | V115: 1 | W115: NO | X115: NO | Y115: NO | Z115: NO | AA115: O | AB115: NO | AC115: NO | AD115: NO | AE115: NO | AF115: NO | AG115: NO | AH115: -1.297 | AI115: Tolerated | AJ115: 35.29 | AK115: 29.98 | AL115: 3098 | AM115: 94 | AN115: 3202 | AO115: 0.0293566521 | AP115: 2025 | AQ115: 1 | AR115: 2029 | AS115: 0.0004928536 | AT115: 2.419061079e-19 | AU115: 40 | AV115: 40 | AW115: Artifact (11)
A116: UPN_Te2_043 | B116: 4 | C116: 106156053 | D116: A | E116: C | F116: TET2 | G116: ENST00000380013 | H116: missense_variant | I116: aaA/aaC|p.Lys318Asn/c.954A>C | J116: 11917 | K116: 211 | L116: 12149 | M116: 0.0173676846 | N116: 0 | O116: 0 | P116: 0 | Q116: 0 | R116: 1 | S116: 0 | T116: 0 | U116: 0 | V116: 1 | W116: NO | X116: NO | Y116: NO | Z116: NO | AA116: O | AB116: NO | AC116: NO | AD116: NO | AE116: NO | AF116: NO | AG116: NO | AH116: -1.297 | AI116: Tolerated | AJ116: 35.15 | AK116: 31.19 | AL116: 7074 | AM116: 208 | AN116: 7297 | AO116: 0.028504865 | AP116: 4843 | AQ116: 3 | AR116: 4852 | AS116: 0.0006183017 | AT116: 3.464290248e-42 | AU116: 40 | AV116: 40 | AW116: Artifact (11)
A117: UPN_Te2_045 | B117: 4 | C117: 106156053 | D117: A | E117: C | F117: TET2 | G117: ENST00000380013 | H117: missense_variant | I117: aaA/aaC|p.Lys318Asn/c.954A>C | J117: 4653 | K117: 76 | L117: 4731 | M117: 0.016064257 | N117: 0 | O117: 0 | P117: 0 | Q117: 0 | R117: 1 | S117: 0 | T117: 0 | U117: 0 | V117: 1 | W117: NO | X117: NO | Y117: NO | Z117: NO | AA117: O | AB117: NO | AC117: NO | AD117: NO | AE117: NO | AF117: NO | AG117: NO | AH117: -1.297 | AI117: Tolerated | AJ117: 35.22 | AK117: 29.51 | AL117: 3060 | AM117: 73 | AN117: 3135 | AO117: 0.0232854864 | AP117: 1593 | AQ117: 3 | AR117: 1596 | AS117: 0.0018796992 | AT117: 3.200657571e-10 | AU117: 40 | AV117: 40 | AW117: Artifact (11)
A118: UPN_Te2_046 | B118: 4 | C118: 106156053 | D118: A | E118: C | F118: TET2 | G118: ENST00000380013 | H118: missense_variant | I118: aaA/aaC|p.Lys318Asn/c.954A>C | J118: 2421 | K118: 45 | L118: 2466 | M118: 0.0182481752 | N118: 0 | O118: 0 | P118: 0 | Q118: 0 | R118: 1 | S118: 0 | T118: 0 | U118: 0 | V118: 1 | W118: NO | X118: NO | Y118: NO | Z118: NO | AA118: O | AB118: NO | AC118: NO | AD118: NO | AE118: NO | AF118: NO | AG118: NO | AH118: -1.297 | AI118: Tolerated | AJ118: 35.28 | AK118: 31.6 | AL118: 1497 | AM118: 44 | AN118: 1541 | AO118: 0.0285528877 | AP118: 924 | AQ118: 1 | AR118: 925 | AS118: 0.0010810811 | AT118: 1.972792195e-08 | AU118: 40 | AV118: 40 | AW118: Artifact (11)
A119: UPN_Te2_001 | B119: 4 | C119: 106156282 | D119: A | E119: C | F119: TET2 | G119: ENST00000380013 | H119: missense_variant | I119: Act/Cct|p.Thr395Pro/c.1183A>C | J119: 5114 | K119: 87 | L119: 5209 | M119: 0.0167018622 | N119: 0 | O119: 0 | P119: 0 | Q119: 0 | R119: 1 | S119: 0 | T119: 0 | U119: 0 | V119: 1 | W119: NO | X119: NO | Y119: NO | Z119: NO | AA119: O | AB119: NO | AC119: NO | AD119: NO | AE119: NO | AF119: NO | AG119: NO | AH119: -0.504 | AI119: Tolerated | AJ119: 33.81 | AK119: 29.08 | AL119: 1850 | AM119: 84 | AN119: 1934 | AO119: 0.0434332989 | AP119: 3264 | AQ119: 3 | AR119: 3275 | AS119: 0.0009160305 | AT119: 7.221668333e-33 | AU119: 39 | AV119: 39 | AW119: Artifact (11)
A120: UPN_Te2_004 | B120: 4 | C120: 106156282 | D120: A | E120: C | F120: TET2 | G120: ENST00000380013 | H120: missense_variant | I120: Act/Cct|p.Thr395Pro/c.1183A>C | J120: 3916 | K120: 41 | L120: 3960 | M120: 0.0103535354 | N120: 0 | O120: 0 | P120: 0 | Q120: 0 | R120: 1 | S120: 0 | T120: 0 | U120: 0 | V120: 1 | W120: NO | X120: NO | Y120: NO | Z120: NO | AA120: O | AB120: NO | AC120: NO | AD120: NO | AE120: NO | AF120: NO | AG120: NO | AH120: -0.504 | AI120: Tolerated | AJ120: 34.02 | AK120: 27.71 | AL120: 1244 | AM120: 38 | AN120: 1283 | AO120: 0.0296180826 | AP120: 2672 | AQ120: 3 | AR120: 2677 | AS120: 0.0011206575 | AT120: 6.059069687e-16 | AU120: 39 | AV120: 39 | AW120: Artifact (11)
A121: UPN_Te2_006 | B121: 4 | C121: 106156282 | D121: A | E121: C | F121: TET2 | G121: ENST00000380013 | H121: missense_variant | I121: Act/Cct|p.Thr395Pro/c.1183A>C | J121: 5790 | K121: 87 | L121: 5895 | M121: 0.0147582697 | N121: 0 | O121: 0 | P121: 0 | Q121: 0 | R121: 1 | S121: 0 | T121: 0 | U121: 0 | V121: 1 | W121: NO | X121: NO | Y121: NO | Z121: NO | AA121: O | AB121: NO | AC121: NO | AD121: NO | AE121: NO | AF121: NO | AG121: NO | AH121: -0.504 | AI121: Tolerated | AJ121: 33.86 | AK121: 29.79 | AL121: 2124 | AM121: 84 | AN121: 2213 | AO121: 0.0379575237 | AP121: 3666 | AQ121: 3 | AR121: 3682 | AS121: 0.0008147746 | AT121: 1.950726376e-32 | AU121: 39 | AV121: 39 | AW121: Artifact (11)
A122: UPN_Te2_010 | B122: 4 | C122: 106156282 | D122: A | E122: C | F122: TET2 | G122: ENST00000380013 | H122: missense_variant | I122: Act/Cct|p.Thr395Pro/c.1183A>C | J122: 5206 | K122: 85 | L122: 5308 | M122: 0.0160135644 | N122: 0 | O122: 0 | P122: 0 | Q122: 0 | R122: 1 | S122: 0 | T122: 0 | U122: 0 | V122: 1 | W122: NO | X122: NO | Y122: NO | Z122: NO | AA122: O | AB122: NO | AC122: NO | AD122: NO | AE122: NO | AF122: NO | AG122: NO | AH122: -0.504 | AI122: Tolerated | AJ122: 33.63 | AK122: 29.55 | AL122: 1969 | AM122: 81 | AN122: 2057 | AO122: 0.0393777346 | AP122: 3237 | AQ122: 4 | AR122: 3251 | AS122: 0.0012303906 | AT122: 5.148248974e-29 | AU122: 39 | AV122: 39 | AW122: Artifact (11)
A123: UPN_Te2_014 | B123: 4 | C123: 106156282 | D123: A | E123: C | F123: TET2 | G123: ENST00000380013 | H123: missense_variant | I123: Act/Cct|p.Thr395Pro/c.1183A>C | J123: 4220 | K123: 77 | L123: 4313 | M123: 0.0178530026 | N123: 0 | O123: 0 | P123: 0 | Q123: 0 | R123: 1 | S123: 0 | T123: 0 | U123: 0 | V123: 1 | W123: NO | X123: NO | Y123: NO | Z123: NO | AA123: O | AB123: NO | AC123: NO | AD123: NO | AE123: NO | AF123: NO | AG123: NO | AH123: -0.504 | AI123: Tolerated | AJ123: 33.55 | AK123: 27.39 | AL123: 1631 | AM123: 73 | AN123: 1706 | AO123: 0.0427901524 | AP123: 2589 | AQ123: 4 | AR123: 2607 | AS123: 0.0015343306 | AT123: 3.647891122e-25 | AU123: 39 | AV123: 39 | AW123: Artifact (11)
A124: UPN_Te2_015 | B124: 4 | C124: 106156282 | D124: A | E124: C | F124: TET2 | G124: ENST00000380013 | H124: missense_variant | I124: Act/Cct|p.Thr395Pro/c.1183A>C | J124: 5984 | K124: 103 | L124: 6099 | M124: 0.0168880144 | N124: 0 | O124: 0 | P124: 0 | Q124: 0 | R124: 1 | S124: 0 | T124: 0 | U124: 0 | V124: 1 | W124: NO | X124: NO | Y124: NO | Z124: NO | AA124: O | AB124: NO | AC124: NO | AD124: NO | AE124: NO | AF124: NO | AG124: NO | AH124: -0.504 | AI124: Tolerated | AJ124: 33.92 | AK124: 30.77 | AL124: 2130 | AM124: 99 | AN124: 2232 | AO124: 0.0443548387 | AP124: 3854 | AQ124: 4 | AR124: 3867 | AS124: 0.0010343936 | AT124: 1.221350503e-38 | AU124: 39 | AV124: 39 | AW124: Artifact (11)
A125: UPN_Te2_018 | B125: 4 | C125: 106156282 | D125: A | E125: C | F125: TET2 | G125: ENST00000380013 | H125: missense_variant | I125: Act/Cct|p.Thr395Pro/c.1183A>C | J125: 5292 | K125: 99 | L125: 5402 | M125: 0.0183265457 | N125: 0 | O125: 0 | P125: 0 | Q125: 0 | R125: 1 | S125: 0 | T125: 0 | U125: 0 | V125: 1 | W125: NO | X125: NO | Y125: NO | Z125: NO | AA125: O | AB125: NO | AC125: NO | AD125: NO | AE125: NO | AF125: NO | AG125: NO | AH125: -0.504 | AI125: Tolerated | AJ125: 33.51 | AK125: 28.56 | AL125: 2040 | AM125: 97 | AN125: 2141 | AO125: 0.0453059318 | AP125: 3252 | AQ125: 2 | AR125: 3261 | AS125: 0.0006133088 | AT125: 5.06133688e-37 | AU125: 39 | AV125: 39 | AW125: Artifact (11)
A126: UPN_Te2_025 | B126: 4 | C126: 106156282 | D126: A | E126: C | F126: TET2 | G126: ENST00000380013 | H126: missense_variant | I126: Act/Cct|p.Thr395Pro/c.1183A>C | J126: 2780 | K126: 44 | L126: 2831 | M126: 0.0155422112 | N126: 0 | O126: 0 | P126: 0 | Q126: 0 | R126: 1 | S126: 0 | T126: 0 | U126: 0 | V126: 1 | W126: NO | X126: NO | Y126: NO | Z126: NO | AA126: O | AB126: NO | AC126: NO | AD126: NO | AE126: NO | AF126: NO | AG126: NO | AH126: -0.504 | AI126: Tolerated | AJ126: 33.87 | AK126: 29.02 | AL126: 976 | AM126: 43 | AN126: 1021 | AO126: 0.042115573 | AP126: 1804 | AQ126: 1 | AR126: 1810 | AS126: 0.0005524862 | AT126: 1.494832832e-18 | AU126: 39 | AV126: 39 | AW126: Artifact (11)
A127: UPN_Te2_029 | B127: 4 | C127: 106156282 | D127: A | E127: C | F127: TET2 | G127: ENST00000380013 | H127: missense_variant | I127: Act/Cct|p.Thr395Pro/c.1183A>C | J127: 1383 | K127: 24 | L127: 1410 | M127: 0.0170212766 | N127: 0 | O127: 0 | P127: 0 | Q127: 0 | R127: 1 | S127: 0 | T127: 0 | U127: 0 | V127: 1 | W127: NO | X127: NO | Y127: NO | Z127: NO | AA127: O | AB127: NO | AC127: NO | AD127: NO | AE127: NO | AF127: NO | AG127: NO | AH127: -0.504 | AI127: Tolerated | AJ127: 33.53 | AK127: 30.46 | AL127: 524 | AM127: 23 | AN127: 547 | AO127: 0.042047532 | AP127: 859 | AQ127: 1 | AR127: 863 | AS127: 0.0011587486 | AT127: 4.190202035e-09 | AU127: 39 | AV127: 39 | AW127: Artifact (11)
A128: UPN_Te2_030 | B128: 4 | C128: 106156282 | D128: A | E128: C | F128: TET2 | G128: ENST00000380013 | H128: missense_variant | I128: Act/Cct|p.Thr395Pro/c.1183A>C | J128: 1754 | K128: 35 | L128: 1793 | M128: 0.0195203569 | N128: 0 | O128: 0 | P128: 0 | Q128: 0 | R128: 1 | S128: 0 | T128: 0 | U128: 0 | V128: 1 | W128: NO | X128: NO | Y128: NO | Z128: NO | AA128: O | AB128: NO | AC128: NO | AD128: NO | AE128: NO | AF128: NO | AG128: NO | AH128: -0.504 | AI128: Tolerated | AJ128: 33.22 | AK128: 30.74 | AL128: 630 | AM128: 34 | AN128: 667 | AO128: 0.0509745127 | AP128: 1124 | AQ128: 1 | AR128: 1126 | AS128: 0.0008880995 | AT128: 3.066112151e-14 | AU128: 39 | AV128: 39 | AW128: Artifact (11)
A129: UPN_Te2_032 | B129: 4 | C129: 106156282 | D129: A | E129: C | F129: TET2 | G129: ENST00000380013 | H129: missense_variant | I129: Act/Cct|p.Thr395Pro/c.1183A>C | J129: 1935 | K129: 39 | L129: 1983 | M129: 0.019667171 | N129: 0 | O129: 0 | P129: 0 | Q129: 0 | R129: 1 | S129: 0 | T129: 0 | U129: 0 | V129: 1 | W129: NO | X129: NO | Y129: NO | Z129: NO | AA129: O | AB129: NO | AC129: NO | AD129: NO | AE129: NO | AF129: NO | AG129: NO | AH129: -0.504 | AI129: Tolerated | AJ129: 33.79 | AK129: 29.33 | AL129: 650 | AM129: 39 | AN129: 693 | AO129: 0.0562770563 | AP129: 1285 | AQ129: 0 | AR129: 1290 | AS129: 0 | AT129: 7.2457614e-19 | AU129: 39 | AV129: 39 | AW129: Artifact (11)
A130: UPN_Te2_035 | B130: 4 | C130: 106156282 | D130: A | E130: C | F130: TET2 | G130: ENST00000380013 | H130: missense_variant | I130: Act/Cct|p.Thr395Pro/c.1183A>C | J130: 4777 | K130: 67 | L130: 4855 | M130: 0.013800206 | N130: 0 | O130: 0 | P130: 0 | Q130: 0 | R130: 1 | S130: 0 | T130: 0 | U130: 0 | V130: 1 | W130: NO | X130: NO | Y130: NO | Z130: NO | AA130: O | AB130: NO | AC130: NO | AD130: NO | AE130: NO | AF130: NO | AG130: NO | AH130: -0.504 | AI130: Tolerated | AJ130: 33.67 | AK130: 32.39 | AL130: 1736 | AM130: 66 | AN130: 1805 | AO130: 0.036565097 | AP130: 3041 | AQ130: 1 | AR130: 3050 | AS130: 0.0003278689 | AT130: 9.117164174e-28 | AU130: 39 | AV130: 39 | AW130: Artifact (11)
A131: UPN_Te2_040 | B131: 4 | C131: 106156282 | D131: A | E131: C | F131: TET2 | G131: ENST00000380013 | H131: missense_variant | I131: Act/Cct|p.Thr395Pro/c.1183A>C | J131: 5008 | K131: 60 | L131: 5072 | M131: 0.011829653 | N131: 0 | O131: 0 | P131: 0 | Q131: 0 | R131: 1 | S131: 0 | T131: 0 | U131: 0 | V131: 1 | W131: NO | X131: NO | Y131: NO | Z131: NO | AA131: O | AB131: NO | AC131: NO | AD131: NO | AE131: NO | AF131: NO | AG131: NO | AH131: -0.504 | AI131: Tolerated | AJ131: 33.99 | AK131: 29.95 | AL131: 1754 | AM131: 58 | AN131: 1812 | AO131: 0.03200883 | AP131: 3254 | AQ131: 2 | AR131: 3260 | AS131: 0.0006134969 | AT131: 5.199349995e-24 | AU131: 39 | AV131: 39 | AW131: Artifact (11)
A132: UPN_Te2_044 | B132: 4 | C132: 106156282 | D132: A | E132: C | F132: TET2 | G132: ENST00000380013 | H132: missense_variant | I132: Act/Cct|p.Thr395Pro/c.1183A>C | J132: 4668 | K132: 84 | L132: 4757 | M132: 0.0176581879 | N132: 0 | O132: 0 | P132: 0 | Q132: 0 | R132: 1 | S132: 0 | T132: 0 | U132: 0 | V132: 1 | W132: NO | X132: NO | Y132: NO | Z132: NO | AA132: O | AB132: NO | AC132: NO | AD132: NO | AE132: NO | AF132: NO | AG132: NO | AH132: -0.504 | AI132: Tolerated | AJ132: 33.77 | AK132: 28.01 | AL132: 1689 | AM132: 83 | AN132: 1774 | AO132: 0.0467869222 | AP132: 2979 | AQ132: 1 | AR132: 2983 | AS132: 0.000335233 | AT132: 4.359875476e-35 | AU132: 39 | AV132: 39 | AW132: Artifact (11)
A133: UPN_Te2_019 | B133: 4 | C133: 106157009 | D133: A | E133: C | F133: TET2 | G133: ENST00000380013 | H133: missense_variant | I133: gAa/gCa|p.Glu637Ala/c.1910A>C | J133: 2930 | K133: 55 | L133: 2991 | M133: 0.0183884988 | N133: 0 | O133: 0 | P133: 0 | Q133: 0 | R133: 1 | S133: 0 | T133: 0 | U133: 0 | V133: 1 | W133: NO | X133: NO | Y133: NO | Z133: NA | AA133: NA | AB133: NO | AC133: NO | AD133: NO | AE133: NO | AF133: NO | AG133: NO | AH133: -1.272 | AI133: Tolerated | AJ133: 34.36 | AK133: 28.07 | AL133: 1825 | AM133: 55 | AN133: 1886 | AO133: 0.0291622481 | AP133: 1105 | AQ133: 0 | AR133: 1105 | AS133: 0 | AT133: 7.700477389e-12 | AU133: 32 | AV133: 32 | AW133: Artifact (11)
A134: UPN_Te2_040 | B134: 4 | C134: 106157009 | D134: A | E134: C | F134: TET2 | G134: ENST00000380013 | H134: missense_variant | I134: gAa/gCa|p.Glu637Ala/c.1910A>C | J134: 3410 | K134: 63 | L134: 3475 | M134: 0.0181294964 | N134: 0 | O134: 0 | P134: 0 | Q134: 0 | R134: 1 | S134: 0 | T134: 0 | U134: 0 | V134: 1 | W134: NO | X134: NO | Y134: NO | Z134: NA | AA134: NA | AB134: NO | AC134: NO | AD134: NO | AE134: NO | AF134: NO | AG134: NO | AH134: -1.272 | AI134: Tolerated | AJ134: 34.56 | AK134: 29.95 | AL134: 2118 | AM134: 63 | AN134: 2183 | AO134: 0.0288593678 | AP134: 1292 | AQ134: 0 | AR134: 1292 | AS134: 0 | AT134: 2.512860297e-13 | AU134: 32 | AV134: 32 | AW134: Artifact (11)
A135: UPN_Te2_025 | B135: 4 | C135: 106196567 | D135: A | E135: C | F135: TET2 | G135: ENST00000380013 | H135: missense_variant | I135: Aat/Cat|p.Asn1634His/c.4900A>C | J135: 1634 | K135: 33 | L135: 1672 | M135: 0.0197368421 | N135: 0 | O135: 0 | P135: 0 | Q135: 0 | R135: 1 | S135: 0 | T135: 0 | U135: 0 | V135: 1 | W135: NO | X135: NO | Y135: NO | Z135: NO | AA135: O | AB135: NO | AC135: NO | AD135: NO | AE135: NO | AF135: NO | AG135: NO | AH135: -1.492 | AI135: Tolerated | AJ135: 33.07 | AK135: 26.24 | AL135: 1565 | AM135: 33 | AN135: 1603 | AO135: 0.0205864005 | AP135: 69 | AQ135: 0 | AR135: 69 | AS135: 0 | AT135: 0.3978482542 | AU135: 31 | AV135: 31 | AW135: Artifact (11)
A136: UPN_Te2_045 | B136: 4 | C136: 106196567 | D136: A | E136: C | F136: TET2 | G136: ENST00000380013 | H136: missense_variant | I136: Aat/Cat|p.Asn1634His/c.4900A>C | J136: 2804 | K136: 31 | L136: 2841 | M136: 0.0109116508 | N136: 0 | O136: 0 | P136: 0 | Q136: 0 | R136: 1 | S136: 0 | T136: 0 | U136: 0 | V136: 1 | W136: NO | X136: NO | Y136: NO | Z136: NO | AA136: O | AB136: NO | AC136: NO | AD136: NO | AE136: NO | AF136: NO | AG136: NO | AH136: -1.492 | AI136: Tolerated | AJ136: 33.35 | AK136: 29.48 | AL136: 2629 | AM136: 31 | AN136: 2666 | AO136: 0.011627907 | AP136: 175 | AQ136: 0 | AR136: 175 | AS136: 0 | AT136: 0.2576717622 | AU136: 31 | AV136: 31 | AW136: Artifact (11)
